Workbook

Sheet HELP
A1: Clean Columns Help:
A2: 1) | B2: You must Enable Macros in order for the spreadsheet "Clean Columns" to work.
B3: If the buttons on the worksheets don't work the Macros are not enabled.
B4: If you are not prompted as to whether or not you want to enable macros when you open Clean Columns, there are two possible reasons.
B5: First, Excel's macro security may be too high. To correct this, select "Tools" from the menu bar, then select "Macros", then "Security".
B6: The "Security" form will open. Choose the "Medium" or "Low" setting on the "Security Level" tab. Close then re-open Clean Columns.
B8: If the program still does not work, the second reason macros may not work is that some anti-virus software will identify the macros in this spreadsheet
B9: as a virus and remove or disable them from the file. If this happens, the spreadsheet will not function properly. Contact your computer
B10: administrator for help in correcting these problems.
A12: 2) | B12: If you are getting errors while running Clean Columns such as "Path not Found" or "Can't find Project or Library"
B13: Set the Error Trapping Option in Excel's Visual Basic Editor to "Break on Unhandled Errors"
B14: To do this go to the "Tools" menu, select "Macro" then "Visual Basic Editor". The Visual Basic Editor window will open.
B15: You can also use Alt-F11 to open the window.
B17: Select "Tools" from the menu bar at the top, then select "Options". The "Options" form will open.
B18: Go to the "General" tab. Select "Break on Unhandled Errors" from the "Error Trapping" options.

Sheet Cover Sheet
C4: The Steel Solutions® Center is your gateway to powerful tools, facts and project solutions.
L5: Clean Columns V14.2
C6: Least weight is not least cost.
C7: Least weight is not least cost.
C8: Least weight is not least cost.
C9: Calculations are based on AISC 2010 Specification, 14th Ed. Steel Construction Manual, Design Guide #13, and Design Guide #4 2nd Edition.
C11: Talk to your favorite fabricator, or consult chapter 3 of Design Guide 13 for more information on the cost of stiffener and doubler plates.
D13: This document has been prepared in accordance with information made available to the American Institute of Steel Construction at the time of its preparation. While it is believed to be accurate, it has not been prepared for conventional use as an engineering or construction document and should not be used or relied upon for any specific application without competent professional examination and verification of its accuracy, suitability and applicability by a licensed engineer, architect or other professional. AISC disclaims any liability arising from information provided by others or from the unauthorized use of the information contained in this document.

Sheet Clean Columns
AA1: 27 | AB1: 28 | AC1: 29 | AD1: 30
B4: Project: | D4: Any Steel Project | N4: =TODAY() -> 2015-01-26
B5: Client: | D5: Best Architect Ever
B6: Engineer:
B7: Remarks: | D7: Interior Columns: Lines B, C, and E
C9: Clean Columns V14.1 was developed to return the lightest column section that can be used without stiffeners and/or doubler plates to develop a specified moment and axial force in the beam(s), based on the criteria in AISC Design Guide Series #13 and the 2010 AISC Specification for Structural Steel Buildings. The design of the column for axial load capacity is not considered.
C11: 1) Summary of Assumptions:
C12: The effects of a composite concrete floor slab are not considered in the analysis. The connection is assumed to be part of a frame resisting wind or low seismic forces. In other words, the structure is designed to meet the requirements in the AISC Specification for Structural Steel Buildings with no special seismic detailing. The panel zone is assumed to remain nominally within the elastic range. Other assumptions apply. Review all the assumptions by clicking on the button above. | W12: Max Tension | X12: Max Compression | Y12: No prying Moment strength | Z12: Max Shear
C13: 2) Connection Configuration: | W13: =-MIN(K31:K34) -> 104.1968162 | X13: =MAX(K31:K34) -> 104.1968162 | Y13: =F19 -> 0 | Z13: =ABS(K30) -> 208.3936324
C14: =AB57 -> Beams Conected on Both Sides | U14: Column Indices | W14: Without Stiffeners /Tension | X14: Without Stiffeners /Compression | Y14: Without Stiffeners /Mnp | Z14: Without Stiffeners | AA14: Without Doubler Plate | AB14: Without Stiffeners and Without Doubler Plate
C15: =AB58 -> Beams are not Connected Near the Top of the Column | H15: =AD59 -> 0
C16: =AB60 -> Directly Welded Flange
E17: =AC62 ->  | F17: 0 | G17: 0
F18: 0
F19: 0 | U19: W8 | V19: A | W19: =IF(Columns!$O$123<W$13,"--",MATCH(W$13,Columns!$O$123:$O$128,-1)) -> 3 | X19: =IF(Columns!$P$123<X$13,"--",MATCH(X$13,Columns!$P$123:$P$128,-1)) -> 3 | Y19: =IF(Columns!$S$123<Y$13,"--",MATCH(Y$13,Columns!$S$123:$S$128,-1)) -> 6 | Z19: =IF($Z$60=2,IF(OR(W19="--",X19="--",Y19="--"),"--",MIN(W19:Y19)),IF(OR(W19="--",X19="--"),"--",MIN(W19:X19))) -> 3 | AA19: =IF(Columns!Q123<ABS('Clean Columns'!$K$30),"--",MATCH(ABS($K$30),Columns!Q123:Q128,-1)) -> -- | AB19: =IF(OR(Z19="--",AA19="--"),"--",MIN(Z19:AA19)) -> --
U20: W10 | V20: A | W20: =IF(Columns!$O$119<W$13,"--",MATCH(W$13,Columns!$O$119:$O$121,-1)) -> 1 | X20: =IF(Columns!$P$119<X$13,"--",MATCH(X$13,Columns!$P$119:$P$121,-1)) -> 1 | Y20: =IF(Columns!$S$119<Y$13,"--",MATCH(Y$13,Columns!$S$119:$S$121,-1)) -> 3 | Z20: =IF($Z$60=2,IF(OR(W20="--",X20="--",Y20="--"),"--",MIN(W20:Y20)),IF(OR(W20="--",X20="--"),"--",MIN(W20:X20))) -> 1 | AA20: =IF(Columns!Q119<ABS('Clean Columns'!$K$30),"--",MATCH(ABS($K$30),Columns!Q119:Q121,-1)) -> -- | AB20: =IF(OR(Z20="--",AA20="--"),"--",MIN(Z20:AA20)) -> --
C21: 3) Beam Section: | V21: B | W21: =IF(Columns!$O110<W$13,"--",MATCH(W$13,Columns!$O110:$O117,-1)) -> 7 | X21: =IF(Columns!$P110<X$13,"--",MATCH(X$13,Columns!$P110:$P117,-1)) -> 7 | Y21: =IF(Columns!$S110<Y$13,"--",MATCH(Y$13,Columns!$S110:$S117,-1)) -> 8 | Z21: =IF($Z$60=2,IF(OR(W21="--",X21="--",Y21="--"),"--",MIN(W21:Y21)),IF(OR(W21="--",X21="--"),"--",MIN(W21:X21))) -> 7 | AA21: =IF(Columns!Q110<ABS('Clean Columns'!$K$30),"--",MATCH(ABS($K$30),Columns!Q110:Q117,-1)) -> 1 | AB21: =IF(OR(Z21="--",AA21="--"),"--",MIN(Z21:AA21)) -> 1
C22: Beam Section: | D22: =AD25 -> W18X35 | U22: W12 | V22: A | W22: =IF(Columns!$O105<W$13,"--",MATCH(W$13,Columns!$O105:$O107,-1)) -> 1 | X22: =IF(Columns!$P105<X$13,"--",MATCH(X$13,Columns!$P105:$P107,-1)) -> 1 | Y22: =IF(Columns!$S105<Y$13,"--",MATCH(Y$13,Columns!$S105:$S107,-1)) -> 3 | Z22: 1 | AA22: =IF(Columns!Q105<ABS('Clean Columns'!$K$30),"--",MATCH(ABS($K$30),Columns!Q105:Q107,-1)) -> -- | AB22: --
V23: B | W23: =IF(Columns!$O102<W$13,"--",MATCH(W$13,Columns!$O102:$O103,-1)) -> 1 | X23: =IF(Columns!$P102<X$13,"--",MATCH(X$13,Columns!$P102:$P103,-1)) -> 2 | Y23: =IF(Columns!$S102<Y$13,"--",MATCH(Y$13,Columns!$S102:$S103,-1)) -> 2 | Z23: 1 | AA23: =IF(Columns!Q102<ABS('Clean Columns'!$K$30),"--",MATCH(ABS($K$30),Columns!Q102:Q103,-1)) -> -- | AB23: --
D24: =INDEX(Beams!H6:H324,'Clean Columns'!AD26)/12/IF('Clean Columns'!Z67=0,1,1.5) -> 249.375 | E24: kip-ft | F24: =AC66 -> Plastic Moment Strength | V24: C | W24: =IF(Columns!$O84<W$13,"--",MATCH(W$13,Columns!$O84:$O100,-1)) -> 16 | X24: =IF(Columns!$P84<X$13,"--",MATCH(X$13,Columns!$P84:$P100,-1)) -> 17 | Y24: =IF(Columns!$S84<Y$13,"--",MATCH(Y$13,Columns!$S84:$S100,-1)) -> 17 | Z24: 16 | AA24: =IF(Columns!Q84<ABS('Clean Columns'!$K$30),"--",MATCH(ABS($K$30),Columns!Q84:Q100,-1)) -> 12 | AB24: 12 | AC24: Nom Depth | AD24: 8 | AF24: 0
C25: 4) Forces and Material Properties: | U25: W14 | V25: A | W25: =IF(Columns!$O79<W$13,"--",MATCH(W$13,Columns!$O79:$O81,-1)) -> 1 | X25: =IF(Columns!$P79<X$13,"--",MATCH(X$13,Columns!$P79:$P81,-1)) -> 1 | Y25: =IF(Columns!$S79<Y$13,"--",MATCH(Y$13,Columns!$S79:$S81,-1)) -> 3 | Z25: =IF($Z$60=2,IF(OR(W25="--",X25="--",Y25="--"),"--",MIN(W25:Y25)),IF(OR(W25="--",X25="--"),"--",MIN(W25:X25))) -> 1 | AA25: =IF(Columns!Q79<ABS('Clean Columns'!$K$30),"--",MATCH(ABS($K$30),Columns!Q79:Q81,-1)) -> -- | AB25: -- | AC25: Beam section | AD25: W18X35 | AF25: W18X283 | AH25: W4 | AI25: 17
C26: =AB67 -> 2005 LRFD Specification for Structural Steel Buildings | V26: B | W26: =IF(Columns!$O74<W$13,"--",MATCH(W$13,Columns!$O74:$O77,-1)) -> 4 | X26: =IF(Columns!$P74<X$13,"--",MATCH(X$13,Columns!$P74:$P77,-1)) -> 4 | Y26: =IF(Columns!$S74<Y$13,"--",MATCH(Y$13,Columns!$S74:$S77,-1)) -> 4 | Z26: 4 | AA26: =IF(Columns!Q74<ABS('Clean Columns'!$K$30),"--",MATCH(ABS($K$30),Columns!Q74:Q77,-1)) -> -- | AB26: -- | AC26: Beam Index | AD26: =VLOOKUP(AD25,Beams!A6:O324,9,FALSE) -> 146 | AF26: W18 | AH26: W5 | AI26: 16
C27: (Fy)c = | D27: =Z79 -> 50 | E27: ksi | F27: Column Specified Minimum Yield Strength | V27: C | W27: =IF(Columns!$O68<W$13,"--",MATCH(W$13,Columns!$O68:$O72,-1)) -> 5 | X27: =IF(Columns!$P68<X$13,"--",MATCH(X$13,Columns!$P68:$P72,-1)) -> 5 | Y27: =IF(Columns!$S68<Y$13,"--",MATCH(Y$13,Columns!$S68:$S72,-1)) -> 5 | Z27: 5 | AA27: =IF(Columns!Q68<ABS('Clean Columns'!$K$30),"--",MATCH(ABS($K$30),Columns!Q68:Q72,-1)) -> 2 | AB27: 2 | AF27: W16 | AH27: W6 | AI27: 15
C28: (Fy)b = | D28: =Z80 -> 50 | E28: ksi | F28: Beam Specified Minimum Yield Strength | V28: D | W28: =IF(Columns!$O54<W$13,"--",MATCH(W$13,Columns!$O54:$O66,-1)) -> 13 | X28: =IF(Columns!$P54<X$13,"--",MATCH(X$13,Columns!$P54:$P66,-1)) -> 13 | Y28: =IF(Columns!$S54<Y$13,"--",MATCH(Y$13,Columns!$S54:$S66,-1)) -> 13 | Z28: 13 | AA28: =IF(Columns!Q54<ABS('Clean Columns'!$K$30),"--",MATCH(ABS($K$30),Columns!Q54:Q66,-1)) -> 13 | AB28: 13 | AF28: W14 | AH28: W8 | AI28: 14
C29: (Vs)T = | D29: =Z68 -> 0 | E29: kips | F29: Column Story Shear | I29: 5) Resultant Forces (a positive value indicates compression) | V29: E | W29: =IF(Columns!$O46<W$13,"--",MATCH(W$13,Columns!$O46:$O52,-1)) -> -- | X29: =IF(Columns!$P46<X$13,"--",MATCH(X$13,Columns!$P46:$P52,-1)) -> -- | Y29: =IF(Columns!$S46<Y$13,"--",MATCH(Y$13,Columns!$S46:$S52,-1)) -> 7 | Z29: -- | AA29: =IF(Columns!Q46<ABS('Clean Columns'!$K$30),"--",MATCH(ABS($K$30),Columns!Q46:Q52,-1)) -> -- | AB29: -- | AF29: W12 | AH29: W10 | AI29: 13
C30: (Pc)T = | D30: 0 | E30: kips | F30: Column Axial Load | J30: Vp = | K30: =AB79 -> 208.3936324 | L30: kips | M30: Total Panel-Zone Shear Force | U30: W16 | V30: A | W30: =IF(Columns!$O43<W$13,"--",MATCH(W$13,Columns!$O43:$O44,-1)) -> -- | X30: =IF(Columns!$P43<X$13,"--",MATCH(X$13,Columns!$P43:$P44,-1)) -> -- | Y30: =IF(Columns!$S43<Y$13,"--",MATCH(Y$13,Columns!$S43:$S44,-1)) -> 2 | Z30: -- | AA30: =IF(Columns!Q43<ABS('Clean Columns'!$K$30),"--",MATCH(ABS($K$30),Columns!Q43:Q44,-1)) -> -- | AB30: -- | AF30: W10 | AH30: W12 | AI30: 12
C31: (Pb)R = | D31: 0 | E31: kips | F31: Beam Axial Load, Right Side | J31: (Pf)TR = | K31: =AB80 -> 104.1968162 | L31: kips | M31: Top Flange Force, Right Side | V31: B | W31: =IF(Columns!$O37<W$13,"--",MATCH(W$13,Columns!$O37:$O41,-1)) -> 2 | X31: =IF(Columns!$P37<X$13,"--",MATCH(X$13,Columns!$P37:$P41,-1)) -> 1 | Y31: =IF(Columns!$S37<Y$13,"--",MATCH(Y$13,Columns!$S37:$S41,-1)) -> 5 | Z31: 1 | AA31: =IF(Columns!Q37<ABS('Clean Columns'!$K$30),"--",MATCH(ABS($K$30),Columns!Q37:Q41,-1)) -> -- | AB31: -- | AF31: W8 | AH31: W14 | AI31: 11
C32: MR= | D32: 150 | E32: k*ft | F32: Beam Moment, Right Side | J32: (Pf)BR = | K32: =AB81 -> -104.1968162 | L32: kips | M32: Bottom Flange Force, Right Side | V32: C | W32: =IF(Columns!$O32<W$13,"--",MATCH(W$13,Columns!$O32:$O35,-1)) -> 4 | X32: =IF(Columns!$P32<X$13,"--",MATCH(X$13,Columns!$P32:$P35,-1)) -> 4 | Y32: =IF(Columns!$S32<Y$13,"--",MATCH(Y$13,Columns!$S32:$S35,-1)) -> 4 | Z32: 4 | AA32: =IF(Columns!Q32<ABS('Clean Columns'!$K$30),"--",MATCH(ABS($K$30),Columns!Q32:Q35,-1)) -> 2 | AB32: 2 | AH32: W16 | AI32: 10
D33: 0 | E33: =AB72 -> kips | F33: =AC72 -> Beam Axial Load, Left Side | K33: =AB82 -> -104.1968162 | L33: =AC82 -> kips | M33: =AD82 -> Top Flange Force, Left Side | U33: W18 | V33: A | W33: =IF(Columns!$O28<W$13,"--",MATCH(W$13,Columns!$O28:$O30,-1)) -> -- | X33: =IF(Columns!$P28<X$13,"--",MATCH(X$13,Columns!$P28:$P30,-1)) -> -- | Y33: =IF(Columns!$S28<Y$13,"--",MATCH(Y$13,Columns!$S28:$S30,-1)) -> 3 | Z33: -- | AA33: =IF(Columns!Q28<ABS('Clean Columns'!$K$30),"--",MATCH(ABS('Clean Columns'!$K$30),Columns!Q28:Q30,-1)) -> -- | AB33: -- | AH33: W18 | AI33: 9
D34: 150 | E34: =AB73 -> k*ft | F34: =AC73 -> Beam Moment, Left Side | K34: =AB83 -> 104.1968162 | L34: =AC83 -> kips | M34: =AD83 -> Bottom Flange Force, Left Side | V34: B | W34: =IF(Columns!$O22<W$13,"--",MATCH(W$13,Columns!$O22:$O26,-1)) -> 4 | X34: =IF(Columns!$P22<X$13,"--",MATCH(X$13,Columns!$P22:$P26,-1)) -> 3 | Y34: =IF(Columns!$S22<Y$13,"--",MATCH(Y$13,Columns!$S22:$S26,-1)) -> 5 | Z34: 3 | AA34: =IF(Columns!Q22<ABS('Clean Columns'!$K$30),"--",MATCH(ABS('Clean Columns'!$K$30),Columns!Q22:Q26,-1)) -> 2 | AB34: 2 | AH34: W21 | AI34: 8
V35: C | W35: =IF(Columns!$O16<W$13,"--",MATCH(W$13,Columns!$O16:$O20,-1)) -> 5 | X35: =IF(Columns!$P16<X$13,"--",MATCH(X$13,Columns!$P16:$P20,-1)) -> 5 | Y35: =IF(Columns!$S16<Y$13,"--",MATCH(Y$13,Columns!$S16:$S20,-1)) -> 5 | Z35: 5 | AA35: =IF(Columns!Q16<ABS('Clean Columns'!$K$30),"--",MATCH(ABS('Clean Columns'!$K$30),Columns!Q16:Q20,-1)) -> 5 | AB35: 5 | AH35: W24 | AI35: 7
C36: 6) Column Design Results: | V36: D | W36: =IF(Columns!$O5<W$13,"--",MATCH(W$13,Columns!$O5:$O14,-1)) -> 10 | X36: =IF(Columns!$P5<X$13,"--",MATCH(X$13,Columns!$P5:$P14,-1)) -> 10 | Y36: =IF(Columns!$S5<Y$13,"--",MATCH(Y$13,Columns!$S5:$S14,-1)) -> 10 | Z36: 10 | AA36: =IF(Columns!Q5<ABS('Clean Columns'!$K$30),"--",MATCH(ABS('Clean Columns'!$K$30),Columns!Q5:Q14,-1)) -> 10 | AB36: 10 | AH36: W27 | AI36: 6
AH37: W30 | AI37: 5
D38: Lightest | F38: Lightest | G38: Lightest | H38: Lightest | I38: Lightest | K38: Lightest | AH38: W33 | AI38: 4
D39: W8 | F39: W10 | G39: W12 | H39: W14 | I39: W16 | K39: W18 | AH39: W36 | AI39: 3
C40: No Stiffener Plates Required | D40: =IF(Z$19="--","--",INDEX(Columns!A$123:A$128,Z$19)) -> W8X48 | F40: =IF(Z20="--",IF(Z21="--","--",INDEX(Columns!A$110:A$117,Z21)),INDEX(Columns!A$119:A$121,Z20)) -> W10X45 | G40: =IF(Z22="--",IF(Z23="--",IF(Z24="--","--",INDEX(Columns!A$84:A$100,Z24)),INDEX(Columns!A$102:A$103,Z23)),INDEX(Columns!A$105:A$107,Z22)) -> W12X50 | H40: =IF($Z25="--",IF($Z26="--",IF($W27="--",IF($Z28="--",IF($Z29="--","--",INDEX(Columns!$A$46:$A$52,$Z29)),INDEX(Columns!$A$54:$A$66,$Z28)),INDEX(Columns!$A$68:$A$72,$Z27)),INDEX(Columns!$A$74:$A$77,$Z26)),INDEX(Columns!$A$79:$A$81,$Z25)) -> W14X53 | I40: =IF(Z$30="--",IF(Z$31="--",IF(Z$32="--","--",INDEX(Columns!A32:A35,Z$32)),INDEX(Columns!A$37:A$41,Z$31)),INDEX(Columns!A$43:A$44,Z$30)) -> W16X57 | K40: =IF(Z$33="--",IF(Z$34="--",IF(Z$35="--",IF(Z$36="--","--",INDEX(Columns!A5:A14,Z$36)),INDEX(Columns!A16:A20,Z$35)),INDEX(Columns!A22:A26,Z$34)),INDEX(Columns!A28:A30,Z$33)) -> W18X60 | AH40: W40 | AI40: 2
C41: No Doubler Plates Required | D41: =IF(AA$19="--","--",INDEX(Columns!A$123:A$128,AA$19)) -> -- | F41: =IF(AA20="--",IF(AA21="--","--",INDEX(Columns!A$110:A$117,AA21)),INDEX(Columns!A$119:A$121,AA20)) -> W10X112 | G41: =IF(AA22="--",IF(AA23="--",IF(AA24="--","--",INDEX(Columns!A$84:A$100,AA24)),INDEX(Columns!A$102:A$103,AA23)),INDEX(Columns!A$105:A$107,AA22)) -> W12X106 | H41: =IF(AA25="--",IF(AA26="--",IF(AA27="--",IF(AA28="--",IF(AA29="--","--",INDEX(Columns!A$46:A$52,AA29)),INDEX(Columns!A$54:A$66,AA28)),INDEX(Columns!A$68:A$72,AA27)),INDEX(Columns!A$74:A$77,AA26)),INDEX(Columns!A$79:A$81,AA25)) -> W14X120 | I41: =IF(AA$30="--",IF(AA$31="--",IF(AA$32="--","--",INDEX(Columns!A$32:A$35,AA$32)),INDEX(Columns!A$37:A$41,AA$31)),INDEX(Columns!A$43:A$44,AA$30)) -> W16X89 | K41: =IF(AA$33="--",IF(AA$34="--",IF(AA$35="--",IF(AA$36="--","--",INDEX(Columns!A5:A14,AA$36)),INDEX(Columns!A16:A20,AA$35)),INDEX(Columns!A22:A26,AA$34)),INDEX(Columns!A28:A30,AA$33)) -> W18X65 | AH41: W44 | AI41: 2
C42: No Stiffener Plates or Doubler Plates Required | D42: =IF(AB$19="--","--",INDEX(Columns!A$123:A$128,AB$19)) -> -- | F42: =IF(AB20="--",IF(AB21="--","--",INDEX(Columns!A$110:A$117,AB21)),INDEX(Columns!A$119:A$121,AB20)) -> W10X112 | G42: =IF(AB22="--",IF(AB23="--",IF(AB24="--","--",INDEX(Columns!A$84:A$100,AB24)),INDEX(Columns!A$102:A$103,AB23)),INDEX(Columns!A$105:A$107,AB22)) -> W12X106 | H42: =IF(AB25="--",IF(AB26="--",IF(AB27="--",IF(AB28="--",IF(AB29="--","--",INDEX(Columns!A$46:A$52,AB29)),INDEX(Columns!A$54:A$66,AB28)),INDEX(Columns!A$68:A$72,AB27)),INDEX(Columns!A$74:A$77,AB26)),INDEX(Columns!A$79:A$81,AB25)) -> W14X120 | I42: =IF(AB$30="--",IF(AB$31="--",IF(AB$32="--","--",INDEX(Columns!A$32:A$35,AB$32)),INDEX(Columns!A$37:A$41,AB$31)),INDEX(Columns!A$43:A$44,AB$30)) -> W16X89 | K42: =IF(AB$33="--",IF(AB$34="--",IF(AB$35="--",IF(AB$36="--","--",INDEX(Columns!A5:A14,AB$36)),INDEX(Columns!A16:A20,AB$35)),INDEX(Columns!A22:A26,AB$34)),INDEX(Columns!A28:A30,AB$33)) -> W18X65
C44: This spreadsheet has been prepared in accordance with information made available to the American Institute of Steel Construction, Inc., AISC Marketing, LLC, and the Steel Solutions Center, LLC at the time of its preparation. While it is believed to be accurate, it has not been prepared for conventional use as an engineering or construction document and should not be used or relied upon for any specific application without competent professional examination and verification of its accuracy, suitability and applicability by a licensed engineer, architect or other professional. AISC, AISCM, and SSC disclaim any liability arising from information provided by others or from the unauthorized use of the information contained in this spreadsheet.
Z56: 26 | AA56: 27 | AB56: 28 | AC56: 29 | AD56: 30 | AE56: 31 | AF56: 32
Z57: TRUE | AA57: 57 | AB57: Beams Conected on Both Sides
Z58: FALSE | AA58: =AA57+1 -> 58 | AB58: Beams are not Connected Near the Top of the Column
Z59: 0 | AA59: =AA58+1 -> 59
Z60: 0 | AA60: 60 | AB60: Directly Welded Flange
Y61: End | Z61: 0.5 | AA61: 61
Y62: flange plate | Z62: 0.5 | AA62: 62
Z63: 8 | AA63: 63
Z64: 6 | AA64: 64
Y65: Yc | Z65: 170.1 | AA65: 65
Y66: Mnp | Z66: 478 | AA66: 66 | AC66: Plastic Moment Strength
Z67: 0 | AA67: 67 | AB67: 2005 LRFD Specification for Structural Steel Buildings
Z68: 0 | AA68: 68 | AC68: Column Story Shear
Z69: 0 | AA69: 69 | AC69: Column Axial Load
Z70: 0 | AA70: 70 | AC70: Beam Axial Load, Right Side
Z71: 150 | AA71: 71 | AC71: Beam Moment, Right Side
Z72: 0 | AA72: 72 | AB72: kips | AC72: Beam Axial Load, Left Side
Z73: 150 | AA73: 73 | AB73: k*ft | AC73: Beam Moment, Left Side
AA74: 74 | AC74: Top Factored Flange Force, Right Side | AD74: Top Service Flange Force, Right Side
AA75: 75 | AC75: Bottom Factored Flange Force, Right Side | AD75: Bottom Service Flange Force, Right Side
AA76: 76 | AB76: (Puf)TL = | AC76: Top Factored Flange Force, Left Side | AD76: Top Service Flange Force, Left Side
AA77: 77 | AB77: (Puf)BL = | AC77: Bottom Factored Flange Force, Left Side | AD77: Bottom Service Flange Force, Left Side
AA78: 78 | AC78: Factored Total Panel-Zone Shear Force | AD78: Service Total Panel-Zone Shear Force
Y79: Fyc | Z79: 50 | AA79: 79 | AB79: =INDEX(Beams!$N$6:$N$324,'Clean Columns'!$AD$26) -> 208.3936324 | AC79: kips | AD79: Total Panel-Zone Shear Force
Y80: Fyb | Z80: 50 | AA80: 80 | AB80: =INDEX(Beams!$J$6:$J$324,'Clean Columns'!$AD$26) -> 104.1968162 | AC80: kips | AD80: Top Flange Force, Right Side
AA81: 81 | AB81: =INDEX(Beams!$L$6:$L$324,'Clean Columns'!$AD$26) -> -104.1968162 | AC81: kips | AD81: Bottom Flange Force, Right Side
AA82: 82 | AB82: =IF(NOT($Z$57),0,INDEX(Beams!$K$6:$K$324,'Clean Columns'!$AD$26)) -> -104.1968162 | AC82: =IF($Z$57,"kips","") -> kips | AD82: =IF(Z57,"Top Flange Force, Left Side","") -> Top Flange Force, Left Side
AA83: 83 | AB83: =IF(NOT($Z$57),0,INDEX(Beams!$M$6:$M$324,'Clean Columns'!$AD$26)) -> 104.1968162 | AC83: =IF($Z$57,"kips","") -> kips | AD83: =IF(Z57,"Bottom Flange Force, Left Side","") -> Bottom Flange Force, Left Side
Y84: w | Z84: 0.25 | AA84: 84

Sheet Calculations
B2: Project: | D2: ='Clean Columns'!D4:M4 -> Any Steel Project | Q2: =TODAY() -> 2015-01-26
B3: Client: | D3: ='Clean Columns'!$D$5:$M$5 -> Best Architect Ever
B4: Engineer:
B5: Remarks: | D5: ='Clean Columns'!D7 -> Interior Columns: Lines B, C, and E
B7: ="Clean Column Design Calculations for a "&'Clean Columns'!AF25&" Column"&IF('Clean Columns'!Z67=0,": LRFD",": ASD") -> Clean Column Design Calculations for a W18X283 Column: LRFD
B8: Clean Columns V14.2
B9: I) Force Transfer in Unreinforced Columns
C11: A) Required Strength for Local Flange and Web Limit States | K11: ='Clean Columns'!AB60&" Connection:" -> Directly Welded Flange Connection:
C12: ="Design for a "&'Clean Columns'!AD25&" Beam" -> Design for a W18X35 Beam | G12: db = | H12: =VLOOKUP('Clean Columns'!$AD$25,Beams!$A$6:$O$324,3,FALSE) -> 17.7 | P12: =IF('Clean Columns'!$Z$60<>0,"Plate Thickness, =","") ->  | Q12: =IF('Clean Columns'!$Z$60=1,'Clean Columns'!AD62,IF('Clean Columns'!$Z$60=2,'Clean Columns'!AD62,"")) -> 
C13: =IF('Clean Columns'!$Z$57,"Beams on Both Sides","Beam on One Side Only") -> Beams on Both Sides | G13: tbf = | H13: =VLOOKUP('Clean Columns'!$AD$25,Beams!$A$6:$O$324,5,FALSE) -> 0.425 | P13: =IF('Clean Columns'!$Z$60=1,"Bottom Plate Width =",IF('Clean Columns'!$Z$60=2,"Yield Line Parameter =","")) ->  | Q13: =IF('Clean Columns'!$Z$60=1,'Clean Columns'!AD63,IF('Clean Columns'!$Z$60=2,'Clean Columns'!AD63,"")) -> 
F14: Right Side | I14: Left Side | P14: =IF('Clean Columns'!$Z$60=1,"Top Plate Width =","") ->  | Q14: =IF('Clean Columns'!$Z$60=1,'Clean Columns'!AD64,"") -> 
C15: Beam Axial Load | E15: (Pb)R = | F15: ='Clean Columns'!D31 -> 0 | G15: kips | I15: =IF('Clean Columns'!Z57,'Clean Columns'!D33,"") -> 0 | J15: =IF('Clean Columns'!$Z$57,"kips","") -> kips
C16: Beam Moment | E16: MR = | F16: ='Clean Columns'!D32 -> 150 | G16: k*ft | I16: ='Clean Columns'!D34 -> 150 | J16: =IF('Clean Columns'!$Z$57,"k*ft","") -> k*ft
C17: Beam Flange Forces (a positive value indicates compression) | L17: dm = | M17: =IF('Clean Columns'!$Z$60=1,Calculations!H12+Calculations!Q12,Calculations!H12-H13) -> 17.275 | AA17: Column Indices | AC17: Without Stiffeners | AD17: Without Doubler Plate | AE17: Without Stiffeners and Without Doubler Plate
D18: (Pf)TR = | E18: =F15/2+(F16*12)/$M$17 -> 104.1968162 | F18: kips | H18: =IF('Clean Columns'!Z57,I15/2-(I16*12)/$M$17,"") -> -104.1968162 | I18: =IF('Clean Columns'!$Z$57,"kips","") -> kips
D19: (Pf)BR = | E19: =F15/2-(F16*12)/$M$17 -> -104.1968162 | F19: kips | H19: =IF('Clean Columns'!Z57,I15/2+(I16*12)/$M$17,"") -> 104.1968162 | I19: =IF('Clean Columns'!$Z$57,"kips","") -> kips
AA20: W10 | AB20: A | AC20: ='Clean Columns'!W20 -> 1 | AD20: ='Clean Columns'!AA20 -> -- | AE20: ='Clean Columns'!AB20 -> --
AB21: B | AC21: ='Clean Columns'!W21 -> 7 | AD21: ='Clean Columns'!AA21 -> 1 | AE21: ='Clean Columns'!AB21 -> 1
AA22: W12 | AB22: A | AC22: ='Clean Columns'!W22 -> 1 | AD22: ='Clean Columns'!AA22 -> -- | AE22: ='Clean Columns'!AB22 -> --
AB23: B | AC23: ='Clean Columns'!W23 -> 1 | AD23: ='Clean Columns'!AA23 -> -- | AE23: ='Clean Columns'!AB23 -> --
AB24: C | AC24: ='Clean Columns'!W24 -> 16 | AD24: ='Clean Columns'!AA24 -> 12 | AE24: ='Clean Columns'!AB24 -> 12 | AH24: ='Clean Columns'!AD24 -> 8
AA25: W14 | AB25: A | AC25: ='Clean Columns'!W25 -> 1 | AD25: ='Clean Columns'!AA25 -> -- | AE25: ='Clean Columns'!AB25 -> -- | AH25: ='Clean Columns'!AD25 -> W18X35 | AL25: ='Clean Columns'!AH25 -> W4 | AM25: ='Clean Columns'!AI25 -> 17
B26: =IF('Clean Columns'!$Z$57,IF(OR(Calculations!$E$19=-Calculations!$I$26,Calculations!$H$19=-Calculations!$I$27),1,0),IF(Calculations!$E$19=-Calculations!$I$26,1,0)) -> 1 | C26: ="Maximum Tension Force"&IF(B26=1," (Bottom Flange)"," (Top Flange)") -> Maximum Tension Force (Bottom Flange) | I26: =-IF(IF($AF$57,MIN($E$18,$E$19,$H$18,$H$19),MIN($E$18:$E$19))>0,0,IF($AF$57,MIN($E$18,$E$19,$H$18,$H$19),MIN($E$18:$E$19))) -> 104.1968162 | J26: kips | K26: (Absolute Value) | AB26: B | AC26: ='Clean Columns'!W26 -> 4 | AD26: ='Clean Columns'!AA26 -> -- | AE26: ='Clean Columns'!AB26 -> -- | AG26: ='Clean Columns'!AC26 -> Beam Index | AH26: ='Clean Columns'!AD26 -> 146 | AL26: ='Clean Columns'!AH26 -> W5 | AM26: ='Clean Columns'!AI26 -> 16
B27: =IF('Clean Columns'!$Z$57,IF(OR(Calculations!$E$19=Calculations!$I$27,Calculations!$H$19=Calculations!$I$27),1,0),IF(Calculations!$E$19=Calculations!$I$27,1,0)) -> 1 | C27: ="Maximum Compression Force"&IF(B27=1," (Bottom Flange)"," (Top Flange)") -> Maximum Compression Force (Bottom Flange) | I27: =IF(IF($AF$57,MAX($E$18,$E$19,$H$18,$H$19),MAX($E$18:$E$19))<0,0,IF($AF$57,MAX($E$18,$E$19,$H$18,$H$19),MAX($E$18:$E$19))) -> 104.1968162 | J27: kips | K27: (Absolute Value) | AL27: ='Clean Columns'!AH27 -> W6 | AM27: ='Clean Columns'!AI27 -> 15
C28: B) Required Strength for Panel-Zone Shear | AL28: ='Clean Columns'!AH28 -> W8 | AM28: ='Clean Columns'!AI28 -> 14
D29: =IF('Clean Columns'!$Z$57,"Moment Connected Beams on Both Sides","Moment Connected Beam on One Side Only") -> Moment Connected Beams on Both Sides | AB29: C | AC29: ='Clean Columns'!W27 -> 5 | AD29: ='Clean Columns'!AA27 -> 2 | AE29: ='Clean Columns'!AB27 -> 2 | AL29: ='Clean Columns'!AH29 -> W10 | AM29: ='Clean Columns'!AI29 -> 13
C30: Vs = | D30: ='Clean Columns'!D29 -> 0 | E30: kips | F30: Column Story Shear | AB30: D | AC30: ='Clean Columns'!W28 -> 13 | AD30: ='Clean Columns'!AA28 -> 13 | AE30: ='Clean Columns'!AB28 -> 13 | AL30: ='Clean Columns'!AH30 -> W12 | AM30: ='Clean Columns'!AI30 -> 12
C31: Vp = | D31: ='Clean Columns'!K30 -> 208.3936324 | E31: kips | F31: Total Panel Zone Shear Force | AB31: E | AC31: ='Clean Columns'!W29 -> -- | AD31: ='Clean Columns'!AA29 -> -- | AE31: ='Clean Columns'!AB29 -> -- | AL31: ='Clean Columns'!AH31 -> W14 | AM31: ='Clean Columns'!AI31 -> 11
AA32: W16 | AB32: A | AC32: ='Clean Columns'!W30 -> -- | AD32: ='Clean Columns'!AA30 -> -- | AE32: ='Clean Columns'!AB30 -> -- | AL32: ='Clean Columns'!AH32 -> W16 | AM32: ='Clean Columns'!AI32 -> 10
C33: =IF('Clean Columns'!Z60=2,"C) Required No-prying Bolt Moment Strength","") ->  | AB33: B | AC33: ='Clean Columns'!W31 -> 2 | AD33: ='Clean Columns'!AA31 -> -- | AE33: ='Clean Columns'!AB31 -> -- | AL33: ='Clean Columns'!AH33 -> W18 | AM33: ='Clean Columns'!AI33 -> 9
D34: =IF('Clean Columns'!Z60=2,'Clean Columns'!AD64,"") ->  | E34: =IF('Clean Columns'!Z60=2,"kip*ft","") ->  | AB34: C | AC34: ='Clean Columns'!W32 -> 4 | AD34: ='Clean Columns'!AA32 -> 2 | AE34: ='Clean Columns'!AB32 -> 2 | AL34: ='Clean Columns'!AH34 -> W21 | AM34: ='Clean Columns'!AI34 -> 8
AA35: W18 | AB35: A | AC35: ='Clean Columns'!W33 -> -- | AD35: ='Clean Columns'!AA33 -> -- | AE35: ='Clean Columns'!AB33 -> -- | AL35: ='Clean Columns'!AH35 -> W24 | AM35: ='Clean Columns'!AI35 -> 7
AB36: B | AC36: ='Clean Columns'!W34 -> 4 | AD36: ='Clean Columns'!AA34 -> 2 | AE36: ='Clean Columns'!AB34 -> 2 | AL36: ='Clean Columns'!AH36 -> W27 | AM36: ='Clean Columns'!AI36 -> 6
B37: II) Design Strength of an Unreinforced Column | AB37: C | AC37: ='Clean Columns'!W35 -> 5 | AD37: ='Clean Columns'!AA35 -> 5 | AE37: ='Clean Columns'!AB35 -> 5 | AL37: ='Clean Columns'!AH37 -> W30 | AM37: ='Clean Columns'!AI37 -> 5
C38: ="Design Check for Column Section: "&'Clean Columns'!$AF$25 -> Design Check for Column Section: W18X283 | AB38: D | AC38: ='Clean Columns'!W36 -> 10 | AD38: ='Clean Columns'!AA36 -> 10 | AE38: ='Clean Columns'!AB36 -> 10 | AL38: ='Clean Columns'!AH40 -> W40 | AM38: ='Clean Columns'!AI40 -> 2
C39: Fyc = | D39: ='Clean Columns'!D27 -> 50 | E39: ksi | AL39: ='Clean Columns'!#REF! ->  | AM39: ='Clean Columns'!#REF! -> 
C40: dtop = | D40: =IF('Clean Columns'!$Z$58,'Clean Columns'!$AD$59,"DNA") -> DNA | E40: Distance (in) from the column end to the top flange of the beam(s) | AL40: ='Clean Columns'!AH41 -> W44 | AM40: ='Clean Columns'!AI41 -> 2
C41: dbot = | D41: =IF('Clean Columns'!$Z$58,D40+H12,"DNA") -> DNA | E41: Distance (in) from the column end to the bottom flange of the beam(s) | AL41: W44 | AM41: 1
C42: A) Web PanelZone Shear (2005 Specification Section J10.6) For Calculation Purposes, the behavior of the panel zone remains nominally within the elastic range.
C43: f = | D43: 0.9 | E43: (LRFD) | G43: W = | H43: 1.67 | I43: (ASD)
C44: dc = | D44: =VLOOKUP('Clean Columns'!$AF$25,COLUMNS,3,FALSE) -> 21.9 | E44: in | F44: tcw = | G44: =VLOOKUP('Clean Columns'!$AF$25,COLUMNS,5,FALSE) -> 1.4 | H44: in | I44: AC = | J44: =VLOOKUP('Clean Columns'!$AF$25,COLUMNS,2,FALSE) -> 83.3 | K44: in2
C45: Pr = | D45: ='Clean Columns'!D30 -> 0 | E45: kips | F45: Required column axial strength, Pr=(Pc)T
C46: Pc = | D46: =IF('Clean Columns'!Z67=0,J44*D39,0.6*J44*D39) -> 4165 | E46: kips | F46: Pc=Py (LRFD), Pc=0.6Py (ASD), where Py=(Fy)cAc
C47: Rn = | D47: =(IF(D45<=0.4*D46,0.6*D39*D44*G44,0.6*D39*D44*G44*(1.4-D45/D46))) -> 919.8 | E47: kips | F47: Panel-Zone Shear Nominal Strength
C48: Rav = | D48: =IF('Clean Columns'!$Z$67=0,D43,1/H43)*D47 -> 827.82 | E48: kips | F48: Available Strength, fRn (LRFD), Rn/W (ASD)
C52: =IF('Clean Columns'!Z60=2,"B) Column Flange Flexural Yielding: Tensile Force","B) Flange Local Bending: Tensile Force (2005 Sepcification Section J10.1)") -> B) Flange Local Bending: Tensile Force (2005 Sepcification Section J10.1) | K52: ='Clean Columns'!Z60 -> 0
C53: f = | D53: 0.9 | E53: (LRFD) | G53: W= | H53: 1.67 | I53: (ASD)
C54: tf = | D54: =VLOOKUP('Clean Columns'!$AF$25,COLUMNS,6,FALSE) -> 2.5 | E54: in | F54: Column Flange Thickness
D55: =IF('Clean Columns'!Z60=2,'Clean Columns'!AD63,IF($D$40<10*D54,0.5,1)) -> 1 | E55: =IF('Clean Columns'!$Z$60=2,"in"," = ") -> = | F55: =IF('Clean Columns'!Z60=2,"End Plate Yield Line Parameter. See the Second Edition of Design Guide #4 for Extended End Plates.","0.5 if the distance from the end of the column to the closer face of the beam tension flange is less than 10tf") -> 0.5 if the distance from the end of the column to the closer face of the beam tension flange is less than 10tf
D56: =IF('Clean Columns'!$Z$60=2,0.75,"") ->  | AF56: ='Clean Columns'!Z56 -> 26 | AG56: ='Clean Columns'!AA56 -> 27 | AH56: ='Clean Columns'!AB56 -> 28 | AI56: ='Clean Columns'!AC56 -> 29 | AJ56: ='Clean Columns'!AD56 -> 30 | AK56: ='Clean Columns'!AE56 -> 31
D57: =IF('Clean Columns'!$Z$60=2,0.9,"") ->  | E57: =IF('Clean Columns'!$Z$60=2,"","= ") -> = | F57: =IF('Clean Columns'!Z60=2,"","1.0 otherwise") -> 1.0 otherwise | AE57: ='Clean Columns'!Y57 -> 0 | AF57: ='Clean Columns'!Z57 -> TRUE | AG57: ='Clean Columns'!AA57 -> 57 | AH57: ='Clean Columns'!AB57 -> Beams Conected on Both Sides | AI57: ='Clean Columns'!AC57 -> 0 | AJ57: ='Clean Columns'!AD57 -> 0 | AK57: ='Clean Columns'!AE57 -> 0
D58: =IF('Clean Columns'!Z60=2,SQRT((1.11*0.75*(D34*12))/(D57*D39*D55)),6.25*D54^2*D39*D55) -> 1953.125 | E58: =IF('Clean Columns'!Z60=2,"in","kips") -> kips | F58: =IF('Clean Columns'!Z60=2,"Required Minimum Unstiffened Flange Thickness","Local Flange Bending Nominal Strength") -> Local Flange Bending Nominal Strength | AF58: ='Clean Columns'!Z58 -> FALSE | AG58: ='Clean Columns'!AA58 -> 58 | AH58: ='Clean Columns'!AB58 -> Beams are not Connected Near the Top of the Column
D59: =IF('Clean Columns'!$Z$67=0,D53,1/H53)*D58 -> 1757.8125 | E59: =IF('Clean Columns'!Z60=2,"","kips") -> kips | F59: Available Strength, fRn (LRFD), Rn/W (ASD) | AF59: ='Clean Columns'!Z59 -> 0 | AG59: ='Clean Columns'!AA59 -> 59 | AJ59: ='Clean Columns'!AD59 -> 0 | AK59: ='Clean Columns'!AE59 -> 0
AF60: ='Clean Columns'!Z60 -> 0 | AG60: ='Clean Columns'!AA60 -> 60 | AH60: ='Clean Columns'!AB60 -> Directly Welded Flange
H61: See Eq. 3.20 of Design Guide #4, 2nd Edition for Extended End Plates | AE61: ='Clean Columns'!Y61 -> End | AF61: ='Clean Columns'!Z61 -> 0.5 | AG61: ='Clean Columns'!AA61 -> 61
AE62: ='Clean Columns'!Y62 -> flange plate | AF62: ='Clean Columns'!Z62 -> 0.5 | AG62: ='Clean Columns'!AA62 -> 62 | AI62: ='Clean Columns'!AC62 ->  | AJ62: ='Clean Columns'!AD62 -> 0 | AK62: ='Clean Columns'!AE62 -> 0
AF63: ='Clean Columns'!Z63 -> 8 | AG63: ='Clean Columns'!AA63 -> 63 | AI63: ='Clean Columns'!AC63 ->  | AJ63: ='Clean Columns'!AD63 -> 0 | AK63: ='Clean Columns'!AE63 -> 
AF64: ='Clean Columns'!Z64 -> 6 | AG64: ='Clean Columns'!AA64 -> 64 | AI64: ='Clean Columns'!AC64 ->  | AJ64: ='Clean Columns'!AD64 -> 0 | AK64: ='Clean Columns'!AE64 -> 
AE65: ='Clean Columns'!Y65 -> Yc | AF65: ='Clean Columns'!Z65 -> 170.1 | AG65: ='Clean Columns'!AA65 -> 65
C66: C) Web Local Yielding: Tensile and Compressive Forces (2005 Specification Section J10.2) | AG66: ='Clean Columns'!AA66 -> 66 | AI66: ='Clean Columns'!AC66 -> Plastic Moment Strength
C67: f = | D67: 1 | E67: (LRFD) | G67: W= | H67: 1.5 | I67: (ASD) | AF67: ='Clean Columns'!Z67 -> 0 | AG67: ='Clean Columns'!AA67 -> 67 | AH67: ='Clean Columns'!AB67 -> 2005 LRFD Specification for Structural Steel Buildings
C68: w = | D68: ='Clean Columns'!$Z$84 -> 0.25 | E68: in | AF68: ='Clean Columns'!Z68 -> 0 | AG68: ='Clean Columns'!AA68 -> 68 | AI68: ='Clean Columns'!AC68 -> Column Story Shear
C69: N = | D69: =IF('Clean Columns'!$Z$60=1,'Clean Columns'!$AD$62,VLOOKUP('Clean Columns'!$AD$25,Beams!$A$6:$O$324,5,FALSE))+2*D68 -> 0.925 | E69: in | F69: Length of Bearing | AF69: ='Clean Columns'!Z69 -> 0 | AG69: ='Clean Columns'!AA69 -> 69 | AI69: ='Clean Columns'!AC69 -> Column Axial Load
C70: tw = | D70: =VLOOKUP('Clean Columns'!$AF$25,COLUMNS,5,FALSE) -> 1.4 | E70: in | F70: Column Web Thickness | AF70: ='Clean Columns'!Z70 -> 0 | AG70: ='Clean Columns'!AA70 -> 70 | AI70: ='Clean Columns'!AC70 -> Beam Axial Load, Right Side
C71: dc = | D71: =VLOOKUP('Clean Columns'!$AF$25,COLUMNS,3,FALSE) -> 21.9 | E71: in | F71: Column Depth | I71: =IF('Clean Columns'!$Z$58,Calculations!$D$40,"") ->  | J71: =IF(NOT('Clean Columns'!$Z$58),"",IF(Calculations!D40>Calculations!L71,">","<")) ->  | L71: =IF('Clean Columns'!$Z$58,D71/2,"") ->  | AF71: ='Clean Columns'!Z71 -> 150 | AG71: ='Clean Columns'!AA71 -> 71 | AI71: ='Clean Columns'!AC71 -> Beam Moment, Right Side
C72: Ct = | D72: =IF($D$40<D71,0.5,1) -> 1 | E72: = | F72: 0.5 if the distance from the end of the column to the closer face of the beam tension flange is less than dc | AF72: ='Clean Columns'!Z72 -> 0 | AG72: ='Clean Columns'!AA72 -> 72
AF73: ='Clean Columns'!Z73 -> 150 | AG73: ='Clean Columns'!AA73 -> 73
E74: = | F74: 1.0 otherwise | AF74: ='Clean Columns'!Z74 -> 0 | AG74: ='Clean Columns'!AA74 -> 74 | AI74: ='Clean Columns'!AC74 -> Top Factored Flange Force, Right Side | AJ74: ='Clean Columns'!AD74 -> Top Service Flange Force, Right Side
C75: k = | D75: =VLOOKUP('Clean Columns'!$AF$25,COLUMNS,8,FALSE) -> 3 | E75: in | F75: Distance from the outside face of column flange to the web toe of the flange-to-web fillet | AF75: ='Clean Columns'!Z75 -> 0 | AG75: ='Clean Columns'!AA75 -> 75 | AI75: ='Clean Columns'!AC75 -> Bottom Factored Flange Force, Right Side | AJ75: ='Clean Columns'!AD75 -> Bottom Service Flange Force, Right Side
AF76: ='Clean Columns'!Z76 -> 0 | AG76: ='Clean Columns'!AA76 -> 76 | AH76: ='Clean Columns'!AB76 -> (Puf)TL = | AI76: ='Clean Columns'!AC76 -> Top Factored Flange Force, Left Side | AJ76: ='Clean Columns'!AD76 -> Top Service Flange Force, Left Side
C77: Rn = | D77: =IF('Clean Columns'!Z60=2,D72*(6*D75+D69+2*Q12)*D39*D70,(D72*5*D75+D69)*D39*D70) -> 1114.75 | E77: kips | F77: Local Web Yielding Nominal Strength | AF77: ='Clean Columns'!Z77 -> 0 | AG77: ='Clean Columns'!AA77 -> 77 | AH77: ='Clean Columns'!AB77 -> (Puf)BL = | AI77: ='Clean Columns'!AC77 -> Bottom Factored Flange Force, Left Side | AJ77: ='Clean Columns'!AD77 -> Bottom Service Flange Force, Left Side
C78: Rav = | D78: =IF('Clean Columns'!$Z$67=0,D67,1/H67)*D77 -> 1114.75 | E78: kips | F78: Available Strength, fRn (LRFD), Rn/W (ASD) | AF78: ='Clean Columns'!Z78 -> 0 | AG78: ='Clean Columns'!AA78 -> 78 | AH78: ='Clean Columns'!AB78 -> 0 | AI78: ='Clean Columns'!AC78 -> Factored Total Panel-Zone Shear Force | AJ78: ='Clean Columns'!AD78 -> Service Total Panel-Zone Shear Force
I79: See Eq. 3.24 of Design Guide #4, 2nd Edition for Extended End Plates | AE79: ='Clean Columns'!Y79 -> Fyc | AF79: ='Clean Columns'!Z79 -> 50 | AG79: ='Clean Columns'!AA79 -> 79 | AH79: ='Clean Columns'!AB79 -> 208.3936324 | AI79: ='Clean Columns'!AC79 -> kips | AJ79: ='Clean Columns'!AD79 -> Total Panel-Zone Shear Force
C80: D) Web Crippling: Compressive Force (2005 Specification Section J10.3) | AE80: ='Clean Columns'!Y80 -> Fyb | AF80: ='Clean Columns'!Z80 -> 50 | AG80: ='Clean Columns'!AA80 -> 80 | AH80: ='Clean Columns'!AB80 -> 104.1968162 | AI80: ='Clean Columns'!AC80 -> kips | AJ80: ='Clean Columns'!AD80 -> Top Flange Force, Right Side
C81: f = | D81: 0.75 | E81: (LRFD) | G81: W= | H81: 2 | I81: (ASD) | AG81: ='Clean Columns'!AA81 -> 81 | AH81: ='Clean Columns'!AB81 -> -104.1968162 | AI81: ='Clean Columns'!AC81 -> kips | AJ81: ='Clean Columns'!AD81 -> Bottom Flange Force, Right Side
C82: w = | D82: ='Clean Columns'!$Z$84 -> 0.25 | E82: in | AG82: ='Clean Columns'!AA82 -> 82 | AI82: ='Clean Columns'!AC82 -> kips | AJ82: ='Clean Columns'!AD82 -> Top Flange Force, Left Side
C83: N = | D83: =IF('Clean Columns'!$Z$60=1,'Clean Columns'!$AD$62,VLOOKUP('Clean Columns'!$AD$25,Beams!$A$6:$O$324,5,FALSE))+2*D82 -> 0.925 | E83: in | F83: Length of Bearing | J83: N/dc = | K83: =D83/D85 -> 0.04223744292 | L83: =IF(K83>M83,">","<") -> < | M83: 0.2 | AG83: ='Clean Columns'!AA83 -> 83 | AI83: ='Clean Columns'!AC83 -> kips | AJ83: ='Clean Columns'!AD83 -> Bottom Flange Force, Left Side
C84: tw = | D84: =VLOOKUP('Clean Columns'!$AF$25,COLUMNS,5,FALSE) -> 1.4 | E84: in | F84: Column Web Thickness
C85: dc = | D85: =VLOOKUP('Clean Columns'!$AF$25,COLUMNS,3,FALSE) -> 21.9 | E85: in | F85: Column Depth
C86: tf = | D86: =VLOOKUP('Clean Columns'!$AF$25,COLUMNS,6,FALSE) -> 2.5 | E86: in | F86: Column Flange Thickness
C87: Ct = | D87: =IF($D$40<D85/2,0.5,1) -> 1 | E87: = | F87: 0.5 if the distance from the end of the column to the closer face of the beam tension flange is less than dc/2
E89: = | F89: 1.0 otherwise
C90: Nd = | D90: =IF(OR(D40>=D85/2,D83/D85<=0.2),3*D83/D85,4*D83/D85-0.2) -> 0.1267123288 | E90: = | F90: 3(N/dc ) if dtop > dc/2 or if dtop < dc and N/dc < 0.2
F91: 4N/dc-0.2 if dtop < dc and N/dc > 0.2
C92: Rn = | D92: =(0.8*D87*D84^2*(1+D90*(D84/D86)^1.5)*SQRT(29000*D39*D86/D84)) -> 2657.088263 | E92: kips | F92: Web Crippling Nominal Strength
C93: Rav = | D93: =IF('Clean Columns'!$Z$67=0,D81,1/H81)*D92 -> 1992.816197 | E93: kips | F93: Available Strength, fRn (LRFD), Rn/W (ASD)
C95: E) Web Compression Buckling: Compressive Force on Both Sides of the Column (2005 Specification Section J10.5)
C96: f = | D96: 0.9 | E96: (LRFD) | G96: W= | H96: 1.67 | I96: (ASD)
C97: tw = | D97: =VLOOKUP('Clean Columns'!$AF$25,COLUMNS,5,FALSE) -> 1.4 | E97: in | F97: Column Web Thickness
C98: dc = | D98: =VLOOKUP('Clean Columns'!$AF$25,COLUMNS,3,FALSE) -> 21.9 | E98: in | F98: Column Depth | I98: =IF('Clean Columns'!$Z$58,Calculations!$D$40,"") ->  | J98: =IF(NOT('Clean Columns'!$Z$58),"",IF(Calculations!D69>Calculations!L98,">","<")) ->  | L98: =IF('Clean Columns'!$Z$58,D98/2,"") -> 
C99: k = | D99: =VLOOKUP('Clean Columns'!$AF$25,COLUMNS,8,FALSE) -> 3 | E99: in | F99: Distance from the outside face of column flange to the web toe of the flange-to-web fillet
C101: Ct = | D101: =IF($D$40<D98/2,0.5,1) -> 1 | E101: = | F101: 0.5 if the distance from the end of the column to the closer face of the beam tension flange is less than dc/2
E103: = | F103: 1.0 otherwise
C104: h = | D104: =D98-2*D99 -> 15.9 | E104: in | F104: Zone of column web subject to compression buckling (out-of-plane) h=dc-2k
C105: Rn = | D105: =(24*D101*D97^3*SQRT(29000*D39)/D104) -> 4987.492155 | E105: kips | F105: Compression Buckling Design Strength
C106: Rav = | D106: =IF('Clean Columns'!$Z$67=0,D96,1/H96)*D105 -> 4488.742939 | E106: kips | F106: Available Strength, fRn (LRFD), Rn/W (ASD)
B110: III) Column Design Summary: | G110: ='Clean Columns'!AF25 -> W18X283
C111: A) Doubler Plates Required if Vp > Rav for Panel Zone Shear | J111: =IF(D45>D46,"Axial Load in the column Exceeds the Column Yield Strength!","") -> 
C112: Total Panel Zone Shear Force, Vp = | F112: =D31 -> 208.3936324 | G112: kips | H112: Panel-Zone Available Shear Strength = | K112: =D48 -> 827.82 | L112: kips
L114: =IF(F112>K112,"Doubler Plates are Required!","No Doubler Plates are Required.") -> No Doubler Plates are Required. | M114: =" "&FIXED(F112/K112*100,0)&"% of Column Capacity" -> 25% of Column Capacity
C115: B) Stiffener Plates are Required if Pf > Rav for Compression
H116: Local Web Yielding Available Strength = | K116: =D78 -> 1114.75 | L116: kips
H117: Web Crippling Available Strength = | K117: =D93 -> 1992.816197 | L117: kips
C118: Concentrated Compression Force, Pf = | H118: Compression Buckling Available Strength = | K118: =IF(NOT('Clean Columns'!Z57),"DNA",IF(OR(AND(E18>0,H18>0),AND(E19>0,H19>0)),D106,"DNA")) -> DNA | L118: kips
F119: =I27 -> 104.1968162 | G119: kips | J119: Rav = | K119: =MIN(K116:K118) -> 1114.75 | L119: kips
L120: =IF(F119>K119,"Stiffener Plates are Required!","No Stiffener Plates are Required.") -> No Stiffener Plates are Required. | M120: =" "&FIXED(F119/K119*100,0)&"% of Column Capacity" -> 9% of Column Capacity
C121: C) Stiffener Plates are Required if Pf > Rav for Tension
H122: Local Flange Bending Available Strength = | K122: =IF('Clean Columns'!Z60<>2,D59,10000000) -> 1757.8125 | L122: kips
C123: Concentrated Tension Force, Pf = | H123: Local Web Yielding Available Strength = | K123: =K116 -> 1114.75 | L123: kips
F124: =I26 -> 104.1968162 | G124: kips | J124: Rav = | K124: =MIN(K122:K123) -> 1114.75 | L124: kips
L126: =IF(F124>K124,"Stiffener Plates are Required!","No Stiffener Plates are Required.") -> No Stiffener Plates are Required. | M126: =" "&FIXED(F124/K124*100,0)&"% of Column Capacity" -> 9% of Column Capacity
C128: D) Stiffener Plates are Required if tfc req'd > tfc for column flange flexural yielding
C129: Minimum Required Unstiffened Column Flange Thickness, tfc Req'd = | H129: Column Flange Thickness, tf =
F130: =D58 -> 1953.125 | G130: kips*ft | K130: =D54 -> 2.5 | L130: in
L132: =IF(F130>K130,"Stiffener Plates are Required!","No Stiffener Plates are Required.") -> Stiffener Plates are Required! | M132: =" "&FIXED(F130/K130*100,0)&"% of Column Flange Thickness" -> 78,125% of Column Flange Thickness

Sheet Instructions
C2: Instructions for Clean Columns V14.2
C4: 1) | D4: Verify the Assumptions
E5: Verify that the assumptions made in the formulation of the spreadsheet apply to the design criteria at hand. It is important to ensure that the user has carefully identified the assumptions made in the analysis and has accepted them as applicable to the particular design situation at hand. Click above to review these assumptions. Further information can be found in the 2010 AISC Specification for Structural Steel Buildings, Design Guide #13, and Design Guide #4, 2nd Ed.
C6: 2) | D6: Connection Configuration
E7: Select whether or not a beam is connected to one side of the joint or both sides of the joint. The connection configuration affects the amount of required shear strength in the panel-zone calculations. It is conservative to select a beam connected on both sides of the column or to ignore the contribution of gravity loads. After choosing the desired option check the diagram at the top of the page to see if the situation shown matches the desired connection configuration.
E8: If the connection occurs near the top of the column, or the top story of a frame, place a check in the box by clicking on it with the cursor. If the connection does not occur near the top of the column, remove the check in the box by clicking on it with the cursor. When the box has a check in it, a line asking for the distance from the top of the top beam flange to the column end appears. Provide this information if the connection is located near the top of the column. The smaller the distance entered the more conservative the calculations will become.
E9: Set the connection type. The calculations in this spreadsheet for directly welded flange and flange-plated moment connections are based on Design Guide #13. The equations have been updated to comply with the 2005 Specification for Structural Steel Buildings. The only difference between the calculations for a directly welded flange and a flange-plated moment connection is the value of the moment arm used to determine the beam flange forces.
E10: The calculations for extended end-plate moment connection are based on the Design Guide #4, 2nd Ed. The value of the moment arm used to determine the beam flange forces is significantly greater than that used for the directly welded flange connection. The column strength values for Local Flange Bending, Local Web Yielding, Web Crippling and Compression Buckling of the web are all effected by the type of connection.
E11: After choosing the desired options check the diagram at the top of the input sheet to see if the situation shown matches the desired connection configuration.
C12: 3) | D12: Select Beam
E13: Select a beam from the pull down menus. The first menu lists the nominal depths of available members. Select a nominal depth by clicking on the menu box and highlighting the desired depth with the mouse. The second menu lists the sections available for the nominal depth selected. The beams are separated into flange groups, with a space between groups. Select a section by clicking on the menu box and clicking on the desired highlighted section with the mouse. The beam selected is assumed to be the same on either side of the joint if the connection configuration is set to 'Beam Connected on Both Sides' (See step #4 for Connection Configuration instructions). The asterisk shown with the designation of some sections refers to special detailing requirements set forth for these members in the AISC manuals. These sections are mainly intended for use as columns.
C14: 4) | D14: Forces and Material Properties
E15: Select the design methodology (LRFD or ASD) to use for design.
E16: Enter the forces. Enter service loads for 'ASD' design and factored loads for LRFD design.
E17: A value of zero for the column shear is conservative.
E18: The column axial load can be taken as the average of the axial load above and below the joint.
C19: 5) | D19: Resultant Forces
E20: The resultant forces applied to the column at the beam flanges or flange plates are displayed.
C21: 6) | D21: Column Design Results
E22: The 'Column Design Results' section shows the lightest columns for each nominal depth for three cases, those that do not require stiffener plates, those that do not require doubler plates and those that require neither stiffener plates nor doubler plates. The columns are separated by nominal depths. The rows separate whether the column is the lightest section that does not require stiffener plates (without regard as to whether doubler plates are required), the lightest column that does not require doubler plates (without regard as to whether stiffener plates are required), and the lightest column that does not require either form of reinforcement.
C23: 7) | D23: Column Calculations
E24: In order to view the calculations for any column, click on the button labeled 'Click to Select a Column Section and View Column Strength Calculations'. Select a column section from the pull down menus and click 'OK'. This will open a new sheet and display the force transfer calculations and the column strength calculations.
C25: 8) | D25: Instructions for Calculation Sheet
E26: These pages display the force transfer and column strength calculations for the column chosen on the form activated on the main page. Activate the main page by clicking on one of the 'Return to Main Sheet to Change Design Parameters or Column Section' buttons. The user can change the column section or the design parameters provided on the main page. No data is entered or or changed on this sheet. It is only for the display of the calculations for a particular column section. None of the values can be changed on this sheet, only viewed and printed.

Sheet Assumptions
C2: Assumptions in Clean Columns V14.2
C4: 1) | D4: Wind, Low-Seismic, and High-Seismic Applications
E5: For the purposes of this spreadsheet, wind, low-seismic and high-seismic applications are defined as follows. Wind and low-seismic applications are those for which the structure is designed to meet the requirements in the LRFD Specification with no special seismic detailing. This includes all applications for which the structural response is intended to remain in the nominally elastic range and the response modification factor R used in determination of seismic forces, if any, is not taken greater than 3.
E6: High-seismic applications are those for which inelastic behavior is expected in the beams or panel-zones as a means of dissipating the energy induced during strong ground motions. Such buildings are designed to meet the requirements in both the LRFD Specification and the AISC Seismic Provisions and a response modification factor R that is appropriate for the level of detailing required for the moment-frame system selected is used in the determination of seismic forces. Additionally, the moment connections used in high-seismic applications have special seismic detailing that is appropriate for the moment-frame system selected.
C7: 2) | D7: The Parameter "N"
E8: The variable 'N' in Clean Columns corresponds to the variable lb in the 2010 AISC Specification. The variable 'N' is used to determine the strength of the column for the Local Web Yielding and Web Crippling limit states. 'N' is the vertical width over which the force from the beam flange is transferred to the column flange or to the end-plate in an extended end-plate moment connection. The value for 'N' is taken as the beam flange or flange plate thickness plus 2w. 'w' is the leg size of fillet weld or groove weld reinforcement of the weld of the beam flange or flange plate to the column flange.
C10: 3) | D10: Effects of Composite Floor Construction
E11: If a composite moment connection is used between the beam and column the appropriate detailing and force transfer model must be applied. In this spreadsheet, the moment from the beam-to-column connection is assumed to be transferred through equal and opposite forces in the flanges of the beam to the column flange. There is no redistribution of the forces due to compression in the concrete floor.
C12: 4) | D12: Web Sidesway Buckling
E13: It is assumed that lateral movement between the loaded compression flange of the column and the tension flange of the column is restrained at the point of application of the concentrated force, at the beam flange. Therefore, the Web Sidesway buckling limits state does not need to be checked.
C14: 5) | D14: Panel Zone Behavior
E15: For calculation purposes, the behavior of the panel-zone remains nominally within the elastic range. This assumption ignores significant post-yield panel-zone strength. At the same time, it must be realized that inelastic deformations of the panel-zone can significantly impact the strength and stability of the frame. Accordingly, a higher strength can generally be utilized as long as the effect of inelastic panel-zone deformation on frame stability is considered in the structural analysis. Therefore, it is conservative for panel-zone strength evaluation to consider the panel-zone to remain in the elastic range as this spreadsheet does.
C16: 6) | D16: Connection Types
E17: The calculations in this spreadsheet for directly welded flange and flange-plated moment connections are based on Design Guide #13. The equations have been updated to comply with the 2010 Specification for Structural Steel Buildings. The only difference between the calculations for a directly welded flange and a flange-plated moment connection is the value of the moment arm used to determine the beam flange forces.
E18: The calculations for extended end-plate moment connection are based on Design Guide #4, 2nd Ed. The value of the moment arm used to determine the beam flange forces is significantly greater than that used for the directly welded flange connection. The column strength values for Local Flange Bending, Local Web Yielding, Web Crippling and Compression Buckling of the web are all effected by the type of connection.

Sheet Beams
B1: MuR = | C1: ='Clean Columns'!Z71 -> 150 | D1: MuL = | E1: ='Clean Columns'!Z73 -> 150 | G1: PuR = | H1: ='Clean Columns'!Z70 -> 0 | I1: PuL = | J1: ='Clean Columns'!Z72 -> 0
B2: Fy = | C2: ='Clean Columns'!Z80 -> 50 | D2: ksi | G2: Vus = | H2: ='Clean Columns'!Z68 -> 0
B3: =HLOOKUP(B4,DB_Headers,2,FALSE) -> 4 | C3: 5 | D3: 9 | E3: 16 | F3: 21 | G3: 35 | J3: Top | K3: Top | L3: Bottom | M3: Bottom
A4: Designation | B4: A | C4: d | D4: bf | E4: tf | F4: kdes | G4: Zx | H4: f Mp | J4: (Puf)TR | K4: (Puf)TL | L4: (Puf)BR | M4: (Puf)BL | N4: Vu | O4: dm
B5: in2 | C5: in. | D5: in. | E5: in. | F5: in. | G5: in.3 | H5: kip-in | J5: kips | K5: kips | L5: kips | M5: kips | N5: kips | O5: in
A6: W4X13 | B6: =VLOOKUP($A6,_xlnm.DataBase,B$3,FALSE) -> 3.83 | C6: 4.16 | D6: 4.06 | E6: 0.345 | F6: 0.595 | G6: 6.28 | H6: =0.9*$C$2*G6 -> 282.6 | I6: 1 | J6: =$H$1/2+($C$1*12)/O6 -> 471.8217562 | K6: =$J$1/2-($E$1*12)/O6 -> -471.8217562 | L6: =$H$1/2-($C$1*12)/O6 -> -471.8217562 | M6: =$J$1/2+($E$1*12)/O6 -> 471.8217562 | N6: =IF('Clean Columns'!$Z$57,J6-K6,J6)-$H$2 -> 943.6435125 | O6: =IF('Clean Columns'!$Z$60=0,Beams!C6-Beams!E6,Beams!C6+'Clean Columns'!$AD$62) -> 3.815 | P6: 319
H7: =0.9*$C$2*G7 ->  | I7: =I6+1 -> 2 | J7: =$H$1/2+($C$1*12)/O7 ->  | K7: =$J$1/2-($E$1*12)/O7 ->  | L7: =$H$1/2-($C$1*12)/O7 ->  | M7: =$J$1/2+($E$1*12)/O7 ->  | N7: =IF('Clean Columns'!$Z$57,J7-K7,J7)-$H$2 ->  | O7: =IF('Clean Columns'!$Z$60=0,Beams!C7-Beams!E7,Beams!C7+'Clean Columns'!$AD$62) ->  | P7: =P6-1 -> 318
A8: W5X16 | B8: 4.71 | C8: 5.01 | D8: 5 | E8: 0.36 | F8: 0.66 | G8: 9.63 | H8: 433.35 | I8: =I7+1 -> 3 | J8: =$H$1/2+($C$1*12)/O8 -> 387.0967742 | K8: =$J$1/2-($E$1*12)/O8 -> -387.0967742 | L8: =$H$1/2-($C$1*12)/O8 -> -387.0967742 | M8: =$J$1/2+($E$1*12)/O8 -> 387.0967742 | N8: =IF('Clean Columns'!$Z$57,J8-K8,J8)-$H$2 -> 774.1935484 | O8: =IF('Clean Columns'!$Z$60=1,Beams!C8+'Clean Columns'!$AD$62,Beams!C8-Beams!E8) -> 4.65 | P8: =P7-1 -> 317
A9: W5X19 | B9: 5.56 | C9: 5.15 | D9: 5.03 | E9: 0.43 | F9: 0.73 | G9: 11.6 | H9: 522 | I9: =I8+1 -> 4 | J9: 381.3559322 | K9: =$J$1/2-($E$1*12)/O9 -> -381.3559322 | L9: =$H$1/2-($C$1*12)/O9 -> -381.3559322 | M9: =$J$1/2+($E$1*12)/O9 -> 381.3559322 | N9: =IF('Clean Columns'!$Z$57,J9-K9,J9)-$H$2 -> 762.7118644 | O9: =IF('Clean Columns'!$Z$60=1,Beams!C9+'Clean Columns'!$AD$62,Beams!C9-Beams!E9) -> 4.72 | P9: =P8-1 -> 316
I10: 5 | N10: =IF('Clean Columns'!$Z$57,J10-K10,J10)-$H$2 ->  | O10: =IF('Clean Columns'!$Z$60=1,Beams!C10+'Clean Columns'!$AD$62,Beams!C10-Beams!E10) ->  | P10: 315
A11: W6X8.5 | B11: 2.52 | C11: 5.83 | D11: 3.94 | E11: 0.195 | F11: 0.445 | G11: 5.73 | H11: 257.85 | I11: 6 | J11: 319.4321207 | K11: -319.4321207 | L11: -319.4321207 | M11: 319.4321207 | N11: =IF('Clean Columns'!$Z$57,J11-K11,J11)-$H$2 -> 638.8642413 | O11: =IF('Clean Columns'!$Z$60=1,Beams!C11+'Clean Columns'!$AD$62,Beams!C11-Beams!E11) -> 5.635 | P11: 314
A12: W6X9 | B12: 2.68 | C12: 5.9 | D12: 3.94 | E12: 0.215 | F12: 0.465 | G12: 6.23 | H12: 280.35 | I12: 7 | J12: 316.6226913 | K12: -316.6226913 | L12: -316.6226913 | M12: 316.6226913 | N12: =IF('Clean Columns'!$Z$57,J12-K12,J12)-$H$2 -> 633.2453826 | O12: =IF('Clean Columns'!$Z$60=1,Beams!C12+'Clean Columns'!$AD$62,Beams!C12-Beams!E12) -> 5.685 | P12: 313
A13: W6X12 | B13: 3.55 | C13: 6.03 | D13: 4 | E13: 0.28 | F13: 0.53 | G13: 8.3 | H13: 373.5 | I13: 8 | J13: 313.0434783 | K13: -313.0434783 | L13: -313.0434783 | M13: 313.0434783 | N13: =IF('Clean Columns'!$Z$57,J13-K13,J13)-$H$2 -> 626.0869565 | O13: =IF('Clean Columns'!$Z$60=1,Beams!C13+'Clean Columns'!$AD$62,Beams!C13-Beams!E13) -> 5.75 | P13: 312
A14: W6X16 | B14: 4.74 | C14: 6.28 | D14: 4.03 | E14: 0.405 | F14: 0.655 | G14: 11.7 | H14: 526.5 | I14: 9 | J14: =$H$1/2+($C$1*12)/O14 -> 306.3829787 | K14: -306.3829787 | L14: -306.3829787 | M14: 306.3829787 | N14: =IF('Clean Columns'!$Z$57,J14-K14,J14)-$H$2 -> 612.7659574 | O14: =IF('Clean Columns'!$Z$60=1,Beams!C14+'Clean Columns'!$AD$62,Beams!C14-Beams!E14) -> 5.875 | P14: 311
I15: 10 | N15: =IF('Clean Columns'!$Z$57,J15-K15,J15)-$H$2 ->  | O15: =IF('Clean Columns'!$Z$60=1,Beams!C15+'Clean Columns'!$AD$62,Beams!C15-Beams!E15) ->  | P15: 310
A16: W6X15 | B16: =VLOOKUP($A16,_xlnm.DataBase,B$3,FALSE) -> 4.43 | C16: 5.99 | D16: 5.99 | E16: 0.26 | F16: 0.51 | G16: 10.8 | H16: 486 | I16: 11 | J16: 314.1361257 | K16: -314.1361257 | L16: -314.1361257 | M16: 314.1361257 | N16: =IF('Clean Columns'!$Z$57,J16-K16,J16)-$H$2 -> 628.2722513 | O16: =IF('Clean Columns'!$Z$60=1,Beams!C16+'Clean Columns'!$AD$62,Beams!C16-Beams!E16) -> 5.73 | P16: 309
A17: W6X20 | B17: 5.87 | C17: 6.2 | D17: 6.02 | E17: 0.365 | F17: 0.615 | G17: 15 | H17: 675 | I17: 12 | J17: 308.4832905 | K17: -308.4832905 | L17: -308.4832905 | M17: 308.4832905 | N17: =IF('Clean Columns'!$Z$57,J17-K17,J17)-$H$2 -> 616.966581 | O17: =IF('Clean Columns'!$Z$60=1,Beams!C17+'Clean Columns'!$AD$62,Beams!C17-Beams!E17) -> 5.835 | P17: 308
A18: W6X25 | B18: 7.34 | C18: 6.38 | D18: 6.08 | E18: 0.455 | F18: 0.705 | G18: 18.9 | H18: 850.5 | I18: 13 | J18: 303.7974684 | K18: -303.7974684 | L18: -303.7974684 | M18: 303.7974684 | N18: =IF('Clean Columns'!$Z$57,J18-K18,J18)-$H$2 -> 607.5949367 | O18: =IF('Clean Columns'!$Z$60=1,Beams!C18+'Clean Columns'!$AD$62,Beams!C18-Beams!E18) -> 5.925 | P18: 307
I19: 14 | N19: =IF('Clean Columns'!$Z$57,J19-K19,J19)-$H$2 ->  | O19: =IF('Clean Columns'!$Z$60=1,Beams!C19+'Clean Columns'!$AD$62,Beams!C19-Beams!E19) ->  | P19: 306
A20: W8X10 | B20: 2.96 | C20: 7.89 | D20: 3.94 | E20: 0.205 | F20: 0.505 | G20: 8.87 | H20: 399.15 | I20: 15 | J20: 234.2225114 | K20: -234.2225114 | L20: -234.2225114 | M20: 234.2225114 | N20: =IF('Clean Columns'!$Z$57,J20-K20,J20)-$H$2 -> 468.4450228 | O20: =IF('Clean Columns'!$Z$60=1,Beams!C20+'Clean Columns'!$AD$62,Beams!C20-Beams!E20) -> 7.685 | P20: 305
A21: W8X13 | B21: 3.84 | C21: 7.99 | D21: 4 | E21: 0.255 | F21: 0.555 | G21: 11.4 | H21: 513 | I21: 16 | J21: 232.708468 | K21: -232.708468 | L21: -232.708468 | M21: 232.708468 | N21: =IF('Clean Columns'!$Z$57,J21-K21,J21)-$H$2 -> 465.416936 | O21: =IF('Clean Columns'!$Z$60=1,Beams!C21+'Clean Columns'!$AD$62,Beams!C21-Beams!E21) -> 7.735 | P21: 304
A22: W8X15 | B22: 4.44 | C22: 8.11 | D22: 4.015 | E22: 0.315 | F22: 0.615 | G22: 13.6 | H22: 612 | I22: 17 | J22: 230.9172547 | K22: -230.9172547 | L22: -230.9172547 | M22: 230.9172547 | N22: =IF('Clean Columns'!$Z$57,J22-K22,J22)-$H$2 -> 461.8345093 | O22: =IF('Clean Columns'!$Z$60=1,Beams!C22+'Clean Columns'!$AD$62,Beams!C22-Beams!E22) -> 7.795 | P22: 303
I23: 18 | N23: =IF('Clean Columns'!$Z$57,J23-K23,J23)-$H$2 ->  | O23: =IF('Clean Columns'!$Z$60=1,Beams!C23+'Clean Columns'!$AD$62,Beams!C23-Beams!E23) ->  | P23: 302
A24: W8X18 | B24: 5.26 | C24: 8.14 | D24: 5.25 | E24: 0.33 | F24: 0.63 | G24: 17 | H24: 765 | I24: 19 | J24: 230.4737516 | K24: -230.4737516 | L24: -230.4737516 | M24: 230.4737516 | N24: =IF('Clean Columns'!$Z$57,J24-K24,J24)-$H$2 -> 460.9475032 | O24: =IF('Clean Columns'!$Z$60=1,Beams!C24+'Clean Columns'!$AD$62,Beams!C24-Beams!E24) -> 7.81 | P24: 301
A25: W8X21 | B25: 6.16 | C25: 8.28 | D25: 5.27 | E25: 0.4 | F25: 0.7 | G25: 20.4 | H25: 918 | I25: 20 | J25: 228.4263959 | K25: -228.4263959 | L25: -228.4263959 | M25: 228.4263959 | N25: =IF('Clean Columns'!$Z$57,J25-K25,J25)-$H$2 -> 456.8527919 | O25: =IF('Clean Columns'!$Z$60=1,Beams!C25+'Clean Columns'!$AD$62,Beams!C25-Beams!E25) -> 7.88 | P25: 300
B26: =VLOOKUP($A26,_xlnm.DataBase,B$3,FALSE) ->  | I26: 21 | N26: =IF('Clean Columns'!$Z$57,J26-K26,J26)-$H$2 ->  | O26: =IF('Clean Columns'!$Z$60=1,Beams!C26+'Clean Columns'!$AD$62,Beams!C26-Beams!E26) ->  | P26: 299
A27: W8X24 | B27: 7.08 | C27: 7.93 | D27: 6.5 | E27: 0.4 | F27: 0.794 | G27: 23.1 | H27: 1039.5 | I27: 22 | J27: 239.0438247 | K27: -239.0438247 | L27: -239.0438247 | M27: 239.0438247 | N27: =IF('Clean Columns'!$Z$57,J27-K27,J27)-$H$2 -> 478.0876494 | O27: =IF('Clean Columns'!$Z$60=1,Beams!C27+'Clean Columns'!$AD$62,Beams!C27-Beams!E27) -> 7.53 | P27: 298
A28: W8X28 | B28: 8.25 | C28: 8.06 | D28: 6.54 | E28: 0.465 | F28: 0.859 | G28: 27.2 | H28: 1224 | I28: 23 | J28: 236.998025 | K28: -236.998025 | L28: -236.998025 | M28: 236.998025 | N28: =IF('Clean Columns'!$Z$57,J28-K28,J28)-$H$2 -> 473.99605 | O28: =IF('Clean Columns'!$Z$60=1,Beams!C28+'Clean Columns'!$AD$62,Beams!C28-Beams!E28) -> 7.595 | P28: 297
I29: 24 | N29: =IF('Clean Columns'!$Z$57,J29-K29,J29)-$H$2 ->  | O29: =IF('Clean Columns'!$Z$60=1,Beams!C29+'Clean Columns'!$AD$62,Beams!C29-Beams!E29) ->  | P29: 296
A30: W8X31 | B30: 9.13 | C30: 8 | D30: 8 | E30: 0.435 | F30: 0.829 | G30: 30.4 | H30: 1368 | I30: 25 | J30: 237.9378718 | K30: -237.9378718 | L30: -237.9378718 | M30: 237.9378718 | N30: =IF('Clean Columns'!$Z$57,J30-K30,J30)-$H$2 -> 475.8757436 | O30: =IF('Clean Columns'!$Z$60=1,Beams!C30+'Clean Columns'!$AD$62,Beams!C30-Beams!E30) -> 7.565 | P30: 295
A31: W8X35 | B31: 10.3 | C31: 8.12 | D31: 8.02 | E31: 0.495 | F31: 0.889 | G31: 34.7 | H31: 1561.5 | I31: 26 | J31: 236.0655738 | K31: -236.0655738 | L31: -236.0655738 | M31: 236.0655738 | N31: =IF('Clean Columns'!$Z$57,J31-K31,J31)-$H$2 -> 472.1311475 | O31: =IF('Clean Columns'!$Z$60=1,Beams!C31+'Clean Columns'!$AD$62,Beams!C31-Beams!E31) -> 7.625 | P31: 294
A32: W8X40 | B32: 11.7 | C32: 8.25 | D32: 8.07 | E32: 0.56 | F32: 0.954 | G32: 39.8 | H32: 1791 | I32: 27 | J32: 234.0702211 | K32: -234.0702211 | L32: -234.0702211 | M32: 234.0702211 | N32: =IF('Clean Columns'!$Z$57,J32-K32,J32)-$H$2 -> 468.1404421 | O32: =IF('Clean Columns'!$Z$60=1,Beams!C32+'Clean Columns'!$AD$62,Beams!C32-Beams!E32) -> 7.69 | P32: 293
A33: W8X48 | B33: 14.1 | C33: 8.5 | D33: 8.11 | E33: 0.685 | F33: 1.08 | G33: 49 | H33: 2205 | I33: 28 | J33: 230.3262956 | K33: -230.3262956 | L33: -230.3262956 | M33: 230.3262956 | N33: =IF('Clean Columns'!$Z$57,J33-K33,J33)-$H$2 -> 460.6525912 | O33: =IF('Clean Columns'!$Z$60=1,Beams!C33+'Clean Columns'!$AD$62,Beams!C33-Beams!E33) -> 7.815 | P33: 292
A34: W8X58 | B34: 17.1 | C34: 8.75 | D34: 8.22 | E34: 0.81 | F34: 1.2 | G34: 59.8 | H34: 2691 | I34: 29 | J34: 226.7002519 | K34: -226.7002519 | L34: -226.7002519 | M34: 226.7002519 | N34: =IF('Clean Columns'!$Z$57,J34-K34,J34)-$H$2 -> 453.4005038 | O34: =IF('Clean Columns'!$Z$60=1,Beams!C34+'Clean Columns'!$AD$62,Beams!C34-Beams!E34) -> 7.94 | P34: 291
A35: W8X67 | B35: 19.7 | C35: 9 | D35: 8.28 | E35: 0.935 | F35: 1.33 | G35: 70.1 | H35: 3154.5 | I35: 30 | J35: 223.1866088 | K35: -223.1866088 | L35: -223.1866088 | M35: 223.1866088 | N35: =IF('Clean Columns'!$Z$57,J35-K35,J35)-$H$2 -> 446.3732176 | O35: =IF('Clean Columns'!$Z$60=1,Beams!C35+'Clean Columns'!$AD$62,Beams!C35-Beams!E35) -> 8.065 | P35: 290
B36: =VLOOKUP($A36,_xlnm.DataBase,B$3,FALSE) ->  | I36: 31 | N36: =IF('Clean Columns'!$Z$57,J36-K36,J36)-$H$2 ->  | O36: =IF('Clean Columns'!$Z$60=1,Beams!C36+'Clean Columns'!$AD$62,Beams!C36-Beams!E36) ->  | P36: 289
A37: W10X12 | B37: 3.54 | C37: 9.87 | D37: 3.96 | E37: 0.21 | F37: 0.51 | G37: 12.6 | H37: 567 | I37: 32 | J37: 186.3354037 | K37: -186.3354037 | L37: -186.3354037 | M37: 186.3354037 | N37: =IF('Clean Columns'!$Z$57,J37-K37,J37)-$H$2 -> 372.6708075 | O37: =IF('Clean Columns'!$Z$60=1,Beams!C37+'Clean Columns'!$AD$62,Beams!C37-Beams!E37) -> 9.66 | P37: 288
A38: W10X15 | B38: 4.41 | C38: 9.99 | D38: 4 | E38: 0.27 | F38: 0.57 | G38: 16 | H38: 720 | I38: 33 | J38: 185.1851852 | K38: -185.1851852 | L38: -185.1851852 | M38: 185.1851852 | N38: =IF('Clean Columns'!$Z$57,J38-K38,J38)-$H$2 -> 370.3703704 | O38: =IF('Clean Columns'!$Z$60=1,Beams!C38+'Clean Columns'!$AD$62,Beams!C38-Beams!E38) -> 9.72 | P38: 287
A39: W10X17 | B39: 4.99 | C39: 10.1 | D39: 4.01 | E39: 0.33 | F39: 0.63 | G39: 18.7 | H39: 841.5 | I39: 34 | J39: 184.2374616 | K39: -184.2374616 | L39: -184.2374616 | M39: 184.2374616 | N39: =IF('Clean Columns'!$Z$57,J39-K39,J39)-$H$2 -> 368.4749232 | O39: =IF('Clean Columns'!$Z$60=1,Beams!C39+'Clean Columns'!$AD$62,Beams!C39-Beams!E39) -> 9.77 | P39: 286
A40: W10X19 | B40: 5.62 | C40: 10.2 | D40: 4.02 | E40: 0.395 | F40: 0.695 | G40: 21.6 | H40: 972 | I40: 35 | J40: 183.5798062 | K40: -183.5798062 | L40: -183.5798062 | M40: 183.5798062 | N40: =IF('Clean Columns'!$Z$57,J40-K40,J40)-$H$2 -> 367.1596124 | O40: =IF('Clean Columns'!$Z$60=1,Beams!C40+'Clean Columns'!$AD$62,Beams!C40-Beams!E40) -> 9.805 | P40: 285
I41: 36 | N41: =IF('Clean Columns'!$Z$57,J41-K41,J41)-$H$2 ->  | O41: =IF('Clean Columns'!$Z$60=1,Beams!C41+'Clean Columns'!$AD$62,Beams!C41-Beams!E41) ->  | P41: 284
A42: W10X22 | B42: 6.49 | C42: 10.2 | D42: 5.75 | E42: 0.36 | F42: 0.66 | G42: 26 | H42: 1170 | I42: 37 | J42: 182.9268293 | K42: -182.9268293 | L42: -182.9268293 | M42: 182.9268293 | N42: =IF('Clean Columns'!$Z$57,J42-K42,J42)-$H$2 -> 365.8536585 | O42: =IF('Clean Columns'!$Z$60=1,Beams!C42+'Clean Columns'!$AD$62,Beams!C42-Beams!E42) -> 9.84 | P42: 283
A43: W10X26 | B43: 7.61 | C43: 10.3 | D43: 5.77 | E43: 0.44 | F43: 0.74 | G43: 31.3 | H43: 1408.5 | I43: 38 | J43: 182.5557809 | K43: -182.5557809 | L43: -182.5557809 | M43: 182.5557809 | N43: =IF('Clean Columns'!$Z$57,J43-K43,J43)-$H$2 -> 365.1115619 | O43: =IF('Clean Columns'!$Z$60=1,Beams!C43+'Clean Columns'!$AD$62,Beams!C43-Beams!E43) -> 9.86 | P43: 282
A44: W10X30 | B44: 8.84 | C44: 10.5 | D44: 5.81 | E44: 0.51 | F44: 0.81 | G44: 36.6 | H44: 1647 | I44: 39 | J44: 180.1801802 | K44: -180.1801802 | L44: -180.1801802 | M44: 180.1801802 | N44: =IF('Clean Columns'!$Z$57,J44-K44,J44)-$H$2 -> 360.3603604 | O44: =IF('Clean Columns'!$Z$60=1,Beams!C44+'Clean Columns'!$AD$62,Beams!C44-Beams!E44) -> 9.99 | P44: 281
I45: 40 | N45: =IF('Clean Columns'!$Z$57,J45-K45,J45)-$H$2 ->  | O45: =IF('Clean Columns'!$Z$60=1,Beams!C45+'Clean Columns'!$AD$62,Beams!C45-Beams!E45) ->  | P45: 280
A46: W10X33 | B46: =VLOOKUP($A46,_xlnm.DataBase,B$3,FALSE) -> 9.71 | C46: 9.73 | D46: 7.96 | E46: 0.435 | F46: 0.935 | G46: 38.8 | H46: 1746 | I46: 41 | J46: 193.6525013 | K46: -193.6525013 | L46: -193.6525013 | M46: 193.6525013 | N46: =IF('Clean Columns'!$Z$57,J46-K46,J46)-$H$2 -> 387.3050027 | O46: =IF('Clean Columns'!$Z$60=1,Beams!C46+'Clean Columns'!$AD$62,Beams!C46-Beams!E46) -> 9.295 | P46: 279
A47: W10X39 | B47: 11.5 | C47: 9.92 | D47: 7.99 | E47: 0.53 | F47: 1.03 | G47: 46.8 | H47: 2106 | I47: 42 | J47: 191.6932907 | K47: -191.6932907 | L47: -191.6932907 | M47: 191.6932907 | N47: =IF('Clean Columns'!$Z$57,J47-K47,J47)-$H$2 -> 383.3865815 | O47: =IF('Clean Columns'!$Z$60=1,Beams!C47+'Clean Columns'!$AD$62,Beams!C47-Beams!E47) -> 9.39 | P47: 278
A48: W10X45 | B48: 13.3 | C48: 10.1 | D48: 8.02 | E48: 0.62 | F48: 1.12 | G48: 54.9 | H48: 2470.5 | I48: 43 | J48: 189.8734177 | K48: -189.8734177 | L48: -189.8734177 | M48: 189.8734177 | N48: =IF('Clean Columns'!$Z$57,J48-K48,J48)-$H$2 -> 379.7468354 | O48: =IF('Clean Columns'!$Z$60=1,Beams!C48+'Clean Columns'!$AD$62,Beams!C48-Beams!E48) -> 9.48 | P48: 277
I49: 44 | N49: =IF('Clean Columns'!$Z$57,J49-K49,J49)-$H$2 ->  | O49: =IF('Clean Columns'!$Z$60=1,Beams!C49+'Clean Columns'!$AD$62,Beams!C49-Beams!E49) ->  | P49: 276
A50: W10X49 | B50: 14.4 | C50: 10 | D50: 10 | E50: 0.56 | F50: 1.06 | G50: 60.4 | H50: 2718 | I50: 45 | J50: 190.6779661 | K50: -190.6779661 | L50: -190.6779661 | M50: 190.6779661 | N50: =IF('Clean Columns'!$Z$57,J50-K50,J50)-$H$2 -> 381.3559322 | O50: =IF('Clean Columns'!$Z$60=1,Beams!C50+'Clean Columns'!$AD$62,Beams!C50-Beams!E50) -> 9.44 | P50: 275
A51: W10X54 | B51: 15.8 | C51: 10.1 | D51: 10 | E51: 0.615 | F51: 1.12 | G51: 66.6 | H51: 2997 | I51: 46 | J51: 189.7733263 | K51: -189.7733263 | L51: -189.7733263 | M51: 189.7733263 | N51: =IF('Clean Columns'!$Z$57,J51-K51,J51)-$H$2 -> 379.5466526 | O51: =IF('Clean Columns'!$Z$60=1,Beams!C51+'Clean Columns'!$AD$62,Beams!C51-Beams!E51) -> 9.485 | P51: 274
A52: W10X60 | B52: 17.7 | C52: 10.2 | D52: 10.1 | E52: 0.68 | F52: 1.18 | G52: 74.6 | H52: 3357 | I52: 47 | J52: 189.0756303 | K52: -189.0756303 | L52: -189.0756303 | M52: 189.0756303 | N52: =IF('Clean Columns'!$Z$57,J52-K52,J52)-$H$2 -> 378.1512605 | O52: =IF('Clean Columns'!$Z$60=1,Beams!C52+'Clean Columns'!$AD$62,Beams!C52-Beams!E52) -> 9.52 | P52: 273
A53: W10X68 | B53: 19.9 | C53: 10.4 | D53: 10.1 | E53: 0.77 | F53: 1.27 | G53: 85.3 | H53: 3838.5 | I53: 48 | J53: 186.9158879 | K53: -186.9158879 | L53: -186.9158879 | M53: 186.9158879 | N53: =IF('Clean Columns'!$Z$57,J53-K53,J53)-$H$2 -> 373.8317757 | O53: =IF('Clean Columns'!$Z$60=1,Beams!C53+'Clean Columns'!$AD$62,Beams!C53-Beams!E53) -> 9.63 | P53: 272
A54: W10X77 | B54: 22.7 | C54: 10.6 | D54: 10.2 | E54: 0.87 | F54: 1.37 | G54: 97.6 | H54: 4392 | I54: 49 | J54: 184.9948613 | K54: -184.9948613 | L54: -184.9948613 | M54: 184.9948613 | N54: =IF('Clean Columns'!$Z$57,J54-K54,J54)-$H$2 -> 369.9897225 | O54: =IF('Clean Columns'!$Z$60=1,Beams!C54+'Clean Columns'!$AD$62,Beams!C54-Beams!E54) -> 9.73 | P54: 271
A55: W10X88 | B55: 26 | C55: 10.8 | D55: 10.3 | E55: 0.99 | F55: 1.49 | G55: 113 | H55: 5085 | I55: 50 | J55: 183.4862385 | K55: -183.4862385 | L55: -183.4862385 | M55: 183.4862385 | N55: =IF('Clean Columns'!$Z$57,J55-K55,J55)-$H$2 -> 366.9724771 | O55: =IF('Clean Columns'!$Z$60=1,Beams!C55+'Clean Columns'!$AD$62,Beams!C55-Beams!E55) -> 9.81 | P55: 270
A56: W10X100 | B56: =VLOOKUP($A56,_xlnm.DataBase,B$3,FALSE) -> 29.3 | C56: 11.1 | D56: 10.3 | E56: 1.12 | F56: 1.62 | G56: 130 | H56: 5850 | I56: 51 | J56: 180.3607214 | K56: -180.3607214 | L56: -180.3607214 | M56: 180.3607214 | N56: =IF('Clean Columns'!$Z$57,J56-K56,J56)-$H$2 -> 360.7214429 | O56: =IF('Clean Columns'!$Z$60=1,Beams!C56+'Clean Columns'!$AD$62,Beams!C56-Beams!E56) -> 9.98 | P56: 269
A57: W10X112 | B57: 32.9 | C57: 11.4 | D57: 10.4 | E57: 1.25 | F57: 1.75 | G57: 147 | H57: 6615 | I57: 52 | J57: 177.3399015 | K57: -177.3399015 | L57: -177.3399015 | M57: 177.3399015 | N57: =IF('Clean Columns'!$Z$57,J57-K57,J57)-$H$2 -> 354.679803 | O57: =IF('Clean Columns'!$Z$60=1,Beams!C57+'Clean Columns'!$AD$62,Beams!C57-Beams!E57) -> 10.15 | P57: 268
I58: 53 | N58: =IF('Clean Columns'!$Z$57,J58-K58,J58)-$H$2 ->  | O58: =IF('Clean Columns'!$Z$60=1,Beams!C58+'Clean Columns'!$AD$62,Beams!C58-Beams!E58) ->  | P58: 267
A59: W12X14 | B59: 4.16 | C59: 11.9 | D59: 3.97 | E59: 0.225 | F59: 0.525 | G59: 17.4 | H59: 783 | I59: 54 | J59: 154.1755889 | K59: -154.1755889 | L59: -154.1755889 | M59: 154.1755889 | N59: =IF('Clean Columns'!$Z$57,J59-K59,J59)-$H$2 -> 308.3511777 | O59: =IF('Clean Columns'!$Z$60=1,Beams!C59+'Clean Columns'!$AD$62,Beams!C59-Beams!E59) -> 11.675 | P59: 266
A60: W12X16 | B60: 4.71 | C60: 12 | D60: 3.99 | E60: 0.265 | F60: 0.565 | G60: 20.1 | H60: 904.5 | I60: 55 | J60: 153.3873029 | K60: -153.3873029 | L60: -153.3873029 | M60: 153.3873029 | N60: =IF('Clean Columns'!$Z$57,J60-K60,J60)-$H$2 -> 306.7746059 | O60: =IF('Clean Columns'!$Z$60=1,Beams!C60+'Clean Columns'!$AD$62,Beams!C60-Beams!E60) -> 11.735 | P60: 265
A61: W12X19 | B61: 5.57 | C61: 12.2 | D61: 4.01 | E61: 0.35 | F61: 0.65 | G61: 24.7 | H61: 1111.5 | I61: 56 | J61: 151.8987342 | K61: -151.8987342 | L61: -151.8987342 | M61: 151.8987342 | N61: =IF('Clean Columns'!$Z$57,J61-K61,J61)-$H$2 -> 303.7974684 | O61: =IF('Clean Columns'!$Z$60=1,Beams!C61+'Clean Columns'!$AD$62,Beams!C61-Beams!E61) -> 11.85 | P61: 264
A62: W12X22 | B62: 6.48 | C62: 12.3 | D62: 4.03 | E62: 0.425 | F62: 0.725 | G62: 29.3 | H62: 1318.5 | I62: 57 | J62: 151.5789474 | K62: -151.5789474 | L62: -151.5789474 | M62: 151.5789474 | N62: =IF('Clean Columns'!$Z$57,J62-K62,J62)-$H$2 -> 303.1578947 | O62: =IF('Clean Columns'!$Z$60=1,Beams!C62+'Clean Columns'!$AD$62,Beams!C62-Beams!E62) -> 11.875 | P62: 263
I63: 58 | N63: =IF('Clean Columns'!$Z$57,J63-K63,J63)-$H$2 ->  | O63: =IF('Clean Columns'!$Z$60=1,Beams!C63+'Clean Columns'!$AD$62,Beams!C63-Beams!E63) ->  | P63: 262
A64: W12X26 | B64: 7.65 | C64: 12.2 | D64: 6.49 | E64: 0.38 | F64: 0.68 | G64: 37.2 | H64: 1674 | I64: 59 | J64: 152.284264 | K64: -152.284264 | L64: -152.284264 | M64: 152.284264 | N64: =IF('Clean Columns'!$Z$57,J64-K64,J64)-$H$2 -> 304.5685279 | O64: =IF('Clean Columns'!$Z$60=1,Beams!C64+'Clean Columns'!$AD$62,Beams!C64-Beams!E64) -> 11.82 | P64: 261
A65: W12X30 | B65: 8.79 | C65: 12.3 | D65: 6.52 | E65: 0.44 | F65: 0.74 | G65: 43.1 | H65: 1939.5 | I65: 60 | J65: 151.7706577 | K65: -151.7706577 | L65: -151.7706577 | M65: 151.7706577 | N65: =IF('Clean Columns'!$Z$57,J65-K65,J65)-$H$2 -> 303.5413153 | O65: =IF('Clean Columns'!$Z$60=1,Beams!C65+'Clean Columns'!$AD$62,Beams!C65-Beams!E65) -> 11.86 | P65: 260
A66: W12X35 | B66: =VLOOKUP($A66,_xlnm.DataBase,B$3,FALSE) -> 10.3 | C66: 12.5 | D66: 6.56 | E66: 0.52 | F66: 0.82 | G66: 51.2 | H66: 2304 | I66: 61 | J66: 150.2504174 | K66: -150.2504174 | L66: -150.2504174 | M66: 150.2504174 | N66: =IF('Clean Columns'!$Z$57,J66-K66,J66)-$H$2 -> 300.5008347 | O66: =IF('Clean Columns'!$Z$60=1,Beams!C66+'Clean Columns'!$AD$62,Beams!C66-Beams!E66) -> 11.98 | P66: 259
I67: 62 | N67: =IF('Clean Columns'!$Z$57,J67-K67,J67)-$H$2 ->  | O67: =IF('Clean Columns'!$Z$60=1,Beams!C67+'Clean Columns'!$AD$62,Beams!C67-Beams!E67) ->  | P67: 258
A68: W12X40 | B68: 11.7 | C68: 11.9 | D68: 8.01 | E68: 0.515 | F68: 1.02 | G68: 57 | H68: 2565 | I68: 63 | J68: 158.1027668 | K68: -158.1027668 | L68: -158.1027668 | M68: 158.1027668 | N68: =IF('Clean Columns'!$Z$57,J68-K68,J68)-$H$2 -> 316.2055336 | O68: =IF('Clean Columns'!$Z$60=1,Beams!C68+'Clean Columns'!$AD$62,Beams!C68-Beams!E68) -> 11.385 | P68: 257
A69: W12X45 | B69: 13.1 | C69: 12.1 | D69: 8.05 | E69: 0.575 | F69: 1.08 | G69: 64.2 | H69: 2889 | I69: 64 | J69: 156.1822126 | K69: -156.1822126 | L69: -156.1822126 | M69: 156.1822126 | N69: =IF('Clean Columns'!$Z$57,J69-K69,J69)-$H$2 -> 312.3644252 | O69: =IF('Clean Columns'!$Z$60=1,Beams!C69+'Clean Columns'!$AD$62,Beams!C69-Beams!E69) -> 11.525 | P69: 256
A70: W12X50 | B70: 14.6 | C70: 12.2 | D70: 8.08 | E70: 0.64 | F70: 1.14 | G70: 71.9 | H70: 3235.5 | I70: 65 | J70: 155.7093426 | K70: -155.7093426 | L70: -155.7093426 | M70: 155.7093426 | N70: =IF('Clean Columns'!$Z$57,J70-K70,J70)-$H$2 -> 311.4186851 | O70: =IF('Clean Columns'!$Z$60=1,Beams!C70+'Clean Columns'!$AD$62,Beams!C70-Beams!E70) -> 11.56 | P70: 255
H71: =0.9*$C$2*G71 ->  | I71: 66 | N71: =IF('Clean Columns'!$Z$57,J71-K71,J71)-$H$2 ->  | O71: =IF('Clean Columns'!$Z$60=1,Beams!C71+'Clean Columns'!$AD$62,Beams!C71-Beams!E71) ->  | P71: 254
A72: W12X53 | B72: 15.6 | C72: 12.1 | D72: 10 | E72: 0.575 | F72: 1.18 | G72: 77.9 | H72: 3505.5 | I72: 67 | J72: 156.1822126 | K72: -156.1822126 | L72: -156.1822126 | M72: 156.1822126 | N72: =IF('Clean Columns'!$Z$57,J72-K72,J72)-$H$2 -> 312.3644252 | O72: =IF('Clean Columns'!$Z$60=1,Beams!C72+'Clean Columns'!$AD$62,Beams!C72-Beams!E72) -> 11.525 | P72: 253
A73: W12X58 | B73: 17 | C73: 12.2 | D73: 10 | E73: 0.64 | F73: 1.24 | G73: 86.4 | H73: 3888 | I73: =I72+1 -> 68 | J73: =$H$1/2+($C$1*12)/O73 -> 155.7093426 | K73: =$J$1/2-($E$1*12)/O73 -> -155.7093426 | L73: =$H$1/2-($C$1*12)/O73 -> -155.7093426 | M73: =$J$1/2+($E$1*12)/O73 -> 155.7093426 | N73: =IF('Clean Columns'!$Z$57,J73-K73,J73)-$H$2 -> 311.4186851 | O73: =IF('Clean Columns'!$Z$60=1,Beams!C73+'Clean Columns'!$AD$62,Beams!C73-Beams!E73) -> 11.56 | P73: =P72-1 -> 252
I74: 69 | N74: =IF('Clean Columns'!$Z$57,J74-K74,J74)-$H$2 ->  | O74: =IF('Clean Columns'!$Z$60=1,Beams!C74+'Clean Columns'!$AD$62,Beams!C74-Beams!E74) ->  | P74: 251
A75: W12X65 | B75: 19.1 | C75: 12.1 | D75: 12 | E75: 0.605 | F75: 1.2 | G75: 96.8 | H75: 4356 | I75: 70 | J75: 156.5898217 | K75: -156.5898217 | L75: -156.5898217 | M75: 156.5898217 | N75: =IF('Clean Columns'!$Z$57,J75-K75,J75)-$H$2 -> 313.1796433 | O75: =IF('Clean Columns'!$Z$60=1,Beams!C75+'Clean Columns'!$AD$62,Beams!C75-Beams!E75) -> 11.495 | P75: 250
A76: W12X72 | B76: =VLOOKUP($A76,_xlnm.DataBase,B$3,FALSE) -> 21.1 | C76: 12.3 | D76: 12 | E76: 0.67 | F76: 1.27 | G76: 108 | H76: 4860 | I76: 71 | J76: 154.772141 | K76: -154.772141 | L76: -154.772141 | M76: 154.772141 | N76: =IF('Clean Columns'!$Z$57,J76-K76,J76)-$H$2 -> 309.544282 | O76: =IF('Clean Columns'!$Z$60=1,Beams!C76+'Clean Columns'!$AD$62,Beams!C76-Beams!E76) -> 11.63 | P76: 249
A77: W12X79 | B77: 23.2 | C77: 12.4 | D77: 12.1 | E77: 0.735 | F77: 1.33 | G77: 119 | H77: 5355 | I77: 72 | J77: 154.3077583 | K77: -154.3077583 | L77: -154.3077583 | M77: 154.3077583 | N77: =IF('Clean Columns'!$Z$57,J77-K77,J77)-$H$2 -> 308.6155165 | O77: =IF('Clean Columns'!$Z$60=1,Beams!C77+'Clean Columns'!$AD$62,Beams!C77-Beams!E77) -> 11.665 | P77: 248
A78: W12X87 | B78: 25.6 | C78: 12.5 | D78: 12.1 | E78: 0.81 | F78: 1.41 | G78: 132 | H78: 5940 | I78: 73 | J78: 153.9777588 | K78: -153.9777588 | L78: -153.9777588 | M78: 153.9777588 | N78: =IF('Clean Columns'!$Z$57,J78-K78,J78)-$H$2 -> 307.9555175 | O78: =IF('Clean Columns'!$Z$60=1,Beams!C78+'Clean Columns'!$AD$62,Beams!C78-Beams!E78) -> 11.69 | P78: 247
A79: W12X96 | B79: 28.2 | C79: 12.7 | D79: 12.2 | E79: 0.9 | F79: 1.5 | G79: 147 | H79: 6615 | I79: 74 | J79: 152.5423729 | K79: -152.5423729 | L79: -152.5423729 | M79: 152.5423729 | N79: =IF('Clean Columns'!$Z$57,J79-K79,J79)-$H$2 -> 305.0847458 | O79: =IF('Clean Columns'!$Z$60=1,Beams!C79+'Clean Columns'!$AD$62,Beams!C79-Beams!E79) -> 11.8 | P79: 246
A80: W12X106 | B80: 31.2 | C80: 12.9 | D80: 12.2 | E80: 0.99 | F80: 1.59 | G80: 164 | H80: 7380 | I80: 75 | J80: 151.1335013 | K80: -151.1335013 | L80: -151.1335013 | M80: 151.1335013 | N80: =IF('Clean Columns'!$Z$57,J80-K80,J80)-$H$2 -> 302.2670025 | O80: =IF('Clean Columns'!$Z$60=1,Beams!C80+'Clean Columns'!$AD$62,Beams!C80-Beams!E80) -> 11.91 | P80: 245
A81: W12X120 | B81: 35.2 | C81: 13.1 | D81: 12.3 | E81: 1.11 | F81: 1.7 | G81: 186 | H81: 8370 | I81: 76 | J81: 150.1251043 | K81: -150.1251043 | L81: -150.1251043 | M81: 150.1251043 | N81: =IF('Clean Columns'!$Z$57,J81-K81,J81)-$H$2 -> 300.2502085 | O81: =IF('Clean Columns'!$Z$60=1,Beams!C81+'Clean Columns'!$AD$62,Beams!C81-Beams!E81) -> 11.99 | P81: 244
A82: W12X136 | B82: 39.9 | C82: 13.4 | D82: 12.4 | E82: 1.25 | F82: 1.85 | G82: 214 | H82: 9630 | I82: 77 | J82: 148.1481481 | K82: -148.1481481 | L82: -148.1481481 | M82: 148.1481481 | N82: =IF('Clean Columns'!$Z$57,J82-K82,J82)-$H$2 -> 296.2962963 | O82: =IF('Clean Columns'!$Z$60=1,Beams!C82+'Clean Columns'!$AD$62,Beams!C82-Beams!E82) -> 12.15 | P82: 243
A83: W12X152 | B83: 44.7 | C83: 13.7 | D83: 12.5 | E83: 1.4 | F83: 2 | G83: 243 | H83: 10935 | I83: 78 | J83: 146.3414634 | K83: -146.3414634 | L83: -146.3414634 | M83: 146.3414634 | N83: =IF('Clean Columns'!$Z$57,J83-K83,J83)-$H$2 -> 292.6829268 | O83: =IF('Clean Columns'!$Z$60=1,Beams!C83+'Clean Columns'!$AD$62,Beams!C83-Beams!E83) -> 12.3 | P83: 242
A84: W12X170 | B84: 50 | C84: 14 | D84: 12.6 | E84: 1.56 | F84: 2.16 | G84: 275 | H84: 12375 | I84: 79 | J84: 144.6945338 | K84: -144.6945338 | L84: -144.6945338 | M84: 144.6945338 | N84: =IF('Clean Columns'!$Z$57,J84-K84,J84)-$H$2 -> 289.3890675 | O84: =IF('Clean Columns'!$Z$60=1,Beams!C84+'Clean Columns'!$AD$62,Beams!C84-Beams!E84) -> 12.44 | P84: 241
A85: W12X190 | B85: 56 | C85: 14.4 | D85: 12.7 | E85: 1.74 | F85: 2.33 | G85: 311 | H85: 13995 | I85: 80 | J85: 142.1800948 | K85: -142.1800948 | L85: -142.1800948 | M85: 142.1800948 | N85: =IF('Clean Columns'!$Z$57,J85-K85,J85)-$H$2 -> 284.3601896 | O85: =IF('Clean Columns'!$Z$60=1,Beams!C85+'Clean Columns'!$AD$62,Beams!C85-Beams!E85) -> 12.66 | P85: 240
A86: W12X210 | B86: =VLOOKUP($A86,_xlnm.DataBase,B$3,FALSE) -> 61.8 | C86: 14.7 | D86: 12.8 | E86: 1.9 | F86: 2.5 | G86: 348 | H86: 15660 | I86: 81 | J86: 140.625 | K86: -140.625 | L86: -140.625 | M86: 140.625 | N86: =IF('Clean Columns'!$Z$57,J86-K86,J86)-$H$2 -> 281.25 | O86: =IF('Clean Columns'!$Z$60=1,Beams!C86+'Clean Columns'!$AD$62,Beams!C86-Beams!E86) -> 12.8 | P86: 239
A87: W12X230 | B87: 67.7 | C87: 15.1 | D87: 12.9 | E87: 2.07 | F87: 2.67 | G87: 386 | H87: 17370 | I87: 82 | J87: 138.1427475 | K87: -138.1427475 | L87: -138.1427475 | M87: 138.1427475 | N87: =IF('Clean Columns'!$Z$57,J87-K87,J87)-$H$2 -> 276.285495 | O87: =IF('Clean Columns'!$Z$60=1,Beams!C87+'Clean Columns'!$AD$62,Beams!C87-Beams!E87) -> 13.03 | P87: 238
A88: W12X252 | B88: 74.1 | C88: 15.4 | D88: 13 | E88: 2.25 | F88: 2.85 | G88: 428 | H88: 19260 | I88: 83 | J88: 136.8821293 | K88: -136.8821293 | L88: -136.8821293 | M88: 136.8821293 | N88: =IF('Clean Columns'!$Z$57,J88-K88,J88)-$H$2 -> 273.7642586 | O88: =IF('Clean Columns'!$Z$60=1,Beams!C88+'Clean Columns'!$AD$62,Beams!C88-Beams!E88) -> 13.15 | P88: 237
A89: W12X279 | B89: 81.9 | C89: 15.9 | D89: 13.1 | E89: 2.47 | F89: 3.07 | G89: 481 | H89: 21645 | I89: 84 | J89: 134.0282949 | K89: -134.0282949 | L89: -134.0282949 | M89: 134.0282949 | N89: =IF('Clean Columns'!$Z$57,J89-K89,J89)-$H$2 -> 268.0565897 | O89: =IF('Clean Columns'!$Z$60=1,Beams!C89+'Clean Columns'!$AD$62,Beams!C89-Beams!E89) -> 13.43 | P89: 236
A90: W12X305 | B90: 89.5 | C90: 16.3 | D90: 13.2 | E90: 2.71 | F90: 3.3 | G90: 537 | H90: 24165 | I90: 85 | J90: 132.4503311 | K90: -132.4503311 | L90: -132.4503311 | M90: 132.4503311 | N90: =IF('Clean Columns'!$Z$57,J90-K90,J90)-$H$2 -> 264.9006623 | O90: =IF('Clean Columns'!$Z$60=1,Beams!C90+'Clean Columns'!$AD$62,Beams!C90-Beams!E90) -> 13.59 | P90: 235
A91: W12X336 | B91: 98.9 | C91: 16.8 | D91: 13.4 | E91: 2.96 | F91: 3.55 | G91: 603 | H91: 27135 | I91: 86 | J91: 130.0578035 | K91: -130.0578035 | L91: -130.0578035 | M91: 130.0578035 | N91: =IF('Clean Columns'!$Z$57,J91-K91,J91)-$H$2 -> 260.1156069 | O91: =IF('Clean Columns'!$Z$60=1,Beams!C91+'Clean Columns'!$AD$62,Beams!C91-Beams!E91) -> 13.84 | P91: 234
I92: 87 | N92: =IF('Clean Columns'!$Z$57,J92-K92,J92)-$H$2 ->  | O92: =IF('Clean Columns'!$Z$60=1,Beams!C92+'Clean Columns'!$AD$62,Beams!C92-Beams!E92) ->  | P92: 233
A93: W14X22 | B93: 6.49 | C93: 13.7 | D93: 5 | E93: 0.335 | F93: 0.735 | G93: 33.2 | H93: 1494 | I93: 88 | J93: 134.6801347 | K93: -134.6801347 | L93: -134.6801347 | M93: 134.6801347 | N93: =IF('Clean Columns'!$Z$57,J93-K93,J93)-$H$2 -> 269.3602694 | O93: =IF('Clean Columns'!$Z$60=1,Beams!C93+'Clean Columns'!$AD$62,Beams!C93-Beams!E93) -> 13.365 | P93: 232
A94: W14X26 | B94: 7.69 | C94: 13.9 | D94: 5.03 | E94: 0.42 | F94: 0.82 | G94: 40.2 | H94: 1809 | I94: 89 | J94: 133.5311573 | K94: -133.5311573 | L94: -133.5311573 | M94: 133.5311573 | N94: =IF('Clean Columns'!$Z$57,J94-K94,J94)-$H$2 -> 267.0623145 | O94: =IF('Clean Columns'!$Z$60=1,Beams!C94+'Clean Columns'!$AD$62,Beams!C94-Beams!E94) -> 13.48 | P94: 231
I95: 90 | N95: =IF('Clean Columns'!$Z$57,J95-K95,J95)-$H$2 ->  | O95: =IF('Clean Columns'!$Z$60=1,Beams!C95+'Clean Columns'!$AD$62,Beams!C95-Beams!E95) ->  | P95: 230
A96: W14X30 | B96: =VLOOKUP($A96,_xlnm.DataBase,B$3,FALSE) -> 8.85 | C96: 13.8 | D96: 6.73 | E96: 0.385 | F96: 0.785 | G96: 47.3 | H96: 2128.5 | I96: 91 | J96: 134.1781588 | K96: -134.1781588 | L96: -134.1781588 | M96: 134.1781588 | N96: =IF('Clean Columns'!$Z$57,J96-K96,J96)-$H$2 -> 268.3563176 | O96: =IF('Clean Columns'!$Z$60=1,Beams!C96+'Clean Columns'!$AD$62,Beams!C96-Beams!E96) -> 13.415 | P96: 229
A97: W14X34 | B97: 10 | C97: 14 | D97: 6.75 | E97: 0.455 | F97: 0.855 | G97: 54.6 | H97: 2457 | I97: 92 | J97: 132.8903654 | K97: -132.8903654 | L97: -132.8903654 | M97: 132.8903654 | N97: =IF('Clean Columns'!$Z$57,J97-K97,J97)-$H$2 -> 265.7807309 | O97: =IF('Clean Columns'!$Z$60=1,Beams!C97+'Clean Columns'!$AD$62,Beams!C97-Beams!E97) -> 13.545 | P97: 228
A98: W14X38 | B98: 11.2 | C98: 14.1 | D98: 6.77 | E98: 0.515 | F98: 0.915 | G98: 61.5 | H98: 2767.5 | I98: 93 | J98: 132.4990799 | K98: -132.4990799 | L98: -132.4990799 | M98: 132.4990799 | N98: =IF('Clean Columns'!$Z$57,J98-K98,J98)-$H$2 -> 264.9981597 | O98: =IF('Clean Columns'!$Z$60=1,Beams!C98+'Clean Columns'!$AD$62,Beams!C98-Beams!E98) -> 13.585 | P98: 227
I99: 94 | N99: =IF('Clean Columns'!$Z$57,J99-K99,J99)-$H$2 ->  | O99: =IF('Clean Columns'!$Z$60=1,Beams!C99+'Clean Columns'!$AD$62,Beams!C99-Beams!E99) ->  | P99: 226
A100: W14X43 | B100: 12.6 | C100: 13.7 | D100: 8 | E100: 0.53 | F100: 1.12 | G100: 69.6 | H100: 3132 | I100: 95 | J100: 136.6742597 | K100: -136.6742597 | L100: -136.6742597 | M100: 136.6742597 | N100: =IF('Clean Columns'!$Z$57,J100-K100,J100)-$H$2 -> 273.3485194 | O100: =IF('Clean Columns'!$Z$60=1,Beams!C100+'Clean Columns'!$AD$62,Beams!C100-Beams!E100) -> 13.17 | P100: 225
A101: W14X48 | B101: 14.1 | C101: 13.8 | D101: 8.03 | E101: 0.595 | F101: 1.19 | G101: 78.4 | H101: 3528 | I101: 96 | J101: 136.312003 | K101: -136.312003 | L101: -136.312003 | M101: 136.312003 | N101: =IF('Clean Columns'!$Z$57,J101-K101,J101)-$H$2 -> 272.6240061 | O101: =IF('Clean Columns'!$Z$60=1,Beams!C101+'Clean Columns'!$AD$62,Beams!C101-Beams!E101) -> 13.205 | P101: 224
A102: W14X53 | B102: 15.6 | C102: 13.9 | D102: 8.06 | E102: 0.66 | F102: 1.25 | G102: 87.1 | H102: 3919.5 | I102: 97 | J102: 135.9516616 | K102: -135.9516616 | L102: -135.9516616 | M102: 135.9516616 | N102: =IF('Clean Columns'!$Z$57,J102-K102,J102)-$H$2 -> 271.9033233 | O102: =IF('Clean Columns'!$Z$60=1,Beams!C102+'Clean Columns'!$AD$62,Beams!C102-Beams!E102) -> 13.24 | P102: 223
I103: 98 | N103: =IF('Clean Columns'!$Z$57,J103-K103,J103)-$H$2 ->  | O103: =IF('Clean Columns'!$Z$60=1,Beams!C103+'Clean Columns'!$AD$62,Beams!C103-Beams!E103) ->  | P103: 222
A104: W14X61 | B104: 17.9 | C104: 13.9 | D104: 10 | E104: 0.645 | F104: 1.24 | G104: 102 | H104: 4590 | I104: 99 | J104: 135.7978121 | K104: -135.7978121 | L104: -135.7978121 | M104: 135.7978121 | N104: =IF('Clean Columns'!$Z$57,J104-K104,J104)-$H$2 -> 271.5956243 | O104: =IF('Clean Columns'!$Z$60=1,Beams!C104+'Clean Columns'!$AD$62,Beams!C104-Beams!E104) -> 13.255 | P104: 221
A105: W14X68 | B105: 20 | C105: 14 | D105: 10 | E105: 0.72 | F105: 1.31 | G105: 115 | H105: 5175 | I105: 100 | J105: 135.5421687 | K105: -135.5421687 | L105: -135.5421687 | M105: 135.5421687 | N105: =IF('Clean Columns'!$Z$57,J105-K105,J105)-$H$2 -> 271.0843373 | O105: =IF('Clean Columns'!$Z$60=1,Beams!C105+'Clean Columns'!$AD$62,Beams!C105-Beams!E105) -> 13.28 | P105: 220
A106: W14X74 | B106: =VLOOKUP($A106,_xlnm.DataBase,B$3,FALSE) -> 21.8 | C106: 14.2 | D106: 10.1 | E106: 0.785 | F106: 1.38 | G106: 126 | H106: 5670 | I106: 101 | J106: 134.1781588 | K106: -134.1781588 | L106: -134.1781588 | M106: 134.1781588 | N106: =IF('Clean Columns'!$Z$57,J106-K106,J106)-$H$2 -> 268.3563176 | O106: =IF('Clean Columns'!$Z$60=1,Beams!C106+'Clean Columns'!$AD$62,Beams!C106-Beams!E106) -> 13.415 | P106: 219
A107: W14X82 | B107: 24 | C107: 14.3 | D107: 10.1 | E107: 0.855 | F107: 1.45 | G107: 139 | H107: 6255 | I107: 102 | J107: 133.8787653 | K107: -133.8787653 | L107: -133.8787653 | M107: 133.8787653 | N107: =IF('Clean Columns'!$Z$57,J107-K107,J107)-$H$2 -> 267.7575307 | O107: =IF('Clean Columns'!$Z$60=1,Beams!C107+'Clean Columns'!$AD$62,Beams!C107-Beams!E107) -> 13.445 | P107: 218
I108: 103 | N108: =IF('Clean Columns'!$Z$57,J108-K108,J108)-$H$2 ->  | O108: =IF('Clean Columns'!$Z$60=1,Beams!C108+'Clean Columns'!$AD$62,Beams!C108-Beams!E108) ->  | P108: 217
A109: W14X90 | B109: 26.5 | C109: 14 | D109: 14.5 | E109: 0.71 | F109: 1.31 | G109: 157 | H109: 7065 | I109: 104 | J109: 135.4401806 | K109: -135.4401806 | L109: -135.4401806 | M109: 135.4401806 | N109: =IF('Clean Columns'!$Z$57,J109-K109,J109)-$H$2 -> 270.8803612 | O109: =IF('Clean Columns'!$Z$60=1,Beams!C109+'Clean Columns'!$AD$62,Beams!C109-Beams!E109) -> 13.29 | P109: 216
A110: W14X99 | B110: 29.1 | C110: 14.2 | D110: 14.6 | E110: 0.78 | F110: 1.38 | G110: 173 | H110: 7785 | I110: 105 | J110: 134.1281669 | K110: -134.1281669 | L110: -134.1281669 | M110: 134.1281669 | N110: =IF('Clean Columns'!$Z$57,J110-K110,J110)-$H$2 -> 268.2563338 | O110: =IF('Clean Columns'!$Z$60=1,Beams!C110+'Clean Columns'!$AD$62,Beams!C110-Beams!E110) -> 13.42 | P110: 215
A111: W14X109 | B111: 32 | C111: 14.3 | D111: 14.6 | E111: 0.86 | F111: 1.46 | G111: 192 | H111: 8640 | I111: 106 | J111: 133.9285714 | K111: -133.9285714 | L111: -133.9285714 | M111: 133.9285714 | N111: =IF('Clean Columns'!$Z$57,J111-K111,J111)-$H$2 -> 267.8571429 | O111: =IF('Clean Columns'!$Z$60=1,Beams!C111+'Clean Columns'!$AD$62,Beams!C111-Beams!E111) -> 13.44 | P111: 214
A112: W14X120 | B112: 35.3 | C112: 14.5 | D112: 14.7 | E112: 0.94 | F112: 1.54 | G112: 212 | H112: 9540 | I112: 107 | J112: 132.7433628 | K112: -132.7433628 | L112: -132.7433628 | M112: 132.7433628 | N112: =IF('Clean Columns'!$Z$57,J112-K112,J112)-$H$2 -> 265.4867257 | O112: =IF('Clean Columns'!$Z$60=1,Beams!C112+'Clean Columns'!$AD$62,Beams!C112-Beams!E112) -> 13.56 | P112: 213
A113: W14X132 | B113: 38.8 | C113: 14.7 | D113: 14.7 | E113: 1.03 | F113: 1.63 | G113: 234 | H113: 10530 | I113: 108 | J113: 131.6752012 | K113: -131.6752012 | L113: -131.6752012 | M113: 131.6752012 | N113: =IF('Clean Columns'!$Z$57,J113-K113,J113)-$H$2 -> 263.3504023 | O113: =IF('Clean Columns'!$Z$60=1,Beams!C113+'Clean Columns'!$AD$62,Beams!C113-Beams!E113) -> 13.67 | P113: 212
I114: 109 | N114: =IF('Clean Columns'!$Z$57,J114-K114,J114)-$H$2 ->  | O114: =IF('Clean Columns'!$Z$60=1,Beams!C114+'Clean Columns'!$AD$62,Beams!C114-Beams!E114) ->  | P114: 211
A115: W14X145 | B115: 42.7 | C115: 14.8 | D115: 15.5 | E115: 1.09 | F115: 1.69 | G115: 260 | H115: 11700 | I115: 110 | J115: 131.2910284 | K115: -131.2910284 | L115: -131.2910284 | M115: 131.2910284 | N115: =IF('Clean Columns'!$Z$57,J115-K115,J115)-$H$2 -> 262.5820569 | O115: =IF('Clean Columns'!$Z$60=1,Beams!C115+'Clean Columns'!$AD$62,Beams!C115-Beams!E115) -> 13.71 | P115: 210
A116: W14X159 | B116: =VLOOKUP($A116,_xlnm.DataBase,B$3,FALSE) -> 46.7 | C116: 15 | D116: 15.6 | E116: 1.19 | F116: 1.79 | G116: 287 | H116: 12915 | I116: 111 | J116: 130.3403331 | K116: -130.3403331 | L116: -130.3403331 | M116: 130.3403331 | N116: =IF('Clean Columns'!$Z$57,J116-K116,J116)-$H$2 -> 260.6806662 | O116: =IF('Clean Columns'!$Z$60=1,Beams!C116+'Clean Columns'!$AD$62,Beams!C116-Beams!E116) -> 13.81 | P116: 209
A117: W14X176 | B117: 51.8 | C117: 15.2 | D117: 15.7 | E117: 1.31 | F117: 1.91 | G117: 320 | H117: 14400 | I117: 112 | J117: 129.5896328 | K117: -129.5896328 | L117: -129.5896328 | M117: 129.5896328 | N117: =IF('Clean Columns'!$Z$57,J117-K117,J117)-$H$2 -> 259.1792657 | O117: =IF('Clean Columns'!$Z$60=1,Beams!C117+'Clean Columns'!$AD$62,Beams!C117-Beams!E117) -> 13.89 | P117: 208
A118: W14X193 | B118: 56.8 | C118: 15.5 | D118: 15.7 | E118: 1.44 | F118: 2.04 | G118: 355 | H118: 15975 | I118: 113 | J118: 128.0227596 | K118: -128.0227596 | L118: -128.0227596 | M118: 128.0227596 | N118: =IF('Clean Columns'!$Z$57,J118-K118,J118)-$H$2 -> 256.0455192 | O118: =IF('Clean Columns'!$Z$60=1,Beams!C118+'Clean Columns'!$AD$62,Beams!C118-Beams!E118) -> 14.06 | P118: 207
A119: W14X211 | B119: 62 | C119: 15.7 | D119: 15.8 | E119: 1.56 | F119: 2.16 | G119: 390 | H119: 17550 | I119: 114 | J119: 127.2984441 | K119: -127.2984441 | L119: -127.2984441 | M119: 127.2984441 | N119: =IF('Clean Columns'!$Z$57,J119-K119,J119)-$H$2 -> 254.5968883 | O119: =IF('Clean Columns'!$Z$60=1,Beams!C119+'Clean Columns'!$AD$62,Beams!C119-Beams!E119) -> 14.14 | P119: 206
A120: W14X233 | B120: 68.5 | C120: 16 | D120: 15.9 | E120: 1.72 | F120: 2.32 | G120: 436 | H120: 19620 | I120: 115 | J120: 126.0504202 | K120: -126.0504202 | L120: -126.0504202 | M120: 126.0504202 | N120: =IF('Clean Columns'!$Z$57,J120-K120,J120)-$H$2 -> 252.1008403 | O120: =IF('Clean Columns'!$Z$60=1,Beams!C120+'Clean Columns'!$AD$62,Beams!C120-Beams!E120) -> 14.28 | P120: 205
A121: W14X257 | B121: 75.6 | C121: 16.4 | D121: 16 | E121: 1.89 | F121: 2.49 | G121: 487 | H121: 21915 | I121: 116 | J121: 124.0523777 | K121: -124.0523777 | L121: -124.0523777 | M121: 124.0523777 | N121: =IF('Clean Columns'!$Z$57,J121-K121,J121)-$H$2 -> 248.1047553 | O121: =IF('Clean Columns'!$Z$60=1,Beams!C121+'Clean Columns'!$AD$62,Beams!C121-Beams!E121) -> 14.51 | P121: 204
A122: W14X283 | B122: 83.3 | C122: 16.7 | D122: 16.1 | E122: 2.07 | F122: 2.67 | G122: 542 | H122: 24390 | I122: 117 | J122: 123.0348599 | K122: -123.0348599 | L122: -123.0348599 | M122: 123.0348599 | N122: =IF('Clean Columns'!$Z$57,J122-K122,J122)-$H$2 -> 246.0697198 | O122: =IF('Clean Columns'!$Z$60=1,Beams!C122+'Clean Columns'!$AD$62,Beams!C122-Beams!E122) -> 14.63 | P122: 203
A123: W14X311 | B123: 91.4 | C123: 17.1 | D123: 16.2 | E123: 2.26 | F123: 2.86 | G123: 603 | H123: 27135 | I123: 118 | J123: 121.2938005 | K123: -121.2938005 | L123: -121.2938005 | M123: 121.2938005 | N123: =IF('Clean Columns'!$Z$57,J123-K123,J123)-$H$2 -> 242.5876011 | O123: =IF('Clean Columns'!$Z$60=1,Beams!C123+'Clean Columns'!$AD$62,Beams!C123-Beams!E123) -> 14.84 | P123: 202
A124: W14X342 | B124: 101 | C124: 17.5 | D124: 16.4 | E124: 2.47 | F124: 3.07 | G124: 672 | H124: 30240 | I124: 119 | J124: 119.760479 | K124: -119.760479 | L124: -119.760479 | M124: 119.760479 | N124: =IF('Clean Columns'!$Z$57,J124-K124,J124)-$H$2 -> 239.5209581 | O124: =IF('Clean Columns'!$Z$60=1,Beams!C124+'Clean Columns'!$AD$62,Beams!C124-Beams!E124) -> 15.03 | P124: 201
A125: W14X370 | B125: 109 | C125: 17.9 | D125: 16.5 | E125: 2.66 | F125: 3.26 | G125: 736 | H125: 33120 | I125: 120 | J125: 118.1102362 | K125: -118.1102362 | L125: -118.1102362 | M125: 118.1102362 | N125: =IF('Clean Columns'!$Z$57,J125-K125,J125)-$H$2 -> 236.2204724 | O125: =IF('Clean Columns'!$Z$60=1,Beams!C125+'Clean Columns'!$AD$62,Beams!C125-Beams!E125) -> 15.24 | P125: 200
A126: W14X398 | B126: =VLOOKUP($A126,_xlnm.DataBase,B$3,FALSE) -> 117 | C126: 18.3 | D126: 16.6 | E126: 2.85 | F126: 3.44 | G126: 801 | H126: 36045 | I126: 121 | J126: 116.5048544 | K126: -116.5048544 | L126: -116.5048544 | M126: 116.5048544 | N126: =IF('Clean Columns'!$Z$57,J126-K126,J126)-$H$2 -> 233.0097087 | O126: =IF('Clean Columns'!$Z$60=1,Beams!C126+'Clean Columns'!$AD$62,Beams!C126-Beams!E126) -> 15.45 | P126: 199
A127: W14X426 | B127: 125 | C127: 18.7 | D127: 16.7 | E127: 3.04 | F127: 3.63 | G127: 869 | H127: 39105 | I127: 122 | J127: 114.9425287 | K127: -114.9425287 | L127: -114.9425287 | M127: 114.9425287 | N127: =IF('Clean Columns'!$Z$57,J127-K127,J127)-$H$2 -> 229.8850575 | O127: =IF('Clean Columns'!$Z$60=1,Beams!C127+'Clean Columns'!$AD$62,Beams!C127-Beams!E127) -> 15.66 | P127: 198
I128: 123 | N128: =IF('Clean Columns'!$Z$57,J128-K128,J128)-$H$2 ->  | O128: =IF('Clean Columns'!$Z$60=1,Beams!C128+'Clean Columns'!$AD$62,Beams!C128-Beams!E128) ->  | P128: 197
A129: W14X455 | B129: 134 | C129: 19 | D129: 16.8 | E129: 3.21 | F129: 3.81 | G129: 936 | H129: 42120 | I129: 124 | J129: 113.9962001 | K129: -113.9962001 | L129: -113.9962001 | M129: 113.9962001 | N129: =IF('Clean Columns'!$Z$57,J129-K129,J129)-$H$2 -> 227.9924003 | O129: =IF('Clean Columns'!$Z$60=1,Beams!C129+'Clean Columns'!$AD$62,Beams!C129-Beams!E129) -> 15.79 | P129: 196
A130: W14X500 | B130: 147 | C130: 19.6 | D130: 17 | E130: 3.5 | F130: 4.1 | G130: 1050 | H130: 47250 | I130: 125 | J130: 111.8012422 | K130: -111.8012422 | L130: -111.8012422 | M130: 111.8012422 | N130: =IF('Clean Columns'!$Z$57,J130-K130,J130)-$H$2 -> 223.6024845 | O130: =IF('Clean Columns'!$Z$60=1,Beams!C130+'Clean Columns'!$AD$62,Beams!C130-Beams!E130) -> 16.1 | P130: 195
A131: W14X550 | B131: 162 | C131: 20.2 | D131: 17.2 | E131: 3.82 | F131: 4.42 | G131: 1180 | H131: 53100 | I131: 126 | J131: 109.8901099 | K131: -109.8901099 | L131: -109.8901099 | M131: 109.8901099 | N131: =IF('Clean Columns'!$Z$57,J131-K131,J131)-$H$2 -> 219.7802198 | O131: =IF('Clean Columns'!$Z$60=1,Beams!C131+'Clean Columns'!$AD$62,Beams!C131-Beams!E131) -> 16.38 | P131: 194
A132: W14X605 | B132: 178 | C132: 20.9 | D132: 17.4 | E132: 4.16 | F132: 4.76 | G132: 1320 | H132: 59400 | I132: 127 | J132: 107.5268817 | K132: -107.5268817 | L132: -107.5268817 | M132: 107.5268817 | N132: =IF('Clean Columns'!$Z$57,J132-K132,J132)-$H$2 -> 215.0537634 | O132: =IF('Clean Columns'!$Z$60=1,Beams!C132+'Clean Columns'!$AD$62,Beams!C132-Beams!E132) -> 16.74 | P132: 193
A133: W14X665 | B133: 196 | C133: 21.6 | D133: 17.7 | E133: 4.52 | F133: 5.12 | G133: 1480 | H133: 66600 | I133: 128 | J133: 105.3864169 | K133: -105.3864169 | L133: -105.3864169 | M133: 105.3864169 | N133: =IF('Clean Columns'!$Z$57,J133-K133,J133)-$H$2 -> 210.7728337 | O133: =IF('Clean Columns'!$Z$60=1,Beams!C133+'Clean Columns'!$AD$62,Beams!C133-Beams!E133) -> 17.08 | P133: 192
A134: W14X730 | B134: 215 | C134: 22.4 | D134: 17.9 | E134: 4.91 | F134: 5.51 | G134: 1660 | H134: 74700 | I134: 129 | J134: 102.915952 | K134: -102.915952 | L134: -102.915952 | M134: 102.915952 | N134: =IF('Clean Columns'!$Z$57,J134-K134,J134)-$H$2 -> 205.8319039 | O134: =IF('Clean Columns'!$Z$60=1,Beams!C134+'Clean Columns'!$AD$62,Beams!C134-Beams!E134) -> 17.49 | P134: 191
H135: =0.9*$C$2*G135 ->  | I135: 130 | N135: =IF('Clean Columns'!$Z$57,J135-K135,J135)-$H$2 ->  | O135: =IF('Clean Columns'!$Z$60=1,Beams!C135+'Clean Columns'!$AD$62,Beams!C135-Beams!E135) ->  | P135: 190
B136: =VLOOKUP($A136,_xlnm.DataBase,B$3,FALSE) ->  | I136: 131 | N136: =IF('Clean Columns'!$Z$57,J136-K136,J136)-$H$2 ->  | O136: =IF('Clean Columns'!$Z$60=1,Beams!C136+'Clean Columns'!$AD$62,Beams!C136-Beams!E136) ->  | P136: 189
A137: W16X26 | B137: 7.68 | C137: 15.7 | D137: 5.5 | E137: 0.345 | F137: 0.747 | G137: 44.2 | H137: 1989 | I137: =I136+1 -> 132 | J137: =$H$1/2+($C$1*12)/O137 -> 117.2256594 | K137: =$J$1/2-($E$1*12)/O137 -> -117.2256594 | L137: =$H$1/2-($C$1*12)/O137 -> -117.2256594 | M137: =$J$1/2+($E$1*12)/O137 -> 117.2256594 | N137: =IF('Clean Columns'!$Z$57,J137-K137,J137)-$H$2 -> 234.4513188 | O137: =IF('Clean Columns'!$Z$60=1,Beams!C137+'Clean Columns'!$AD$62,Beams!C137-Beams!E137) -> 15.355 | P137: =P136-1 -> 188
A138: W16X31 | B138: 9.13 | C138: 15.9 | D138: 5.53 | E138: 0.44 | F138: 0.842 | G138: 54 | H138: 2430 | I138: 133 | J138: 116.4294955 | K138: -116.4294955 | L138: -116.4294955 | M138: 116.4294955 | N138: =IF('Clean Columns'!$Z$57,J138-K138,J138)-$H$2 -> 232.8589909 | O138: =IF('Clean Columns'!$Z$60=1,Beams!C138+'Clean Columns'!$AD$62,Beams!C138-Beams!E138) -> 15.46 | P138: 187
I139: 134 | N139: =IF('Clean Columns'!$Z$57,J139-K139,J139)-$H$2 ->  | O139: =IF('Clean Columns'!$Z$60=1,Beams!C139+'Clean Columns'!$AD$62,Beams!C139-Beams!E139) ->  | P139: 186
A140: W16X36 | B140: 10.6 | C140: 15.9 | D140: 6.99 | E140: 0.43 | F140: 0.832 | G140: 64 | H140: 2880 | I140: 135 | J140: 116.354234 | K140: -116.354234 | L140: -116.354234 | M140: 116.354234 | N140: =IF('Clean Columns'!$Z$57,J140-K140,J140)-$H$2 -> 232.708468 | O140: =IF('Clean Columns'!$Z$60=1,Beams!C140+'Clean Columns'!$AD$62,Beams!C140-Beams!E140) -> 15.47 | P140: 185
A141: W16X40 | B141: 11.8 | C141: 16 | D141: 7 | E141: 0.505 | F141: 0.907 | G141: 73 | H141: 3285 | I141: 136 | J141: 116.1665053 | K141: -116.1665053 | L141: -116.1665053 | M141: 116.1665053 | N141: =IF('Clean Columns'!$Z$57,J141-K141,J141)-$H$2 -> 232.3330106 | O141: =IF('Clean Columns'!$Z$60=1,Beams!C141+'Clean Columns'!$AD$62,Beams!C141-Beams!E141) -> 15.495 | P141: 184
A142: W16X45 | B142: 13.3 | C142: 16.1 | D142: 7.04 | E142: 0.565 | F142: 0.967 | G142: 82.3 | H142: 3703.5 | I142: 137 | J142: 115.8673962 | K142: -115.8673962 | L142: -115.8673962 | M142: 115.8673962 | N142: =IF('Clean Columns'!$Z$57,J142-K142,J142)-$H$2 -> 231.7347924 | O142: =IF('Clean Columns'!$Z$60=1,Beams!C142+'Clean Columns'!$AD$62,Beams!C142-Beams!E142) -> 15.535 | P142: 183
A143: W16X50 | B143: 14.7 | C143: 16.3 | D143: 7.07 | E143: 0.63 | F143: 1.03 | G143: 92 | H143: 4140 | I143: 138 | J143: 114.8691768 | K143: -114.8691768 | L143: -114.8691768 | M143: 114.8691768 | N143: =IF('Clean Columns'!$Z$57,J143-K143,J143)-$H$2 -> 229.7383535 | O143: =IF('Clean Columns'!$Z$60=1,Beams!C143+'Clean Columns'!$AD$62,Beams!C143-Beams!E143) -> 15.67 | P143: 182
A144: W16X57 | B144: 16.8 | C144: 16.4 | D144: 7.12 | E144: 0.715 | F144: 1.12 | G144: 105 | H144: 4725 | I144: 139 | J144: 114.7593242 | K144: -114.7593242 | L144: -114.7593242 | M144: 114.7593242 | N144: =IF('Clean Columns'!$Z$57,J144-K144,J144)-$H$2 -> 229.5186484 | O144: =IF('Clean Columns'!$Z$60=1,Beams!C144+'Clean Columns'!$AD$62,Beams!C144-Beams!E144) -> 15.685 | P144: 181
I145: 140 | N145: =IF('Clean Columns'!$Z$57,J145-K145,J145)-$H$2 ->  | O145: =IF('Clean Columns'!$Z$60=1,Beams!C145+'Clean Columns'!$AD$62,Beams!C145-Beams!E145) ->  | P145: 180
A146: W16X67 | B146: =VLOOKUP($A146,_xlnm.DataBase,B$3,FALSE) -> 19.6 | C146: 16.3 | D146: 10.2 | E146: 0.665 | F146: 1.07 | G146: 130 | H146: 5850 | I146: 141 | J146: 115.1263192 | K146: -115.1263192 | L146: -115.1263192 | M146: 115.1263192 | N146: =IF('Clean Columns'!$Z$57,J146-K146,J146)-$H$2 -> 230.2526383 | O146: =IF('Clean Columns'!$Z$60=1,Beams!C146+'Clean Columns'!$AD$62,Beams!C146-Beams!E146) -> 15.635 | P146: 179
A147: W16X77 | B147: 22.6 | C147: 16.5 | D147: 10.3 | E147: 0.76 | F147: 1.16 | G147: 150 | H147: 6750 | I147: 142 | J147: 114.3583227 | K147: -114.3583227 | L147: -114.3583227 | M147: 114.3583227 | N147: =IF('Clean Columns'!$Z$57,J147-K147,J147)-$H$2 -> 228.7166455 | O147: =IF('Clean Columns'!$Z$60=1,Beams!C147+'Clean Columns'!$AD$62,Beams!C147-Beams!E147) -> 15.74 | P147: 178
A148: W16X89 | B148: 26.2 | C148: 16.8 | D148: 10.4 | E148: 0.875 | F148: 1.28 | G148: 175 | H148: 7875 | I148: 143 | J148: 113.0298273 | K148: -113.0298273 | L148: -113.0298273 | M148: 113.0298273 | N148: =IF('Clean Columns'!$Z$57,J148-K148,J148)-$H$2 -> 226.0596546 | O148: =IF('Clean Columns'!$Z$60=1,Beams!C148+'Clean Columns'!$AD$62,Beams!C148-Beams!E148) -> 15.925 | P148: 177
A149: W16X100 | B149: 29.4 | C149: 17 | D149: 10.4 | E149: 0.985 | F149: 1.39 | G149: 198 | H149: 8910 | I149: 144 | J149: 112.39463 | K149: -112.39463 | L149: -112.39463 | M149: 112.39463 | N149: =IF('Clean Columns'!$Z$57,J149-K149,J149)-$H$2 -> 224.7892601 | O149: =IF('Clean Columns'!$Z$60=1,Beams!C149+'Clean Columns'!$AD$62,Beams!C149-Beams!E149) -> 16.015 | P149: 176
I150: 145 | N150: =IF('Clean Columns'!$Z$57,J150-K150,J150)-$H$2 ->  | O150: =IF('Clean Columns'!$Z$60=1,Beams!C150+'Clean Columns'!$AD$62,Beams!C150-Beams!E150) ->  | P150: 175
A151: W18X35 | B151: 10.3 | C151: 17.7 | D151: 6 | E151: 0.425 | F151: 0.827 | G151: 66.5 | H151: 2992.5 | I151: 146 | J151: 104.1968162 | K151: -104.1968162 | L151: -104.1968162 | M151: 104.1968162 | N151: =IF('Clean Columns'!$Z$57,J151-K151,J151)-$H$2 -> 208.3936324 | O151: =IF('Clean Columns'!$Z$60=1,Beams!C151+'Clean Columns'!$AD$62,Beams!C151-Beams!E151) -> 17.275 | P151: 174
A152: W18X40 | B152: 11.8 | C152: 17.9 | D152: 6.02 | E152: 0.525 | F152: 0.927 | G152: 78.4 | H152: 3528 | I152: 147 | J152: 103.5971223 | K152: -103.5971223 | L152: -103.5971223 | M152: 103.5971223 | N152: =IF('Clean Columns'!$Z$57,J152-K152,J152)-$H$2 -> 207.1942446 | O152: =IF('Clean Columns'!$Z$60=1,Beams!C152+'Clean Columns'!$AD$62,Beams!C152-Beams!E152) -> 17.375 | P152: 173
A153: W18X46 | B153: 13.5 | C153: 18.1 | D153: 6.06 | E153: 0.605 | F153: 1.01 | G153: 90.7 | H153: 4081.5 | I153: 148 | J153: 102.886539 | K153: -102.886539 | L153: -102.886539 | M153: 102.886539 | N153: =IF('Clean Columns'!$Z$57,J153-K153,J153)-$H$2 -> 205.773078 | O153: =IF('Clean Columns'!$Z$60=1,Beams!C153+'Clean Columns'!$AD$62,Beams!C153-Beams!E153) -> 17.495 | P153: 172
I154: 149 | N154: =IF('Clean Columns'!$Z$57,J154-K154,J154)-$H$2 ->  | O154: =IF('Clean Columns'!$Z$60=1,Beams!C154+'Clean Columns'!$AD$62,Beams!C154-Beams!E154) ->  | P154: 171
A155: W18X50 | B155: 14.7 | C155: 18 | D155: 7.5 | E155: 0.57 | F155: 0.972 | G155: 101 | H155: 4545 | I155: 150 | J155: 103.2702238 | K155: -103.2702238 | L155: -103.2702238 | M155: 103.2702238 | N155: =IF('Clean Columns'!$Z$57,J155-K155,J155)-$H$2 -> 206.5404475 | O155: =IF('Clean Columns'!$Z$60=1,Beams!C155+'Clean Columns'!$AD$62,Beams!C155-Beams!E155) -> 17.43 | P155: 170
A156: W18X55 | B156: =VLOOKUP($A156,_xlnm.DataBase,B$3,FALSE) -> 16.2 | C156: 18.1 | D156: 7.53 | E156: 0.63 | F156: 1.03 | G156: 112 | H156: 5040 | I156: 151 | J156: 103.0337722 | K156: -103.0337722 | L156: -103.0337722 | M156: 103.0337722 | N156: =IF('Clean Columns'!$Z$57,J156-K156,J156)-$H$2 -> 206.0675444 | O156: =IF('Clean Columns'!$Z$60=1,Beams!C156+'Clean Columns'!$AD$62,Beams!C156-Beams!E156) -> 17.47 | P156: 169
A157: W18X60 | B157: 17.6 | C157: 18.2 | D157: 7.56 | E157: 0.695 | F157: 1.1 | G157: 123 | H157: 5535 | I157: 152 | J157: 102.8277635 | K157: -102.8277635 | L157: -102.8277635 | M157: 102.8277635 | N157: =IF('Clean Columns'!$Z$57,J157-K157,J157)-$H$2 -> 205.655527 | O157: =IF('Clean Columns'!$Z$60=1,Beams!C157+'Clean Columns'!$AD$62,Beams!C157-Beams!E157) -> 17.505 | P157: 168
A158: W18X65 | B158: 19.1 | C158: 18.4 | D158: 7.59 | E158: 0.75 | F158: 1.15 | G158: 133 | H158: 5985 | I158: 153 | J158: 101.9830028 | K158: -101.9830028 | L158: -101.9830028 | M158: 101.9830028 | N158: =IF('Clean Columns'!$Z$57,J158-K158,J158)-$H$2 -> 203.9660057 | O158: =IF('Clean Columns'!$Z$60=1,Beams!C158+'Clean Columns'!$AD$62,Beams!C158-Beams!E158) -> 17.65 | P158: 167
A159: W18X71 | B159: 20.9 | C159: 18.5 | D159: 7.64 | E159: 0.81 | F159: 1.21 | G159: 146 | H159: 6570 | I159: 154 | J159: 101.7524025 | K159: -101.7524025 | L159: -101.7524025 | M159: 101.7524025 | N159: =IF('Clean Columns'!$Z$57,J159-K159,J159)-$H$2 -> 203.504805 | O159: =IF('Clean Columns'!$Z$60=1,Beams!C159+'Clean Columns'!$AD$62,Beams!C159-Beams!E159) -> 17.69 | P159: 166
I160: 155 | N160: =IF('Clean Columns'!$Z$57,J160-K160,J160)-$H$2 ->  | O160: =IF('Clean Columns'!$Z$60=1,Beams!C160+'Clean Columns'!$AD$62,Beams!C160-Beams!E160) ->  | P160: 165
A161: W18X76 | B161: 22.3 | C161: 18.2 | D161: 11 | E161: 0.68 | F161: 1.08 | G161: 163 | H161: 7335 | I161: 156 | J161: 102.739726 | K161: -102.739726 | L161: -102.739726 | M161: 102.739726 | N161: =IF('Clean Columns'!$Z$57,J161-K161,J161)-$H$2 -> 205.4794521 | O161: =IF('Clean Columns'!$Z$60=1,Beams!C161+'Clean Columns'!$AD$62,Beams!C161-Beams!E161) -> 17.52 | P161: 164
A162: W18X86 | B162: 25.3 | C162: 18.4 | D162: 11.1 | E162: 0.77 | F162: 1.17 | G162: 186 | H162: 8370 | I162: 157 | J162: 102.0986954 | K162: -102.0986954 | L162: -102.0986954 | M162: 102.0986954 | N162: =IF('Clean Columns'!$Z$57,J162-K162,J162)-$H$2 -> 204.1973908 | O162: =IF('Clean Columns'!$Z$60=1,Beams!C162+'Clean Columns'!$AD$62,Beams!C162-Beams!E162) -> 17.63 | P162: 163
A163: W18X97 | B163: 28.5 | C163: 18.6 | D163: 11.1 | E163: 0.87 | F163: 1.27 | G163: 211 | H163: 9495 | I163: 158 | J163: 101.5228426 | K163: -101.5228426 | L163: -101.5228426 | M163: 101.5228426 | N163: =IF('Clean Columns'!$Z$57,J163-K163,J163)-$H$2 -> 203.0456853 | O163: =IF('Clean Columns'!$Z$60=1,Beams!C163+'Clean Columns'!$AD$62,Beams!C163-Beams!E163) -> 17.73 | P163: 162
A164: W18X106 | B164: 31.1 | C164: 18.7 | D164: 11.2 | E164: 0.94 | F164: 1.34 | G164: 230 | H164: 10350 | I164: 159 | J164: 101.3513514 | K164: -101.3513514 | L164: -101.3513514 | M164: 101.3513514 | N164: =IF('Clean Columns'!$Z$57,J164-K164,J164)-$H$2 -> 202.7027027 | O164: =IF('Clean Columns'!$Z$60=1,Beams!C164+'Clean Columns'!$AD$62,Beams!C164-Beams!E164) -> 17.76 | P164: 161
A165: W18X119 | B165: 35.1 | C165: 19 | D165: 11.3 | E165: 1.06 | F165: 1.46 | G165: 262 | H165: 11790 | I165: 160 | J165: 100.3344482 | K165: -100.3344482 | L165: -100.3344482 | M165: 100.3344482 | N165: =IF('Clean Columns'!$Z$57,J165-K165,J165)-$H$2 -> 200.6688963 | O165: =IF('Clean Columns'!$Z$60=1,Beams!C165+'Clean Columns'!$AD$62,Beams!C165-Beams!E165) -> 17.94 | P165: 160
A166: W18X130 | B166: =VLOOKUP($A166,_xlnm.DataBase,B$3,FALSE) -> 38.3 | C166: 19.3 | D166: 11.2 | E166: 1.2 | F166: 1.6 | G166: 290 | H166: 13050 | I166: 161 | J166: 99.44751381 | K166: -99.44751381 | L166: -99.44751381 | M166: 99.44751381 | N166: =IF('Clean Columns'!$Z$57,J166-K166,J166)-$H$2 -> 198.8950276 | O166: =IF('Clean Columns'!$Z$60=1,Beams!C166+'Clean Columns'!$AD$62,Beams!C166-Beams!E166) -> 18.1 | P166: 159
A167: W18X143 | B167: 42 | C167: 19.5 | D167: 11.2 | E167: 1.32 | F167: 1.72 | G167: 322 | H167: 14490 | I167: 162 | J167: 99.00990099 | K167: -99.00990099 | L167: -99.00990099 | M167: 99.00990099 | N167: =IF('Clean Columns'!$Z$57,J167-K167,J167)-$H$2 -> 198.019802 | O167: =IF('Clean Columns'!$Z$60=1,Beams!C167+'Clean Columns'!$AD$62,Beams!C167-Beams!E167) -> 18.18 | P167: 158
A168: W18X158 | B168: 46.3 | C168: 19.7 | D168: 11.3 | E168: 1.44 | F168: 1.84 | G168: 356 | H168: 16020 | I168: 163 | J168: 98.57612267 | K168: -98.57612267 | L168: -98.57612267 | M168: 98.57612267 | N168: =IF('Clean Columns'!$Z$57,J168-K168,J168)-$H$2 -> 197.1522453 | O168: =IF('Clean Columns'!$Z$60=1,Beams!C168+'Clean Columns'!$AD$62,Beams!C168-Beams!E168) -> 18.26 | P168: 157
A169: W18X175 | B169: 51.4 | C169: 20 | D169: 11.4 | E169: 1.59 | F169: 1.99 | G169: 398 | H169: 17910 | I169: 164 | J169: 97.77294948 | K169: -97.77294948 | L169: -97.77294948 | M169: 97.77294948 | N169: =IF('Clean Columns'!$Z$57,J169-K169,J169)-$H$2 -> 195.545899 | O169: =IF('Clean Columns'!$Z$60=1,Beams!C169+'Clean Columns'!$AD$62,Beams!C169-Beams!E169) -> 18.41 | P169: 156
A170: W18X192 | B170: 56.2 | C170: 20.4 | D170: 11.5 | E170: 1.75 | F170: 2.15 | G170: 442 | H170: 19890 | I170: 165 | J170: 96.51474531 | K170: -96.51474531 | L170: -96.51474531 | M170: 96.51474531 | N170: =IF('Clean Columns'!$Z$57,J170-K170,J170)-$H$2 -> 193.0294906 | O170: =IF('Clean Columns'!$Z$60=1,Beams!C170+'Clean Columns'!$AD$62,Beams!C170-Beams!E170) -> 18.65 | P170: 155
A171: W18X211 | B171: 62.3 | C171: 20.7 | D171: 11.6 | E171: 1.91 | F171: 2.31 | G171: 490 | H171: 22050 | I171: 166 | J171: 95.79563598 | K171: -95.79563598 | L171: -95.79563598 | M171: 95.79563598 | N171: =IF('Clean Columns'!$Z$57,J171-K171,J171)-$H$2 -> 191.591272 | O171: =IF('Clean Columns'!$Z$60=1,Beams!C171+'Clean Columns'!$AD$62,Beams!C171-Beams!E171) -> 18.79 | P171: 154
A172: W18X234 | B172: 68.6 | C172: 21.1 | D172: 11.7 | E172: 2.11 | F172: 2.51 | G172: 549 | H172: 24705 | I172: 167 | J172: 94.78672986 | K172: -94.78672986 | L172: -94.78672986 | M172: 94.78672986 | N172: =IF('Clean Columns'!$Z$57,J172-K172,J172)-$H$2 -> 189.5734597 | O172: =IF('Clean Columns'!$Z$60=1,Beams!C172+'Clean Columns'!$AD$62,Beams!C172-Beams!E172) -> 18.99 | P172: 153
A173: W18X258 | B173: 76 | C173: 21.5 | D173: 11.8 | E173: 2.3 | F173: 2.7 | G173: 611 | H173: 27495 | I173: 168 | J173: 93.75 | K173: -93.75 | L173: -93.75 | M173: 93.75 | N173: =IF('Clean Columns'!$Z$57,J173-K173,J173)-$H$2 -> 187.5 | O173: =IF('Clean Columns'!$Z$60=1,Beams!C173+'Clean Columns'!$AD$62,Beams!C173-Beams!E173) -> 19.2 | P173: 152
A174: W18X283 | B174: 83.3 | C174: 21.9 | D174: 11.9 | E174: 2.5 | F174: 3 | G174: 676 | H174: 30420 | I174: 169 | J174: 92.78350515 | K174: -92.78350515 | L174: -92.78350515 | M174: 92.78350515 | N174: =IF('Clean Columns'!$Z$57,J174-K174,J174)-$H$2 -> 185.5670103 | O174: =IF('Clean Columns'!$Z$60=1,Beams!C174+'Clean Columns'!$AD$62,Beams!C174-Beams!E174) -> 19.4 | P174: 151
A175: W18X311 | B175: 91.6 | C175: 22.3 | D175: 12 | E175: 2.74 | F175: 3.24 | G175: 754 | H175: 33930 | I175: 170 | J175: 92.02453988 | K175: -92.02453988 | L175: -92.02453988 | M175: 92.02453988 | N175: =IF('Clean Columns'!$Z$57,J175-K175,J175)-$H$2 -> 184.0490798 | O175: =IF('Clean Columns'!$Z$60=1,Beams!C175+'Clean Columns'!$AD$62,Beams!C175-Beams!E175) -> 19.56 | P175: 150
B176: =VLOOKUP($A176,_xlnm.DataBase,B$3,FALSE) ->  | I176: 171 | N176: =IF('Clean Columns'!$Z$57,J176-K176,J176)-$H$2 ->  | O176: =IF('Clean Columns'!$Z$60=1,Beams!C176+'Clean Columns'!$AD$62,Beams!C176-Beams!E176) ->  | P176: 149
A177: W21X44 | B177: 13 | C177: 20.7 | D177: 6.5 | E177: 0.45 | F177: 0.95 | G177: 95.4 | H177: 4293 | I177: 172 | J177: 88.88888889 | K177: -88.88888889 | L177: -88.88888889 | M177: 88.88888889 | N177: =IF('Clean Columns'!$Z$57,J177-K177,J177)-$H$2 -> 177.7777778 | O177: =IF('Clean Columns'!$Z$60=1,Beams!C177+'Clean Columns'!$AD$62,Beams!C177-Beams!E177) -> 20.25 | P177: 148
A178: W21X50 | B178: 14.7 | C178: 20.8 | D178: 6.53 | E178: 0.535 | F178: 1.04 | G178: 110 | H178: 4950 | I178: 173 | J178: 88.823094 | K178: -88.823094 | L178: -88.823094 | M178: 88.823094 | N178: =IF('Clean Columns'!$Z$57,J178-K178,J178)-$H$2 -> 177.646188 | O178: =IF('Clean Columns'!$Z$60=1,Beams!C178+'Clean Columns'!$AD$62,Beams!C178-Beams!E178) -> 20.265 | P178: 147
A179: W21X57 | B179: 16.7 | C179: 21.1 | D179: 6.56 | E179: 0.65 | F179: 1.15 | G179: 129 | H179: 5805 | I179: 174 | J179: 88.0195599 | K179: -88.0195599 | L179: -88.0195599 | M179: 88.0195599 | N179: =IF('Clean Columns'!$Z$57,J179-K179,J179)-$H$2 -> 176.0391198 | O179: =IF('Clean Columns'!$Z$60=1,Beams!C179+'Clean Columns'!$AD$62,Beams!C179-Beams!E179) -> 20.45 | P179: 146
I180: 175 | N180: =IF('Clean Columns'!$Z$57,J180-K180,J180)-$H$2 ->  | O180: =IF('Clean Columns'!$Z$60=1,Beams!C180+'Clean Columns'!$AD$62,Beams!C180-Beams!E180) ->  | P180: 145
A181: W21X48 | B181: 14.1 | C181: 20.6 | D181: 8.14 | E181: 0.43 | F181: 0.93 | G181: 107 | H181: 4815 | I181: 176 | J181: 89.24144769 | K181: -89.24144769 | L181: -89.24144769 | M181: 89.24144769 | N181: =IF('Clean Columns'!$Z$57,J181-K181,J181)-$H$2 -> 178.4828954 | O181: =IF('Clean Columns'!$Z$60=1,Beams!C181+'Clean Columns'!$AD$62,Beams!C181-Beams!E181) -> 20.17 | P181: 144
A182: W21X55 | B182: 16.2 | C182: 20.8 | D182: 8.22 | E182: 0.522 | F182: 1.02 | G182: 126 | H182: 5670 | I182: 177 | J182: =$H$1/2+($C$1*12)/O182 -> 88.76615051 | K182: -88.76615051 | L182: -88.76615051 | M182: 88.76615051 | N182: =IF('Clean Columns'!$Z$57,J182-K182,J182)-$H$2 -> 177.532301 | O182: =IF('Clean Columns'!$Z$60=1,Beams!C182+'Clean Columns'!$AD$62,Beams!C182-Beams!E182) -> 20.278 | P182: 143
A183: W21X62 | B183: 18.3 | C183: 21 | D183: 8.24 | E183: 0.615 | F183: 1.12 | G183: 144 | H183: 6480 | I183: 178 | J183: 88.30022075 | K183: -88.30022075 | L183: -88.30022075 | M183: 88.30022075 | N183: =IF('Clean Columns'!$Z$57,J183-K183,J183)-$H$2 -> 176.6004415 | O183: =IF('Clean Columns'!$Z$60=1,Beams!C183+'Clean Columns'!$AD$62,Beams!C183-Beams!E183) -> 20.385 | P183: 142
A184: W21X68 | B184: 20 | C184: 21.1 | D184: 8.27 | E184: 0.685 | F184: 1.19 | G184: 160 | H184: 7200 | I184: 179 | J184: 88.17046289 | K184: -88.17046289 | L184: -88.17046289 | M184: 88.17046289 | N184: =IF('Clean Columns'!$Z$57,J184-K184,J184)-$H$2 -> 176.3409258 | O184: =IF('Clean Columns'!$Z$60=1,Beams!C184+'Clean Columns'!$AD$62,Beams!C184-Beams!E184) -> 20.415 | P184: 141
A185: W21X73 | B185: 21.5 | C185: 21.2 | D185: 8.3 | E185: 0.74 | F185: 1.24 | G185: 172 | H185: 7740 | I185: 180 | J185: 87.97653959 | K185: -87.97653959 | L185: -87.97653959 | M185: 87.97653959 | N185: =IF('Clean Columns'!$Z$57,J185-K185,J185)-$H$2 -> 175.9530792 | O185: =IF('Clean Columns'!$Z$60=1,Beams!C185+'Clean Columns'!$AD$62,Beams!C185-Beams!E185) -> 20.46 | P185: 140
A186: W21X83 | B186: =VLOOKUP($A186,_xlnm.DataBase,B$3,FALSE) -> 24.4 | C186: 21.4 | D186: 8.36 | E186: 0.835 | F186: 1.34 | G186: 196 | H186: 8820 | I186: 181 | J186: 87.5273523 | K186: -87.5273523 | L186: -87.5273523 | M186: 87.5273523 | N186: =IF('Clean Columns'!$Z$57,J186-K186,J186)-$H$2 -> 175.0547046 | O186: =IF('Clean Columns'!$Z$60=1,Beams!C186+'Clean Columns'!$AD$62,Beams!C186-Beams!E186) -> 20.565 | P186: 139
A187: W21X93 | B187: 27.3 | C187: 21.6 | D187: 8.42 | E187: 0.93 | F187: 1.43 | G187: 221 | H187: 9945 | I187: 182 | J187: 87.08272859 | K187: -87.08272859 | L187: -87.08272859 | M187: 87.08272859 | N187: =IF('Clean Columns'!$Z$57,J187-K187,J187)-$H$2 -> 174.1654572 | O187: =IF('Clean Columns'!$Z$60=1,Beams!C187+'Clean Columns'!$AD$62,Beams!C187-Beams!E187) -> 20.67 | P187: 138
I188: 183 | N188: =IF('Clean Columns'!$Z$57,J188-K188,J188)-$H$2 ->  | O188: =IF('Clean Columns'!$Z$60=1,Beams!C188+'Clean Columns'!$AD$62,Beams!C188-Beams!E188) ->  | P188: 137
A189: W21X101 | B189: 29.8 | C189: 21.4 | D189: 12.3 | E189: 0.8 | F189: 1.3 | G189: 253 | H189: 11385 | I189: 184 | J189: 87.37864078 | K189: -87.37864078 | L189: -87.37864078 | M189: 87.37864078 | N189: =IF('Clean Columns'!$Z$57,J189-K189,J189)-$H$2 -> 174.7572816 | O189: =IF('Clean Columns'!$Z$60=1,Beams!C189+'Clean Columns'!$AD$62,Beams!C189-Beams!E189) -> 20.6 | P189: 136
A190: W21X111 | B190: 32.6 | C190: 21.5 | D190: 12.3 | E190: 0.875 | F190: 1.38 | G190: 279 | H190: 12555 | I190: 185 | J190: 87.27272727 | K190: -87.27272727 | L190: -87.27272727 | M190: 87.27272727 | N190: =IF('Clean Columns'!$Z$57,J190-K190,J190)-$H$2 -> 174.5454545 | O190: =IF('Clean Columns'!$Z$60=1,Beams!C190+'Clean Columns'!$AD$62,Beams!C190-Beams!E190) -> 20.625 | P190: 135
A191: W21X122 | B191: 35.9 | C191: 21.7 | D191: 12.4 | E191: 0.96 | F191: 1.46 | G191: 307 | H191: 13815 | I191: 186 | J191: 86.78881389 | K191: -86.78881389 | L191: -86.78881389 | M191: 86.78881389 | N191: =IF('Clean Columns'!$Z$57,J191-K191,J191)-$H$2 -> 173.5776278 | O191: =IF('Clean Columns'!$Z$60=1,Beams!C191+'Clean Columns'!$AD$62,Beams!C191-Beams!E191) -> 20.74 | P191: 134
A192: W21X132 | B192: 38.8 | C192: 21.8 | D192: 12.4 | E192: 1.04 | F192: 1.54 | G192: 333 | H192: 14985 | I192: 187 | J192: 86.70520231 | K192: -86.70520231 | L192: -86.70520231 | M192: 86.70520231 | N192: =IF('Clean Columns'!$Z$57,J192-K192,J192)-$H$2 -> 173.4104046 | O192: =IF('Clean Columns'!$Z$60=1,Beams!C192+'Clean Columns'!$AD$62,Beams!C192-Beams!E192) -> 20.76 | P192: 133
A193: W21X147 | B193: 43.2 | C193: 22.1 | D193: 12.5 | E193: 1.15 | F193: 1.65 | G193: 373 | H193: 16785 | I193: 188 | J193: 85.91885442 | K193: -85.91885442 | L193: -85.91885442 | M193: 85.91885442 | N193: =IF('Clean Columns'!$Z$57,J193-K193,J193)-$H$2 -> 171.8377088 | O193: =IF('Clean Columns'!$Z$60=1,Beams!C193+'Clean Columns'!$AD$62,Beams!C193-Beams!E193) -> 20.95 | P193: 132
A194: W21X166 | B194: 48.8 | C194: 22.5 | D194: 12.4 | E194: 1.36 | F194: 1.86 | G194: 432 | H194: 19440 | I194: 189 | J194: 85.14664144 | K194: -85.14664144 | L194: -85.14664144 | M194: 85.14664144 | N194: =IF('Clean Columns'!$Z$57,J194-K194,J194)-$H$2 -> 170.2932829 | O194: =IF('Clean Columns'!$Z$60=1,Beams!C194+'Clean Columns'!$AD$62,Beams!C194-Beams!E194) -> 21.14 | P194: 131
A195: W21X182 | B195: 53.6 | C195: 22.7 | D195: 12.5 | E195: 1.48 | F195: 1.98 | G195: 476 | H195: 21420 | I195: 190 | J195: 84.82563619 | K195: -84.82563619 | L195: -84.82563619 | M195: 84.82563619 | N195: =IF('Clean Columns'!$Z$57,J195-K195,J195)-$H$2 -> 169.6512724 | O195: =IF('Clean Columns'!$Z$60=1,Beams!C195+'Clean Columns'!$AD$62,Beams!C195-Beams!E195) -> 21.22 | P195: 130
A196: W21X201 | B196: =VLOOKUP($A196,_xlnm.DataBase,B$3,FALSE) -> 59.3 | C196: 23 | D196: 12.6 | E196: 1.63 | F196: 2.13 | G196: 530 | H196: 23850 | I196: 191 | J196: 84.23022929 | K196: -84.23022929 | L196: -84.23022929 | M196: 84.23022929 | N196: =IF('Clean Columns'!$Z$57,J196-K196,J196)-$H$2 -> 168.4604586 | O196: =IF('Clean Columns'!$Z$60=1,Beams!C196+'Clean Columns'!$AD$62,Beams!C196-Beams!E196) -> 21.37 | P196: 129
I197: 192 | N197: =IF('Clean Columns'!$Z$57,J197-K197,J197)-$H$2 ->  | O197: =IF('Clean Columns'!$Z$60=1,Beams!C197+'Clean Columns'!$AD$62,Beams!C197-Beams!E197) ->  | P197: 128
A198: W24X55 | B198: 16.2 | C198: 23.6 | D198: 7.01 | E198: 0.505 | F198: 1.01 | G198: 134 | H198: 6030 | I198: 193 | J198: 77.93894782 | K198: -77.93894782 | L198: -77.93894782 | M198: 77.93894782 | N198: =IF('Clean Columns'!$Z$57,J198-K198,J198)-$H$2 -> 155.8778956 | O198: =IF('Clean Columns'!$Z$60=1,Beams!C198+'Clean Columns'!$AD$62,Beams!C198-Beams!E198) -> 23.095 | P198: 127
A199: W24X62 | B199: 18.2 | C199: 23.7 | D199: 7.04 | E199: 0.59 | F199: 1.09 | G199: 153 | H199: =0.9*$C$2*G199 -> 6885 | I199: 194 | J199: 77.88836002 | K199: -77.88836002 | L199: -77.88836002 | M199: 77.88836002 | N199: =IF('Clean Columns'!$Z$57,J199-K199,J199)-$H$2 -> 155.77672 | O199: =IF('Clean Columns'!$Z$60=1,Beams!C199+'Clean Columns'!$AD$62,Beams!C199-Beams!E199) -> 23.11 | P199: 126
I200: 195 | N200: =IF('Clean Columns'!$Z$57,J200-K200,J200)-$H$2 ->  | O200: =IF('Clean Columns'!$Z$60=1,Beams!C200+'Clean Columns'!$AD$62,Beams!C200-Beams!E200) ->  | P200: 125
... 124 more rows

Sheet Columns
A1: N= | B1: =IF('Clean Columns'!Z60=1,'Clean Columns'!AD62,INDEX(Beams!E6:E324,'Clean Columns'!AD26)) -> 0.425 | C1: in | D1: Pu | E1: ='Clean Columns'!D30 -> 0 | F1: kips | G1: bfb = | H1: =INDEX(Beams!D6:D324,'Clean Columns'!AD26) -> 6 | I1: in | J1: tp = | K1: ='Clean Columns'!AD62 -> 0 | L1: in Yc = | M1: ='Clean Columns'!Z65 -> 170.1 | N1: in | O1: max without | P1: max without | Q1: max without | R1: max without | S1: max without
A2: Fy= | B2: ='Clean Columns'!D27 -> 50 | C2: ksi | D2: Fy | E2: =B2 -> 50 | F2: ksi, for LFB | G2: E = | H2: 29000 | I2: ksi | J2: Ten | K2: Ten+Comp | L2: Comp | M2: Comp | O2: Stiffener/Ten | P2: Stiffener/Comp | Q2: Doubler Pl | R2: Stiff & DPL | S2: Stiffener/Ten_Mnf
A3: Designation | B3: A | C3: d | D3: h | E3: tw | F3: tf | G3: bf | H3: kdes | I3: PZ Shear Str. | J3: LFB | K3: LWY | L3: WC | M3: CBW | O3: f Rn | P3: f Rn | Q3: f Rv | R3: f Rn | S3: f Rn | T3: Py
B4: in2 | C4: in. | D4: (d-2*k) | E4: in. | F4: in. | G4: in. | H4: in. | I4: fRv (kips) | J4: f Rn (kips) | K4: f Rn (kips) | L4: f Rn (kips) | M4: f Rn (kips) | O4: kips | P4: kips | Q4: kips | R4: kips | S4: kips | T4: kips
A5: W18X311 | B5: =VLOOKUP($A5,_xlnm.DataBase,HLOOKUP(B$3,DB_Headers,2,FALSE),FALSE) -> 91.6 | C5: 22.3 | D5: =C5-2*H5 -> 15.82 | E5: =VLOOKUP($A5,_xlnm.DataBase,HLOOKUP(E$3,DB_Headers,2,FALSE),FALSE) -> 1.52 | F5: 2.74 | G5: 12 | H5: 3.24 | I5: =IF('Clean Columns'!$Z$67=0,1,1/1.5)*(IF($E$1>0.4*T5,0.9*0.6*$B$2*C5*E5*(1.4-$E$1/T5),0.9*0.6*$B$2*C5*E5)) -> 915.192 | J5: =IF(OR('Clean Columns'!$Z$67=0,'Clean Columns'!$Z$60=2),1,1/1.5)*(IF('Clean Columns'!$Z$60=2,(0.9*$B$2*$M$1*F5^2)/(1.11*0.75)/12,IF($H$1/G5<0.15,1000000,IF(AND('Clean Columns'!$Z$58,'Clean Columns'!$Z$59<10*F5),0.9*6.25*F5^2*$B$2*0.5,0.9*6.25*F5^2*$B$2)))) -> 2111.5125 | K5: =IF('Clean Columns'!$Z$67=0,1,1/1.5)*IF('Clean Columns'!$Z$60=2,IF(AND('Clean Columns'!$Z$58,'Clean Columns'!$Z$59<C5),0.5,1)*(6*H5+$B$1+2*$K$1),IF(AND('Clean Columns'!$Z$58,'Clean Columns'!$Z$59<C5),0.5,1)*5*H5+$B$1)*$B$2*E5 -> 1263.5 | L5: =IF('Clean Columns'!$Z$67=0,1,1/1.5)*(IF(AND('Clean Columns'!$Z$58,'Clean Columns'!$Z$59<C5/2),(0.75*0.8*E5^2*(1+((IF($B$1/C5<=0.2,3*$B$1/C5,4*$B$1/C5-0.2))*(E5/F5)^1.5))*SQRT($H$2*$B$2*F5/E5))*0.5,0.75*0.8*E5^2*(1+((3*$B$1/C5)*(E5/F5)^1.5))*SQRT($H$2*$B$2*F5/E5))) -> 2294.120241 | M5: =IF('Clean Columns'!$Z$67=0,1,1/1.5)*(IF('Clean Columns'!$Z$57,IF(AND('Clean Columns'!$Z$58,'Clean Columns'!$Z$59<Columns!C5/2),0.9*24*(E5^3)*SQRT($H$2*$B$2)/D5*0.5,0.9*24*(E5^3)*SQRT($H$2*$B$2)/D5),1000000)) -> 5773.803999 | O5: =IF('Clean Columns'!$Z$60=2,Columns!K5,MIN(J5:K5)) -> 1263.5 | P5: =MIN(K5:M5) -> 1263.5 | Q5: =I5 -> 915.192 | R5: =MIN(O5:Q5) -> 915.192 | S5: =J5 -> 2111.5125 | T5: =B5*$B$2 -> 4580
A6: W18X283 | B6: 83.3 | C6: 21.9 | D6: =C6-2*H6 -> 15.9 | E6: 1.4 | F6: 2.5 | G6: 11.9 | H6: 3 | I6: =IF('Clean Columns'!$Z$67=0,1,1/1.5)*(IF($E$1>0.4*T6,0.9*0.6*$B$2*C6*E6*(1.4-$E$1/T6),0.9*0.6*$B$2*C6*E6)) -> 827.82 | J6: =IF(OR('Clean Columns'!$Z$67=0,'Clean Columns'!$Z$60=2),1,1/1.5)*(IF('Clean Columns'!$Z$60=2,(0.9*$B$2*$M$1*F6^2)/(1.11*0.75)/12,IF($H$1/G6<0.15,1000000,IF(AND('Clean Columns'!$Z$58,'Clean Columns'!$Z$59<10*F6),0.9*6.25*F6^2*$B$2*0.5,0.9*6.25*F6^2*$B$2)))) -> 1757.8125 | K6: =IF('Clean Columns'!$Z$67=0,1,1/1.5)*IF('Clean Columns'!$Z$60=2,IF(AND('Clean Columns'!$Z$58,'Clean Columns'!$Z$59<C6),0.5,1)*(6*H6+$B$1+2*$K$1),IF(AND('Clean Columns'!$Z$58,'Clean Columns'!$Z$59<C6),0.5,1)*5*H6+$B$1)*$B$2*E6 -> 1079.75 | L6: =IF('Clean Columns'!$Z$67=0,1,1/1.5)*(IF(AND('Clean Columns'!$Z$58,'Clean Columns'!$Z$59<C6/2),(0.75*0.8*E6^2*(1+((IF($B$1/C6<=0.2,3*$B$1/C6,4*$B$1/C6-0.2))*(E6/F6)^1.5))*SQRT($H$2*$B$2*F6/E6))*0.5,0.75*0.8*E6^2*(1+((3*$B$1/C6)*(E6/F6)^1.5))*SQRT($H$2*$B$2*F6/E6))) -> 1938.500358 | M6: =IF('Clean Columns'!$Z$67=0,1,1/1.5)*(IF('Clean Columns'!$Z$57,IF(AND('Clean Columns'!$Z$58,'Clean Columns'!$Z$59<Columns!C6/2),0.9*24*(E6^3)*SQRT($H$2*$B$2)/D6*0.5,0.9*24*(E6^3)*SQRT($H$2*$B$2)/D6),1000000)) -> 4488.742939 | O6: =IF('Clean Columns'!$Z$60=2,Columns!K6,MIN(J6:K6)) -> 1079.75 | P6: =MIN(K6:M6) -> 1079.75 | Q6: =I6 -> 827.82 | R6: =MIN(O6:Q6) -> 827.82 | S6: =J6 -> 1757.8125 | T6: =B6*$B$2 -> 4165
A7: W18X258 | B7: 76 | C7: 21.5 | D7: =C7-2*H7 -> 16.1 | E7: 1.28 | F7: 2.3 | G7: 11.8 | H7: 2.7 | I7: =IF('Clean Columns'!$Z$67=0,1,1/1.5)*(IF($E$1>0.4*T7,0.9*0.6*$B$2*C7*E7*(1.4-$E$1/T7),0.9*0.6*$B$2*C7*E7)) -> 743.04 | J7: =IF(OR('Clean Columns'!$Z$67=0,'Clean Columns'!$Z$60=2),1,1/1.5)*(IF('Clean Columns'!$Z$60=2,(0.9*$B$2*$M$1*F7^2)/(1.11*0.75)/12,IF($H$1/G7<0.15,1000000,IF(AND('Clean Columns'!$Z$58,'Clean Columns'!$Z$59<10*F7),0.9*6.25*F7^2*$B$2*0.5,0.9*6.25*F7^2*$B$2)))) -> 1487.8125 | K7: =IF('Clean Columns'!$Z$67=0,1,1/1.5)*IF('Clean Columns'!$Z$60=2,IF(AND('Clean Columns'!$Z$58,'Clean Columns'!$Z$59<C7),0.5,1)*(6*H7+$B$1+2*$K$1),IF(AND('Clean Columns'!$Z$58,'Clean Columns'!$Z$59<C7),0.5,1)*5*H7+$B$1)*$B$2*E7 -> 891.2 | L7: =IF('Clean Columns'!$Z$67=0,1,1/1.5)*(IF(AND('Clean Columns'!$Z$58,'Clean Columns'!$Z$59<C7/2),(0.75*0.8*E7^2*(1+((IF($B$1/C7<=0.2,3*$B$1/C7,4*$B$1/C7-0.2))*(E7/F7)^1.5))*SQRT($H$2*$B$2*F7/E7))*0.5,0.75*0.8*E7^2*(1+((3*$B$1/C7)*(E7/F7)^1.5))*SQRT($H$2*$B$2*F7/E7))) -> 1625.837431 | M7: =IF('Clean Columns'!$Z$67=0,1,1/1.5)*(IF('Clean Columns'!$Z$57,IF(AND('Clean Columns'!$Z$58,'Clean Columns'!$Z$59<Columns!C7/2),0.9*24*(E7^3)*SQRT($H$2*$B$2)/D7*0.5,0.9*24*(E7^3)*SQRT($H$2*$B$2)/D7),1000000)) -> 3387.98739 | O7: =IF('Clean Columns'!$Z$60=2,Columns!K7,MIN(J7:K7)) -> 891.2 | P7: 891.2 | Q7: 743.04 | R7: 743.04 | S7: 1487.8125 | T7: 3800
A8: W18X234 | B8: 68.6 | C8: 21.1 | D8: =C8-2*H8 -> 16.08 | E8: 1.16 | F8: 2.11 | G8: 11.7 | H8: 2.51 | I8: =IF('Clean Columns'!$Z$67=0,1,1/1.5)*(IF($E$1>0.4*T8,0.9*0.6*$B$2*C8*E8*(1.4-$E$1/T8),0.9*0.6*$B$2*C8*E8)) -> 660.852 | J8: =IF(OR('Clean Columns'!$Z$67=0,'Clean Columns'!$Z$60=2),1,1/1.5)*(IF('Clean Columns'!$Z$60=2,(0.9*$B$2*$M$1*F8^2)/(1.11*0.75)/12,IF($H$1/G8<0.15,1000000,IF(AND('Clean Columns'!$Z$58,'Clean Columns'!$Z$59<10*F8),0.9*6.25*F8^2*$B$2*0.5,0.9*6.25*F8^2*$B$2)))) -> 1252.153125 | K8: =IF('Clean Columns'!$Z$67=0,1,1/1.5)*IF('Clean Columns'!$Z$60=2,IF(AND('Clean Columns'!$Z$58,'Clean Columns'!$Z$59<C8),0.5,1)*(6*H8+$B$1+2*$K$1),IF(AND('Clean Columns'!$Z$58,'Clean Columns'!$Z$59<C8),0.5,1)*5*H8+$B$1)*$B$2*E8 -> 752.55 | L8: =IF('Clean Columns'!$Z$67=0,1,1/1.5)*(IF(AND('Clean Columns'!$Z$58,'Clean Columns'!$Z$59<C8/2),(0.75*0.8*E8^2*(1+((IF($B$1/C8<=0.2,3*$B$1/C8,4*$B$1/C8-0.2))*(E8/F8)^1.5))*SQRT($H$2*$B$2*F8/E8))*0.5,0.75*0.8*E8^2*(1+((3*$B$1/C8)*(E8/F8)^1.5))*SQRT($H$2*$B$2*F8/E8))) -> 1343.479891 | M8: =IF('Clean Columns'!$Z$67=0,1,1/1.5)*(IF('Clean Columns'!$Z$57,IF(AND('Clean Columns'!$Z$58,'Clean Columns'!$Z$59<Columns!C8/2),0.9*24*(E8^3)*SQRT($H$2*$B$2)/D8*0.5,0.9*24*(E8^3)*SQRT($H$2*$B$2)/D8),1000000)) -> 2524.792408 | O8: =IF('Clean Columns'!$Z$60=2,Columns!K8,MIN(J8:K8)) -> 752.55 | P8: 752.55 | Q8: 660.852 | R8: 660.852 | S8: 1252.153125 | T8: 3430
A9: W18X211 | B9: 62.3 | C9: 20.7 | D9: 16.08 | E9: 1.06 | F9: 1.91 | G9: 11.6 | H9: 2.31 | I9: =IF('Clean Columns'!$Z$67=0,1,1/1.5)*(IF($E$1>0.4*T9,0.9*0.6*$B$2*C9*E9*(1.4-$E$1/T9),0.9*0.6*$B$2*C9*E9)) -> 592.434 | J9: =IF(OR('Clean Columns'!$Z$67=0,'Clean Columns'!$Z$60=2),1,1/1.5)*(IF('Clean Columns'!$Z$60=2,(0.9*$B$2*$M$1*F9^2)/(1.11*0.75)/12,IF($H$1/G9<0.15,1000000,IF(AND('Clean Columns'!$Z$58,'Clean Columns'!$Z$59<10*F9),0.9*6.25*F9^2*$B$2*0.5,0.9*6.25*F9^2*$B$2)))) -> 1026.028125 | K9: =IF('Clean Columns'!$Z$67=0,1,1/1.5)*IF('Clean Columns'!$Z$60=2,IF(AND('Clean Columns'!$Z$58,'Clean Columns'!$Z$59<C9),0.5,1)*(6*H9+$B$1+2*$K$1),IF(AND('Clean Columns'!$Z$58,'Clean Columns'!$Z$59<C9),0.5,1)*5*H9+$B$1)*$B$2*E9 -> 634.675 | L9: =IF('Clean Columns'!$Z$67=0,1,1/1.5)*(IF(AND('Clean Columns'!$Z$58,'Clean Columns'!$Z$59<C9/2),(0.75*0.8*E9^2*(1+((IF($B$1/C9<=0.2,3*$B$1/C9,4*$B$1/C9-0.2))*(E9/F9)^1.5))*SQRT($H$2*$B$2*F9/E9))*0.5,0.75*0.8*E9^2*(1+((3*$B$1/C9)*(E9/F9)^1.5))*SQRT($H$2*$B$2*F9/E9))) -> 1117.459255 | M9: =IF('Clean Columns'!$Z$67=0,1,1/1.5)*(IF('Clean Columns'!$Z$57,IF(AND('Clean Columns'!$Z$58,'Clean Columns'!$Z$59<Columns!C9/2),0.9*24*(E9^3)*SQRT($H$2*$B$2)/D9*0.5,0.9*24*(E9^3)*SQRT($H$2*$B$2)/D9),1000000)) -> 1926.501288 | O9: =IF('Clean Columns'!$Z$60=2,Columns!K9,MIN(J9:K9)) -> 634.675 | P9: 634.675 | Q9: 592.434 | R9: 592.434 | S9: 1026.028125 | T9: 3115
A10: W18X192 | B10: 56.2 | C10: 20.4 | D10: 16.1 | E10: 0.96 | F10: 1.75 | G10: 11.5 | H10: 2.15 | I10: =IF('Clean Columns'!$Z$67=0,1,1/1.5)*(IF($E$1>0.4*T10,0.9*0.6*$B$2*C10*E10*(1.4-$E$1/T10),0.9*0.6*$B$2*C10*E10)) -> 528.768 | J10: =IF(OR('Clean Columns'!$Z$67=0,'Clean Columns'!$Z$60=2),1,1/1.5)*(IF('Clean Columns'!$Z$60=2,(0.9*$B$2*$M$1*F10^2)/(1.11*0.75)/12,IF($H$1/G10<0.15,1000000,IF(AND('Clean Columns'!$Z$58,'Clean Columns'!$Z$59<10*F10),0.9*6.25*F10^2*$B$2*0.5,0.9*6.25*F10^2*$B$2)))) -> 861.328125 | K10: =IF('Clean Columns'!$Z$67=0,1,1/1.5)*IF('Clean Columns'!$Z$60=2,IF(AND('Clean Columns'!$Z$58,'Clean Columns'!$Z$59<C10),0.5,1)*(6*H10+$B$1+2*$K$1),IF(AND('Clean Columns'!$Z$58,'Clean Columns'!$Z$59<C10),0.5,1)*5*H10+$B$1)*$B$2*E10 -> 536.4 | L10: =IF('Clean Columns'!$Z$67=0,1,1/1.5)*(IF(AND('Clean Columns'!$Z$58,'Clean Columns'!$Z$59<C10/2),(0.75*0.8*E10^2*(1+((IF($B$1/C10<=0.2,3*$B$1/C10,4*$B$1/C10-0.2))*(E10/F10)^1.5))*SQRT($H$2*$B$2*F10/E10))*0.5,0.75*0.8*E10^2*(1+((3*$B$1/C10)*(E10/F10)^1.5))*SQRT($H$2*$B$2*F10/E10))) -> 921.8321796 | M10: =IF('Clean Columns'!$Z$67=0,1,1/1.5)*(IF('Clean Columns'!$Z$57,IF(AND('Clean Columns'!$Z$58,'Clean Columns'!$Z$59<Columns!C10/2),0.9*24*(E10^3)*SQRT($H$2*$B$2)/D10*0.5,0.9*24*(E10^3)*SQRT($H$2*$B$2)/D10),1000000)) -> 1429.30718 | O10: =IF('Clean Columns'!$Z$60=2,Columns!K10,MIN(J10:K10)) -> 536.4 | P10: 536.4 | Q10: 528.768 | R10: 528.768 | S10: 861.328125 | T10: 2810
A11: W18X175 | B11: 51.4 | C11: 20 | D11: 16.02 | E11: 0.89 | F11: 1.59 | G11: 11.4 | H11: 1.99 | I11: =IF('Clean Columns'!$Z$67=0,1,1/1.5)*(IF($E$1>0.4*T11,0.9*0.6*$B$2*C11*E11*(1.4-$E$1/T11),0.9*0.6*$B$2*C11*E11)) -> 480.6 | J11: =IF(OR('Clean Columns'!$Z$67=0,'Clean Columns'!$Z$60=2),1,1/1.5)*(IF('Clean Columns'!$Z$60=2,(0.9*$B$2*$M$1*F11^2)/(1.11*0.75)/12,IF($H$1/G11<0.15,1000000,IF(AND('Clean Columns'!$Z$58,'Clean Columns'!$Z$59<10*F11),0.9*6.25*F11^2*$B$2*0.5,0.9*6.25*F11^2*$B$2)))) -> 711.028125 | K11: =IF('Clean Columns'!$Z$67=0,1,1/1.5)*IF('Clean Columns'!$Z$60=2,IF(AND('Clean Columns'!$Z$58,'Clean Columns'!$Z$59<C11),0.5,1)*(6*H11+$B$1+2*$K$1),IF(AND('Clean Columns'!$Z$58,'Clean Columns'!$Z$59<C11),0.5,1)*5*H11+$B$1)*$B$2*E11 -> 461.6875 | L11: =IF('Clean Columns'!$Z$67=0,1,1/1.5)*(IF(AND('Clean Columns'!$Z$58,'Clean Columns'!$Z$59<C11/2),(0.75*0.8*E11^2*(1+((IF($B$1/C11<=0.2,3*$B$1/C11,4*$B$1/C11-0.2))*(E11/F11)^1.5))*SQRT($H$2*$B$2*F11/E11))*0.5,0.75*0.8*E11^2*(1+((3*$B$1/C11)*(E11/F11)^1.5))*SQRT($H$2*$B$2*F11/E11))) -> 785.3464772 | M11: =IF('Clean Columns'!$Z$67=0,1,1/1.5)*(IF('Clean Columns'!$Z$57,IF(AND('Clean Columns'!$Z$58,'Clean Columns'!$Z$59<Columns!C11/2),0.9*24*(E11^3)*SQRT($H$2*$B$2)/D11*0.5,0.9*24*(E11^3)*SQRT($H$2*$B$2)/D11),1000000)) -> 1144.577648 | O11: =IF('Clean Columns'!$Z$60=2,Columns!K11,MIN(J11:K11)) -> 461.6875 | P11: 461.6875 | Q11: 480.6 | R11: 461.6875 | S11: 711.028125 | T11: 2570
A12: W18X158 | B12: 46.3 | C12: 19.7 | D12: 16.02 | E12: 0.81 | F12: 1.44 | G12: 11.3 | H12: 1.84 | I12: =IF('Clean Columns'!$Z$67=0,1,1/1.5)*(IF($E$1>0.4*T12,0.9*0.6*$B$2*C12*E12*(1.4-$E$1/T12),0.9*0.6*$B$2*C12*E12)) -> 430.839 | J12: =IF(OR('Clean Columns'!$Z$67=0,'Clean Columns'!$Z$60=2),1,1/1.5)*(IF('Clean Columns'!$Z$60=2,(0.9*$B$2*$M$1*F12^2)/(1.11*0.75)/12,IF($H$1/G12<0.15,1000000,IF(AND('Clean Columns'!$Z$58,'Clean Columns'!$Z$59<10*F12),0.9*6.25*F12^2*$B$2*0.5,0.9*6.25*F12^2*$B$2)))) -> 583.2 | K12: =IF('Clean Columns'!$Z$67=0,1,1/1.5)*IF('Clean Columns'!$Z$60=2,IF(AND('Clean Columns'!$Z$58,'Clean Columns'!$Z$59<C12),0.5,1)*(6*H12+$B$1+2*$K$1),IF(AND('Clean Columns'!$Z$58,'Clean Columns'!$Z$59<C12),0.5,1)*5*H12+$B$1)*$B$2*E12 -> 389.8125 | L12: =IF('Clean Columns'!$Z$67=0,1,1/1.5)*(IF(AND('Clean Columns'!$Z$58,'Clean Columns'!$Z$59<C12/2),(0.75*0.8*E12^2*(1+((IF($B$1/C12<=0.2,3*$B$1/C12,4*$B$1/C12-0.2))*(E12/F12)^1.5))*SQRT($H$2*$B$2*F12/E12))*0.5,0.75*0.8*E12^2*(1+((3*$B$1/C12)*(E12/F12)^1.5))*SQRT($H$2*$B$2*F12/E12))) -> 649.2964736 | M12: =IF('Clean Columns'!$Z$67=0,1,1/1.5)*(IF('Clean Columns'!$Z$57,IF(AND('Clean Columns'!$Z$58,'Clean Columns'!$Z$59<Columns!C12/2),0.9*24*(E12^3)*SQRT($H$2*$B$2)/D12*0.5,0.9*24*(E12^3)*SQRT($H$2*$B$2)/D12),1000000)) -> 862.8400536 | O12: =IF('Clean Columns'!$Z$60=2,Columns!K12,MIN(J12:K12)) -> 389.8125 | P12: 389.8125 | Q12: 430.839 | R12: 389.8125 | S12: 583.2 | T12: 2315
A13: W18X143 | B13: 42 | C13: 19.5 | D13: 16.06 | E13: 0.73 | F13: 1.32 | G13: 11.2 | H13: 1.72 | I13: =IF('Clean Columns'!$Z$67=0,1,1/1.5)*(IF($E$1>0.4*T13,0.9*0.6*$B$2*C13*E13*(1.4-$E$1/T13),0.9*0.6*$B$2*C13*E13)) -> 384.345 | J13: =IF(OR('Clean Columns'!$Z$67=0,'Clean Columns'!$Z$60=2),1,1/1.5)*(IF('Clean Columns'!$Z$60=2,(0.9*$B$2*$M$1*F13^2)/(1.11*0.75)/12,IF($H$1/G13<0.15,1000000,IF(AND('Clean Columns'!$Z$58,'Clean Columns'!$Z$59<10*F13),0.9*6.25*F13^2*$B$2*0.5,0.9*6.25*F13^2*$B$2)))) -> 490.05 | K13: =IF('Clean Columns'!$Z$67=0,1,1/1.5)*IF('Clean Columns'!$Z$60=2,IF(AND('Clean Columns'!$Z$58,'Clean Columns'!$Z$59<C13),0.5,1)*(6*H13+$B$1+2*$K$1),IF(AND('Clean Columns'!$Z$58,'Clean Columns'!$Z$59<C13),0.5,1)*5*H13+$B$1)*$B$2*E13 -> 329.4125 | L13: =IF('Clean Columns'!$Z$67=0,1,1/1.5)*(IF(AND('Clean Columns'!$Z$58,'Clean Columns'!$Z$59<C13/2),(0.75*0.8*E13^2*(1+((IF($B$1/C13<=0.2,3*$B$1/C13,4*$B$1/C13-0.2))*(E13/F13)^1.5))*SQRT($H$2*$B$2*F13/E13))*0.5,0.75*0.8*E13^2*(1+((3*$B$1/C13)*(E13/F13)^1.5))*SQRT($H$2*$B$2*F13/E13))) -> 531.6559097 | M13: =IF('Clean Columns'!$Z$67=0,1,1/1.5)*(IF('Clean Columns'!$Z$57,IF(AND('Clean Columns'!$Z$58,'Clean Columns'!$Z$59<Columns!C13/2),0.9*24*(E13^3)*SQRT($H$2*$B$2)/D13*0.5,0.9*24*(E13^3)*SQRT($H$2*$B$2)/D13),1000000)) -> 630.0293646 | O13: =IF('Clean Columns'!$Z$60=2,Columns!K13,MIN(J13:K13)) -> 329.4125 | P13: 329.4125 | Q13: 384.345 | R13: 329.4125 | S13: 490.05 | T13: 2100
A14: W18X130 | B14: 38.3 | C14: 19.3 | D14: 16.1 | E14: 0.67 | F14: 1.2 | G14: 11.2 | H14: 1.6 | I14: =IF('Clean Columns'!$Z$67=0,1,1/1.5)*(IF($E$1>0.4*T14,0.9*0.6*$B$2*C14*E14*(1.4-$E$1/T14),0.9*0.6*$B$2*C14*E14)) -> 349.137 | J14: =IF(OR('Clean Columns'!$Z$67=0,'Clean Columns'!$Z$60=2),1,1/1.5)*(IF('Clean Columns'!$Z$60=2,(0.9*$B$2*$M$1*F14^2)/(1.11*0.75)/12,IF($H$1/G14<0.15,1000000,IF(AND('Clean Columns'!$Z$58,'Clean Columns'!$Z$59<10*F14),0.9*6.25*F14^2*$B$2*0.5,0.9*6.25*F14^2*$B$2)))) -> 405 | K14: =IF('Clean Columns'!$Z$67=0,1,1/1.5)*IF('Clean Columns'!$Z$60=2,IF(AND('Clean Columns'!$Z$58,'Clean Columns'!$Z$59<C14),0.5,1)*(6*H14+$B$1+2*$K$1),IF(AND('Clean Columns'!$Z$58,'Clean Columns'!$Z$59<C14),0.5,1)*5*H14+$B$1)*$B$2*E14 -> 282.2375 | L14: =IF('Clean Columns'!$Z$67=0,1,1/1.5)*(IF(AND('Clean Columns'!$Z$58,'Clean Columns'!$Z$59<C14/2),(0.75*0.8*E14^2*(1+((IF($B$1/C14<=0.2,3*$B$1/C14,4*$B$1/C14-0.2))*(E14/F14)^1.5))*SQRT($H$2*$B$2*F14/E14))*0.5,0.75*0.8*E14^2*(1+((3*$B$1/C14)*(E14/F14)^1.5))*SQRT($H$2*$B$2*F14/E14))) -> 446.0110762 | M14: =IF('Clean Columns'!$Z$67=0,1,1/1.5)*(IF('Clean Columns'!$Z$57,IF(AND('Clean Columns'!$Z$58,'Clean Columns'!$Z$59<Columns!C14/2),0.9*24*(E14^3)*SQRT($H$2*$B$2)/D14*0.5,0.9*24*(E14^3)*SQRT($H$2*$B$2)/D14),1000000)) -> 485.8881241 | O14: =IF('Clean Columns'!$Z$60=2,Columns!K14,MIN(J14:K14)) -> 282.2375 | P14: 282.2375 | Q14: 349.137 | R14: 282.2375 | S14: 405 | T14: 1915
A16: W18X119 | B16: =VLOOKUP($A16,_xlnm.DataBase,HLOOKUP(B$3,DB_Headers,2,FALSE),FALSE) -> 35.1 | C16: 19 | D16: =C16-2*H16 -> 16.08 | E16: =VLOOKUP($A16,_xlnm.DataBase,HLOOKUP(E$3,DB_Headers,2,FALSE),FALSE) -> 0.655 | F16: 1.06 | G16: 11.3 | H16: 1.46 | I16: =IF('Clean Columns'!$Z$67=0,1,1/1.5)*(IF($E$1>0.4*T16,0.9*0.6*$B$2*C16*E16*(1.4-$E$1/T16),0.9*0.6*$B$2*C16*E16)) -> 336.015 | J16: =IF(OR('Clean Columns'!$Z$67=0,'Clean Columns'!$Z$60=2),1,1/1.5)*(IF('Clean Columns'!$Z$60=2,(0.9*$B$2*$M$1*F16^2)/(1.11*0.75)/12,IF($H$1/G16<0.15,1000000,IF(AND('Clean Columns'!$Z$58,'Clean Columns'!$Z$59<10*F16),0.9*6.25*F16^2*$B$2*0.5,0.9*6.25*F16^2*$B$2)))) -> 316.0125 | K16: =IF('Clean Columns'!$Z$67=0,1,1/1.5)*IF('Clean Columns'!$Z$60=2,IF(AND('Clean Columns'!$Z$58,'Clean Columns'!$Z$59<C16),0.5,1)*(6*H16+$B$1+2*$K$1),IF(AND('Clean Columns'!$Z$58,'Clean Columns'!$Z$59<C16),0.5,1)*5*H16+$B$1)*$B$2*E16 -> 252.99375 | L16: =IF('Clean Columns'!$Z$67=0,1,1/1.5)*(IF(AND('Clean Columns'!$Z$58,'Clean Columns'!$Z$59<C16/2),(0.75*0.8*E16^2*(1+((IF($B$1/C16<=0.2,3*$B$1/C16,4*$B$1/C16-0.2))*(E16/F16)^1.5))*SQRT($H$2*$B$2*F16/E16))*0.5,0.75*0.8*E16^2*(1+((3*$B$1/C16)*(E16/F16)^1.5))*SQRT($H$2*$B$2*F16/E16))) -> 407.1743654 | M16: =IF('Clean Columns'!$Z$67=0,1,1/1.5)*(IF('Clean Columns'!$Z$57,IF(AND('Clean Columns'!$Z$58,'Clean Columns'!$Z$59<Columns!C16/2),0.9*24*(E16^3)*SQRT($H$2*$B$2)/D16*0.5,0.9*24*(E16^3)*SQRT($H$2*$B$2)/D16),1000000)) -> 454.5436634 | O16: =IF('Clean Columns'!$Z$60=2,Columns!K16,MIN(J16:K16)) -> 252.99375 | P16: =MIN(K16:M16) -> 252.99375 | Q16: =I16 -> 336.015 | R16: =MIN(O16:Q16) -> 252.99375 | S16: =J16 -> 316.0125 | T16: 1755
A17: W18X106 | B17: 31.1 | C17: 18.7 | D17: =C17-2*H17 -> 16.02 | E17: 0.59 | F17: 0.94 | G17: 11.2 | H17: 1.34 | I17: =IF('Clean Columns'!$Z$67=0,1,1/1.5)*(IF($E$1>0.4*T17,0.9*0.6*$B$2*C17*E17*(1.4-$E$1/T17),0.9*0.6*$B$2*C17*E17)) -> 297.891 | J17: =IF(OR('Clean Columns'!$Z$67=0,'Clean Columns'!$Z$60=2),1,1/1.5)*(IF('Clean Columns'!$Z$60=2,(0.9*$B$2*$M$1*F17^2)/(1.11*0.75)/12,IF($H$1/G17<0.15,1000000,IF(AND('Clean Columns'!$Z$58,'Clean Columns'!$Z$59<10*F17),0.9*6.25*F17^2*$B$2*0.5,0.9*6.25*F17^2*$B$2)))) -> 248.5125 | K17: =IF('Clean Columns'!$Z$67=0,1,1/1.5)*IF('Clean Columns'!$Z$60=2,IF(AND('Clean Columns'!$Z$58,'Clean Columns'!$Z$59<C17),0.5,1)*(6*H17+$B$1+2*$K$1),IF(AND('Clean Columns'!$Z$58,'Clean Columns'!$Z$59<C17),0.5,1)*5*H17+$B$1)*$B$2*E17 -> 210.1875 | L17: =IF('Clean Columns'!$Z$67=0,1,1/1.5)*(IF(AND('Clean Columns'!$Z$58,'Clean Columns'!$Z$59<C17/2),(0.75*0.8*E17^2*(1+((IF($B$1/C17<=0.2,3*$B$1/C17,4*$B$1/C17-0.2))*(E17/F17)^1.5))*SQRT($H$2*$B$2*F17/E17))*0.5,0.75*0.8*E17^2*(1+((3*$B$1/C17)*(E17/F17)^1.5))*SQRT($H$2*$B$2*F17/E17))) -> 328.2143298 | M17: =IF('Clean Columns'!$Z$67=0,1,1/1.5)*(IF('Clean Columns'!$Z$57,IF(AND('Clean Columns'!$Z$58,'Clean Columns'!$Z$59<Columns!C17/2),0.9*24*(E17^3)*SQRT($H$2*$B$2)/D17*0.5,0.9*24*(E17^3)*SQRT($H$2*$B$2)/D17),1000000)) -> 333.4504251 | O17: =IF('Clean Columns'!$Z$60=2,Columns!K17,MIN(J17:K17)) -> 210.1875 | P17: =MIN(K17:M17) -> 210.1875 | Q17: =I17 -> 297.891 | R17: =MIN(O17:Q17) -> 210.1875 | S17: =J17 -> 248.5125 | T17: 1555
A18: W18X97 | B18: 28.5 | C18: 18.6 | D18: =C18-2*H18 -> 16.06 | E18: 0.535 | F18: 0.87 | G18: 11.1 | H18: 1.27 | I18: =IF('Clean Columns'!$Z$67=0,1,1/1.5)*(IF($E$1>0.4*T18,0.9*0.6*$B$2*C18*E18*(1.4-$E$1/T18),0.9*0.6*$B$2*C18*E18)) -> 268.677 | J18: =IF(OR('Clean Columns'!$Z$67=0,'Clean Columns'!$Z$60=2),1,1/1.5)*(IF('Clean Columns'!$Z$60=2,(0.9*$B$2*$M$1*F18^2)/(1.11*0.75)/12,IF($H$1/G18<0.15,1000000,IF(AND('Clean Columns'!$Z$58,'Clean Columns'!$Z$59<10*F18),0.9*6.25*F18^2*$B$2*0.5,0.9*6.25*F18^2*$B$2)))) -> 212.878125 | K18: =IF('Clean Columns'!$Z$67=0,1,1/1.5)*IF('Clean Columns'!$Z$60=2,IF(AND('Clean Columns'!$Z$58,'Clean Columns'!$Z$59<C18),0.5,1)*(6*H18+$B$1+2*$K$1),IF(AND('Clean Columns'!$Z$58,'Clean Columns'!$Z$59<C18),0.5,1)*5*H18+$B$1)*$B$2*E18 -> 181.23125 | L18: =IF('Clean Columns'!$Z$67=0,1,1/1.5)*(IF(AND('Clean Columns'!$Z$58,'Clean Columns'!$Z$59<C18/2),(0.75*0.8*E18^2*(1+((IF($B$1/C18<=0.2,3*$B$1/C18,4*$B$1/C18-0.2))*(E18/F18)^1.5))*SQRT($H$2*$B$2*F18/E18))*0.5,0.75*0.8*E18^2*(1+((3*$B$1/C18)*(E18/F18)^1.5))*SQRT($H$2*$B$2*F18/E18))) -> 272.426515 | M18: =IF('Clean Columns'!$Z$67=0,1,1/1.5)*(IF('Clean Columns'!$Z$57,IF(AND('Clean Columns'!$Z$58,'Clean Columns'!$Z$59<Columns!C18/2),0.9*24*(E18^3)*SQRT($H$2*$B$2)/D18*0.5,0.9*24*(E18^3)*SQRT($H$2*$B$2)/D18),1000000)) -> 248.0010716 | O18: =IF('Clean Columns'!$Z$60=2,Columns!K18,MIN(J18:K18)) -> 181.23125 | P18: =MIN(K18:M18) -> 181.23125 | Q18: =I18 -> 268.677 | R18: =MIN(O18:Q18) -> 181.23125 | S18: =J18 -> 212.878125 | T18: 1425
A19: W18X86 | B19: 25.3 | C19: 18.4 | D19: =C19-2*H19 -> 16.06 | E19: 0.48 | F19: 0.77 | G19: 11.1 | H19: 1.17 | I19: =IF('Clean Columns'!$Z$67=0,1,1/1.5)*(IF($E$1>0.4*T19,0.9*0.6*$B$2*C19*E19*(1.4-$E$1/T19),0.9*0.6*$B$2*C19*E19)) -> 238.464 | J19: =IF(OR('Clean Columns'!$Z$67=0,'Clean Columns'!$Z$60=2),1,1/1.5)*(IF('Clean Columns'!$Z$60=2,(0.9*$B$2*$M$1*F19^2)/(1.11*0.75)/12,IF($H$1/G19<0.15,1000000,IF(AND('Clean Columns'!$Z$58,'Clean Columns'!$Z$59<10*F19),0.9*6.25*F19^2*$B$2*0.5,0.9*6.25*F19^2*$B$2)))) -> 166.753125 | K19: =IF('Clean Columns'!$Z$67=0,1,1/1.5)*IF('Clean Columns'!$Z$60=2,IF(AND('Clean Columns'!$Z$58,'Clean Columns'!$Z$59<C19),0.5,1)*(6*H19+$B$1+2*$K$1),IF(AND('Clean Columns'!$Z$58,'Clean Columns'!$Z$59<C19),0.5,1)*5*H19+$B$1)*$B$2*E19 -> 150.6 | L19: =IF('Clean Columns'!$Z$67=0,1,1/1.5)*(IF(AND('Clean Columns'!$Z$58,'Clean Columns'!$Z$59<C19/2),(0.75*0.8*E19^2*(1+((IF($B$1/C19<=0.2,3*$B$1/C19,4*$B$1/C19-0.2))*(E19/F19)^1.5))*SQRT($H$2*$B$2*F19/E19))*0.5,0.75*0.8*E19^2*(1+((3*$B$1/C19)*(E19/F19)^1.5))*SQRT($H$2*$B$2*F19/E19))) -> 218.0254094 | M19: =IF('Clean Columns'!$Z$67=0,1,1/1.5)*(IF('Clean Columns'!$Z$57,IF(AND('Clean Columns'!$Z$58,'Clean Columns'!$Z$59<Columns!C19/2),0.9*24*(E19^3)*SQRT($H$2*$B$2)/D19*0.5,0.9*24*(E19^3)*SQRT($H$2*$B$2)/D19),1000000)) -> 179.1083873 | O19: =IF('Clean Columns'!$Z$60=2,Columns!K19,MIN(J19:K19)) -> 150.6 | P19: =MIN(K19:M19) -> 150.6 | Q19: =I19 -> 238.464 | R19: =MIN(O19:Q19) -> 150.6 | S19: =J19 -> 166.753125 | T19: 1265
A20: W18X76 | B20: 22.3 | C20: 18.2 | D20: =C20-2*H20 -> 16.04 | E20: 0.425 | F20: 0.68 | G20: 11 | H20: 1.08 | I20: =IF('Clean Columns'!$Z$67=0,1,1/1.5)*(IF($E$1>0.4*T20,0.9*0.6*$B$2*C20*E20*(1.4-$E$1/T20),0.9*0.6*$B$2*C20*E20)) -> 208.845 | J20: =IF(OR('Clean Columns'!$Z$67=0,'Clean Columns'!$Z$60=2),1,1/1.5)*(IF('Clean Columns'!$Z$60=2,(0.9*$B$2*$M$1*F20^2)/(1.11*0.75)/12,IF($H$1/G20<0.15,1000000,IF(AND('Clean Columns'!$Z$58,'Clean Columns'!$Z$59<10*F20),0.9*6.25*F20^2*$B$2*0.5,0.9*6.25*F20^2*$B$2)))) -> 130.05 | K20: =IF('Clean Columns'!$Z$67=0,1,1/1.5)*IF('Clean Columns'!$Z$60=2,IF(AND('Clean Columns'!$Z$58,'Clean Columns'!$Z$59<C20),0.5,1)*(6*H20+$B$1+2*$K$1),IF(AND('Clean Columns'!$Z$58,'Clean Columns'!$Z$59<C20),0.5,1)*5*H20+$B$1)*$B$2*E20 -> 123.78125 | L20: =IF('Clean Columns'!$Z$67=0,1,1/1.5)*(IF(AND('Clean Columns'!$Z$58,'Clean Columns'!$Z$59<C20/2),(0.75*0.8*E20^2*(1+((IF($B$1/C20<=0.2,3*$B$1/C20,4*$B$1/C20-0.2))*(E20/F20)^1.5))*SQRT($H$2*$B$2*F20/E20))*0.5,0.75*0.8*E20^2*(1+((3*$B$1/C20)*(E20/F20)^1.5))*SQRT($H$2*$B$2*F20/E20))) -> 170.7857727 | M20: =IF('Clean Columns'!$Z$67=0,1,1/1.5)*(IF('Clean Columns'!$Z$57,IF(AND('Clean Columns'!$Z$58,'Clean Columns'!$Z$59<Columns!C20/2),0.9*24*(E20^3)*SQRT($H$2*$B$2)/D20*0.5,0.9*24*(E20^3)*SQRT($H$2*$B$2)/D20),1000000)) -> 124.4801716 | O20: =IF('Clean Columns'!$Z$60=2,Columns!K20,MIN(J20:K20)) -> 123.78125 | P20: =MIN(K20:M20) -> 123.78125 | Q20: =I20 -> 208.845 | R20: =MIN(O20:Q20) -> 123.78125 | S20: =J20 -> 130.05 | T20: 1115
A22: W18X71 | B22: =VLOOKUP($A22,_xlnm.DataBase,HLOOKUP(B$3,DB_Headers,2,FALSE),FALSE) -> 20.9 | C22: 18.5 | D22: =C22-2*H22 -> 16.08 | E22: =VLOOKUP($A22,_xlnm.DataBase,HLOOKUP(E$3,DB_Headers,2,FALSE),FALSE) -> 0.495 | F22: 0.81 | G22: 7.64 | H22: 1.21 | I22: =IF('Clean Columns'!$Z$67=0,1,1/1.5)*(IF($E$1>0.4*T22,0.9*0.6*$B$2*C22*E22*(1.4-$E$1/T22),0.9*0.6*$B$2*C22*E22)) -> 247.2525 | J22: =IF(OR('Clean Columns'!$Z$67=0,'Clean Columns'!$Z$60=2),1,1/1.5)*(IF('Clean Columns'!$Z$60=2,(0.9*$B$2*$M$1*F22^2)/(1.11*0.75)/12,IF($H$1/G22<0.15,1000000,IF(AND('Clean Columns'!$Z$58,'Clean Columns'!$Z$59<10*F22),0.9*6.25*F22^2*$B$2*0.5,0.9*6.25*F22^2*$B$2)))) -> 184.528125 | K22: =IF('Clean Columns'!$Z$67=0,1,1/1.5)*IF('Clean Columns'!$Z$60=2,IF(AND('Clean Columns'!$Z$58,'Clean Columns'!$Z$59<C22),0.5,1)*(6*H22+$B$1+2*$K$1),IF(AND('Clean Columns'!$Z$58,'Clean Columns'!$Z$59<C22),0.5,1)*5*H22+$B$1)*$B$2*E22 -> 160.25625 | L22: =IF('Clean Columns'!$Z$67=0,1,1/1.5)*(IF(AND('Clean Columns'!$Z$58,'Clean Columns'!$Z$59<C22/2),(0.75*0.8*E22^2*(1+((IF($B$1/C22<=0.2,3*$B$1/C22,4*$B$1/C22-0.2))*(E22/F22)^1.5))*SQRT($H$2*$B$2*F22/E22))*0.5,0.75*0.8*E22^2*(1+((3*$B$1/C22)*(E22/F22)^1.5))*SQRT($H$2*$B$2*F22/E22))) -> 233.912873 | M22: =IF('Clean Columns'!$Z$67=0,1,1/1.5)*(IF('Clean Columns'!$Z$57,IF(AND('Clean Columns'!$Z$58,'Clean Columns'!$Z$59<Columns!C22/2),0.9*24*(E22^3)*SQRT($H$2*$B$2)/D22*0.5,0.9*24*(E22^3)*SQRT($H$2*$B$2)/D22),1000000)) -> 196.1856802 | O22: =IF('Clean Columns'!$Z$60=2,Columns!K22,MIN(J22:K22)) -> 160.25625 | P22: =MIN(K22:M22) -> 160.25625 | Q22: =I22 -> 247.2525 | R22: =MIN(O22:Q22) -> 160.25625 | S22: =J22 -> 184.528125 | T22: 1045
A23: W18X65 | B23: 19.1 | C23: 18.4 | D23: =C23-2*H23 -> 16.1 | E23: 0.45 | F23: 0.75 | G23: 7.59 | H23: 1.15 | I23: =IF('Clean Columns'!$Z$67=0,1,1/1.5)*(IF($E$1>0.4*T23,0.9*0.6*$B$2*C23*E23*(1.4-$E$1/T23),0.9*0.6*$B$2*C23*E23)) -> 223.56 | J23: =IF(OR('Clean Columns'!$Z$67=0,'Clean Columns'!$Z$60=2),1,1/1.5)*(IF('Clean Columns'!$Z$60=2,(0.9*$B$2*$M$1*F23^2)/(1.11*0.75)/12,IF($H$1/G23<0.15,1000000,IF(AND('Clean Columns'!$Z$58,'Clean Columns'!$Z$59<10*F23),0.9*6.25*F23^2*$B$2*0.5,0.9*6.25*F23^2*$B$2)))) -> 158.203125 | K23: =IF('Clean Columns'!$Z$67=0,1,1/1.5)*IF('Clean Columns'!$Z$60=2,IF(AND('Clean Columns'!$Z$58,'Clean Columns'!$Z$59<C23),0.5,1)*(6*H23+$B$1+2*$K$1),IF(AND('Clean Columns'!$Z$58,'Clean Columns'!$Z$59<C23),0.5,1)*5*H23+$B$1)*$B$2*E23 -> 138.9375 | L23: =IF('Clean Columns'!$Z$67=0,1,1/1.5)*(IF(AND('Clean Columns'!$Z$58,'Clean Columns'!$Z$59<C23/2),(0.75*0.8*E23^2*(1+((IF($B$1/C23<=0.2,3*$B$1/C23,4*$B$1/C23-0.2))*(E23/F23)^1.5))*SQRT($H$2*$B$2*F23/E23))*0.5,0.75*0.8*E23^2*(1+((3*$B$1/C23)*(E23/F23)^1.5))*SQRT($H$2*$B$2*F23/E23))) -> 194.9622308 | M23: =IF('Clean Columns'!$Z$67=0,1,1/1.5)*(IF('Clean Columns'!$Z$57,IF(AND('Clean Columns'!$Z$58,'Clean Columns'!$Z$59<Columns!C23/2),0.9*24*(E23^3)*SQRT($H$2*$B$2)/D23*0.5,0.9*24*(E23^3)*SQRT($H$2*$B$2)/D23),1000000)) -> 147.2141032 | O23: =IF('Clean Columns'!$Z$60=2,Columns!K23,MIN(J23:K23)) -> 138.9375 | P23: =MIN(K23:M23) -> 138.9375 | Q23: =I23 -> 223.56 | R23: =MIN(O23:Q23) -> 138.9375 | S23: =J23 -> 158.203125 | T23: 955
A24: W18X60 | B24: 17.6 | C24: 18.2 | D24: =C24-2*H24 -> 16 | E24: 0.415 | F24: 0.695 | G24: 7.56 | H24: 1.1 | I24: =IF('Clean Columns'!$Z$67=0,1,1/1.5)*(IF($E$1>0.4*T24,0.9*0.6*$B$2*C24*E24*(1.4-$E$1/T24),0.9*0.6*$B$2*C24*E24)) -> 203.931 | J24: =IF(OR('Clean Columns'!$Z$67=0,'Clean Columns'!$Z$60=2),1,1/1.5)*(IF('Clean Columns'!$Z$60=2,(0.9*$B$2*$M$1*F24^2)/(1.11*0.75)/12,IF($H$1/G24<0.15,1000000,IF(AND('Clean Columns'!$Z$58,'Clean Columns'!$Z$59<10*F24),0.9*6.25*F24^2*$B$2*0.5,0.9*6.25*F24^2*$B$2)))) -> 135.8507812 | K24: =IF('Clean Columns'!$Z$67=0,1,1/1.5)*IF('Clean Columns'!$Z$60=2,IF(AND('Clean Columns'!$Z$58,'Clean Columns'!$Z$59<C24),0.5,1)*(6*H24+$B$1+2*$K$1),IF(AND('Clean Columns'!$Z$58,'Clean Columns'!$Z$59<C24),0.5,1)*5*H24+$B$1)*$B$2*E24 -> 122.94375 | L24: =IF('Clean Columns'!$Z$67=0,1,1/1.5)*(IF(AND('Clean Columns'!$Z$58,'Clean Columns'!$Z$59<C24/2),(0.75*0.8*E24^2*(1+((IF($B$1/C24<=0.2,3*$B$1/C24,4*$B$1/C24-0.2))*(E24/F24)^1.5))*SQRT($H$2*$B$2*F24/E24))*0.5,0.75*0.8*E24^2*(1+((3*$B$1/C24)*(E24/F24)^1.5))*SQRT($H$2*$B$2*F24/E24))) -> 166.2325601 | M24: =IF('Clean Columns'!$Z$67=0,1,1/1.5)*(IF('Clean Columns'!$Z$57,IF(AND('Clean Columns'!$Z$58,'Clean Columns'!$Z$59<Columns!C24/2),0.9*24*(E24^3)*SQRT($H$2*$B$2)/D24*0.5,0.9*24*(E24^3)*SQRT($H$2*$B$2)/D24),1000000)) -> 116.1882097 | O24: =IF('Clean Columns'!$Z$60=2,Columns!K24,MIN(J24:K24)) -> 122.94375 | P24: =MIN(K24:M24) -> 116.1882097 | Q24: =I24 -> 203.931 | R24: =MIN(O24:Q24) -> 116.1882097 | S24: =J24 -> 135.8507812 | T24: 880
A25: W18X55 | B25: 16.2 | C25: 18.1 | D25: =C25-2*H25 -> 16.04 | E25: 0.39 | F25: 0.63 | G25: 7.53 | H25: 1.03 | I25: =IF('Clean Columns'!$Z$67=0,1,1/1.5)*(IF($E$1>0.4*T25,0.9*0.6*$B$2*C25*E25*(1.4-$E$1/T25),0.9*0.6*$B$2*C25*E25)) -> 190.593 | J25: =IF(OR('Clean Columns'!$Z$67=0,'Clean Columns'!$Z$60=2),1,1/1.5)*(IF('Clean Columns'!$Z$60=2,(0.9*$B$2*$M$1*F25^2)/(1.11*0.75)/12,IF($H$1/G25<0.15,1000000,IF(AND('Clean Columns'!$Z$58,'Clean Columns'!$Z$59<10*F25),0.9*6.25*F25^2*$B$2*0.5,0.9*6.25*F25^2*$B$2)))) -> 111.628125 | K25: =IF('Clean Columns'!$Z$67=0,1,1/1.5)*IF('Clean Columns'!$Z$60=2,IF(AND('Clean Columns'!$Z$58,'Clean Columns'!$Z$59<C25),0.5,1)*(6*H25+$B$1+2*$K$1),IF(AND('Clean Columns'!$Z$58,'Clean Columns'!$Z$59<C25),0.5,1)*5*H25+$B$1)*$B$2*E25 -> 108.7125 | L25: =IF('Clean Columns'!$Z$67=0,1,1/1.5)*(IF(AND('Clean Columns'!$Z$58,'Clean Columns'!$Z$59<C25/2),(0.75*0.8*E25^2*(1+((IF($B$1/C25<=0.2,3*$B$1/C25,4*$B$1/C25-0.2))*(E25/F25)^1.5))*SQRT($H$2*$B$2*F25/E25))*0.5,0.75*0.8*E25^2*(1+((3*$B$1/C25)*(E25/F25)^1.5))*SQRT($H$2*$B$2*F25/E25))) -> 144.4618127 | M25: =IF('Clean Columns'!$Z$67=0,1,1/1.5)*(IF('Clean Columns'!$Z$57,IF(AND('Clean Columns'!$Z$58,'Clean Columns'!$Z$59<Columns!C25/2),0.9*24*(E25^3)*SQRT($H$2*$B$2)/D25*0.5,0.9*24*(E25^3)*SQRT($H$2*$B$2)/D25),1000000)) -> 96.18939859 | O25: =IF('Clean Columns'!$Z$60=2,Columns!K25,MIN(J25:K25)) -> 108.7125 | P25: =MIN(K25:M25) -> 96.18939859 | Q25: =I25 -> 190.593 | R25: =MIN(O25:Q25) -> 96.18939859 | S25: =J25 -> 111.628125 | T25: 810
A26: W18X50 | B26: 14.7 | C26: 18 | D26: =C26-2*H26 -> 16.056 | E26: 0.355 | F26: 0.57 | G26: 7.5 | H26: 0.972 | I26: =IF('Clean Columns'!$Z$67=0,1,1/1.5)*(IF($E$1>0.4*T26,0.9*0.6*$B$2*C26*E26*(1.4-$E$1/T26),0.9*0.6*$B$2*C26*E26)) -> 172.53 | J26: =IF(OR('Clean Columns'!$Z$67=0,'Clean Columns'!$Z$60=2),1,1/1.5)*(IF('Clean Columns'!$Z$60=2,(0.9*$B$2*$M$1*F26^2)/(1.11*0.75)/12,IF($H$1/G26<0.15,1000000,IF(AND('Clean Columns'!$Z$58,'Clean Columns'!$Z$59<10*F26),0.9*6.25*F26^2*$B$2*0.5,0.9*6.25*F26^2*$B$2)))) -> 91.378125 | K26: =IF('Clean Columns'!$Z$67=0,1,1/1.5)*IF('Clean Columns'!$Z$60=2,IF(AND('Clean Columns'!$Z$58,'Clean Columns'!$Z$59<C26),0.5,1)*(6*H26+$B$1+2*$K$1),IF(AND('Clean Columns'!$Z$58,'Clean Columns'!$Z$59<C26),0.5,1)*5*H26+$B$1)*$B$2*E26 -> 93.80875 | L26: =IF('Clean Columns'!$Z$67=0,1,1/1.5)*(IF(AND('Clean Columns'!$Z$58,'Clean Columns'!$Z$59<C26/2),(0.75*0.8*E26^2*(1+((IF($B$1/C26<=0.2,3*$B$1/C26,4*$B$1/C26-0.2))*(E26/F26)^1.5))*SQRT($H$2*$B$2*F26/E26))*0.5,0.75*0.8*E26^2*(1+((3*$B$1/C26)*(E26/F26)^1.5))*SQRT($H$2*$B$2*F26/E26))) -> 119.3927555 | M26: =IF('Clean Columns'!$Z$67=0,1,1/1.5)*(IF('Clean Columns'!$Z$57,IF(AND('Clean Columns'!$Z$58,'Clean Columns'!$Z$59<Columns!C26/2),0.9*24*(E26^3)*SQRT($H$2*$B$2)/D26*0.5,0.9*24*(E26^3)*SQRT($H$2*$B$2)/D26),1000000)) -> 72.4745374 | O26: =IF('Clean Columns'!$Z$60=2,Columns!K26,MIN(J26:K26)) -> 91.378125 | P26: =MIN(K26:M26) -> 72.4745374 | Q26: =I26 -> 172.53 | R26: =MIN(O26:Q26) -> 72.4745374 | S26: =J26 -> 91.378125 | T26: 735
A28: W18X46 | B28: =VLOOKUP($A28,_xlnm.DataBase,HLOOKUP(B$3,DB_Headers,2,FALSE),FALSE) -> 13.5 | C28: 18.1 | D28: =C28-2*H28 -> 16.08 | E28: =VLOOKUP($A28,_xlnm.DataBase,HLOOKUP(E$3,DB_Headers,2,FALSE),FALSE) -> 0.36 | F28: 0.605 | G28: 6.06 | H28: 1.01 | I28: =IF('Clean Columns'!$Z$67=0,1,1/1.5)*(IF($E$1>0.4*T28,0.9*0.6*$B$2*C28*E28*(1.4-$E$1/T28),0.9*0.6*$B$2*C28*E28)) -> 175.932 | J28: =IF(OR('Clean Columns'!$Z$67=0,'Clean Columns'!$Z$60=2),1,1/1.5)*(IF('Clean Columns'!$Z$60=2,(0.9*$B$2*$M$1*F28^2)/(1.11*0.75)/12,IF($H$1/G28<0.15,1000000,IF(AND('Clean Columns'!$Z$58,'Clean Columns'!$Z$59<10*F28),0.9*6.25*F28^2*$B$2*0.5,0.9*6.25*F28^2*$B$2)))) -> 102.9445313 | K28: =IF('Clean Columns'!$Z$67=0,1,1/1.5)*IF('Clean Columns'!$Z$60=2,IF(AND('Clean Columns'!$Z$58,'Clean Columns'!$Z$59<C28),0.5,1)*(6*H28+$B$1+2*$K$1),IF(AND('Clean Columns'!$Z$58,'Clean Columns'!$Z$59<C28),0.5,1)*5*H28+$B$1)*$B$2*E28 -> 98.55 | L28: =IF('Clean Columns'!$Z$67=0,1,1/1.5)*(IF(AND('Clean Columns'!$Z$58,'Clean Columns'!$Z$59<C28/2),(0.75*0.8*E28^2*(1+((IF($B$1/C28<=0.2,3*$B$1/C28,4*$B$1/C28-0.2))*(E28/F28)^1.5))*SQRT($H$2*$B$2*F28/E28))*0.5,0.75*0.8*E28^2*(1+((3*$B$1/C28)*(E28/F28)^1.5))*SQRT($H$2*$B$2*F28/E28))) -> 125.3102792 | M28: =IF('Clean Columns'!$Z$67=0,1,1/1.5)*(IF('Clean Columns'!$Z$57,IF(AND('Clean Columns'!$Z$58,'Clean Columns'!$Z$59<Columns!C28/2),0.9*24*(E28^3)*SQRT($H$2*$B$2)/D28*0.5,0.9*24*(E28^3)*SQRT($H$2*$B$2)/D28),1000000)) -> 75.4673691 | O28: =IF('Clean Columns'!$Z$60=2,Columns!K28,MIN(J28:K28)) -> 98.55 | P28: =MIN(K28:M28) -> 75.4673691 | Q28: =I28 -> 175.932 | R28: =MIN(O28:Q28) -> 75.4673691 | S28: =J28 -> 102.9445313 | T28: 675
A29: W18X40 | B29: 11.8 | C29: 17.9 | D29: =C29-2*H29 -> 16.046 | E29: 0.315 | F29: 0.525 | G29: 6.02 | H29: 0.927 | I29: =IF('Clean Columns'!$Z$67=0,1,1/1.5)*(IF($E$1>0.4*T29,0.9*0.6*$B$2*C29*E29*(1.4-$E$1/T29),0.9*0.6*$B$2*C29*E29)) -> 152.2395 | J29: =IF(OR('Clean Columns'!$Z$67=0,'Clean Columns'!$Z$60=2),1,1/1.5)*(IF('Clean Columns'!$Z$60=2,(0.9*$B$2*$M$1*F29^2)/(1.11*0.75)/12,IF($H$1/G29<0.15,1000000,IF(AND('Clean Columns'!$Z$58,'Clean Columns'!$Z$59<10*F29),0.9*6.25*F29^2*$B$2*0.5,0.9*6.25*F29^2*$B$2)))) -> 77.51953125 | K29: =IF('Clean Columns'!$Z$67=0,1,1/1.5)*IF('Clean Columns'!$Z$60=2,IF(AND('Clean Columns'!$Z$58,'Clean Columns'!$Z$59<C29),0.5,1)*(6*H29+$B$1+2*$K$1),IF(AND('Clean Columns'!$Z$58,'Clean Columns'!$Z$59<C29),0.5,1)*5*H29+$B$1)*$B$2*E29 -> 79.695 | L29: =IF('Clean Columns'!$Z$67=0,1,1/1.5)*(IF(AND('Clean Columns'!$Z$58,'Clean Columns'!$Z$59<C29/2),(0.75*0.8*E29^2*(1+((IF($B$1/C29<=0.2,3*$B$1/C29,4*$B$1/C29-0.2))*(E29/F29)^1.5))*SQRT($H$2*$B$2*F29/E29))*0.5,0.75*0.8*E29^2*(1+((3*$B$1/C29)*(E29/F29)^1.5))*SQRT($H$2*$B$2*F29/E29))) -> 95.61474935 | M29: =IF('Clean Columns'!$Z$67=0,1,1/1.5)*(IF('Clean Columns'!$Z$57,IF(AND('Clean Columns'!$Z$58,'Clean Columns'!$Z$59<Columns!C29/2),0.9*24*(E29^3)*SQRT($H$2*$B$2)/D29*0.5,0.9*24*(E29^3)*SQRT($H$2*$B$2)/D29),1000000)) -> 50.66436756 | O29: =IF('Clean Columns'!$Z$60=2,Columns!K29,MIN(J29:K29)) -> 77.51953125 | P29: =MIN(K29:M29) -> 50.66436756 | Q29: =I29 -> 152.2395 | R29: =MIN(O29:Q29) -> 50.66436756 | S29: =J29 -> 77.51953125 | T29: 590
A30: W18X35 | B30: 10.3 | C30: 17.7 | D30: =C30-2*H30 -> 16.046 | E30: 0.3 | F30: 0.425 | G30: 6 | H30: 0.827 | I30: =IF('Clean Columns'!$Z$67=0,1,1/1.5)*(IF($E$1>0.4*T30,0.9*0.6*$B$2*C30*E30*(1.4-$E$1/T30),0.9*0.6*$B$2*C30*E30)) -> 143.37 | J30: =IF(OR('Clean Columns'!$Z$67=0,'Clean Columns'!$Z$60=2),1,1/1.5)*(IF('Clean Columns'!$Z$60=2,(0.9*$B$2*$M$1*F30^2)/(1.11*0.75)/12,IF($H$1/G30<0.15,1000000,IF(AND('Clean Columns'!$Z$58,'Clean Columns'!$Z$59<10*F30),0.9*6.25*F30^2*$B$2*0.5,0.9*6.25*F30^2*$B$2)))) -> 50.80078125 | K30: =IF('Clean Columns'!$Z$67=0,1,1/1.5)*IF('Clean Columns'!$Z$60=2,IF(AND('Clean Columns'!$Z$58,'Clean Columns'!$Z$59<C30),0.5,1)*(6*H30+$B$1+2*$K$1),IF(AND('Clean Columns'!$Z$58,'Clean Columns'!$Z$59<C30),0.5,1)*5*H30+$B$1)*$B$2*E30 -> 68.4 | L30: =IF('Clean Columns'!$Z$67=0,1,1/1.5)*(IF(AND('Clean Columns'!$Z$58,'Clean Columns'!$Z$59<C30/2),(0.75*0.8*E30^2*(1+((IF($B$1/C30<=0.2,3*$B$1/C30,4*$B$1/C30-0.2))*(E30/F30)^1.5))*SQRT($H$2*$B$2*F30/E30))*0.5,0.75*0.8*E30^2*(1+((3*$B$1/C30)*(E30/F30)^1.5))*SQRT($H$2*$B$2*F30/E30))) -> 80.7011034 | M30: =IF('Clean Columns'!$Z$67=0,1,1/1.5)*(IF('Clean Columns'!$Z$57,IF(AND('Clean Columns'!$Z$58,'Clean Columns'!$Z$59<Columns!C30/2),0.9*24*(E30^3)*SQRT($H$2*$B$2)/D30*0.5,0.9*24*(E30^3)*SQRT($H$2*$B$2)/D30),1000000)) -> 43.76578561 | O30: =IF('Clean Columns'!$Z$60=2,Columns!K30,MIN(J30:K30)) -> 50.80078125 | P30: =MIN(K30:M30) -> 43.76578561 | Q30: =I30 -> 143.37 | R30: =MIN(O30:Q30) -> 43.76578561 | S30: =J30 -> 50.80078125 | T30: 515
A32: W16X100 | B32: =VLOOKUP($A32,_xlnm.DataBase,HLOOKUP(B$3,DB_Headers,2,FALSE),FALSE) -> 29.4 | C32: 17 | D32: =C32-2*H32 -> 14.22 | E32: =VLOOKUP($A32,_xlnm.DataBase,HLOOKUP(E$3,DB_Headers,2,FALSE),FALSE) -> 0.585 | F32: 0.985 | G32: 10.4 | H32: 1.39 | I32: =IF('Clean Columns'!$Z$67=0,1,1/1.5)*(IF($E$1>0.4*T32,0.9*0.6*$B$2*C32*E32*(1.4-$E$1/T32),0.9*0.6*$B$2*C32*E32)) -> 268.515 | J32: =IF(OR('Clean Columns'!$Z$67=0,'Clean Columns'!$Z$60=2),1,1/1.5)*(IF('Clean Columns'!$Z$60=2,(0.9*$B$2*$M$1*F32^2)/(1.11*0.75)/12,IF($H$1/G32<0.15,1000000,IF(AND('Clean Columns'!$Z$58,'Clean Columns'!$Z$59<10*F32),0.9*6.25*F32^2*$B$2*0.5,0.9*6.25*F32^2*$B$2)))) -> 272.8757812 | K32: =IF('Clean Columns'!$Z$67=0,1,1/1.5)*IF('Clean Columns'!$Z$60=2,IF(AND('Clean Columns'!$Z$58,'Clean Columns'!$Z$59<C32),0.5,1)*(6*H32+$B$1+2*$K$1),IF(AND('Clean Columns'!$Z$58,'Clean Columns'!$Z$59<C32),0.5,1)*5*H32+$B$1)*$B$2*E32 -> 215.71875 | L32: =IF('Clean Columns'!$Z$67=0,1,1/1.5)*(IF(AND('Clean Columns'!$Z$58,'Clean Columns'!$Z$59<C32/2),(0.75*0.8*E32^2*(1+((IF($B$1/C32<=0.2,3*$B$1/C32,4*$B$1/C32-0.2))*(E32/F32)^1.5))*SQRT($H$2*$B$2*F32/E32))*0.5,0.75*0.8*E32^2*(1+((3*$B$1/C32)*(E32/F32)^1.5))*SQRT($H$2*$B$2*F32/E32))) -> 331.8525728 | M32: =IF('Clean Columns'!$Z$67=0,1,1/1.5)*(IF('Clean Columns'!$Z$57,IF(AND('Clean Columns'!$Z$58,'Clean Columns'!$Z$59<Columns!C32/2),0.9*24*(E32^3)*SQRT($H$2*$B$2)/D32*0.5,0.9*24*(E32^3)*SQRT($H$2*$B$2)/D32),1000000)) -> 366.1893877 | O32: =IF('Clean Columns'!$Z$60=2,Columns!K32,MIN(J32:K32)) -> 215.71875 | P32: =MIN(K32:M32) -> 215.71875 | Q32: =I32 -> 268.515 | R32: =MIN(O32:Q32) -> 215.71875 | S32: =J32 -> 272.8757812 | T32: 1470
A33: W16X89 | B33: 26.2 | C33: 16.8 | D33: =C33-2*H33 -> 14.24 | E33: 0.525 | F33: 0.875 | G33: 10.4 | H33: 1.28 | I33: =IF('Clean Columns'!$Z$67=0,1,1/1.5)*(IF($E$1>0.4*T33,0.9*0.6*$B$2*C33*E33*(1.4-$E$1/T33),0.9*0.6*$B$2*C33*E33)) -> 238.14 | J33: =IF(OR('Clean Columns'!$Z$67=0,'Clean Columns'!$Z$60=2),1,1/1.5)*(IF('Clean Columns'!$Z$60=2,(0.9*$B$2*$M$1*F33^2)/(1.11*0.75)/12,IF($H$1/G33<0.15,1000000,IF(AND('Clean Columns'!$Z$58,'Clean Columns'!$Z$59<10*F33),0.9*6.25*F33^2*$B$2*0.5,0.9*6.25*F33^2*$B$2)))) -> 215.3320312 | K33: =IF('Clean Columns'!$Z$67=0,1,1/1.5)*IF('Clean Columns'!$Z$60=2,IF(AND('Clean Columns'!$Z$58,'Clean Columns'!$Z$59<C33),0.5,1)*(6*H33+$B$1+2*$K$1),IF(AND('Clean Columns'!$Z$58,'Clean Columns'!$Z$59<C33),0.5,1)*5*H33+$B$1)*$B$2*E33 -> 179.15625 | L33: =IF('Clean Columns'!$Z$67=0,1,1/1.5)*(IF(AND('Clean Columns'!$Z$58,'Clean Columns'!$Z$59<C33/2),(0.75*0.8*E33^2*(1+((IF($B$1/C33<=0.2,3*$B$1/C33,4*$B$1/C33-0.2))*(E33/F33)^1.5))*SQRT($H$2*$B$2*F33/E33))*0.5,0.75*0.8*E33^2*(1+((3*$B$1/C33)*(E33/F33)^1.5))*SQRT($H$2*$B$2*F33/E33))) -> 266.1537703 | M33: =IF('Clean Columns'!$Z$67=0,1,1/1.5)*(IF('Clean Columns'!$Z$57,IF(AND('Clean Columns'!$Z$58,'Clean Columns'!$Z$59<Columns!C33/2),0.9*24*(E33^3)*SQRT($H$2*$B$2)/D33*0.5,0.9*24*(E33^3)*SQRT($H$2*$B$2)/D33),1000000)) -> 264.305179 | O33: =IF('Clean Columns'!$Z$60=2,Columns!K33,MIN(J33:K33)) -> 179.15625 | P33: =MIN(K33:M33) -> 179.15625 | Q33: =I33 -> 238.14 | R33: =MIN(O33:Q33) -> 179.15625 | S33: =J33 -> 215.3320312 | T33: 1310
A34: W16X77 | B34: 22.6 | C34: 16.5 | D34: =C34-2*H34 -> 14.18 | E34: 0.455 | F34: 0.76 | G34: 10.3 | H34: 1.16 | I34: =IF('Clean Columns'!$Z$67=0,1,1/1.5)*(IF($E$1>0.4*T34,0.9*0.6*$B$2*C34*E34*(1.4-$E$1/T34),0.9*0.6*$B$2*C34*E34)) -> 202.7025 | J34: =IF(OR('Clean Columns'!$Z$67=0,'Clean Columns'!$Z$60=2),1,1/1.5)*(IF('Clean Columns'!$Z$60=2,(0.9*$B$2*$M$1*F34^2)/(1.11*0.75)/12,IF($H$1/G34<0.15,1000000,IF(AND('Clean Columns'!$Z$58,'Clean Columns'!$Z$59<10*F34),0.9*6.25*F34^2*$B$2*0.5,0.9*6.25*F34^2*$B$2)))) -> 162.45 | K34: =IF('Clean Columns'!$Z$67=0,1,1/1.5)*IF('Clean Columns'!$Z$60=2,IF(AND('Clean Columns'!$Z$58,'Clean Columns'!$Z$59<C34),0.5,1)*(6*H34+$B$1+2*$K$1),IF(AND('Clean Columns'!$Z$58,'Clean Columns'!$Z$59<C34),0.5,1)*5*H34+$B$1)*$B$2*E34 -> 141.61875 | L34: =IF('Clean Columns'!$Z$67=0,1,1/1.5)*(IF(AND('Clean Columns'!$Z$58,'Clean Columns'!$Z$59<C34/2),(0.75*0.8*E34^2*(1+((IF($B$1/C34<=0.2,3*$B$1/C34,4*$B$1/C34-0.2))*(E34/F34)^1.5))*SQRT($H$2*$B$2*F34/E34))*0.5,0.75*0.8*E34^2*(1+((3*$B$1/C34)*(E34/F34)^1.5))*SQRT($H$2*$B$2*F34/E34))) -> 200.2317638 | M34: =IF('Clean Columns'!$Z$67=0,1,1/1.5)*(IF('Clean Columns'!$Z$57,IF(AND('Clean Columns'!$Z$58,'Clean Columns'!$Z$59<Columns!C34/2),0.9*24*(E34^3)*SQRT($H$2*$B$2)/D34*0.5,0.9*24*(E34^3)*SQRT($H$2*$B$2)/D34),1000000)) -> 172.7808919 | O34: =IF('Clean Columns'!$Z$60=2,Columns!K34,MIN(J34:K34)) -> 141.61875 | P34: =MIN(K34:M34) -> 141.61875 | Q34: =I34 -> 202.7025 | R34: =MIN(O34:Q34) -> 141.61875 | S34: =J34 -> 162.45 | T34: 1130
A35: W16X67 | B35: 19.6 | C35: 16.3 | D35: =C35-2*H35 -> 14.16 | E35: 0.395 | F35: 0.665 | G35: 10.2 | H35: 1.07 | I35: =IF('Clean Columns'!$Z$67=0,1,1/1.5)*(IF($E$1>0.4*T35,0.9*0.6*$B$2*C35*E35*(1.4-$E$1/T35),0.9*0.6*$B$2*C35*E35)) -> 173.8395 | J35: =IF(OR('Clean Columns'!$Z$67=0,'Clean Columns'!$Z$60=2),1,1/1.5)*(IF('Clean Columns'!$Z$60=2,(0.9*$B$2*$M$1*F35^2)/(1.11*0.75)/12,IF($H$1/G35<0.15,1000000,IF(AND('Clean Columns'!$Z$58,'Clean Columns'!$Z$59<10*F35),0.9*6.25*F35^2*$B$2*0.5,0.9*6.25*F35^2*$B$2)))) -> 124.3757813 | K35: =IF('Clean Columns'!$Z$67=0,1,1/1.5)*IF('Clean Columns'!$Z$60=2,IF(AND('Clean Columns'!$Z$58,'Clean Columns'!$Z$59<C35),0.5,1)*(6*H35+$B$1+2*$K$1),IF(AND('Clean Columns'!$Z$58,'Clean Columns'!$Z$59<C35),0.5,1)*5*H35+$B$1)*$B$2*E35 -> 114.05625 | L35: =IF('Clean Columns'!$Z$67=0,1,1/1.5)*(IF(AND('Clean Columns'!$Z$58,'Clean Columns'!$Z$59<C35/2),(0.75*0.8*E35^2*(1+((IF($B$1/C35<=0.2,3*$B$1/C35,4*$B$1/C35-0.2))*(E35/F35)^1.5))*SQRT($H$2*$B$2*F35/E35))*0.5,0.75*0.8*E35^2*(1+((3*$B$1/C35)*(E35/F35)^1.5))*SQRT($H$2*$B$2*F35/E35))) -> 151.50298 | M35: =IF('Clean Columns'!$Z$67=0,1,1/1.5)*(IF('Clean Columns'!$Z$57,IF(AND('Clean Columns'!$Z$58,'Clean Columns'!$Z$59<Columns!C35/2),0.9*24*(E35^3)*SQRT($H$2*$B$2)/D35*0.5,0.9*24*(E35^3)*SQRT($H$2*$B$2)/D35),1000000)) -> 113.2050461 | O35: =IF('Clean Columns'!$Z$60=2,Columns!K35,MIN(J35:K35)) -> 114.05625 | P35: =MIN(K35:M35) -> 113.2050461 | Q35: =I35 -> 173.8395 | R35: =MIN(O35:Q35) -> 113.2050461 | S35: =J35 -> 124.3757813 | T35: 980
A37: W16X57 | B37: =VLOOKUP($A37,_xlnm.DataBase,HLOOKUP(B$3,DB_Headers,2,FALSE),FALSE) -> 16.8 | C37: 16.4 | D37: =C37-2*H37 -> 14.16 | E37: =VLOOKUP($A37,_xlnm.DataBase,HLOOKUP(E$3,DB_Headers,2,FALSE),FALSE) -> 0.43 | F37: 0.715 | G37: 7.12 | H37: 1.12 | I37: =IF('Clean Columns'!$Z$67=0,1,1/1.5)*(IF($E$1>0.4*T37,0.9*0.6*$B$2*C37*E37*(1.4-$E$1/T37),0.9*0.6*$B$2*C37*E37)) -> 190.404 | J37: =IF(OR('Clean Columns'!$Z$67=0,'Clean Columns'!$Z$60=2),1,1/1.5)*(IF('Clean Columns'!$Z$60=2,(0.9*$B$2*$M$1*F37^2)/(1.11*0.75)/12,IF($H$1/G37<0.15,1000000,IF(AND('Clean Columns'!$Z$58,'Clean Columns'!$Z$59<10*F37),0.9*6.25*F37^2*$B$2*0.5,0.9*6.25*F37^2*$B$2)))) -> 143.7820312 | K37: =IF('Clean Columns'!$Z$67=0,1,1/1.5)*IF('Clean Columns'!$Z$60=2,IF(AND('Clean Columns'!$Z$58,'Clean Columns'!$Z$59<C37),0.5,1)*(6*H37+$B$1+2*$K$1),IF(AND('Clean Columns'!$Z$58,'Clean Columns'!$Z$59<C37),0.5,1)*5*H37+$B$1)*$B$2*E37 -> 129.5375 | L37: =IF('Clean Columns'!$Z$67=0,1,1/1.5)*(IF(AND('Clean Columns'!$Z$58,'Clean Columns'!$Z$59<C37/2),(0.75*0.8*E37^2*(1+((IF($B$1/C37<=0.2,3*$B$1/C37,4*$B$1/C37-0.2))*(E37/F37)^1.5))*SQRT($H$2*$B$2*F37/E37))*0.5,0.75*0.8*E37^2*(1+((3*$B$1/C37)*(E37/F37)^1.5))*SQRT($H$2*$B$2*F37/E37))) -> 178.508568 | M37: =IF('Clean Columns'!$Z$67=0,1,1/1.5)*(IF('Clean Columns'!$Z$57,IF(AND('Clean Columns'!$Z$58,'Clean Columns'!$Z$59<Columns!C37/2),0.9*24*(E37^3)*SQRT($H$2*$B$2)/D37*0.5,0.9*24*(E37^3)*SQRT($H$2*$B$2)/D37),1000000)) -> 146.0427041 | O37: =IF('Clean Columns'!$Z$60=2,Columns!K37,MIN(J37:K37)) -> 129.5375 | P37: =MIN(K37:M37) -> 129.5375 | Q37: =I37 -> 190.404 | R37: =MIN(O37:Q37) -> 129.5375 | S37: =J37 -> 143.7820312 | T37: 840
A38: W16X50 | B38: 14.7 | C38: 16.3 | D38: =C38-2*H38 -> 14.24 | E38: 0.38 | F38: 0.63 | G38: 7.07 | H38: 1.03 | I38: =IF('Clean Columns'!$Z$67=0,1,1/1.5)*(IF($E$1>0.4*T38,0.9*0.6*$B$2*C38*E38*(1.4-$E$1/T38),0.9*0.6*$B$2*C38*E38)) -> 167.238 | J38: =IF(OR('Clean Columns'!$Z$67=0,'Clean Columns'!$Z$60=2),1,1/1.5)*(IF('Clean Columns'!$Z$60=2,(0.9*$B$2*$M$1*F38^2)/(1.11*0.75)/12,IF($H$1/G38<0.15,1000000,IF(AND('Clean Columns'!$Z$58,'Clean Columns'!$Z$59<10*F38),0.9*6.25*F38^2*$B$2*0.5,0.9*6.25*F38^2*$B$2)))) -> 111.628125 | K38: =IF('Clean Columns'!$Z$67=0,1,1/1.5)*IF('Clean Columns'!$Z$60=2,IF(AND('Clean Columns'!$Z$58,'Clean Columns'!$Z$59<C38),0.5,1)*(6*H38+$B$1+2*$K$1),IF(AND('Clean Columns'!$Z$58,'Clean Columns'!$Z$59<C38),0.5,1)*5*H38+$B$1)*$B$2*E38 -> 105.925 | L38: =IF('Clean Columns'!$Z$67=0,1,1/1.5)*(IF(AND('Clean Columns'!$Z$58,'Clean Columns'!$Z$59<C38/2),(0.75*0.8*E38^2*(1+((IF($B$1/C38<=0.2,3*$B$1/C38,4*$B$1/C38-0.2))*(E38/F38)^1.5))*SQRT($H$2*$B$2*F38/E38))*0.5,0.75*0.8*E38^2*(1+((3*$B$1/C38)*(E38/F38)^1.5))*SQRT($H$2*$B$2*F38/E38))) -> 139.2547454 | M38: =IF('Clean Columns'!$Z$67=0,1,1/1.5)*(IF('Clean Columns'!$Z$57,IF(AND('Clean Columns'!$Z$58,'Clean Columns'!$Z$59<Columns!C38/2),0.9*24*(E38^3)*SQRT($H$2*$B$2)/D38*0.5,0.9*24*(E38^3)*SQRT($H$2*$B$2)/D38),1000000)) -> 100.2255741 | O38: =IF('Clean Columns'!$Z$60=2,Columns!K38,MIN(J38:K38)) -> 105.925 | P38: =MIN(K38:M38) -> 100.2255741 | Q38: =I38 -> 167.238 | R38: =MIN(O38:Q38) -> 100.2255741 | S38: =J38 -> 111.628125 | T38: 735
A39: W16X45 | B39: 13.3 | C39: 16.1 | D39: =C39-2*H39 -> 14.166 | E39: 0.345 | F39: 0.565 | G39: 7.04 | H39: 0.967 | I39: =IF('Clean Columns'!$Z$67=0,1,1/1.5)*(IF($E$1>0.4*T39,0.9*0.6*$B$2*C39*E39*(1.4-$E$1/T39),0.9*0.6*$B$2*C39*E39)) -> 149.9715 | J39: =IF(OR('Clean Columns'!$Z$67=0,'Clean Columns'!$Z$60=2),1,1/1.5)*(IF('Clean Columns'!$Z$60=2,(0.9*$B$2*$M$1*F39^2)/(1.11*0.75)/12,IF($H$1/G39<0.15,1000000,IF(AND('Clean Columns'!$Z$58,'Clean Columns'!$Z$59<10*F39),0.9*6.25*F39^2*$B$2*0.5,0.9*6.25*F39^2*$B$2)))) -> 89.78203125 | K39: =IF('Clean Columns'!$Z$67=0,1,1/1.5)*IF('Clean Columns'!$Z$60=2,IF(AND('Clean Columns'!$Z$58,'Clean Columns'!$Z$59<C39),0.5,1)*(6*H39+$B$1+2*$K$1),IF(AND('Clean Columns'!$Z$58,'Clean Columns'!$Z$59<C39),0.5,1)*5*H39+$B$1)*$B$2*E39 -> 90.735 | L39: =IF('Clean Columns'!$Z$67=0,1,1/1.5)*(IF(AND('Clean Columns'!$Z$58,'Clean Columns'!$Z$59<C39/2),(0.75*0.8*E39^2*(1+((IF($B$1/C39<=0.2,3*$B$1/C39,4*$B$1/C39-0.2))*(E39/F39)^1.5))*SQRT($H$2*$B$2*F39/E39))*0.5,0.75*0.8*E39^2*(1+((3*$B$1/C39)*(E39/F39)^1.5))*SQRT($H$2*$B$2*F39/E39))) -> 114.2079317 | M39: =IF('Clean Columns'!$Z$67=0,1,1/1.5)*(IF('Clean Columns'!$Z$57,IF(AND('Clean Columns'!$Z$58,'Clean Columns'!$Z$59<Columns!C39/2),0.9*24*(E39^3)*SQRT($H$2*$B$2)/D39*0.5,0.9*24*(E39^3)*SQRT($H$2*$B$2)/D39),1000000)) -> 75.3959122 | O39: =IF('Clean Columns'!$Z$60=2,Columns!K39,MIN(J39:K39)) -> 89.78203125 | P39: =MIN(K39:M39) -> 75.3959122 | Q39: =I39 -> 149.9715 | R39: =MIN(O39:Q39) -> 75.3959122 | S39: =J39 -> 89.78203125 | T39: 665
A40: W16X40 | B40: 11.8 | C40: 16 | D40: =C40-2*H40 -> 14.186 | E40: 0.305 | F40: 0.505 | G40: 7 | H40: 0.907 | I40: =IF('Clean Columns'!$Z$67=0,1,1/1.5)*(IF($E$1>0.4*T40,0.9*0.6*$B$2*C40*E40*(1.4-$E$1/T40),0.9*0.6*$B$2*C40*E40)) -> 131.76 | J40: =IF(OR('Clean Columns'!$Z$67=0,'Clean Columns'!$Z$60=2),1,1/1.5)*(IF('Clean Columns'!$Z$60=2,(0.9*$B$2*$M$1*F40^2)/(1.11*0.75)/12,IF($H$1/G40<0.15,1000000,IF(AND('Clean Columns'!$Z$58,'Clean Columns'!$Z$59<10*F40),0.9*6.25*F40^2*$B$2*0.5,0.9*6.25*F40^2*$B$2)))) -> 71.72578125 | K40: =IF('Clean Columns'!$Z$67=0,1,1/1.5)*IF('Clean Columns'!$Z$60=2,IF(AND('Clean Columns'!$Z$58,'Clean Columns'!$Z$59<C40),0.5,1)*(6*H40+$B$1+2*$K$1),IF(AND('Clean Columns'!$Z$58,'Clean Columns'!$Z$59<C40),0.5,1)*5*H40+$B$1)*$B$2*E40 -> 75.64 | L40: =IF('Clean Columns'!$Z$67=0,1,1/1.5)*(IF(AND('Clean Columns'!$Z$58,'Clean Columns'!$Z$59<C40/2),(0.75*0.8*E40^2*(1+((IF($B$1/C40<=0.2,3*$B$1/C40,4*$B$1/C40-0.2))*(E40/F40)^1.5))*SQRT($H$2*$B$2*F40/E40))*0.5,0.75*0.8*E40^2*(1+((3*$B$1/C40)*(E40/F40)^1.5))*SQRT($H$2*$B$2*F40/E40))) -> 89.71768758 | M40: =IF('Clean Columns'!$Z$67=0,1,1/1.5)*(IF('Clean Columns'!$Z$57,IF(AND('Clean Columns'!$Z$58,'Clean Columns'!$Z$59<Columns!C40/2),0.9*24*(E40^3)*SQRT($H$2*$B$2)/D40*0.5,0.9*24*(E40^3)*SQRT($H$2*$B$2)/D40),1000000)) -> 52.02083451 | O40: =IF('Clean Columns'!$Z$60=2,Columns!K40,MIN(J40:K40)) -> 71.72578125 | P40: =MIN(K40:M40) -> 52.02083451 | Q40: =I40 -> 131.76 | R40: =MIN(O40:Q40) -> 52.02083451 | S40: =J40 -> 71.72578125 | T40: 590
A41: W16X36 | B41: 10.6 | C41: 15.9 | D41: =C41-2*H41 -> 14.236 | E41: 0.295 | F41: 0.43 | G41: 6.99 | H41: 0.832 | I41: =IF('Clean Columns'!$Z$67=0,1,1/1.5)*(IF($E$1>0.4*T41,0.9*0.6*$B$2*C41*E41*(1.4-$E$1/T41),0.9*0.6*$B$2*C41*E41)) -> 126.6435 | J41: =IF(OR('Clean Columns'!$Z$67=0,'Clean Columns'!$Z$60=2),1,1/1.5)*(IF('Clean Columns'!$Z$60=2,(0.9*$B$2*$M$1*F41^2)/(1.11*0.75)/12,IF($H$1/G41<0.15,1000000,IF(AND('Clean Columns'!$Z$58,'Clean Columns'!$Z$59<10*F41),0.9*6.25*F41^2*$B$2*0.5,0.9*6.25*F41^2*$B$2)))) -> 52.003125 | K41: =IF('Clean Columns'!$Z$67=0,1,1/1.5)*IF('Clean Columns'!$Z$60=2,IF(AND('Clean Columns'!$Z$58,'Clean Columns'!$Z$59<C41),0.5,1)*(6*H41+$B$1+2*$K$1),IF(AND('Clean Columns'!$Z$58,'Clean Columns'!$Z$59<C41),0.5,1)*5*H41+$B$1)*$B$2*E41 -> 67.62875 | L41: =IF('Clean Columns'!$Z$67=0,1,1/1.5)*(IF(AND('Clean Columns'!$Z$58,'Clean Columns'!$Z$59<C41/2),(0.75*0.8*E41^2*(1+((IF($B$1/C41<=0.2,3*$B$1/C41,4*$B$1/C41-0.2))*(E41/F41)^1.5))*SQRT($H$2*$B$2*F41/E41))*0.5,0.75*0.8*E41^2*(1+((3*$B$1/C41)*(E41/F41)^1.5))*SQRT($H$2*$B$2*F41/E41))) -> 79.36957674 | M41: =IF('Clean Columns'!$Z$67=0,1,1/1.5)*(IF('Clean Columns'!$Z$57,IF(AND('Clean Columns'!$Z$58,'Clean Columns'!$Z$59<Columns!C41/2),0.9*24*(E41^3)*SQRT($H$2*$B$2)/D41*0.5,0.9*24*(E41^3)*SQRT($H$2*$B$2)/D41),1000000)) -> 46.90464149 | O41: =IF('Clean Columns'!$Z$60=2,Columns!K41,MIN(J41:K41)) -> 52.003125 | P41: =MIN(K41:M41) -> 46.90464149 | Q41: =I41 -> 126.6435 | R41: =MIN(O41:Q41) -> 46.90464149 | S41: =J41 -> 52.003125 | T41: 530
A43: W16X31 | B43: =VLOOKUP($A43,_xlnm.DataBase,HLOOKUP(B$3,DB_Headers,2,FALSE),FALSE) -> 9.13 | C43: =VLOOKUP($A43,_xlnm.DataBase,HLOOKUP(C$3,DB_Headers,2,FALSE),FALSE) -> 15.9 | D43: =C43-2*H43 -> 14.216 | E43: =VLOOKUP($A43,_xlnm.DataBase,HLOOKUP(E$3,DB_Headers,2,FALSE),FALSE) -> 0.275 | F43: 0.44 | G43: 5.53 | H43: 0.842 | I43: =IF('Clean Columns'!$Z$67=0,1,1/1.5)*(IF($E$1>0.4*T43,0.9*0.6*$B$2*C43*E43*(1.4-$E$1/T43),0.9*0.6*$B$2*C43*E43)) -> 118.0575 | J43: =IF(OR('Clean Columns'!$Z$67=0,'Clean Columns'!$Z$60=2),1,1/1.5)*(IF('Clean Columns'!$Z$60=2,(0.9*$B$2*$M$1*F43^2)/(1.11*0.75)/12,IF($H$1/G43<0.15,1000000,IF(AND('Clean Columns'!$Z$58,'Clean Columns'!$Z$59<10*F43),0.9*6.25*F43^2*$B$2*0.5,0.9*6.25*F43^2*$B$2)))) -> 54.45 | K43: =IF('Clean Columns'!$Z$67=0,1,1/1.5)*IF('Clean Columns'!$Z$60=2,IF(AND('Clean Columns'!$Z$58,'Clean Columns'!$Z$59<C43),0.5,1)*(6*H43+$B$1+2*$K$1),IF(AND('Clean Columns'!$Z$58,'Clean Columns'!$Z$59<C43),0.5,1)*5*H43+$B$1)*$B$2*E43 -> 63.73125 | L43: =IF('Clean Columns'!$Z$67=0,1,1/1.5)*(IF(AND('Clean Columns'!$Z$58,'Clean Columns'!$Z$59<C43/2),(0.75*0.8*E43^2*(1+((IF($B$1/C43<=0.2,3*$B$1/C43,4*$B$1/C43-0.2))*(E43/F43)^1.5))*SQRT($H$2*$B$2*F43/E43))*0.5,0.75*0.8*E43^2*(1+((3*$B$1/C43)*(E43/F43)^1.5))*SQRT($H$2*$B$2*F43/E43))) -> 71.85152095 | M43: =IF('Clean Columns'!$Z$67=0,1,1/1.5)*(IF('Clean Columns'!$Z$57,IF(AND('Clean Columns'!$Z$58,'Clean Columns'!$Z$59<Columns!C43/2),0.9*24*(E43^3)*SQRT($H$2*$B$2)/D43*0.5,0.9*24*(E43^3)*SQRT($H$2*$B$2)/D43),1000000)) -> 38.05032924 | O43: =IF('Clean Columns'!$Z$60=2,Columns!K43,MIN(J43:K43)) -> 54.45 | P43: =MIN(K43:M43) -> 38.05032924 | Q43: =I43 -> 118.0575 | R43: =MIN(O43:Q43) -> 38.05032924 | S43: =J43 -> 54.45 | T43: 456.5
A44: W16X26 | B44: =VLOOKUP($A44,_xlnm.DataBase,HLOOKUP(B$3,DB_Headers,2,FALSE),FALSE) -> 7.68 | C44: =VLOOKUP($A44,_xlnm.DataBase,HLOOKUP(C$3,DB_Headers,2,FALSE),FALSE) -> 15.7 | D44: =C44-2*H44 -> 14.206 | E44: 0.25 | F44: 0.345 | G44: 5.5 | H44: 0.747 | I44: =IF('Clean Columns'!$Z$67=0,1,1/1.5)*(IF($E$1>0.4*T44,0.9*0.6*$B$2*C44*E44*(1.4-$E$1/T44),0.9*0.6*$B$2*C44*E44)) -> 105.975 | J44: =IF(OR('Clean Columns'!$Z$67=0,'Clean Columns'!$Z$60=2),1,1/1.5)*(IF('Clean Columns'!$Z$60=2,(0.9*$B$2*$M$1*F44^2)/(1.11*0.75)/12,IF($H$1/G44<0.15,1000000,IF(AND('Clean Columns'!$Z$58,'Clean Columns'!$Z$59<10*F44),0.9*6.25*F44^2*$B$2*0.5,0.9*6.25*F44^2*$B$2)))) -> 33.47578125 | K44: =IF('Clean Columns'!$Z$67=0,1,1/1.5)*IF('Clean Columns'!$Z$60=2,IF(AND('Clean Columns'!$Z$58,'Clean Columns'!$Z$59<C44),0.5,1)*(6*H44+$B$1+2*$K$1),IF(AND('Clean Columns'!$Z$58,'Clean Columns'!$Z$59<C44),0.5,1)*5*H44+$B$1)*$B$2*E44 -> 52 | L44: =IF('Clean Columns'!$Z$67=0,1,1/1.5)*(IF(AND('Clean Columns'!$Z$58,'Clean Columns'!$Z$59<C44/2),(0.75*0.8*E44^2*(1+((IF($B$1/C44<=0.2,3*$B$1/C44,4*$B$1/C44-0.2))*(E44/F44)^1.5))*SQRT($H$2*$B$2*F44/E44))*0.5,0.75*0.8*E44^2*(1+((3*$B$1/C44)*(E44/F44)^1.5))*SQRT($H$2*$B$2*F44/E44))) -> 55.70360268 | M44: =IF('Clean Columns'!$Z$67=0,1,1/1.5)*(IF('Clean Columns'!$Z$57,IF(AND('Clean Columns'!$Z$58,'Clean Columns'!$Z$59<Columns!C44/2),0.9*24*(E44^3)*SQRT($H$2*$B$2)/D44*0.5,0.9*24*(E44^3)*SQRT($H$2*$B$2)/D44),1000000)) -> 28.60789927 | O44: =IF('Clean Columns'!$Z$60=2,Columns!K44,MIN(J44:K44)) -> 33.47578125 | P44: =MIN(K44:M44) -> 28.60789927 | Q44: =I44 -> 105.975 | R44: =MIN(O44:Q44) -> 28.60789927 | S44: =J44 -> 33.47578125 | T44: 384
A47: W14X730 | B47: =VLOOKUP($A47,_xlnm.DataBase,HLOOKUP(B$3,DB_Headers,2,FALSE),FALSE) -> 215 | C47: 22.4 | D47: =C47-2*H47 -> 11.38 | E47: =VLOOKUP($A47,_xlnm.DataBase,HLOOKUP(E$3,DB_Headers,2,FALSE),FALSE) -> 3.07 | F47: 4.91 | G47: 17.9 | H47: 5.51 | I47: =IF('Clean Columns'!$Z$67=0,1,1/1.5)*(IF($E$1>0.4*T47,0.9*0.6*$B$2*C47*E47*(1.4-$E$1/T47),0.9*0.6*$B$2*C47*E47)) -> 1856.736 | J47: =IF(OR('Clean Columns'!$Z$67=0,'Clean Columns'!$Z$60=2),1,1/1.5)*(IF('Clean Columns'!$Z$60=2,(0.9*$B$2*$M$1*F47^2)/(1.11*0.75)/12,IF($H$1/G47<0.15,1000000,IF(AND('Clean Columns'!$Z$58,'Clean Columns'!$Z$59<10*F47),0.9*6.25*F47^2*$B$2*0.5,0.9*6.25*F47^2*$B$2)))) -> 6780.403125 | K47: =IF('Clean Columns'!$Z$67=0,1,1/1.5)*IF('Clean Columns'!$Z$60=2,IF(AND('Clean Columns'!$Z$58,'Clean Columns'!$Z$59<C47),0.5,1)*(6*H47+$B$1+2*$K$1),IF(AND('Clean Columns'!$Z$58,'Clean Columns'!$Z$59<C47),0.5,1)*5*H47+$B$1)*$B$2*E47 -> 4294.1625 | L47: =IF('Clean Columns'!$Z$67=0,1,1/1.5)*(IF(AND('Clean Columns'!$Z$58,'Clean Columns'!$Z$59<C47/2),(0.75*0.8*E47^2*(1+((IF($B$1/C47<=0.2,3*$B$1/C47,4*$B$1/C47-0.2))*(E47/F47)^1.5))*SQRT($H$2*$B$2*F47/E47))*0.5,0.75*0.8*E47^2*(1+((3*$B$1/C47)*(E47/F47)^1.5))*SQRT($H$2*$B$2*F47/E47))) -> 8853.937603 | M47: =IF('Clean Columns'!$Z$67=0,1,1/1.5)*(IF('Clean Columns'!$Z$57,IF(AND('Clean Columns'!$Z$58,'Clean Columns'!$Z$59<Columns!C47/2),0.9*24*(E47^3)*SQRT($H$2*$B$2)/D47*0.5,0.9*24*(E47^3)*SQRT($H$2*$B$2)/D47),1000000)) -> 66131.84157 | O47: =IF('Clean Columns'!$Z$60=2,Columns!K47,MIN(J47:K47)) -> 4294.1625 | P47: =MIN(K47:M47) -> 4294.1625 | Q47: =I47 -> 1856.736 | R47: =MIN(O47:Q47) -> 1856.736 | S47: =J47 -> 6780.403125 | T47: 10750
A48: W14X665 | B48: 196 | C48: 21.6 | D48: 11.36 | E48: 2.83 | F48: 4.52 | G48: 17.7 | H48: 5.12 | I48: =IF('Clean Columns'!$Z$67=0,1,1/1.5)*(IF($E$1>0.4*T48,0.9*0.6*$B$2*C48*E48*(1.4-$E$1/T48),0.9*0.6*$B$2*C48*E48)) -> 1650.456 | J48: =IF(OR('Clean Columns'!$Z$67=0,'Clean Columns'!$Z$60=2),1,1/1.5)*(IF('Clean Columns'!$Z$60=2,(0.9*$B$2*$M$1*F48^2)/(1.11*0.75)/12,IF($H$1/G48<0.15,1000000,IF(AND('Clean Columns'!$Z$58,'Clean Columns'!$Z$59<10*F48),0.9*6.25*F48^2*$B$2*0.5,0.9*6.25*F48^2*$B$2)))) -> 5746.05 | K48: =IF('Clean Columns'!$Z$67=0,1,1/1.5)*IF('Clean Columns'!$Z$60=2,IF(AND('Clean Columns'!$Z$58,'Clean Columns'!$Z$59<C48),0.5,1)*(6*H48+$B$1+2*$K$1),IF(AND('Clean Columns'!$Z$58,'Clean Columns'!$Z$59<C48),0.5,1)*5*H48+$B$1)*$B$2*E48 -> 3682.5375 | L48: =IF('Clean Columns'!$Z$67=0,1,1/1.5)*(IF(AND('Clean Columns'!$Z$58,'Clean Columns'!$Z$59<C48/2),(0.75*0.8*E48^2*(1+((IF($B$1/C48<=0.2,3*$B$1/C48,4*$B$1/C48-0.2))*(E48/F48)^1.5))*SQRT($H$2*$B$2*F48/E48))*0.5,0.75*0.8*E48^2*(1+((3*$B$1/C48)*(E48/F48)^1.5))*SQRT($H$2*$B$2*F48/E48))) -> 7526.658804 | M48: =IF('Clean Columns'!$Z$67=0,1,1/1.5)*(IF('Clean Columns'!$Z$57,IF(AND('Clean Columns'!$Z$58,'Clean Columns'!$Z$59<Columns!C48/2),0.9*24*(E48^3)*SQRT($H$2*$B$2)/D48*0.5,0.9*24*(E48^3)*SQRT($H$2*$B$2)/D48),1000000)) -> 51894.18879 | O48: =IF('Clean Columns'!$Z$60=2,Columns!K48,MIN(J48:K48)) -> 3682.5375 | P48: 3682.5375 | Q48: 1650.456 | R48: 1650.456 | S48: 5746.05 | T48: 9800
A49: W14X605 | B49: 178 | C49: 20.9 | D49: 11.38 | E49: 2.6 | F49: 4.16 | G49: 17.4 | H49: 4.76 | I49: =IF('Clean Columns'!$Z$67=0,1,1/1.5)*(IF($E$1>0.4*T49,0.9*0.6*$B$2*C49*E49*(1.4-$E$1/T49),0.9*0.6*$B$2*C49*E49)) -> 1467.18 | J49: =IF(OR('Clean Columns'!$Z$67=0,'Clean Columns'!$Z$60=2),1,1/1.5)*(IF('Clean Columns'!$Z$60=2,(0.9*$B$2*$M$1*F49^2)/(1.11*0.75)/12,IF($H$1/G49<0.15,1000000,IF(AND('Clean Columns'!$Z$58,'Clean Columns'!$Z$59<10*F49),0.9*6.25*F49^2*$B$2*0.5,0.9*6.25*F49^2*$B$2)))) -> 4867.2 | K49: =IF('Clean Columns'!$Z$67=0,1,1/1.5)*IF('Clean Columns'!$Z$60=2,IF(AND('Clean Columns'!$Z$58,'Clean Columns'!$Z$59<C49),0.5,1)*(6*H49+$B$1+2*$K$1),IF(AND('Clean Columns'!$Z$58,'Clean Columns'!$Z$59<C49),0.5,1)*5*H49+$B$1)*$B$2*E49 -> 3149.25 | L49: =IF('Clean Columns'!$Z$67=0,1,1/1.5)*(IF(AND('Clean Columns'!$Z$58,'Clean Columns'!$Z$59<C49/2),(0.75*0.8*E49^2*(1+((IF($B$1/C49<=0.2,3*$B$1/C49,4*$B$1/C49-0.2))*(E49/F49)^1.5))*SQRT($H$2*$B$2*F49/E49))*0.5,0.75*0.8*E49^2*(1+((3*$B$1/C49)*(E49/F49)^1.5))*SQRT($H$2*$B$2*F49/E49))) -> 6364.134947 | M49: =IF('Clean Columns'!$Z$67=0,1,1/1.5)*(IF('Clean Columns'!$Z$57,IF(AND('Clean Columns'!$Z$58,'Clean Columns'!$Z$59<Columns!C49/2),0.9*24*(E49^3)*SQRT($H$2*$B$2)/D49*0.5,0.9*24*(E49^3)*SQRT($H$2*$B$2)/D49),1000000)) -> 40171.26742 | O49: =IF('Clean Columns'!$Z$60=2,Columns!K49,MIN(J49:K49)) -> 3149.25 | P49: 3149.25 | Q49: 1467.18 | R49: 1467.18 | S49: 4867.2 | T49: 8900
A50: W14X550 | B50: 162 | C50: 20.2 | D50: 11.36 | E50: 2.38 | F50: 3.82 | G50: 17.2 | H50: 4.42 | I50: =IF('Clean Columns'!$Z$67=0,1,1/1.5)*(IF($E$1>0.4*T50,0.9*0.6*$B$2*C50*E50*(1.4-$E$1/T50),0.9*0.6*$B$2*C50*E50)) -> 1298.052 | J50: =IF(OR('Clean Columns'!$Z$67=0,'Clean Columns'!$Z$60=2),1,1/1.5)*(IF('Clean Columns'!$Z$60=2,(0.9*$B$2*$M$1*F50^2)/(1.11*0.75)/12,IF($H$1/G50<0.15,1000000,IF(AND('Clean Columns'!$Z$58,'Clean Columns'!$Z$59<10*F50),0.9*6.25*F50^2*$B$2*0.5,0.9*6.25*F50^2*$B$2)))) -> 4104.1125 | K50: =IF('Clean Columns'!$Z$67=0,1,1/1.5)*IF('Clean Columns'!$Z$60=2,IF(AND('Clean Columns'!$Z$58,'Clean Columns'!$Z$59<C50),0.5,1)*(6*H50+$B$1+2*$K$1),IF(AND('Clean Columns'!$Z$58,'Clean Columns'!$Z$59<C50),0.5,1)*5*H50+$B$1)*$B$2*E50 -> 2680.475 | L50: =IF('Clean Columns'!$Z$67=0,1,1/1.5)*(IF(AND('Clean Columns'!$Z$58,'Clean Columns'!$Z$59<C50/2),(0.75*0.8*E50^2*(1+((IF($B$1/C50<=0.2,3*$B$1/C50,4*$B$1/C50-0.2))*(E50/F50)^1.5))*SQRT($H$2*$B$2*F50/E50))*0.5,0.75*0.8*E50^2*(1+((3*$B$1/C50)*(E50/F50)^1.5))*SQRT($H$2*$B$2*F50/E50))) -> 5345.743401 | M50: =IF('Clean Columns'!$Z$67=0,1,1/1.5)*(IF('Clean Columns'!$Z$57,IF(AND('Clean Columns'!$Z$58,'Clean Columns'!$Z$59<Columns!C50/2),0.9*24*(E50^3)*SQRT($H$2*$B$2)/D50*0.5,0.9*24*(E50^3)*SQRT($H$2*$B$2)/D50),1000000)) -> 30866.70647 | O50: =IF('Clean Columns'!$Z$60=2,Columns!K50,MIN(J50:K50)) -> 2680.475 | P50: 2680.475 | Q50: 1298.052 | R50: 1298.052 | S50: 4104.1125 | T50: 8100
A51: W14X500 | B51: 147 | C51: 19.6 | D51: 11.4 | E51: 2.19 | F51: 3.5 | G51: 17 | H51: 4.1 | I51: =IF('Clean Columns'!$Z$67=0,1,1/1.5)*(IF($E$1>0.4*T51,0.9*0.6*$B$2*C51*E51*(1.4-$E$1/T51),0.9*0.6*$B$2*C51*E51)) -> 1158.948 | J51: =IF(OR('Clean Columns'!$Z$67=0,'Clean Columns'!$Z$60=2),1,1/1.5)*(IF('Clean Columns'!$Z$60=2,(0.9*$B$2*$M$1*F51^2)/(1.11*0.75)/12,IF($H$1/G51<0.15,1000000,IF(AND('Clean Columns'!$Z$58,'Clean Columns'!$Z$59<10*F51),0.9*6.25*F51^2*$B$2*0.5,0.9*6.25*F51^2*$B$2)))) -> 3445.3125 | K51: =IF('Clean Columns'!$Z$67=0,1,1/1.5)*IF('Clean Columns'!$Z$60=2,IF(AND('Clean Columns'!$Z$58,'Clean Columns'!$Z$59<C51),0.5,1)*(6*H51+$B$1+2*$K$1),IF(AND('Clean Columns'!$Z$58,'Clean Columns'!$Z$59<C51),0.5,1)*5*H51+$B$1)*$B$2*E51 -> 2291.2875 | L51: =IF('Clean Columns'!$Z$67=0,1,1/1.5)*(IF(AND('Clean Columns'!$Z$58,'Clean Columns'!$Z$59<C51/2),(0.75*0.8*E51^2*(1+((IF($B$1/C51<=0.2,3*$B$1/C51,4*$B$1/C51-0.2))*(E51/F51)^1.5))*SQRT($H$2*$B$2*F51/E51))*0.5,0.75*0.8*E51^2*(1+((3*$B$1/C51)*(E51/F51)^1.5))*SQRT($H$2*$B$2*F51/E51))) -> 4521.662322 | M51: =IF('Clean Columns'!$Z$67=0,1,1/1.5)*(IF('Clean Columns'!$Z$57,IF(AND('Clean Columns'!$Z$58,'Clean Columns'!$Z$59<Columns!C51/2),0.9*24*(E51^3)*SQRT($H$2*$B$2)/D51*0.5,0.9*24*(E51^3)*SQRT($H$2*$B$2)/D51),1000000)) -> 23964.32746 | O51: =IF('Clean Columns'!$Z$60=2,Columns!K51,MIN(J51:K51)) -> 2291.2875 | P51: 2291.2875 | Q51: 1158.948 | R51: 1158.948 | S51: 3445.3125 | T51: 7350
A52: W14X455 | B52: 134 | C52: 19 | D52: 11.38 | E52: 2.02 | F52: 3.21 | G52: 16.8 | H52: 3.81 | I52: =IF('Clean Columns'!$Z$67=0,1,1/1.5)*(IF($E$1>0.4*T52,0.9*0.6*$B$2*C52*E52*(1.4-$E$1/T52),0.9*0.6*$B$2*C52*E52)) -> 1036.26 | J52: =IF(OR('Clean Columns'!$Z$67=0,'Clean Columns'!$Z$60=2),1,1/1.5)*(IF('Clean Columns'!$Z$60=2,(0.9*$B$2*$M$1*F52^2)/(1.11*0.75)/12,IF($H$1/G52<0.15,1000000,IF(AND('Clean Columns'!$Z$58,'Clean Columns'!$Z$59<10*F52),0.9*6.25*F52^2*$B$2*0.5,0.9*6.25*F52^2*$B$2)))) -> 2898.028125 | K52: =IF('Clean Columns'!$Z$67=0,1,1/1.5)*IF('Clean Columns'!$Z$60=2,IF(AND('Clean Columns'!$Z$58,'Clean Columns'!$Z$59<C52),0.5,1)*(6*H52+$B$1+2*$K$1),IF(AND('Clean Columns'!$Z$58,'Clean Columns'!$Z$59<C52),0.5,1)*5*H52+$B$1)*$B$2*E52 -> 1966.975 | L52: =IF('Clean Columns'!$Z$67=0,1,1/1.5)*(IF(AND('Clean Columns'!$Z$58,'Clean Columns'!$Z$59<C52/2),(0.75*0.8*E52^2*(1+((IF($B$1/C52<=0.2,3*$B$1/C52,4*$B$1/C52-0.2))*(E52/F52)^1.5))*SQRT($H$2*$B$2*F52/E52))*0.5,0.75*0.8*E52^2*(1+((3*$B$1/C52)*(E52/F52)^1.5))*SQRT($H$2*$B$2*F52/E52))) -> 3840.826559 | M52: =IF('Clean Columns'!$Z$67=0,1,1/1.5)*(IF('Clean Columns'!$Z$57,IF(AND('Clean Columns'!$Z$58,'Clean Columns'!$Z$59<Columns!C52/2),0.9*24*(E52^3)*SQRT($H$2*$B$2)/D52*0.5,0.9*24*(E52^3)*SQRT($H$2*$B$2)/D52),1000000)) -> 18838.64224 | O52: =IF('Clean Columns'!$Z$60=2,Columns!K52,MIN(J52:K52)) -> 1966.975 | P52: 1966.975 | Q52: 1036.26 | R52: 1036.26 | S52: 2898.028125 | T52: 6700
A54: W14X426 | B54: =VLOOKUP($A54,_xlnm.DataBase,HLOOKUP(B$3,DB_Headers,2,FALSE),FALSE) -> 125 | C54: 18.7 | D54: =C54-2*H54 -> 11.44 | E54: =VLOOKUP($A54,_xlnm.DataBase,HLOOKUP(E$3,DB_Headers,2,FALSE),FALSE) -> 1.88 | F54: 3.04 | G54: 16.7 | H54: 3.63 | I54: =IF('Clean Columns'!$Z$67=0,1,1/1.5)*(IF($E$1>0.4*T54,0.9*0.6*$B$2*C54*E54*(1.4-$E$1/T54),0.9*0.6*$B$2*C54*E54)) -> 949.212 | J54: =IF(OR('Clean Columns'!$Z$67=0,'Clean Columns'!$Z$60=2),1,1/1.5)*(IF('Clean Columns'!$Z$60=2,(0.9*$B$2*$M$1*F54^2)/(1.11*0.75)/12,IF($H$1/G54<0.15,1000000,IF(AND('Clean Columns'!$Z$58,'Clean Columns'!$Z$59<10*F54),0.9*6.25*F54^2*$B$2*0.5,0.9*6.25*F54^2*$B$2)))) -> 2599.2 | K54: =IF('Clean Columns'!$Z$67=0,1,1/1.5)*IF('Clean Columns'!$Z$60=2,IF(AND('Clean Columns'!$Z$58,'Clean Columns'!$Z$59<C54),0.5,1)*(6*H54+$B$1+2*$K$1),IF(AND('Clean Columns'!$Z$58,'Clean Columns'!$Z$59<C54),0.5,1)*5*H54+$B$1)*$B$2*E54 -> 1746.05 | L54: =IF('Clean Columns'!$Z$67=0,1,1/1.5)*(IF(AND('Clean Columns'!$Z$58,'Clean Columns'!$Z$59<C54/2),(0.75*0.8*E54^2*(1+((IF($B$1/C54<=0.2,3*$B$1/C54,4*$B$1/C54-0.2))*(E54/F54)^1.5))*SQRT($H$2*$B$2*F54/E54))*0.5,0.75*0.8*E54^2*(1+((3*$B$1/C54)*(E54/F54)^1.5))*SQRT($H$2*$B$2*F54/E54))) -> 3354.870598 | M54: =IF('Clean Columns'!$Z$67=0,1,1/1.5)*(IF('Clean Columns'!$Z$57,IF(AND('Clean Columns'!$Z$58,'Clean Columns'!$Z$59<Columns!C54/2),0.9*24*(E54^3)*SQRT($H$2*$B$2)/D54*0.5,0.9*24*(E54^3)*SQRT($H$2*$B$2)/D54),1000000)) -> 15107.24511 | O54: =IF('Clean Columns'!$Z$60=2,Columns!K54,MIN(J54:K54)) -> 1746.05 | P54: =MIN(K54:M54) -> 1746.05 | Q54: =I54 -> 949.212 | R54: =MIN(O54:Q54) -> 949.212 | S54: =J54 -> 2599.2 | T54: 6250
A55: W14X398 | B55: 117 | C55: 18.3 | D55: 11.42 | E55: 1.77 | F55: 2.85 | G55: 16.6 | H55: 3.44 | I55: =IF('Clean Columns'!$Z$67=0,1,1/1.5)*(IF($E$1>0.4*T55,0.9*0.6*$B$2*C55*E55*(1.4-$E$1/T55),0.9*0.6*$B$2*C55*E55)) -> 874.557 | J55: =IF(OR('Clean Columns'!$Z$67=0,'Clean Columns'!$Z$60=2),1,1/1.5)*(IF('Clean Columns'!$Z$60=2,(0.9*$B$2*$M$1*F55^2)/(1.11*0.75)/12,IF($H$1/G55<0.15,1000000,IF(AND('Clean Columns'!$Z$58,'Clean Columns'!$Z$59<10*F55),0.9*6.25*F55^2*$B$2*0.5,0.9*6.25*F55^2*$B$2)))) -> 2284.453125 | K55: =IF('Clean Columns'!$Z$67=0,1,1/1.5)*IF('Clean Columns'!$Z$60=2,IF(AND('Clean Columns'!$Z$58,'Clean Columns'!$Z$59<C55),0.5,1)*(6*H55+$B$1+2*$K$1),IF(AND('Clean Columns'!$Z$58,'Clean Columns'!$Z$59<C55),0.5,1)*5*H55+$B$1)*$B$2*E55 -> 1559.8125 | L55: =IF('Clean Columns'!$Z$67=0,1,1/1.5)*(IF(AND('Clean Columns'!$Z$58,'Clean Columns'!$Z$59<C55/2),(0.75*0.8*E55^2*(1+((IF($B$1/C55<=0.2,3*$B$1/C55,4*$B$1/C55-0.2))*(E55/F55)^1.5))*SQRT($H$2*$B$2*F55/E55))*0.5,0.75*0.8*E55^2*(1+((3*$B$1/C55)*(E55/F55)^1.5))*SQRT($H$2*$B$2*F55/E55))) -> 2970.161272 | M55: =IF('Clean Columns'!$Z$67=0,1,1/1.5)*(IF('Clean Columns'!$Z$57,IF(AND('Clean Columns'!$Z$58,'Clean Columns'!$Z$59<Columns!C55/2),0.9*24*(E55^3)*SQRT($H$2*$B$2)/D55*0.5,0.9*24*(E55^3)*SQRT($H$2*$B$2)/D55),1000000)) -> 12629.65384 | O55: =IF('Clean Columns'!$Z$60=2,Columns!K55,MIN(J55:K55)) -> 1559.8125 | P55: 1559.8125 | Q55: 874.557 | R55: 874.557 | S55: 2284.453125 | T55: 5850
A56: W14X370 | B56: 109 | C56: 17.9 | D56: 11.38 | E56: 1.66 | F56: 2.66 | G56: 16.5 | H56: 3.26 | I56: =IF('Clean Columns'!$Z$67=0,1,1/1.5)*(IF($E$1>0.4*T56,0.9*0.6*$B$2*C56*E56*(1.4-$E$1/T56),0.9*0.6*$B$2*C56*E56)) -> 802.278 | J56: =IF(OR('Clean Columns'!$Z$67=0,'Clean Columns'!$Z$60=2),1,1/1.5)*(IF('Clean Columns'!$Z$60=2,(0.9*$B$2*$M$1*F56^2)/(1.11*0.75)/12,IF($H$1/G56<0.15,1000000,IF(AND('Clean Columns'!$Z$58,'Clean Columns'!$Z$59<10*F56),0.9*6.25*F56^2*$B$2*0.5,0.9*6.25*F56^2*$B$2)))) -> 1990.0125 | K56: =IF('Clean Columns'!$Z$67=0,1,1/1.5)*IF('Clean Columns'!$Z$60=2,IF(AND('Clean Columns'!$Z$58,'Clean Columns'!$Z$59<C56),0.5,1)*(6*H56+$B$1+2*$K$1),IF(AND('Clean Columns'!$Z$58,'Clean Columns'!$Z$59<C56),0.5,1)*5*H56+$B$1)*$B$2*E56 -> 1388.175 | L56: =IF('Clean Columns'!$Z$67=0,1,1/1.5)*(IF(AND('Clean Columns'!$Z$58,'Clean Columns'!$Z$59<C56/2),(0.75*0.8*E56^2*(1+((IF($B$1/C56<=0.2,3*$B$1/C56,4*$B$1/C56-0.2))*(E56/F56)^1.5))*SQRT($H$2*$B$2*F56/E56))*0.5,0.75*0.8*E56^2*(1+((3*$B$1/C56)*(E56/F56)^1.5))*SQRT($H$2*$B$2*F56/E56))) -> 2608.71686 | M56: =IF('Clean Columns'!$Z$67=0,1,1/1.5)*(IF('Clean Columns'!$Z$57,IF(AND('Clean Columns'!$Z$58,'Clean Columns'!$Z$59<Columns!C56/2),0.9*24*(E56^3)*SQRT($H$2*$B$2)/D56*0.5,0.9*24*(E56^3)*SQRT($H$2*$B$2)/D56),1000000)) -> 10454.8969 | O56: =IF('Clean Columns'!$Z$60=2,Columns!K56,MIN(J56:K56)) -> 1388.175 | P56: 1388.175 | Q56: 802.278 | R56: 802.278 | S56: 1990.0125 | T56: 5450
A57: W14X342 | B57: 101 | C57: 17.5 | D57: 11.36 | E57: 1.54 | F57: 2.47 | G57: 16.4 | H57: 3.07 | I57: =IF('Clean Columns'!$Z$67=0,1,1/1.5)*(IF($E$1>0.4*T57,0.9*0.6*$B$2*C57*E57*(1.4-$E$1/T57),0.9*0.6*$B$2*C57*E57)) -> 727.65 | J57: =IF(OR('Clean Columns'!$Z$67=0,'Clean Columns'!$Z$60=2),1,1/1.5)*(IF('Clean Columns'!$Z$60=2,(0.9*$B$2*$M$1*F57^2)/(1.11*0.75)/12,IF($H$1/G57<0.15,1000000,IF(AND('Clean Columns'!$Z$58,'Clean Columns'!$Z$59<10*F57),0.9*6.25*F57^2*$B$2*0.5,0.9*6.25*F57^2*$B$2)))) -> 1715.878125 | K57: =IF('Clean Columns'!$Z$67=0,1,1/1.5)*IF('Clean Columns'!$Z$60=2,IF(AND('Clean Columns'!$Z$58,'Clean Columns'!$Z$59<C57),0.5,1)*(6*H57+$B$1+2*$K$1),IF(AND('Clean Columns'!$Z$58,'Clean Columns'!$Z$59<C57),0.5,1)*5*H57+$B$1)*$B$2*E57 -> 1214.675 | L57: =IF('Clean Columns'!$Z$67=0,1,1/1.5)*(IF(AND('Clean Columns'!$Z$58,'Clean Columns'!$Z$59<C57/2),(0.75*0.8*E57^2*(1+((IF($B$1/C57<=0.2,3*$B$1/C57,4*$B$1/C57-0.2))*(E57/F57)^1.5))*SQRT($H$2*$B$2*F57/E57))*0.5,0.75*0.8*E57^2*(1+((3*$B$1/C57)*(E57/F57)^1.5))*SQRT($H$2*$B$2*F57/E57))) -> 2247.859943 | M57: =IF('Clean Columns'!$Z$67=0,1,1/1.5)*(IF('Clean Columns'!$Z$57,IF(AND('Clean Columns'!$Z$58,'Clean Columns'!$Z$59<Columns!C57/2),0.9*24*(E57^3)*SQRT($H$2*$B$2)/D57*0.5,0.9*24*(E57^3)*SQRT($H$2*$B$2)/D57),1000000)) -> 8362.21989 | O57: =IF('Clean Columns'!$Z$60=2,Columns!K57,MIN(J57:K57)) -> 1214.675 | P57: 1214.675 | Q57: 727.65 | R57: 727.65 | S57: 1715.878125 | T57: 5050
A58: W14X311 | B58: 91.4 | C58: 17.1 | D58: 11.38 | E58: 1.41 | F58: 2.26 | G58: 16.2 | H58: 2.86 | I58: =IF('Clean Columns'!$Z$67=0,1,1/1.5)*(IF($E$1>0.4*T58,0.9*0.6*$B$2*C58*E58*(1.4-$E$1/T58),0.9*0.6*$B$2*C58*E58)) -> 650.997 | J58: =IF(OR('Clean Columns'!$Z$67=0,'Clean Columns'!$Z$60=2),1,1/1.5)*(IF('Clean Columns'!$Z$60=2,(0.9*$B$2*$M$1*F58^2)/(1.11*0.75)/12,IF($H$1/G58<0.15,1000000,IF(AND('Clean Columns'!$Z$58,'Clean Columns'!$Z$59<10*F58),0.9*6.25*F58^2*$B$2*0.5,0.9*6.25*F58^2*$B$2)))) -> 1436.5125 | K58: =IF('Clean Columns'!$Z$67=0,1,1/1.5)*IF('Clean Columns'!$Z$60=2,IF(AND('Clean Columns'!$Z$58,'Clean Columns'!$Z$59<C58),0.5,1)*(6*H58+$B$1+2*$K$1),IF(AND('Clean Columns'!$Z$58,'Clean Columns'!$Z$59<C58),0.5,1)*5*H58+$B$1)*$B$2*E58 -> 1038.1125 | L58: =IF('Clean Columns'!$Z$67=0,1,1/1.5)*(IF(AND('Clean Columns'!$Z$58,'Clean Columns'!$Z$59<C58/2),(0.75*0.8*E58^2*(1+((IF($B$1/C58<=0.2,3*$B$1/C58,4*$B$1/C58-0.2))*(E58/F58)^1.5))*SQRT($H$2*$B$2*F58/E58))*0.5,0.75*0.8*E58^2*(1+((3*$B$1/C58)*(E58/F58)^1.5))*SQRT($H$2*$B$2*F58/E58))) -> 1885.338975 | M58: =IF('Clean Columns'!$Z$67=0,1,1/1.5)*(IF('Clean Columns'!$Z$57,IF(AND('Clean Columns'!$Z$58,'Clean Columns'!$Z$59<Columns!C58/2),0.9*24*(E58^3)*SQRT($H$2*$B$2)/D58*0.5,0.9*24*(E58^3)*SQRT($H$2*$B$2)/D58),1000000)) -> 6406.972032 | O58: =IF('Clean Columns'!$Z$60=2,Columns!K58,MIN(J58:K58)) -> 1038.1125 | P58: 1038.1125 | Q58: 650.997 | R58: 650.997 | S58: 1436.5125 | T58: 4570
A59: W14X283 | B59: 83.3 | C59: 16.7 | D59: 11.36 | E59: 1.29 | F59: 2.07 | G59: 16.1 | H59: 2.67 | I59: =IF('Clean Columns'!$Z$67=0,1,1/1.5)*(IF($E$1>0.4*T59,0.9*0.6*$B$2*C59*E59*(1.4-$E$1/T59),0.9*0.6*$B$2*C59*E59)) -> 581.661 | J59: =IF(OR('Clean Columns'!$Z$67=0,'Clean Columns'!$Z$60=2),1,1/1.5)*(IF('Clean Columns'!$Z$60=2,(0.9*$B$2*$M$1*F59^2)/(1.11*0.75)/12,IF($H$1/G59<0.15,1000000,IF(AND('Clean Columns'!$Z$58,'Clean Columns'!$Z$59<10*F59),0.9*6.25*F59^2*$B$2*0.5,0.9*6.25*F59^2*$B$2)))) -> 1205.128125 | K59: =IF('Clean Columns'!$Z$67=0,1,1/1.5)*IF('Clean Columns'!$Z$60=2,IF(AND('Clean Columns'!$Z$58,'Clean Columns'!$Z$59<C59),0.5,1)*(6*H59+$B$1+2*$K$1),IF(AND('Clean Columns'!$Z$58,'Clean Columns'!$Z$59<C59),0.5,1)*5*H59+$B$1)*$B$2*E59 -> 888.4875 | L59: =IF('Clean Columns'!$Z$67=0,1,1/1.5)*(IF(AND('Clean Columns'!$Z$58,'Clean Columns'!$Z$59<C59/2),(0.75*0.8*E59^2*(1+((IF($B$1/C59<=0.2,3*$B$1/C59,4*$B$1/C59-0.2))*(E59/F59)^1.5))*SQRT($H$2*$B$2*F59/E59))*0.5,0.75*0.8*E59^2*(1+((3*$B$1/C59)*(E59/F59)^1.5))*SQRT($H$2*$B$2*F59/E59))) -> 1580.222015 | M59: =IF('Clean Columns'!$Z$67=0,1,1/1.5)*(IF('Clean Columns'!$Z$57,IF(AND('Clean Columns'!$Z$58,'Clean Columns'!$Z$59<Columns!C59/2),0.9*24*(E59^3)*SQRT($H$2*$B$2)/D59*0.5,0.9*24*(E59^3)*SQRT($H$2*$B$2)/D59),1000000)) -> 4915.056922 | O59: =IF('Clean Columns'!$Z$60=2,Columns!K59,MIN(J59:K59)) -> 888.4875 | P59: 888.4875 | Q59: 581.661 | R59: 581.661 | S59: 1205.128125 | T59: 4165
A60: W14X257 | B60: 75.6 | C60: 16.4 | D60: 11.42 | E60: 1.18 | F60: 1.89 | G60: 16 | H60: 2.49 | I60: =IF('Clean Columns'!$Z$67=0,1,1/1.5)*(IF($E$1>0.4*T60,0.9*0.6*$B$2*C60*E60*(1.4-$E$1/T60),0.9*0.6*$B$2*C60*E60)) -> 522.504 | J60: =IF(OR('Clean Columns'!$Z$67=0,'Clean Columns'!$Z$60=2),1,1/1.5)*(IF('Clean Columns'!$Z$60=2,(0.9*$B$2*$M$1*F60^2)/(1.11*0.75)/12,IF($H$1/G60<0.15,1000000,IF(AND('Clean Columns'!$Z$58,'Clean Columns'!$Z$59<10*F60),0.9*6.25*F60^2*$B$2*0.5,0.9*6.25*F60^2*$B$2)))) -> 1004.653125 | K60: =IF('Clean Columns'!$Z$67=0,1,1/1.5)*IF('Clean Columns'!$Z$60=2,IF(AND('Clean Columns'!$Z$58,'Clean Columns'!$Z$59<C60),0.5,1)*(6*H60+$B$1+2*$K$1),IF(AND('Clean Columns'!$Z$58,'Clean Columns'!$Z$59<C60),0.5,1)*5*H60+$B$1)*$B$2*E60 -> 759.625 | L60: =IF('Clean Columns'!$Z$67=0,1,1/1.5)*(IF(AND('Clean Columns'!$Z$58,'Clean Columns'!$Z$59<C60/2),(0.75*0.8*E60^2*(1+((IF($B$1/C60<=0.2,3*$B$1/C60,4*$B$1/C60-0.2))*(E60/F60)^1.5))*SQRT($H$2*$B$2*F60/E60))*0.5,0.75*0.8*E60^2*(1+((3*$B$1/C60)*(E60/F60)^1.5))*SQRT($H$2*$B$2*F60/E60))) -> 1322.008011 | M60: =IF('Clean Columns'!$Z$67=0,1,1/1.5)*(IF('Clean Columns'!$Z$57,IF(AND('Clean Columns'!$Z$58,'Clean Columns'!$Z$59<Columns!C60/2),0.9*24*(E60^3)*SQRT($H$2*$B$2)/D60*0.5,0.9*24*(E60^3)*SQRT($H$2*$B$2)/D60),1000000)) -> 3742.119657 | O60: =IF('Clean Columns'!$Z$60=2,Columns!K60,MIN(J60:K60)) -> 759.625 | P60: 759.625 | Q60: 522.504 | R60: 522.504 | S60: 1004.653125 | T60: 3780
A61: W14X233 | B61: 68.5 | C61: 16 | D61: 11.36 | E61: 1.07 | F61: 1.72 | G61: 15.9 | H61: 2.32 | I61: =IF('Clean Columns'!$Z$67=0,1,1/1.5)*(IF($E$1>0.4*T61,0.9*0.6*$B$2*C61*E61*(1.4-$E$1/T61),0.9*0.6*$B$2*C61*E61)) -> 462.24 | J61: =IF(OR('Clean Columns'!$Z$67=0,'Clean Columns'!$Z$60=2),1,1/1.5)*(IF('Clean Columns'!$Z$60=2,(0.9*$B$2*$M$1*F61^2)/(1.11*0.75)/12,IF($H$1/G61<0.15,1000000,IF(AND('Clean Columns'!$Z$58,'Clean Columns'!$Z$59<10*F61),0.9*6.25*F61^2*$B$2*0.5,0.9*6.25*F61^2*$B$2)))) -> 832.05 | K61: =IF('Clean Columns'!$Z$67=0,1,1/1.5)*IF('Clean Columns'!$Z$60=2,IF(AND('Clean Columns'!$Z$58,'Clean Columns'!$Z$59<C61),0.5,1)*(6*H61+$B$1+2*$K$1),IF(AND('Clean Columns'!$Z$58,'Clean Columns'!$Z$59<C61),0.5,1)*5*H61+$B$1)*$B$2*E61 -> 643.3375 | L61: =IF('Clean Columns'!$Z$67=0,1,1/1.5)*(IF(AND('Clean Columns'!$Z$58,'Clean Columns'!$Z$59<C61/2),(0.75*0.8*E61^2*(1+((IF($B$1/C61<=0.2,3*$B$1/C61,4*$B$1/C61-0.2))*(E61/F61)^1.5))*SQRT($H$2*$B$2*F61/E61))*0.5,0.75*0.8*E61^2*(1+((3*$B$1/C61)*(E61/F61)^1.5))*SQRT($H$2*$B$2*F61/E61))) -> 1089.763737 | M61: =IF('Clean Columns'!$Z$67=0,1,1/1.5)*(IF('Clean Columns'!$Z$57,IF(AND('Clean Columns'!$Z$58,'Clean Columns'!$Z$59<Columns!C61/2),0.9*24*(E61^3)*SQRT($H$2*$B$2)/D61*0.5,0.9*24*(E61^3)*SQRT($H$2*$B$2)/D61),1000000)) -> 2804.85719 | O61: =IF('Clean Columns'!$Z$60=2,Columns!K61,MIN(J61:K61)) -> 643.3375 | P61: 643.3375 | Q61: 462.24 | R61: 462.24 | S61: 832.05 | T61: 3425
A62: W14X211 | B62: 62 | C62: 15.7 | D62: 11.38 | E62: 0.98 | F62: 1.56 | G62: 15.8 | H62: 2.16 | I62: =IF('Clean Columns'!$Z$67=0,1,1/1.5)*(IF($E$1>0.4*T62,0.9*0.6*$B$2*C62*E62*(1.4-$E$1/T62),0.9*0.6*$B$2*C62*E62)) -> 415.422 | J62: =IF(OR('Clean Columns'!$Z$67=0,'Clean Columns'!$Z$60=2),1,1/1.5)*(IF('Clean Columns'!$Z$60=2,(0.9*$B$2*$M$1*F62^2)/(1.11*0.75)/12,IF($H$1/G62<0.15,1000000,IF(AND('Clean Columns'!$Z$58,'Clean Columns'!$Z$59<10*F62),0.9*6.25*F62^2*$B$2*0.5,0.9*6.25*F62^2*$B$2)))) -> 684.45 | K62: =IF('Clean Columns'!$Z$67=0,1,1/1.5)*IF('Clean Columns'!$Z$60=2,IF(AND('Clean Columns'!$Z$58,'Clean Columns'!$Z$59<C62),0.5,1)*(6*H62+$B$1+2*$K$1),IF(AND('Clean Columns'!$Z$58,'Clean Columns'!$Z$59<C62),0.5,1)*5*H62+$B$1)*$B$2*E62 -> 550.025 | L62: =IF('Clean Columns'!$Z$67=0,1,1/1.5)*(IF(AND('Clean Columns'!$Z$58,'Clean Columns'!$Z$59<C62/2),(0.75*0.8*E62^2*(1+((IF($B$1/C62<=0.2,3*$B$1/C62,4*$B$1/C62-0.2))*(E62/F62)^1.5))*SQRT($H$2*$B$2*F62/E62))*0.5,0.75*0.8*E62^2*(1+((3*$B$1/C62)*(E62/F62)^1.5))*SQRT($H$2*$B$2*F62/E62))) -> 910.8604046 | M62: =IF('Clean Columns'!$Z$67=0,1,1/1.5)*(IF('Clean Columns'!$Z$57,IF(AND('Clean Columns'!$Z$58,'Clean Columns'!$Z$59<Columns!C62/2),0.9*24*(E62^3)*SQRT($H$2*$B$2)/D62*0.5,0.9*24*(E62^3)*SQRT($H$2*$B$2)/D62),1000000)) -> 2151.164971 | O62: =IF('Clean Columns'!$Z$60=2,Columns!K62,MIN(J62:K62)) -> 550.025 | P62: 550.025 | Q62: 415.422 | R62: 415.422 | S62: 684.45 | T62: 3100
A63: W14X193 | B63: 56.8 | C63: 15.5 | D63: 11.42 | E63: 0.89 | F63: 1.44 | G63: 15.7 | H63: 2.04 | I63: =IF('Clean Columns'!$Z$67=0,1,1/1.5)*(IF($E$1>0.4*T63,0.9*0.6*$B$2*C63*E63*(1.4-$E$1/T63),0.9*0.6*$B$2*C63*E63)) -> 372.465 | J63: =IF(OR('Clean Columns'!$Z$67=0,'Clean Columns'!$Z$60=2),1,1/1.5)*(IF('Clean Columns'!$Z$60=2,(0.9*$B$2*$M$1*F63^2)/(1.11*0.75)/12,IF($H$1/G63<0.15,1000000,IF(AND('Clean Columns'!$Z$58,'Clean Columns'!$Z$59<10*F63),0.9*6.25*F63^2*$B$2*0.5,0.9*6.25*F63^2*$B$2)))) -> 583.2 | K63: =IF('Clean Columns'!$Z$67=0,1,1/1.5)*IF('Clean Columns'!$Z$60=2,IF(AND('Clean Columns'!$Z$58,'Clean Columns'!$Z$59<C63),0.5,1)*(6*H63+$B$1+2*$K$1),IF(AND('Clean Columns'!$Z$58,'Clean Columns'!$Z$59<C63),0.5,1)*5*H63+$B$1)*$B$2*E63 -> 472.8125 | L63: =IF('Clean Columns'!$Z$67=0,1,1/1.5)*(IF(AND('Clean Columns'!$Z$58,'Clean Columns'!$Z$59<C63/2),(0.75*0.8*E63^2*(1+((IF($B$1/C63<=0.2,3*$B$1/C63,4*$B$1/C63-0.2))*(E63/F63)^1.5))*SQRT($H$2*$B$2*F63/E63))*0.5,0.75*0.8*E63^2*(1+((3*$B$1/C63)*(E63/F63)^1.5))*SQRT($H$2*$B$2*F63/E63))) -> 757.0451227 | M63: =IF('Clean Columns'!$Z$67=0,1,1/1.5)*(IF('Clean Columns'!$Z$57,IF(AND('Clean Columns'!$Z$58,'Clean Columns'!$Z$59<Columns!C63/2),0.9*24*(E63^3)*SQRT($H$2*$B$2)/D63*0.5,0.9*24*(E63^3)*SQRT($H$2*$B$2)/D63),1000000)) -> 1605.61593 | O63: =IF('Clean Columns'!$Z$60=2,Columns!K63,MIN(J63:K63)) -> 472.8125 | P63: 472.8125 | Q63: 372.465 | R63: 372.465 | S63: 583.2 | T63: 2840
A64: W14X176 | B64: 51.8 | C64: 15.2 | D64: 11.38 | E64: 0.83 | F64: 1.31 | G64: 15.7 | H64: 1.91 | I64: =IF('Clean Columns'!$Z$67=0,1,1/1.5)*(IF($E$1>0.4*T64,0.9*0.6*$B$2*C64*E64*(1.4-$E$1/T64),0.9*0.6*$B$2*C64*E64)) -> 340.632 | J64: =IF(OR('Clean Columns'!$Z$67=0,'Clean Columns'!$Z$60=2),1,1/1.5)*(IF('Clean Columns'!$Z$60=2,(0.9*$B$2*$M$1*F64^2)/(1.11*0.75)/12,IF($H$1/G64<0.15,1000000,IF(AND('Clean Columns'!$Z$58,'Clean Columns'!$Z$59<10*F64),0.9*6.25*F64^2*$B$2*0.5,0.9*6.25*F64^2*$B$2)))) -> 482.653125 | K64: =IF('Clean Columns'!$Z$67=0,1,1/1.5)*IF('Clean Columns'!$Z$60=2,IF(AND('Clean Columns'!$Z$58,'Clean Columns'!$Z$59<C64),0.5,1)*(6*H64+$B$1+2*$K$1),IF(AND('Clean Columns'!$Z$58,'Clean Columns'!$Z$59<C64),0.5,1)*5*H64+$B$1)*$B$2*E64 -> 413.9625 | L64: =IF('Clean Columns'!$Z$67=0,1,1/1.5)*(IF(AND('Clean Columns'!$Z$58,'Clean Columns'!$Z$59<C64/2),(0.75*0.8*E64^2*(1+((IF($B$1/C64<=0.2,3*$B$1/C64,4*$B$1/C64-0.2))*(E64/F64)^1.5))*SQRT($H$2*$B$2*F64/E64))*0.5,0.75*0.8*E64^2*(1+((3*$B$1/C64)*(E64/F64)^1.5))*SQRT($H$2*$B$2*F64/E64))) -> 651.751822 | M64: =IF('Clean Columns'!$Z$67=0,1,1/1.5)*(IF('Clean Columns'!$Z$57,IF(AND('Clean Columns'!$Z$58,'Clean Columns'!$Z$59<Columns!C64/2),0.9*24*(E64^3)*SQRT($H$2*$B$2)/D64*0.5,0.9*24*(E64^3)*SQRT($H$2*$B$2)/D64),1000000)) -> 1306.862112 | O64: =IF('Clean Columns'!$Z$60=2,Columns!K64,MIN(J64:K64)) -> 413.9625 | P64: 413.9625 | Q64: 340.632 | R64: 340.632 | S64: 482.653125 | T64: 2590
A65: W14X159 | B65: 46.7 | C65: 15 | D65: 11.42 | E65: 0.745 | F65: 1.19 | G65: 15.6 | H65: 1.79 | I65: =IF('Clean Columns'!$Z$67=0,1,1/1.5)*(IF($E$1>0.4*T65,0.9*0.6*$B$2*C65*E65*(1.4-$E$1/T65),0.9*0.6*$B$2*C65*E65)) -> 301.725 | J65: =IF(OR('Clean Columns'!$Z$67=0,'Clean Columns'!$Z$60=2),1,1/1.5)*(IF('Clean Columns'!$Z$60=2,(0.9*$B$2*$M$1*F65^2)/(1.11*0.75)/12,IF($H$1/G65<0.15,1000000,IF(AND('Clean Columns'!$Z$58,'Clean Columns'!$Z$59<10*F65),0.9*6.25*F65^2*$B$2*0.5,0.9*6.25*F65^2*$B$2)))) -> 398.278125 | K65: =IF('Clean Columns'!$Z$67=0,1,1/1.5)*IF('Clean Columns'!$Z$60=2,IF(AND('Clean Columns'!$Z$58,'Clean Columns'!$Z$59<C65),0.5,1)*(6*H65+$B$1+2*$K$1),IF(AND('Clean Columns'!$Z$58,'Clean Columns'!$Z$59<C65),0.5,1)*5*H65+$B$1)*$B$2*E65 -> 349.21875 | L65: =IF('Clean Columns'!$Z$67=0,1,1/1.5)*(IF(AND('Clean Columns'!$Z$58,'Clean Columns'!$Z$59<C65/2),(0.75*0.8*E65^2*(1+((IF($B$1/C65<=0.2,3*$B$1/C65,4*$B$1/C65-0.2))*(E65/F65)^1.5))*SQRT($H$2*$B$2*F65/E65))*0.5,0.75*0.8*E65^2*(1+((3*$B$1/C65)*(E65/F65)^1.5))*SQRT($H$2*$B$2*F65/E65))) -> 528.146723 | M65: =IF('Clean Columns'!$Z$67=0,1,1/1.5)*(IF('Clean Columns'!$Z$57,IF(AND('Clean Columns'!$Z$58,'Clean Columns'!$Z$59<Columns!C65/2),0.9*24*(E65^3)*SQRT($H$2*$B$2)/D65*0.5,0.9*24*(E65^3)*SQRT($H$2*$B$2)/D65),1000000)) -> 941.7604905 | O65: =IF('Clean Columns'!$Z$60=2,Columns!K65,MIN(J65:K65)) -> 349.21875 | P65: 349.21875 | Q65: 301.725 | R65: 301.725 | S65: 398.278125 | T65: 2335
A66: W14X145 | B66: 42.7 | C66: 14.8 | D66: 11.42 | E66: 0.68 | F66: 1.09 | G66: 15.5 | H66: 1.69 | I66: =IF('Clean Columns'!$Z$67=0,1,1/1.5)*(IF($E$1>0.4*T66,0.9*0.6*$B$2*C66*E66*(1.4-$E$1/T66),0.9*0.6*$B$2*C66*E66)) -> 271.728 | J66: =IF(OR('Clean Columns'!$Z$67=0,'Clean Columns'!$Z$60=2),1,1/1.5)*(IF('Clean Columns'!$Z$60=2,(0.9*$B$2*$M$1*F66^2)/(1.11*0.75)/12,IF($H$1/G66<0.15,1000000,IF(AND('Clean Columns'!$Z$58,'Clean Columns'!$Z$59<10*F66),0.9*6.25*F66^2*$B$2*0.5,0.9*6.25*F66^2*$B$2)))) -> 334.153125 | K66: =IF('Clean Columns'!$Z$67=0,1,1/1.5)*IF('Clean Columns'!$Z$60=2,IF(AND('Clean Columns'!$Z$58,'Clean Columns'!$Z$59<C66),0.5,1)*(6*H66+$B$1+2*$K$1),IF(AND('Clean Columns'!$Z$58,'Clean Columns'!$Z$59<C66),0.5,1)*5*H66+$B$1)*$B$2*E66 -> 301.75 | L66: =IF('Clean Columns'!$Z$67=0,1,1/1.5)*(IF(AND('Clean Columns'!$Z$58,'Clean Columns'!$Z$59<C66/2),(0.75*0.8*E66^2*(1+((IF($B$1/C66<=0.2,3*$B$1/C66,4*$B$1/C66-0.2))*(E66/F66)^1.5))*SQRT($H$2*$B$2*F66/E66))*0.5,0.75*0.8*E66^2*(1+((3*$B$1/C66)*(E66/F66)^1.5))*SQRT($H$2*$B$2*F66/E66))) -> 440.9271843 | M66: =IF('Clean Columns'!$Z$67=0,1,1/1.5)*(IF('Clean Columns'!$Z$57,IF(AND('Clean Columns'!$Z$58,'Clean Columns'!$Z$59<Columns!C66/2),0.9*24*(E66^3)*SQRT($H$2*$B$2)/D66*0.5,0.9*24*(E66^3)*SQRT($H$2*$B$2)/D66),1000000)) -> 716.1407495 | O66: =IF('Clean Columns'!$Z$60=2,Columns!K66,MIN(J66:K66)) -> 301.75 | P66: 301.75 | Q66: 271.728 | R66: 271.728 | S66: 334.153125 | T66: 2135
A68: W14X132 | B68: =VLOOKUP($A68,_xlnm.DataBase,HLOOKUP(B$3,DB_Headers,2,FALSE),FALSE) -> 38.8 | C68: 14.7 | D68: =C68-2*H68 -> 11.44 | E68: =VLOOKUP($A68,_xlnm.DataBase,HLOOKUP(E$3,DB_Headers,2,FALSE),FALSE) -> 0.645 | F68: 1.03 | G68: 14.7 | H68: 1.63 | I68: =IF('Clean Columns'!$Z$67=0,1,1/1.5)*(IF($E$1>0.4*T68,0.9*0.6*$B$2*C68*E68*(1.4-$E$1/T68),0.9*0.6*$B$2*C68*E68)) -> 256.0005 | J68: =IF(OR('Clean Columns'!$Z$67=0,'Clean Columns'!$Z$60=2),1,1/1.5)*(IF('Clean Columns'!$Z$60=2,(0.9*$B$2*$M$1*F68^2)/(1.11*0.75)/12,IF($H$1/G68<0.15,1000000,IF(AND('Clean Columns'!$Z$58,'Clean Columns'!$Z$59<10*F68),0.9*6.25*F68^2*$B$2*0.5,0.9*6.25*F68^2*$B$2)))) -> 298.378125 | K68: =IF('Clean Columns'!$Z$67=0,1,1/1.5)*IF('Clean Columns'!$Z$60=2,IF(AND('Clean Columns'!$Z$58,'Clean Columns'!$Z$59<C68),0.5,1)*(6*H68+$B$1+2*$K$1),IF(AND('Clean Columns'!$Z$58,'Clean Columns'!$Z$59<C68),0.5,1)*5*H68+$B$1)*$B$2*E68 -> 276.54375 | L68: =IF('Clean Columns'!$Z$67=0,1,1/1.5)*(IF(AND('Clean Columns'!$Z$58,'Clean Columns'!$Z$59<C68/2),(0.75*0.8*E68^2*(1+((IF($B$1/C68<=0.2,3*$B$1/C68,4*$B$1/C68-0.2))*(E68/F68)^1.5))*SQRT($H$2*$B$2*F68/E68))*0.5,0.75*0.8*E68^2*(1+((3*$B$1/C68)*(E68/F68)^1.5))*SQRT($H$2*$B$2*F68/E68))) -> 396.1592817 | M68: =IF('Clean Columns'!$Z$67=0,1,1/1.5)*(IF('Clean Columns'!$Z$57,IF(AND('Clean Columns'!$Z$58,'Clean Columns'!$Z$59<Columns!C68/2),0.9*24*(E68^3)*SQRT($H$2*$B$2)/D68*0.5,0.9*24*(E68^3)*SQRT($H$2*$B$2)/D68),1000000)) -> 610.0857368 | O68: =IF('Clean Columns'!$Z$60=2,Columns!K68,MIN(J68:K68)) -> 276.54375 | P68: =MIN(K68:M68) -> 276.54375 | Q68: =I68 -> 256.0005 | R68: =MIN(O68:Q68) -> 256.0005 | S68: =J68 -> 298.378125 | T68: 1940
A69: W14X120 | B69: 35.3 | C69: 14.5 | D69: =C69-2*H69 -> 11.42 | E69: 0.59 | F69: 0.94 | G69: 14.7 | H69: 1.54 | I69: =IF('Clean Columns'!$Z$67=0,1,1/1.5)*(IF($E$1>0.4*T69,0.9*0.6*$B$2*C69*E69*(1.4-$E$1/T69),0.9*0.6*$B$2*C69*E69)) -> 230.985 | J69: =IF(OR('Clean Columns'!$Z$67=0,'Clean Columns'!$Z$60=2),1,1/1.5)*(IF('Clean Columns'!$Z$60=2,(0.9*$B$2*$M$1*F69^2)/(1.11*0.75)/12,IF($H$1/G69<0.15,1000000,IF(AND('Clean Columns'!$Z$58,'Clean Columns'!$Z$59<10*F69),0.9*6.25*F69^2*$B$2*0.5,0.9*6.25*F69^2*$B$2)))) -> 248.5125 | K69: =IF('Clean Columns'!$Z$67=0,1,1/1.5)*IF('Clean Columns'!$Z$60=2,IF(AND('Clean Columns'!$Z$58,'Clean Columns'!$Z$59<C69),0.5,1)*(6*H69+$B$1+2*$K$1),IF(AND('Clean Columns'!$Z$58,'Clean Columns'!$Z$59<C69),0.5,1)*5*H69+$B$1)*$B$2*E69 -> 239.6875 | L69: =IF('Clean Columns'!$Z$67=0,1,1/1.5)*(IF(AND('Clean Columns'!$Z$58,'Clean Columns'!$Z$59<C69/2),(0.75*0.8*E69^2*(1+((IF($B$1/C69<=0.2,3*$B$1/C69,4*$B$1/C69-0.2))*(E69/F69)^1.5))*SQRT($H$2*$B$2*F69/E69))*0.5,0.75*0.8*E69^2*(1+((3*$B$1/C69)*(E69/F69)^1.5))*SQRT($H$2*$B$2*F69/E69))) -> 331.3318789 | M69: =IF('Clean Columns'!$Z$67=0,1,1/1.5)*(IF('Clean Columns'!$Z$57,IF(AND('Clean Columns'!$Z$58,'Clean Columns'!$Z$59<Columns!C69/2),0.9*24*(E69^3)*SQRT($H$2*$B$2)/D69*0.5,0.9*24*(E69^3)*SQRT($H$2*$B$2)/D69),1000000)) -> 467.7649571 | O69: =IF('Clean Columns'!$Z$60=2,Columns!K69,MIN(J69:K69)) -> 239.6875 | P69: =MIN(K69:M69) -> 239.6875 | Q69: =I69 -> 230.985 | R69: =MIN(O69:Q69) -> 230.985 | S69: =J69 -> 248.5125 | T69: 1765
A70: W14X109 | B70: 32 | C70: 14.3 | D70: =C70-2*H70 -> 11.38 | E70: 0.525 | F70: 0.86 | G70: 14.6 | H70: 1.46 | I70: =IF('Clean Columns'!$Z$67=0,1,1/1.5)*(IF($E$1>0.4*T70,0.9*0.6*$B$2*C70*E70*(1.4-$E$1/T70),0.9*0.6*$B$2*C70*E70)) -> 202.7025 | J70: =IF(OR('Clean Columns'!$Z$67=0,'Clean Columns'!$Z$60=2),1,1/1.5)*(IF('Clean Columns'!$Z$60=2,(0.9*$B$2*$M$1*F70^2)/(1.11*0.75)/12,IF($H$1/G70<0.15,1000000,IF(AND('Clean Columns'!$Z$58,'Clean Columns'!$Z$59<10*F70),0.9*6.25*F70^2*$B$2*0.5,0.9*6.25*F70^2*$B$2)))) -> 208.0125 | K70: =IF('Clean Columns'!$Z$67=0,1,1/1.5)*IF('Clean Columns'!$Z$60=2,IF(AND('Clean Columns'!$Z$58,'Clean Columns'!$Z$59<C70),0.5,1)*(6*H70+$B$1+2*$K$1),IF(AND('Clean Columns'!$Z$58,'Clean Columns'!$Z$59<C70),0.5,1)*5*H70+$B$1)*$B$2*E70 -> 202.78125 | L70: =IF('Clean Columns'!$Z$67=0,1,1/1.5)*(IF(AND('Clean Columns'!$Z$58,'Clean Columns'!$Z$59<C70/2),(0.75*0.8*E70^2*(1+((IF($B$1/C70<=0.2,3*$B$1/C70,4*$B$1/C70-0.2))*(E70/F70)^1.5))*SQRT($H$2*$B$2*F70/E70))*0.5,0.75*0.8*E70^2*(1+((3*$B$1/C70)*(E70/F70)^1.5))*SQRT($H$2*$B$2*F70/E70))) -> 265.7117571 | M70: =IF('Clean Columns'!$Z$67=0,1,1/1.5)*(IF('Clean Columns'!$Z$57,IF(AND('Clean Columns'!$Z$58,'Clean Columns'!$Z$59<Columns!C70/2),0.9*24*(E70^3)*SQRT($H$2*$B$2)/D70*0.5,0.9*24*(E70^3)*SQRT($H$2*$B$2)/D70),1000000)) -> 330.729855 | O70: =IF('Clean Columns'!$Z$60=2,Columns!K70,MIN(J70:K70)) -> 202.78125 | P70: =MIN(K70:M70) -> 202.78125 | Q70: =I70 -> 202.7025 | R70: =MIN(O70:Q70) -> 202.7025 | S70: =J70 -> 208.0125 | T70: =B70*$B$2 -> 1600
A71: W14X99 | B71: 29.1 | C71: 14.2 | D71: =C71-2*H71 -> 11.44 | E71: 0.485 | F71: 0.78 | G71: 14.6 | H71: 1.38 | I71: =IF('Clean Columns'!$Z$67=0,1,1/1.5)*(IF($E$1>0.4*T71,0.9*0.6*$B$2*C71*E71*(1.4-$E$1/T71),0.9*0.6*$B$2*C71*E71)) -> 185.949 | J71: =IF(OR('Clean Columns'!$Z$67=0,'Clean Columns'!$Z$60=2),1,1/1.5)*(IF('Clean Columns'!$Z$60=2,(0.9*$B$2*$M$1*F71^2)/(1.11*0.75)/12,IF($H$1/G71<0.15,1000000,IF(AND('Clean Columns'!$Z$58,'Clean Columns'!$Z$59<10*F71),0.9*6.25*F71^2*$B$2*0.5,0.9*6.25*F71^2*$B$2)))) -> 171.1125 | K71: =IF('Clean Columns'!$Z$67=0,1,1/1.5)*IF('Clean Columns'!$Z$60=2,IF(AND('Clean Columns'!$Z$58,'Clean Columns'!$Z$59<C71),0.5,1)*(6*H71+$B$1+2*$K$1),IF(AND('Clean Columns'!$Z$58,'Clean Columns'!$Z$59<C71),0.5,1)*5*H71+$B$1)*$B$2*E71 -> 177.63125 | L71: =IF('Clean Columns'!$Z$67=0,1,1/1.5)*(IF(AND('Clean Columns'!$Z$58,'Clean Columns'!$Z$59<C71/2),(0.75*0.8*E71^2*(1+((IF($B$1/C71<=0.2,3*$B$1/C71,4*$B$1/C71-0.2))*(E71/F71)^1.5))*SQRT($H$2*$B$2*F71/E71))*0.5,0.75*0.8*E71^2*(1+((3*$B$1/C71)*(E71/F71)^1.5))*SQRT($H$2*$B$2*F71/E71))) -> 225.0120475 | M71: =IF('Clean Columns'!$Z$67=0,1,1/1.5)*(IF('Clean Columns'!$Z$57,IF(AND('Clean Columns'!$Z$58,'Clean Columns'!$Z$59<Columns!C71/2),0.9*24*(E71^3)*SQRT($H$2*$B$2)/D71*0.5,0.9*24*(E71^3)*SQRT($H$2*$B$2)/D71),1000000)) -> 259.3802734 | O71: =IF('Clean Columns'!$Z$60=2,Columns!K71,MIN(J71:K71)) -> 171.1125 | P71: =MIN(K71:M71) -> 177.63125 | Q71: =I71 -> 185.949 | R71: =MIN(O71:Q71) -> 171.1125 | S71: =J71 -> 171.1125 | T71: 1455
A72: W14X90 | B72: 26.5 | C72: 14 | D72: =C72-2*H72 -> 11.38 | E72: 0.44 | F72: 0.71 | G72: 14.5 | H72: 1.31 | I72: =IF('Clean Columns'!$Z$67=0,1,1/1.5)*(IF($E$1>0.4*T72,0.9*0.6*$B$2*C72*E72*(1.4-$E$1/T72),0.9*0.6*$B$2*C72*E72)) -> 166.32 | J72: =IF(OR('Clean Columns'!$Z$67=0,'Clean Columns'!$Z$60=2),1,1/1.5)*(IF('Clean Columns'!$Z$60=2,(0.9*$B$2*$M$1*F72^2)/(1.11*0.75)/12,IF($H$1/G72<0.15,1000000,IF(AND('Clean Columns'!$Z$58,'Clean Columns'!$Z$59<10*F72),0.9*6.25*F72^2*$B$2*0.5,0.9*6.25*F72^2*$B$2)))) -> 141.778125 | K72: =IF('Clean Columns'!$Z$67=0,1,1/1.5)*IF('Clean Columns'!$Z$60=2,IF(AND('Clean Columns'!$Z$58,'Clean Columns'!$Z$59<C72),0.5,1)*(6*H72+$B$1+2*$K$1),IF(AND('Clean Columns'!$Z$58,'Clean Columns'!$Z$59<C72),0.5,1)*5*H72+$B$1)*$B$2*E72 -> 153.45 | L72: =IF('Clean Columns'!$Z$67=0,1,1/1.5)*(IF(AND('Clean Columns'!$Z$58,'Clean Columns'!$Z$59<C72/2),(0.75*0.8*E72^2*(1+((IF($B$1/C72<=0.2,3*$B$1/C72,4*$B$1/C72-0.2))*(E72/F72)^1.5))*SQRT($H$2*$B$2*F72/E72))*0.5,0.75*0.8*E72^2*(1+((3*$B$1/C72)*(E72/F72)^1.5))*SQRT($H$2*$B$2*F72/E72))) -> 185.5763655 | M72: =IF('Clean Columns'!$Z$67=0,1,1/1.5)*(IF('Clean Columns'!$Z$57,IF(AND('Clean Columns'!$Z$58,'Clean Columns'!$Z$59<Columns!C72/2),0.9*24*(E72^3)*SQRT($H$2*$B$2)/D72*0.5,0.9*24*(E72^3)*SQRT($H$2*$B$2)/D72),1000000)) -> 194.6944267 | O72: =IF('Clean Columns'!$Z$60=2,Columns!K72,MIN(J72:K72)) -> 141.778125 | P72: =MIN(K72:M72) -> 153.45 | Q72: =I72 -> 166.32 | R72: =MIN(O72:Q72) -> 141.778125 | S72: =J72 -> 141.778125 | T72: 1325
A74: W14X82 | B74: =VLOOKUP($A74,_xlnm.DataBase,HLOOKUP(B$3,DB_Headers,2,FALSE),FALSE) -> 24 | C74: 14.3 | D74: =C74-2*H74 -> 11.4 | E74: =VLOOKUP($A74,_xlnm.DataBase,HLOOKUP(E$3,DB_Headers,2,FALSE),FALSE) -> 0.51 | F74: 0.855 | G74: 10.1 | H74: 1.45 | I74: =IF('Clean Columns'!$Z$67=0,1,1/1.5)*(IF($E$1>0.4*T74,0.9*0.6*$B$2*C74*E74*(1.4-$E$1/T74),0.9*0.6*$B$2*C74*E74)) -> 196.911 | J74: =IF(OR('Clean Columns'!$Z$67=0,'Clean Columns'!$Z$60=2),1,1/1.5)*(IF('Clean Columns'!$Z$60=2,(0.9*$B$2*$M$1*F74^2)/(1.11*0.75)/12,IF($H$1/G74<0.15,1000000,IF(AND('Clean Columns'!$Z$58,'Clean Columns'!$Z$59<10*F74),0.9*6.25*F74^2*$B$2*0.5,0.9*6.25*F74^2*$B$2)))) -> 205.6007812 | K74: =IF('Clean Columns'!$Z$67=0,1,1/1.5)*IF('Clean Columns'!$Z$60=2,IF(AND('Clean Columns'!$Z$58,'Clean Columns'!$Z$59<C74),0.5,1)*(6*H74+$B$1+2*$K$1),IF(AND('Clean Columns'!$Z$58,'Clean Columns'!$Z$59<C74),0.5,1)*5*H74+$B$1)*$B$2*E74 -> 195.7125 | L74: =IF('Clean Columns'!$Z$67=0,1,1/1.5)*(IF(AND('Clean Columns'!$Z$58,'Clean Columns'!$Z$59<C74/2),(0.75*0.8*E74^2*(1+((IF($B$1/C74<=0.2,3*$B$1/C74,4*$B$1/C74-0.2))*(E74/F74)^1.5))*SQRT($H$2*$B$2*F74/E74))*0.5,0.75*0.8*E74^2*(1+((3*$B$1/C74)*(E74/F74)^1.5))*SQRT($H$2*$B$2*F74/E74))) -> 253.3119603 | M74: =IF('Clean Columns'!$Z$67=0,1,1/1.5)*(IF('Clean Columns'!$Z$57,IF(AND('Clean Columns'!$Z$58,'Clean Columns'!$Z$59<Columns!C74/2),0.9*24*(E74^3)*SQRT($H$2*$B$2)/D74*0.5,0.9*24*(E74^3)*SQRT($H$2*$B$2)/D74),1000000)) -> 302.6519171 | O74: =IF('Clean Columns'!$Z$60=2,Columns!K74,MIN(J74:K74)) -> 195.7125 | P74: =MIN(K74:M74) -> 195.7125 | Q74: =I74 -> 196.911 | R74: =MIN(O74:Q74) -> 195.7125 | S74: =J74 -> 205.6007812 | T74: 1200
A75: W14X74 | B75: 21.8 | C75: 14.2 | D75: =C75-2*H75 -> 11.44 | E75: 0.45 | F75: 0.785 | G75: 10.1 | H75: 1.38 | I75: =IF('Clean Columns'!$Z$67=0,1,1/1.5)*(IF($E$1>0.4*T75,0.9*0.6*$B$2*C75*E75*(1.4-$E$1/T75),0.9*0.6*$B$2*C75*E75)) -> 172.53 | J75: =IF(OR('Clean Columns'!$Z$67=0,'Clean Columns'!$Z$60=2),1,1/1.5)*(IF('Clean Columns'!$Z$60=2,(0.9*$B$2*$M$1*F75^2)/(1.11*0.75)/12,IF($H$1/G75<0.15,1000000,IF(AND('Clean Columns'!$Z$58,'Clean Columns'!$Z$59<10*F75),0.9*6.25*F75^2*$B$2*0.5,0.9*6.25*F75^2*$B$2)))) -> 173.3132813 | K75: =IF('Clean Columns'!$Z$67=0,1,1/1.5)*IF('Clean Columns'!$Z$60=2,IF(AND('Clean Columns'!$Z$58,'Clean Columns'!$Z$59<C75),0.5,1)*(6*H75+$B$1+2*$K$1),IF(AND('Clean Columns'!$Z$58,'Clean Columns'!$Z$59<C75),0.5,1)*5*H75+$B$1)*$B$2*E75 -> 164.8125 | L75: =IF('Clean Columns'!$Z$67=0,1,1/1.5)*(IF(AND('Clean Columns'!$Z$58,'Clean Columns'!$Z$59<C75/2),(0.75*0.8*E75^2*(1+((IF($B$1/C75<=0.2,3*$B$1/C75,4*$B$1/C75-0.2))*(E75/F75)^1.5))*SQRT($H$2*$B$2*F75/E75))*0.5,0.75*0.8*E75^2*(1+((3*$B$1/C75)*(E75/F75)^1.5))*SQRT($H$2*$B$2*F75/E75))) -> 200.7668813 | M75: =IF('Clean Columns'!$Z$67=0,1,1/1.5)*(IF('Clean Columns'!$Z$57,IF(AND('Clean Columns'!$Z$58,'Clean Columns'!$Z$59<Columns!C75/2),0.9*24*(E75^3)*SQRT($H$2*$B$2)/D75*0.5,0.9*24*(E75^3)*SQRT($H$2*$B$2)/D75),1000000)) -> 207.1806871 | O75: =IF('Clean Columns'!$Z$60=2,Columns!K75,MIN(J75:K75)) -> 164.8125 | P75: =MIN(K75:M75) -> 164.8125 | Q75: =I75 -> 172.53 | R75: =MIN(O75:Q75) -> 164.8125 | S75: =J75 -> 173.3132813 | T75: 1090
A76: W14X68 | B76: 20 | C76: 14 | D76: =C76-2*H76 -> 11.38 | E76: 0.415 | F76: 0.72 | G76: 10 | H76: 1.31 | I76: =IF('Clean Columns'!$Z$67=0,1,1/1.5)*(IF($E$1>0.4*T76,0.9*0.6*$B$2*C76*E76*(1.4-$E$1/T76),0.9*0.6*$B$2*C76*E76)) -> 156.87 | J76: =IF(OR('Clean Columns'!$Z$67=0,'Clean Columns'!$Z$60=2),1,1/1.5)*(IF('Clean Columns'!$Z$60=2,(0.9*$B$2*$M$1*F76^2)/(1.11*0.75)/12,IF($H$1/G76<0.15,1000000,IF(AND('Clean Columns'!$Z$58,'Clean Columns'!$Z$59<10*F76),0.9*6.25*F76^2*$B$2*0.5,0.9*6.25*F76^2*$B$2)))) -> 145.8 | K76: =IF('Clean Columns'!$Z$67=0,1,1/1.5)*IF('Clean Columns'!$Z$60=2,IF(AND('Clean Columns'!$Z$58,'Clean Columns'!$Z$59<C76),0.5,1)*(6*H76+$B$1+2*$K$1),IF(AND('Clean Columns'!$Z$58,'Clean Columns'!$Z$59<C76),0.5,1)*5*H76+$B$1)*$B$2*E76 -> 144.73125 | L76: =IF('Clean Columns'!$Z$67=0,1,1/1.5)*(IF(AND('Clean Columns'!$Z$58,'Clean Columns'!$Z$59<C76/2),(0.75*0.8*E76^2*(1+((IF($B$1/C76<=0.2,3*$B$1/C76,4*$B$1/C76-0.2))*(E76/F76)^1.5))*SQRT($H$2*$B$2*F76/E76))*0.5,0.75*0.8*E76^2*(1+((3*$B$1/C76)*(E76/F76)^1.5))*SQRT($H$2*$B$2*F76/E76))) -> 170.4297411 | M76: =IF('Clean Columns'!$Z$67=0,1,1/1.5)*(IF('Clean Columns'!$Z$57,IF(AND('Clean Columns'!$Z$58,'Clean Columns'!$Z$59<Columns!C76/2),0.9*24*(E76^3)*SQRT($H$2*$B$2)/D76*0.5,0.9*24*(E76^3)*SQRT($H$2*$B$2)/D76),1000000)) -> 163.357764 | O76: =IF('Clean Columns'!$Z$60=2,Columns!K76,MIN(J76:K76)) -> 144.73125 | P76: =MIN(K76:M76) -> 144.73125 | Q76: =I76 -> 156.87 | R76: =MIN(O76:Q76) -> 144.73125 | S76: =J76 -> 145.8 | T76: =B76*$B$2 -> 1000
A77: W14X61 | B77: 17.9 | C77: 13.9 | D77: =C77-2*H77 -> 11.42 | E77: 0.375 | F77: 0.645 | G77: 10 | H77: 1.24 | I77: =IF('Clean Columns'!$Z$67=0,1,1/1.5)*(IF($E$1>0.4*T77,0.9*0.6*$B$2*C77*E77*(1.4-$E$1/T77),0.9*0.6*$B$2*C77*E77)) -> 140.7375 | J77: =IF(OR('Clean Columns'!$Z$67=0,'Clean Columns'!$Z$60=2),1,1/1.5)*(IF('Clean Columns'!$Z$60=2,(0.9*$B$2*$M$1*F77^2)/(1.11*0.75)/12,IF($H$1/G77<0.15,1000000,IF(AND('Clean Columns'!$Z$58,'Clean Columns'!$Z$59<10*F77),0.9*6.25*F77^2*$B$2*0.5,0.9*6.25*F77^2*$B$2)))) -> 117.0070313 | K77: =IF('Clean Columns'!$Z$67=0,1,1/1.5)*IF('Clean Columns'!$Z$60=2,IF(AND('Clean Columns'!$Z$58,'Clean Columns'!$Z$59<C77),0.5,1)*(6*H77+$B$1+2*$K$1),IF(AND('Clean Columns'!$Z$58,'Clean Columns'!$Z$59<C77),0.5,1)*5*H77+$B$1)*$B$2*E77 -> 124.21875 | L77: =IF('Clean Columns'!$Z$67=0,1,1/1.5)*(IF(AND('Clean Columns'!$Z$58,'Clean Columns'!$Z$59<C77/2),(0.75*0.8*E77^2*(1+((IF($B$1/C77<=0.2,3*$B$1/C77,4*$B$1/C77-0.2))*(E77/F77)^1.5))*SQRT($H$2*$B$2*F77/E77))*0.5,0.75*0.8*E77^2*(1+((3*$B$1/C77)*(E77/F77)^1.5))*SQRT($H$2*$B$2*F77/E77))) -> 138.6667232 | M77: =IF('Clean Columns'!$Z$67=0,1,1/1.5)*(IF('Clean Columns'!$Z$57,IF(AND('Clean Columns'!$Z$58,'Clean Columns'!$Z$59<Columns!C77/2),0.9*24*(E77^3)*SQRT($H$2*$B$2)/D77*0.5,0.9*24*(E77^3)*SQRT($H$2*$B$2)/D77),1000000)) -> 120.1062069 | O77: =IF('Clean Columns'!$Z$60=2,Columns!K77,MIN(J77:K77)) -> 117.0070313 | P77: =MIN(K77:M77) -> 120.1062069 | Q77: =I77 -> 140.7375 | R77: =MIN(O77:Q77) -> 117.0070313 | S77: =J77 -> 117.0070313 | T77: 895
A79: W14X53 | B79: =VLOOKUP($A79,_xlnm.DataBase,HLOOKUP(B$3,DB_Headers,2,FALSE),FALSE) -> 15.6 | C79: 13.9 | D79: =C79-2*H79 -> 11.4 | E79: =VLOOKUP($A79,_xlnm.DataBase,HLOOKUP(E$3,DB_Headers,2,FALSE),FALSE) -> 0.37 | F79: 0.66 | G79: 8.06 | H79: 1.25 | I79: =IF('Clean Columns'!$Z$67=0,1,1/1.5)*(IF($E$1>0.4*T79,0.9*0.6*$B$2*C79*E79*(1.4-$E$1/T79),0.9*0.6*$B$2*C79*E79)) -> 138.861 | J79: =IF(OR('Clean Columns'!$Z$67=0,'Clean Columns'!$Z$60=2),1,1/1.5)*(IF('Clean Columns'!$Z$60=2,(0.9*$B$2*$M$1*F79^2)/(1.11*0.75)/12,IF($H$1/G79<0.15,1000000,IF(AND('Clean Columns'!$Z$58,'Clean Columns'!$Z$59<10*F79),0.9*6.25*F79^2*$B$2*0.5,0.9*6.25*F79^2*$B$2)))) -> 122.5125 | K79: =IF('Clean Columns'!$Z$67=0,1,1/1.5)*IF('Clean Columns'!$Z$60=2,IF(AND('Clean Columns'!$Z$58,'Clean Columns'!$Z$59<C79),0.5,1)*(6*H79+$B$1+2*$K$1),IF(AND('Clean Columns'!$Z$58,'Clean Columns'!$Z$59<C79),0.5,1)*5*H79+$B$1)*$B$2*E79 -> 123.4875 | L79: =IF('Clean Columns'!$Z$67=0,1,1/1.5)*(IF(AND('Clean Columns'!$Z$58,'Clean Columns'!$Z$59<C79/2),(0.75*0.8*E79^2*(1+((IF($B$1/C79<=0.2,3*$B$1/C79,4*$B$1/C79-0.2))*(E79/F79)^1.5))*SQRT($H$2*$B$2*F79/E79))*0.5,0.75*0.8*E79^2*(1+((3*$B$1/C79)*(E79/F79)^1.5))*SQRT($H$2*$B$2*F79/E79))) -> 137.1883072 | M79: =IF('Clean Columns'!$Z$67=0,1,1/1.5)*(IF('Clean Columns'!$Z$57,IF(AND('Clean Columns'!$Z$58,'Clean Columns'!$Z$59<Columns!C79/2),0.9*24*(E79^3)*SQRT($H$2*$B$2)/D79*0.5,0.9*24*(E79^3)*SQRT($H$2*$B$2)/D79),1000000)) -> 115.5681266 | O79: =IF('Clean Columns'!$Z$60=2,Columns!K79,MIN(J79:K79)) -> 122.5125 | P79: =MIN(K79:M79) -> 115.5681266 | Q79: =I79 -> 138.861 | R79: =MIN(O79:Q79) -> 115.5681266 | S79: =J79 -> 122.5125 | T79: 780
A80: W14X48 | B80: 14.1 | C80: 13.8 | D80: =C80-2*H80 -> 11.42 | E80: 0.34 | F80: 0.595 | G80: 8.03 | H80: 1.19 | I80: =IF('Clean Columns'!$Z$67=0,1,1/1.5)*(IF($E$1>0.4*T80,0.9*0.6*$B$2*C80*E80*(1.4-$E$1/T80),0.9*0.6*$B$2*C80*E80)) -> 126.684 | J80: =IF(OR('Clean Columns'!$Z$67=0,'Clean Columns'!$Z$60=2),1,1/1.5)*(IF('Clean Columns'!$Z$60=2,(0.9*$B$2*$M$1*F80^2)/(1.11*0.75)/12,IF($H$1/G80<0.15,1000000,IF(AND('Clean Columns'!$Z$58,'Clean Columns'!$Z$59<10*F80),0.9*6.25*F80^2*$B$2*0.5,0.9*6.25*F80^2*$B$2)))) -> 99.56953125 | K80: =IF('Clean Columns'!$Z$67=0,1,1/1.5)*IF('Clean Columns'!$Z$60=2,IF(AND('Clean Columns'!$Z$58,'Clean Columns'!$Z$59<C80),0.5,1)*(6*H80+$B$1+2*$K$1),IF(AND('Clean Columns'!$Z$58,'Clean Columns'!$Z$59<C80),0.5,1)*5*H80+$B$1)*$B$2*E80 -> 108.375 | L80: =IF('Clean Columns'!$Z$67=0,1,1/1.5)*(IF(AND('Clean Columns'!$Z$58,'Clean Columns'!$Z$59<C80/2),(0.75*0.8*E80^2*(1+((IF($B$1/C80<=0.2,3*$B$1/C80,4*$B$1/C80-0.2))*(E80/F80)^1.5))*SQRT($H$2*$B$2*F80/E80))*0.5,0.75*0.8*E80^2*(1+((3*$B$1/C80)*(E80/F80)^1.5))*SQRT($H$2*$B$2*F80/E80))) -> 114.8967036 | M80: =IF('Clean Columns'!$Z$67=0,1,1/1.5)*(IF('Clean Columns'!$Z$57,IF(AND('Clean Columns'!$Z$58,'Clean Columns'!$Z$59<Columns!C80/2),0.9*24*(E80^3)*SQRT($H$2*$B$2)/D80*0.5,0.9*24*(E80^3)*SQRT($H$2*$B$2)/D80),1000000)) -> 89.51759369 | O80: =IF('Clean Columns'!$Z$60=2,Columns!K80,MIN(J80:K80)) -> 99.56953125 | P80: =MIN(K80:M80) -> 89.51759369 | Q80: =I80 -> 126.684 | R80: =MIN(O80:Q80) -> 89.51759369 | S80: =J80 -> 99.56953125 | T80: 705
A81: W14X43 | B81: 12.6 | C81: 13.7 | D81: =C81-2*H81 -> 11.46 | E81: 0.305 | F81: 0.53 | G81: 8 | H81: 1.12 | I81: =IF('Clean Columns'!$Z$67=0,1,1/1.5)*(IF($E$1>0.4*T81,0.9*0.6*$B$2*C81*E81*(1.4-$E$1/T81),0.9*0.6*$B$2*C81*E81)) -> 112.8195 | J81: =IF(OR('Clean Columns'!$Z$67=0,'Clean Columns'!$Z$60=2),1,1/1.5)*(IF('Clean Columns'!$Z$60=2,(0.9*$B$2*$M$1*F81^2)/(1.11*0.75)/12,IF($H$1/G81<0.15,1000000,IF(AND('Clean Columns'!$Z$58,'Clean Columns'!$Z$59<10*F81),0.9*6.25*F81^2*$B$2*0.5,0.9*6.25*F81^2*$B$2)))) -> 79.003125 | K81: =IF('Clean Columns'!$Z$67=0,1,1/1.5)*IF('Clean Columns'!$Z$60=2,IF(AND('Clean Columns'!$Z$58,'Clean Columns'!$Z$59<C81),0.5,1)*(6*H81+$B$1+2*$K$1),IF(AND('Clean Columns'!$Z$58,'Clean Columns'!$Z$59<C81),0.5,1)*5*H81+$B$1)*$B$2*E81 -> 91.88125 | L81: =IF('Clean Columns'!$Z$67=0,1,1/1.5)*(IF(AND('Clean Columns'!$Z$58,'Clean Columns'!$Z$59<C81/2),(0.75*0.8*E81^2*(1+((IF($B$1/C81<=0.2,3*$B$1/C81,4*$B$1/C81-0.2))*(E81/F81)^1.5))*SQRT($H$2*$B$2*F81/E81))*0.5,0.75*0.8*E81^2*(1+((3*$B$1/C81)*(E81/F81)^1.5))*SQRT($H$2*$B$2*F81/E81))) -> 92.19735405 | M81: =IF('Clean Columns'!$Z$67=0,1,1/1.5)*(IF('Clean Columns'!$Z$57,IF(AND('Clean Columns'!$Z$58,'Clean Columns'!$Z$59<Columns!C81/2),0.9*24*(E81^3)*SQRT($H$2*$B$2)/D81*0.5,0.9*24*(E81^3)*SQRT($H$2*$B$2)/D81),1000000)) -> 64.3950749 | O81: =IF('Clean Columns'!$Z$60=2,Columns!K81,MIN(J81:K81)) -> 79.003125 | P81: =MIN(K81:M81) -> 64.3950749 | Q81: =I81 -> 112.8195 | R81: =MIN(O81:Q81) -> 64.3950749 | S81: =J81 -> 79.003125 | T81: 630
A84: W12X336 | B84: =VLOOKUP($A84,_xlnm.DataBase,HLOOKUP(B$3,DB_Headers,2,FALSE),FALSE) -> 98.9 | C84: 16.8 | D84: =C84-2*H84 -> 9.7 | E84: =VLOOKUP($A84,_xlnm.DataBase,HLOOKUP(E$3,DB_Headers,2,FALSE),FALSE) -> 1.78 | F84: 2.96 | G84: 13.4 | H84: 3.55 | I84: =IF('Clean Columns'!$Z$67=0,1,1/1.5)*(IF($E$1>0.4*T84,0.9*0.6*$B$2*C84*E84*(1.4-$E$1/T84),0.9*0.6*$B$2*C84*E84)) -> 807.408 | J84: =IF(OR('Clean Columns'!$Z$67=0,'Clean Columns'!$Z$60=2),1,1/1.5)*(IF('Clean Columns'!$Z$60=2,(0.9*$B$2*$M$1*F84^2)/(1.11*0.75)/12,IF($H$1/G84<0.15,1000000,IF(AND('Clean Columns'!$Z$58,'Clean Columns'!$Z$59<10*F84),0.9*6.25*F84^2*$B$2*0.5,0.9*6.25*F84^2*$B$2)))) -> 2464.2 | K84: =IF('Clean Columns'!$Z$67=0,1,1/1.5)*IF('Clean Columns'!$Z$60=2,IF(AND('Clean Columns'!$Z$58,'Clean Columns'!$Z$59<C84),0.5,1)*(6*H84+$B$1+2*$K$1),IF(AND('Clean Columns'!$Z$58,'Clean Columns'!$Z$59<C84),0.5,1)*5*H84+$B$1)*$B$2*E84 -> 1617.575 | L84: =IF('Clean Columns'!$Z$67=0,1,1/1.5)*(IF(AND('Clean Columns'!$Z$58,'Clean Columns'!$Z$59<C84/2),(0.75*0.8*E84^2*(1+((IF($B$1/C84<=0.2,3*$B$1/C84,4*$B$1/C84-0.2))*(E84/F84)^1.5))*SQRT($H$2*$B$2*F84/E84))*0.5,0.75*0.8*E84^2*(1+((3*$B$1/C84)*(E84/F84)^1.5))*SQRT($H$2*$B$2*F84/E84))) -> 3056.437457 | M84: =IF('Clean Columns'!$Z$67=0,1,1/1.5)*(IF('Clean Columns'!$Z$57,IF(AND('Clean Columns'!$Z$58,'Clean Columns'!$Z$59<Columns!C84/2),0.9*24*(E84^3)*SQRT($H$2*$B$2)/D84*0.5,0.9*24*(E84^3)*SQRT($H$2*$B$2)/D84),1000000)) -> 15122.58468 | O84: =IF('Clean Columns'!$Z$60=2,Columns!K84,MIN(J84:K84)) -> 1617.575 | P84: =MIN(K84:M84) -> 1617.575 | Q84: =I84 -> 807.408 | R84: =MIN(O84:Q84) -> 807.408 | S84: =J84 -> 2464.2 | T84: 4945
A85: W12X305 | B85: 89.5 | C85: 16.3 | D85: 9.7 | E85: 1.63 | F85: 2.71 | G85: 13.2 | H85: 3.3 | I85: =IF('Clean Columns'!$Z$67=0,1,1/1.5)*(IF($E$1>0.4*T85,0.9*0.6*$B$2*C85*E85*(1.4-$E$1/T85),0.9*0.6*$B$2*C85*E85)) -> 717.363 | J85: =IF(OR('Clean Columns'!$Z$67=0,'Clean Columns'!$Z$60=2),1,1/1.5)*(IF('Clean Columns'!$Z$60=2,(0.9*$B$2*$M$1*F85^2)/(1.11*0.75)/12,IF($H$1/G85<0.15,1000000,IF(AND('Clean Columns'!$Z$58,'Clean Columns'!$Z$59<10*F85),0.9*6.25*F85^2*$B$2*0.5,0.9*6.25*F85^2*$B$2)))) -> 2065.528125 | K85: =IF('Clean Columns'!$Z$67=0,1,1/1.5)*IF('Clean Columns'!$Z$60=2,IF(AND('Clean Columns'!$Z$58,'Clean Columns'!$Z$59<C85),0.5,1)*(6*H85+$B$1+2*$K$1),IF(AND('Clean Columns'!$Z$58,'Clean Columns'!$Z$59<C85),0.5,1)*5*H85+$B$1)*$B$2*E85 -> 1379.3875 | L85: =IF('Clean Columns'!$Z$67=0,1,1/1.5)*(IF(AND('Clean Columns'!$Z$58,'Clean Columns'!$Z$59<C85/2),(0.75*0.8*E85^2*(1+((IF($B$1/C85<=0.2,3*$B$1/C85,4*$B$1/C85-0.2))*(E85/F85)^1.5))*SQRT($H$2*$B$2*F85/E85))*0.5,0.75*0.8*E85^2*(1+((3*$B$1/C85)*(E85/F85)^1.5))*SQRT($H$2*$B$2*F85/E85))) -> 2565.461973 | M85: =IF('Clean Columns'!$Z$67=0,1,1/1.5)*(IF('Clean Columns'!$Z$57,IF(AND('Clean Columns'!$Z$58,'Clean Columns'!$Z$59<Columns!C85/2),0.9*24*(E85^3)*SQRT($H$2*$B$2)/D85*0.5,0.9*24*(E85^3)*SQRT($H$2*$B$2)/D85),1000000)) -> 11612.583 | O85: =IF('Clean Columns'!$Z$60=2,Columns!K85,MIN(J85:K85)) -> 1379.3875 | P85: 1379.3875 | Q85: 717.363 | R85: 717.363 | S85: 2065.528125 | T85: 4475
A86: W12X279 | B86: 81.9 | C86: 15.9 | D86: 9.76 | E86: 1.53 | F86: 2.47 | G86: 13.1 | H86: 3.07 | I86: =IF('Clean Columns'!$Z$67=0,1,1/1.5)*(IF($E$1>0.4*T86,0.9*0.6*$B$2*C86*E86*(1.4-$E$1/T86),0.9*0.6*$B$2*C86*E86)) -> 656.829 | J86: =IF(OR('Clean Columns'!$Z$67=0,'Clean Columns'!$Z$60=2),1,1/1.5)*(IF('Clean Columns'!$Z$60=2,(0.9*$B$2*$M$1*F86^2)/(1.11*0.75)/12,IF($H$1/G86<0.15,1000000,IF(AND('Clean Columns'!$Z$58,'Clean Columns'!$Z$59<10*F86),0.9*6.25*F86^2*$B$2*0.5,0.9*6.25*F86^2*$B$2)))) -> 1715.878125 | K86: =IF('Clean Columns'!$Z$67=0,1,1/1.5)*IF('Clean Columns'!$Z$60=2,IF(AND('Clean Columns'!$Z$58,'Clean Columns'!$Z$59<C86),0.5,1)*(6*H86+$B$1+2*$K$1),IF(AND('Clean Columns'!$Z$58,'Clean Columns'!$Z$59<C86),0.5,1)*5*H86+$B$1)*$B$2*E86 -> 1206.7875 | L86: =IF('Clean Columns'!$Z$67=0,1,1/1.5)*(IF(AND('Clean Columns'!$Z$58,'Clean Columns'!$Z$59<C86/2),(0.75*0.8*E86^2*(1+((IF($B$1/C86<=0.2,3*$B$1/C86,4*$B$1/C86-0.2))*(E86/F86)^1.5))*SQRT($H$2*$B$2*F86/E86))*0.5,0.75*0.8*E86^2*(1+((3*$B$1/C86)*(E86/F86)^1.5))*SQRT($H$2*$B$2*F86/E86))) -> 2232.932068 | M86: =IF('Clean Columns'!$Z$67=0,1,1/1.5)*(IF('Clean Columns'!$Z$57,IF(AND('Clean Columns'!$Z$58,'Clean Columns'!$Z$59<Columns!C86/2),0.9*24*(E86^3)*SQRT($H$2*$B$2)/D86*0.5,0.9*24*(E86^3)*SQRT($H$2*$B$2)/D86),1000000)) -> 9544.698779 | O86: =IF('Clean Columns'!$Z$60=2,Columns!K86,MIN(J86:K86)) -> 1206.7875 | P86: 1206.7875 | Q86: 656.829 | R86: 656.829 | S86: 1715.878125 | T86: 4095
A87: W12X252 | B87: 74.1 | C87: 15.4 | D87: 9.7 | E87: 1.4 | F87: 2.25 | G87: 13 | H87: 2.85 | I87: =IF('Clean Columns'!$Z$67=0,1,1/1.5)*(IF($E$1>0.4*T87,0.9*0.6*$B$2*C87*E87*(1.4-$E$1/T87),0.9*0.6*$B$2*C87*E87)) -> 582.12 | J87: =IF(OR('Clean Columns'!$Z$67=0,'Clean Columns'!$Z$60=2),1,1/1.5)*(IF('Clean Columns'!$Z$60=2,(0.9*$B$2*$M$1*F87^2)/(1.11*0.75)/12,IF($H$1/G87<0.15,1000000,IF(AND('Clean Columns'!$Z$58,'Clean Columns'!$Z$59<10*F87),0.9*6.25*F87^2*$B$2*0.5,0.9*6.25*F87^2*$B$2)))) -> 1423.828125 | K87: =IF('Clean Columns'!$Z$67=0,1,1/1.5)*IF('Clean Columns'!$Z$60=2,IF(AND('Clean Columns'!$Z$58,'Clean Columns'!$Z$59<C87),0.5,1)*(6*H87+$B$1+2*$K$1),IF(AND('Clean Columns'!$Z$58,'Clean Columns'!$Z$59<C87),0.5,1)*5*H87+$B$1)*$B$2*E87 -> 1027.25 | L87: =IF('Clean Columns'!$Z$67=0,1,1/1.5)*(IF(AND('Clean Columns'!$Z$58,'Clean Columns'!$Z$59<C87/2),(0.75*0.8*E87^2*(1+((IF($B$1/C87<=0.2,3*$B$1/C87,4*$B$1/C87-0.2))*(E87/F87)^1.5))*SQRT($H$2*$B$2*F87/E87))*0.5,0.75*0.8*E87^2*(1+((3*$B$1/C87)*(E87/F87)^1.5))*SQRT($H$2*$B$2*F87/E87))) -> 1868.173832 | M87: =IF('Clean Columns'!$Z$67=0,1,1/1.5)*(IF('Clean Columns'!$Z$57,IF(AND('Clean Columns'!$Z$58,'Clean Columns'!$Z$59<Columns!C87/2),0.9*24*(E87^3)*SQRT($H$2*$B$2)/D87*0.5,0.9*24*(E87^3)*SQRT($H$2*$B$2)/D87),1000000)) -> 7357.836364 | O87: =IF('Clean Columns'!$Z$60=2,Columns!K87,MIN(J87:K87)) -> 1027.25 | P87: 1027.25 | Q87: 582.12 | R87: 582.12 | S87: 1423.828125 | T87: 3705
A88: W12X230 | B88: 67.7 | C88: 15.1 | D88: 9.76 | E88: 1.29 | F88: 2.07 | G88: 12.9 | H88: 2.67 | I88: =IF('Clean Columns'!$Z$67=0,1,1/1.5)*(IF($E$1>0.4*T88,0.9*0.6*$B$2*C88*E88*(1.4-$E$1/T88),0.9*0.6*$B$2*C88*E88)) -> 525.933 | J88: =IF(OR('Clean Columns'!$Z$67=0,'Clean Columns'!$Z$60=2),1,1/1.5)*(IF('Clean Columns'!$Z$60=2,(0.9*$B$2*$M$1*F88^2)/(1.11*0.75)/12,IF($H$1/G88<0.15,1000000,IF(AND('Clean Columns'!$Z$58,'Clean Columns'!$Z$59<10*F88),0.9*6.25*F88^2*$B$2*0.5,0.9*6.25*F88^2*$B$2)))) -> 1205.128125 | K88: =IF('Clean Columns'!$Z$67=0,1,1/1.5)*IF('Clean Columns'!$Z$60=2,IF(AND('Clean Columns'!$Z$58,'Clean Columns'!$Z$59<C88),0.5,1)*(6*H88+$B$1+2*$K$1),IF(AND('Clean Columns'!$Z$58,'Clean Columns'!$Z$59<C88),0.5,1)*5*H88+$B$1)*$B$2*E88 -> 888.4875 | L88: =IF('Clean Columns'!$Z$67=0,1,1/1.5)*(IF(AND('Clean Columns'!$Z$58,'Clean Columns'!$Z$59<C88/2),(0.75*0.8*E88^2*(1+((IF($B$1/C88<=0.2,3*$B$1/C88,4*$B$1/C88-0.2))*(E88/F88)^1.5))*SQRT($H$2*$B$2*F88/E88))*0.5,0.75*0.8*E88^2*(1+((3*$B$1/C88)*(E88/F88)^1.5))*SQRT($H$2*$B$2*F88/E88))) -> 1586.283385 | M88: =IF('Clean Columns'!$Z$67=0,1,1/1.5)*(IF('Clean Columns'!$Z$57,IF(AND('Clean Columns'!$Z$58,'Clean Columns'!$Z$59<Columns!C88/2),0.9*24*(E88^3)*SQRT($H$2*$B$2)/D88*0.5,0.9*24*(E88^3)*SQRT($H$2*$B$2)/D88),1000000)) -> 5720.803958 | O88: =IF('Clean Columns'!$Z$60=2,Columns!K88,MIN(J88:K88)) -> 888.4875 | P88: 888.4875 | Q88: 525.933 | R88: 525.933 | S88: 1205.128125 | T88: 3385
A89: W12X210 | B89: 61.8 | C89: 14.7 | D89: 9.7 | E89: 1.18 | F89: 1.9 | G89: 12.8 | H89: 2.5 | I89: =IF('Clean Columns'!$Z$67=0,1,1/1.5)*(IF($E$1>0.4*T89,0.9*0.6*$B$2*C89*E89*(1.4-$E$1/T89),0.9*0.6*$B$2*C89*E89)) -> 468.342 | J89: =IF(OR('Clean Columns'!$Z$67=0,'Clean Columns'!$Z$60=2),1,1/1.5)*(IF('Clean Columns'!$Z$60=2,(0.9*$B$2*$M$1*F89^2)/(1.11*0.75)/12,IF($H$1/G89<0.15,1000000,IF(AND('Clean Columns'!$Z$58,'Clean Columns'!$Z$59<10*F89),0.9*6.25*F89^2*$B$2*0.5,0.9*6.25*F89^2*$B$2)))) -> 1015.3125 | K89: =IF('Clean Columns'!$Z$67=0,1,1/1.5)*IF('Clean Columns'!$Z$60=2,IF(AND('Clean Columns'!$Z$58,'Clean Columns'!$Z$59<C89),0.5,1)*(6*H89+$B$1+2*$K$1),IF(AND('Clean Columns'!$Z$58,'Clean Columns'!$Z$59<C89),0.5,1)*5*H89+$B$1)*$B$2*E89 -> 762.575 | L89: =IF('Clean Columns'!$Z$67=0,1,1/1.5)*(IF(AND('Clean Columns'!$Z$58,'Clean Columns'!$Z$59<C89/2),(0.75*0.8*E89^2*(1+((IF($B$1/C89<=0.2,3*$B$1/C89,4*$B$1/C89-0.2))*(E89/F89)^1.5))*SQRT($H$2*$B$2*F89/E89))*0.5,0.75*0.8*E89^2*(1+((3*$B$1/C89)*(E89/F89)^1.5))*SQRT($H$2*$B$2*F89/E89))) -> 1330.732038 | M89: =IF('Clean Columns'!$Z$67=0,1,1/1.5)*(IF('Clean Columns'!$Z$57,IF(AND('Clean Columns'!$Z$58,'Clean Columns'!$Z$59<Columns!C89/2),0.9*24*(E89^3)*SQRT($H$2*$B$2)/D89*0.5,0.9*24*(E89^3)*SQRT($H$2*$B$2)/D89),1000000)) -> 4405.670772 | O89: =IF('Clean Columns'!$Z$60=2,Columns!K89,MIN(J89:K89)) -> 762.575 | P89: 762.575 | Q89: 468.342 | R89: 468.342 | S89: 1015.3125 | T89: 3090
A90: W12X190 | B90: 56 | C90: 14.4 | D90: 9.74 | E90: 1.06 | F90: 1.74 | G90: 12.7 | H90: 2.33 | I90: =IF('Clean Columns'!$Z$67=0,1,1/1.5)*(IF($E$1>0.4*T90,0.9*0.6*$B$2*C90*E90*(1.4-$E$1/T90),0.9*0.6*$B$2*C90*E90)) -> 412.128 | J90: =IF(OR('Clean Columns'!$Z$67=0,'Clean Columns'!$Z$60=2),1,1/1.5)*(IF('Clean Columns'!$Z$60=2,(0.9*$B$2*$M$1*F90^2)/(1.11*0.75)/12,IF($H$1/G90<0.15,1000000,IF(AND('Clean Columns'!$Z$58,'Clean Columns'!$Z$59<10*F90),0.9*6.25*F90^2*$B$2*0.5,0.9*6.25*F90^2*$B$2)))) -> 851.5125 | K90: =IF('Clean Columns'!$Z$67=0,1,1/1.5)*IF('Clean Columns'!$Z$60=2,IF(AND('Clean Columns'!$Z$58,'Clean Columns'!$Z$59<C90),0.5,1)*(6*H90+$B$1+2*$K$1),IF(AND('Clean Columns'!$Z$58,'Clean Columns'!$Z$59<C90),0.5,1)*5*H90+$B$1)*$B$2*E90 -> 639.975 | L90: =IF('Clean Columns'!$Z$67=0,1,1/1.5)*(IF(AND('Clean Columns'!$Z$58,'Clean Columns'!$Z$59<C90/2),(0.75*0.8*E90^2*(1+((IF($B$1/C90<=0.2,3*$B$1/C90,4*$B$1/C90-0.2))*(E90/F90)^1.5))*SQRT($H$2*$B$2*F90/E90))*0.5,0.75*0.8*E90^2*(1+((3*$B$1/C90)*(E90/F90)^1.5))*SQRT($H$2*$B$2*F90/E90))) -> 1083.872233 | M90: =IF('Clean Columns'!$Z$67=0,1,1/1.5)*(IF('Clean Columns'!$Z$57,IF(AND('Clean Columns'!$Z$58,'Clean Columns'!$Z$59<Columns!C90/2),0.9*24*(E90^3)*SQRT($H$2*$B$2)/D90*0.5,0.9*24*(E90^3)*SQRT($H$2*$B$2)/D90),1000000)) -> 3180.507259 | O90: =IF('Clean Columns'!$Z$60=2,Columns!K90,MIN(J90:K90)) -> 639.975 | P90: 639.975 | Q90: 412.128 | R90: 412.128 | S90: 851.5125 | T90: 2800
A91: W12X170 | B91: 50 | C91: 14 | D91: 9.68 | E91: 0.96 | F91: 1.56 | G91: 12.6 | H91: 2.16 | I91: =IF('Clean Columns'!$Z$67=0,1,1/1.5)*(IF($E$1>0.4*T91,0.9*0.6*$B$2*C91*E91*(1.4-$E$1/T91),0.9*0.6*$B$2*C91*E91)) -> 362.88 | J91: =IF(OR('Clean Columns'!$Z$67=0,'Clean Columns'!$Z$60=2),1,1/1.5)*(IF('Clean Columns'!$Z$60=2,(0.9*$B$2*$M$1*F91^2)/(1.11*0.75)/12,IF($H$1/G91<0.15,1000000,IF(AND('Clean Columns'!$Z$58,'Clean Columns'!$Z$59<10*F91),0.9*6.25*F91^2*$B$2*0.5,0.9*6.25*F91^2*$B$2)))) -> 684.45 | K91: =IF('Clean Columns'!$Z$67=0,1,1/1.5)*IF('Clean Columns'!$Z$60=2,IF(AND('Clean Columns'!$Z$58,'Clean Columns'!$Z$59<C91),0.5,1)*(6*H91+$B$1+2*$K$1),IF(AND('Clean Columns'!$Z$58,'Clean Columns'!$Z$59<C91),0.5,1)*5*H91+$B$1)*$B$2*E91 -> 538.8 | L91: =IF('Clean Columns'!$Z$67=0,1,1/1.5)*(IF(AND('Clean Columns'!$Z$58,'Clean Columns'!$Z$59<C91/2),(0.75*0.8*E91^2*(1+((IF($B$1/C91<=0.2,3*$B$1/C91,4*$B$1/C91-0.2))*(E91/F91)^1.5))*SQRT($H$2*$B$2*F91/E91))*0.5,0.75*0.8*E91^2*(1+((3*$B$1/C91)*(E91/F91)^1.5))*SQRT($H$2*$B$2*F91/E91))) -> 886.1150839 | M91: =IF('Clean Columns'!$Z$67=0,1,1/1.5)*(IF('Clean Columns'!$Z$57,IF(AND('Clean Columns'!$Z$58,'Clean Columns'!$Z$59<Columns!C91/2),0.9*24*(E91^3)*SQRT($H$2*$B$2)/D91*0.5,0.9*24*(E91^3)*SQRT($H$2*$B$2)/D91),1000000)) -> 2377.256777 | O91: =IF('Clean Columns'!$Z$60=2,Columns!K91,MIN(J91:K91)) -> 538.8 | P91: 538.8 | Q91: 362.88 | R91: 362.88 | S91: 684.45 | T91: 2500
A92: W12X152 | B92: 44.7 | C92: 13.7 | D92: 9.7 | E92: 0.87 | F92: 1.4 | G92: 12.5 | H92: 2 | I92: =IF('Clean Columns'!$Z$67=0,1,1/1.5)*(IF($E$1>0.4*T92,0.9*0.6*$B$2*C92*E92*(1.4-$E$1/T92),0.9*0.6*$B$2*C92*E92)) -> 321.813 | J92: =IF(OR('Clean Columns'!$Z$67=0,'Clean Columns'!$Z$60=2),1,1/1.5)*(IF('Clean Columns'!$Z$60=2,(0.9*$B$2*$M$1*F92^2)/(1.11*0.75)/12,IF($H$1/G92<0.15,1000000,IF(AND('Clean Columns'!$Z$58,'Clean Columns'!$Z$59<10*F92),0.9*6.25*F92^2*$B$2*0.5,0.9*6.25*F92^2*$B$2)))) -> 551.25 | K92: =IF('Clean Columns'!$Z$67=0,1,1/1.5)*IF('Clean Columns'!$Z$60=2,IF(AND('Clean Columns'!$Z$58,'Clean Columns'!$Z$59<C92),0.5,1)*(6*H92+$B$1+2*$K$1),IF(AND('Clean Columns'!$Z$58,'Clean Columns'!$Z$59<C92),0.5,1)*5*H92+$B$1)*$B$2*E92 -> 453.4875 | L92: =IF('Clean Columns'!$Z$67=0,1,1/1.5)*(IF(AND('Clean Columns'!$Z$58,'Clean Columns'!$Z$59<C92/2),(0.75*0.8*E92^2*(1+((IF($B$1/C92<=0.2,3*$B$1/C92,4*$B$1/C92-0.2))*(E92/F92)^1.5))*SQRT($H$2*$B$2*F92/E92))*0.5,0.75*0.8*E92^2*(1+((3*$B$1/C92)*(E92/F92)^1.5))*SQRT($H$2*$B$2*F92/E92))) -> 725.3370606 | M92: =IF('Clean Columns'!$Z$67=0,1,1/1.5)*(IF('Clean Columns'!$Z$57,IF(AND('Clean Columns'!$Z$58,'Clean Columns'!$Z$59<Columns!C92/2),0.9*24*(E92^3)*SQRT($H$2*$B$2)/D92*0.5,0.9*24*(E92^3)*SQRT($H$2*$B$2)/D92),1000000)) -> 1765.727886 | O92: =IF('Clean Columns'!$Z$60=2,Columns!K92,MIN(J92:K92)) -> 453.4875 | P92: 453.4875 | Q92: 321.813 | R92: 321.813 | S92: 551.25 | T92: 2235
A93: W12X136 | B93: 39.9 | C93: 13.4 | D93: 9.7 | E93: 0.79 | F93: 1.25 | G93: 12.4 | H93: 1.85 | I93: =IF('Clean Columns'!$Z$67=0,1,1/1.5)*(IF($E$1>0.4*T93,0.9*0.6*$B$2*C93*E93*(1.4-$E$1/T93),0.9*0.6*$B$2*C93*E93)) -> 285.822 | J93: =IF(OR('Clean Columns'!$Z$67=0,'Clean Columns'!$Z$60=2),1,1/1.5)*(IF('Clean Columns'!$Z$60=2,(0.9*$B$2*$M$1*F93^2)/(1.11*0.75)/12,IF($H$1/G93<0.15,1000000,IF(AND('Clean Columns'!$Z$58,'Clean Columns'!$Z$59<10*F93),0.9*6.25*F93^2*$B$2*0.5,0.9*6.25*F93^2*$B$2)))) -> 439.453125 | K93: =IF('Clean Columns'!$Z$67=0,1,1/1.5)*IF('Clean Columns'!$Z$60=2,IF(AND('Clean Columns'!$Z$58,'Clean Columns'!$Z$59<C93),0.5,1)*(6*H93+$B$1+2*$K$1),IF(AND('Clean Columns'!$Z$58,'Clean Columns'!$Z$59<C93),0.5,1)*5*H93+$B$1)*$B$2*E93 -> 382.1625 | L93: =IF('Clean Columns'!$Z$67=0,1,1/1.5)*(IF(AND('Clean Columns'!$Z$58,'Clean Columns'!$Z$59<C93/2),(0.75*0.8*E93^2*(1+((IF($B$1/C93<=0.2,3*$B$1/C93,4*$B$1/C93-0.2))*(E93/F93)^1.5))*SQRT($H$2*$B$2*F93/E93))*0.5,0.75*0.8*E93^2*(1+((3*$B$1/C93)*(E93/F93)^1.5))*SQRT($H$2*$B$2*F93/E93))) -> 594.3081855 | M93: =IF('Clean Columns'!$Z$67=0,1,1/1.5)*(IF('Clean Columns'!$Z$57,IF(AND('Clean Columns'!$Z$58,'Clean Columns'!$Z$59<Columns!C93/2),0.9*24*(E93^3)*SQRT($H$2*$B$2)/D93*0.5,0.9*24*(E93^3)*SQRT($H$2*$B$2)/D93),1000000)) -> 1322.048208 | O93: =IF('Clean Columns'!$Z$60=2,Columns!K93,MIN(J93:K93)) -> 382.1625 | P93: 382.1625 | Q93: 285.822 | R93: 285.822 | S93: 439.453125 | T93: 1995
A94: W12X120 | B94: 35.2 | C94: 13.1 | D94: 9.7 | E94: 0.71 | F94: 1.11 | G94: 12.3 | H94: 1.7 | I94: =IF('Clean Columns'!$Z$67=0,1,1/1.5)*(IF($E$1>0.4*T94,0.9*0.6*$B$2*C94*E94*(1.4-$E$1/T94),0.9*0.6*$B$2*C94*E94)) -> 251.127 | J94: =IF(OR('Clean Columns'!$Z$67=0,'Clean Columns'!$Z$60=2),1,1/1.5)*(IF('Clean Columns'!$Z$60=2,(0.9*$B$2*$M$1*F94^2)/(1.11*0.75)/12,IF($H$1/G94<0.15,1000000,IF(AND('Clean Columns'!$Z$58,'Clean Columns'!$Z$59<10*F94),0.9*6.25*F94^2*$B$2*0.5,0.9*6.25*F94^2*$B$2)))) -> 346.528125 | K94: =IF('Clean Columns'!$Z$67=0,1,1/1.5)*IF('Clean Columns'!$Z$60=2,IF(AND('Clean Columns'!$Z$58,'Clean Columns'!$Z$59<C94),0.5,1)*(6*H94+$B$1+2*$K$1),IF(AND('Clean Columns'!$Z$58,'Clean Columns'!$Z$59<C94),0.5,1)*5*H94+$B$1)*$B$2*E94 -> 316.8375 | L94: =IF('Clean Columns'!$Z$67=0,1,1/1.5)*(IF(AND('Clean Columns'!$Z$58,'Clean Columns'!$Z$59<C94/2),(0.75*0.8*E94^2*(1+((IF($B$1/C94<=0.2,3*$B$1/C94,4*$B$1/C94-0.2))*(E94/F94)^1.5))*SQRT($H$2*$B$2*F94/E94))*0.5,0.75*0.8*E94^2*(1+((3*$B$1/C94)*(E94/F94)^1.5))*SQRT($H$2*$B$2*F94/E94))) -> 478.064711 | M94: =IF('Clean Columns'!$Z$67=0,1,1/1.5)*(IF('Clean Columns'!$Z$57,IF(AND('Clean Columns'!$Z$58,'Clean Columns'!$Z$59<Columns!C94/2),0.9*24*(E94^3)*SQRT($H$2*$B$2)/D94*0.5,0.9*24*(E94^3)*SQRT($H$2*$B$2)/D94),1000000)) -> 959.7123072 | O94: =IF('Clean Columns'!$Z$60=2,Columns!K94,MIN(J94:K94)) -> 316.8375 | P94: 316.8375 | Q94: 251.127 | R94: 251.127 | S94: 346.528125 | T94: 1760
A95: W12X106 | B95: 31.2 | C95: 12.9 | D95: 9.72 | E95: 0.61 | F95: 0.99 | G95: 12.2 | H95: 1.59 | I95: =IF('Clean Columns'!$Z$67=0,1,1/1.5)*(IF($E$1>0.4*T95,0.9*0.6*$B$2*C95*E95*(1.4-$E$1/T95),0.9*0.6*$B$2*C95*E95)) -> 212.463 | J95: =IF(OR('Clean Columns'!$Z$67=0,'Clean Columns'!$Z$60=2),1,1/1.5)*(IF('Clean Columns'!$Z$60=2,(0.9*$B$2*$M$1*F95^2)/(1.11*0.75)/12,IF($H$1/G95<0.15,1000000,IF(AND('Clean Columns'!$Z$58,'Clean Columns'!$Z$59<10*F95),0.9*6.25*F95^2*$B$2*0.5,0.9*6.25*F95^2*$B$2)))) -> 275.653125 | K95: =IF('Clean Columns'!$Z$67=0,1,1/1.5)*IF('Clean Columns'!$Z$60=2,IF(AND('Clean Columns'!$Z$58,'Clean Columns'!$Z$59<C95),0.5,1)*(6*H95+$B$1+2*$K$1),IF(AND('Clean Columns'!$Z$58,'Clean Columns'!$Z$59<C95),0.5,1)*5*H95+$B$1)*$B$2*E95 -> 255.4375 | L95: =IF('Clean Columns'!$Z$67=0,1,1/1.5)*(IF(AND('Clean Columns'!$Z$58,'Clean Columns'!$Z$59<C95/2),(0.75*0.8*E95^2*(1+((IF($B$1/C95<=0.2,3*$B$1/C95,4*$B$1/C95-0.2))*(E95/F95)^1.5))*SQRT($H$2*$B$2*F95/E95))*0.5,0.75*0.8*E95^2*(1+((3*$B$1/C95)*(E95/F95)^1.5))*SQRT($H$2*$B$2*F95/E95))) -> 358.8620809 | M95: =IF('Clean Columns'!$Z$67=0,1,1/1.5)*(IF('Clean Columns'!$Z$57,IF(AND('Clean Columns'!$Z$58,'Clean Columns'!$Z$59<Columns!C95/2),0.9*24*(E95^3)*SQRT($H$2*$B$2)/D95*0.5,0.9*24*(E95^3)*SQRT($H$2*$B$2)/D95),1000000)) -> 607.3807065 | O95: =IF('Clean Columns'!$Z$60=2,Columns!K95,MIN(J95:K95)) -> 255.4375 | P95: 255.4375 | Q95: 212.463 | R95: 212.463 | S95: 275.653125 | T95: 1560
A96: W12X96 | B96: 28.2 | C96: 12.7 | D96: 9.7 | E96: 0.55 | F96: 0.9 | G96: 12.2 | H96: 1.5 | I96: =IF('Clean Columns'!$Z$67=0,1,1/1.5)*(IF($E$1>0.4*T96,0.9*0.6*$B$2*C96*E96*(1.4-$E$1/T96),0.9*0.6*$B$2*C96*E96)) -> 188.595 | J96: =IF(OR('Clean Columns'!$Z$67=0,'Clean Columns'!$Z$60=2),1,1/1.5)*(IF('Clean Columns'!$Z$60=2,(0.9*$B$2*$M$1*F96^2)/(1.11*0.75)/12,IF($H$1/G96<0.15,1000000,IF(AND('Clean Columns'!$Z$58,'Clean Columns'!$Z$59<10*F96),0.9*6.25*F96^2*$B$2*0.5,0.9*6.25*F96^2*$B$2)))) -> 227.8125 | K96: =IF('Clean Columns'!$Z$67=0,1,1/1.5)*IF('Clean Columns'!$Z$60=2,IF(AND('Clean Columns'!$Z$58,'Clean Columns'!$Z$59<C96),0.5,1)*(6*H96+$B$1+2*$K$1),IF(AND('Clean Columns'!$Z$58,'Clean Columns'!$Z$59<C96),0.5,1)*5*H96+$B$1)*$B$2*E96 -> 217.9375 | L96: =IF('Clean Columns'!$Z$67=0,1,1/1.5)*(IF(AND('Clean Columns'!$Z$58,'Clean Columns'!$Z$59<C96/2),(0.75*0.8*E96^2*(1+((IF($B$1/C96<=0.2,3*$B$1/C96,4*$B$1/C96-0.2))*(E96/F96)^1.5))*SQRT($H$2*$B$2*F96/E96))*0.5,0.75*0.8*E96^2*(1+((3*$B$1/C96)*(E96/F96)^1.5))*SQRT($H$2*$B$2*F96/E96))) -> 292.9851392 | M96: =IF('Clean Columns'!$Z$67=0,1,1/1.5)*(IF('Clean Columns'!$Z$57,IF(AND('Clean Columns'!$Z$58,'Clean Columns'!$Z$59<Columns!C96/2),0.9*24*(E96^3)*SQRT($H$2*$B$2)/D96*0.5,0.9*24*(E96^3)*SQRT($H$2*$B$2)/D96),1000000)) -> 446.1224581 | O96: =IF('Clean Columns'!$Z$60=2,Columns!K96,MIN(J96:K96)) -> 217.9375 | P96: 217.9375 | Q96: 188.595 | R96: 188.595 | S96: 227.8125 | T96: 1410
A97: W12X87 | B97: 25.6 | C97: 12.5 | D97: 9.68 | E97: 0.515 | F97: 0.81 | G97: 12.1 | H97: 1.41 | I97: =IF('Clean Columns'!$Z$67=0,1,1/1.5)*(IF($E$1>0.4*T97,0.9*0.6*$B$2*C97*E97*(1.4-$E$1/T97),0.9*0.6*$B$2*C97*E97)) -> 173.8125 | J97: =IF(OR('Clean Columns'!$Z$67=0,'Clean Columns'!$Z$60=2),1,1/1.5)*(IF('Clean Columns'!$Z$60=2,(0.9*$B$2*$M$1*F97^2)/(1.11*0.75)/12,IF($H$1/G97<0.15,1000000,IF(AND('Clean Columns'!$Z$58,'Clean Columns'!$Z$59<10*F97),0.9*6.25*F97^2*$B$2*0.5,0.9*6.25*F97^2*$B$2)))) -> 184.528125 | K97: =IF('Clean Columns'!$Z$67=0,1,1/1.5)*IF('Clean Columns'!$Z$60=2,IF(AND('Clean Columns'!$Z$58,'Clean Columns'!$Z$59<C97),0.5,1)*(6*H97+$B$1+2*$K$1),IF(AND('Clean Columns'!$Z$58,'Clean Columns'!$Z$59<C97),0.5,1)*5*H97+$B$1)*$B$2*E97 -> 192.48125 | L97: =IF('Clean Columns'!$Z$67=0,1,1/1.5)*(IF(AND('Clean Columns'!$Z$58,'Clean Columns'!$Z$59<C97/2),(0.75*0.8*E97^2*(1+((IF($B$1/C97<=0.2,3*$B$1/C97,4*$B$1/C97-0.2))*(E97/F97)^1.5))*SQRT($H$2*$B$2*F97/E97))*0.5,0.75*0.8*E97^2*(1+((3*$B$1/C97)*(E97/F97)^1.5))*SQRT($H$2*$B$2*F97/E97))) -> 252.7464404 | M97: =IF('Clean Columns'!$Z$67=0,1,1/1.5)*(IF('Clean Columns'!$Z$57,IF(AND('Clean Columns'!$Z$58,'Clean Columns'!$Z$59<Columns!C97/2),0.9*24*(E97^3)*SQRT($H$2*$B$2)/D97*0.5,0.9*24*(E97^3)*SQRT($H$2*$B$2)/D97),1000000)) -> 367.0152263 | O97: =IF('Clean Columns'!$Z$60=2,Columns!K97,MIN(J97:K97)) -> 184.528125 | P97: 192.48125 | Q97: 173.8125 | R97: 173.8125 | S97: 184.528125 | T97: 1280
A98: W12X79 | B98: 23.2 | C98: 12.4 | D98: 9.74 | E98: 0.47 | F98: 0.735 | G98: 12.1 | H98: 1.33 | I98: =IF('Clean Columns'!$Z$67=0,1,1/1.5)*(IF($E$1>0.4*T98,0.9*0.6*$B$2*C98*E98*(1.4-$E$1/T98),0.9*0.6*$B$2*C98*E98)) -> 157.356 | J98: =IF(OR('Clean Columns'!$Z$67=0,'Clean Columns'!$Z$60=2),1,1/1.5)*(IF('Clean Columns'!$Z$60=2,(0.9*$B$2*$M$1*F98^2)/(1.11*0.75)/12,IF($H$1/G98<0.15,1000000,IF(AND('Clean Columns'!$Z$58,'Clean Columns'!$Z$59<10*F98),0.9*6.25*F98^2*$B$2*0.5,0.9*6.25*F98^2*$B$2)))) -> 151.9382812 | K98: =IF('Clean Columns'!$Z$67=0,1,1/1.5)*IF('Clean Columns'!$Z$60=2,IF(AND('Clean Columns'!$Z$58,'Clean Columns'!$Z$59<C98),0.5,1)*(6*H98+$B$1+2*$K$1),IF(AND('Clean Columns'!$Z$58,'Clean Columns'!$Z$59<C98),0.5,1)*5*H98+$B$1)*$B$2*E98 -> 166.2625 | L98: =IF('Clean Columns'!$Z$67=0,1,1/1.5)*(IF(AND('Clean Columns'!$Z$58,'Clean Columns'!$Z$59<C98/2),(0.75*0.8*E98^2*(1+((IF($B$1/C98<=0.2,3*$B$1/C98,4*$B$1/C98-0.2))*(E98/F98)^1.5))*SQRT($H$2*$B$2*F98/E98))*0.5,0.75*0.8*E98^2*(1+((3*$B$1/C98)*(E98/F98)^1.5))*SQRT($H$2*$B$2*F98/E98))) -> 210.0777258 | M98: =IF('Clean Columns'!$Z$67=0,1,1/1.5)*(IF('Clean Columns'!$Z$57,IF(AND('Clean Columns'!$Z$58,'Clean Columns'!$Z$59<Columns!C98/2),0.9*24*(E98^3)*SQRT($H$2*$B$2)/D98*0.5,0.9*24*(E98^3)*SQRT($H$2*$B$2)/D98),1000000)) -> 277.2505199 | O98: =IF('Clean Columns'!$Z$60=2,Columns!K98,MIN(J98:K98)) -> 151.9382812 | P98: 166.2625 | Q98: 157.356 | R98: 151.9382812 | S98: 151.9382812 | T98: 1160
A99: W12X72 | B99: 21.1 | C99: 12.3 | D99: 9.76 | E99: 0.43 | F99: 0.67 | G99: 12 | H99: 1.27 | I99: =IF('Clean Columns'!$Z$67=0,1,1/1.5)*(IF($E$1>0.4*T99,0.9*0.6*$B$2*C99*E99*(1.4-$E$1/T99),0.9*0.6*$B$2*C99*E99)) -> 142.803 | J99: =IF(OR('Clean Columns'!$Z$67=0,'Clean Columns'!$Z$60=2),1,1/1.5)*(IF('Clean Columns'!$Z$60=2,(0.9*$B$2*$M$1*F99^2)/(1.11*0.75)/12,IF($H$1/G99<0.15,1000000,IF(AND('Clean Columns'!$Z$58,'Clean Columns'!$Z$59<10*F99),0.9*6.25*F99^2*$B$2*0.5,0.9*6.25*F99^2*$B$2)))) -> 126.253125 | K99: =IF('Clean Columns'!$Z$67=0,1,1/1.5)*IF('Clean Columns'!$Z$60=2,IF(AND('Clean Columns'!$Z$58,'Clean Columns'!$Z$59<C99),0.5,1)*(6*H99+$B$1+2*$K$1),IF(AND('Clean Columns'!$Z$58,'Clean Columns'!$Z$59<C99),0.5,1)*5*H99+$B$1)*$B$2*E99 -> 145.6625 | L99: =IF('Clean Columns'!$Z$67=0,1,1/1.5)*(IF(AND('Clean Columns'!$Z$58,'Clean Columns'!$Z$59<C99/2),(0.75*0.8*E99^2*(1+((IF($B$1/C99<=0.2,3*$B$1/C99,4*$B$1/C99-0.2))*(E99/F99)^1.5))*SQRT($H$2*$B$2*F99/E99))*0.5,0.75*0.8*E99^2*(1+((3*$B$1/C99)*(E99/F99)^1.5))*SQRT($H$2*$B$2*F99/E99))) -> 175.6409666 | M99: =IF('Clean Columns'!$Z$67=0,1,1/1.5)*(IF('Clean Columns'!$Z$57,IF(AND('Clean Columns'!$Z$58,'Clean Columns'!$Z$59<Columns!C99/2),0.9*24*(E99^3)*SQRT($H$2*$B$2)/D99*0.5,0.9*24*(E99^3)*SQRT($H$2*$B$2)/D99),1000000)) -> 211.8816281 | O99: =IF('Clean Columns'!$Z$60=2,Columns!K99,MIN(J99:K99)) -> 126.253125 | P99: 145.6625 | Q99: 142.803 | R99: 126.253125 | S99: 126.253125 | T99: 1055
A100: W12X65 | B100: 19.1 | C100: 12.1 | D100: 9.7 | E100: 0.39 | F100: 0.605 | G100: 12 | H100: 1.2 | I100: =IF('Clean Columns'!$Z$67=0,1,1/1.5)*(IF($E$1>0.4*T100,0.9*0.6*$B$2*C100*E100*(1.4-$E$1/T100),0.9*0.6*$B$2*C100*E100)) -> 127.413 | J100: =IF(OR('Clean Columns'!$Z$67=0,'Clean Columns'!$Z$60=2),1,1/1.5)*(IF('Clean Columns'!$Z$60=2,(0.9*$B$2*$M$1*F100^2)/(1.11*0.75)/12,IF($H$1/G100<0.15,1000000,IF(AND('Clean Columns'!$Z$58,'Clean Columns'!$Z$59<10*F100),0.9*6.25*F100^2*$B$2*0.5,0.9*6.25*F100^2*$B$2)))) -> 102.9445313 | K100: =IF('Clean Columns'!$Z$67=0,1,1/1.5)*IF('Clean Columns'!$Z$60=2,IF(AND('Clean Columns'!$Z$58,'Clean Columns'!$Z$59<C100),0.5,1)*(6*H100+$B$1+2*$K$1),IF(AND('Clean Columns'!$Z$58,'Clean Columns'!$Z$59<C100),0.5,1)*5*H100+$B$1)*$B$2*E100 -> 125.2875 | L100: =IF('Clean Columns'!$Z$67=0,1,1/1.5)*(IF(AND('Clean Columns'!$Z$58,'Clean Columns'!$Z$59<C100/2),(0.75*0.8*E100^2*(1+((IF($B$1/C100<=0.2,3*$B$1/C100,4*$B$1/C100-0.2))*(E100/F100)^1.5))*SQRT($H$2*$B$2*F100/E100))*0.5,0.75*0.8*E100^2*(1+((3*$B$1/C100)*(E100/F100)^1.5))*SQRT($H$2*$B$2*F100/E100))) -> 144.3349606 | M100: =IF('Clean Columns'!$Z$67=0,1,1/1.5)*(IF('Clean Columns'!$Z$57,IF(AND('Clean Columns'!$Z$58,'Clean Columns'!$Z$59<Columns!C100/2),0.9*24*(E100^3)*SQRT($H$2*$B$2)/D100*0.5,0.9*24*(E100^3)*SQRT($H$2*$B$2)/D100),1000000)) -> 159.0595828 | O100: =IF('Clean Columns'!$Z$60=2,Columns!K100,MIN(J100:K100)) -> 102.9445313 | P100: 125.2875 | Q100: 127.413 | R100: 102.9445313 | S100: 102.9445313 | T100: 955
A102: W12X58 | B102: =VLOOKUP($A102,_xlnm.DataBase,HLOOKUP(B$3,DB_Headers,2,FALSE),FALSE) -> 17 | C102: =VLOOKUP($A102,_xlnm.DataBase,HLOOKUP(C$3,DB_Headers,2,FALSE),FALSE) -> 12.2 | D102: =C102-2*H102 -> 9.72 | E102: =VLOOKUP($A102,_xlnm.DataBase,HLOOKUP(E$3,DB_Headers,2,FALSE),FALSE) -> 0.36 | F102: 0.64 | G102: 10 | H102: 1.24 | I102: =IF('Clean Columns'!$Z$67=0,1,1/1.5)*(IF($E$1>0.4*T102,0.9*0.6*$B$2*C102*E102*(1.4-$E$1/T102),0.9*0.6*$B$2*C102*E102)) -> 118.584 | J102: =IF(OR('Clean Columns'!$Z$67=0,'Clean Columns'!$Z$60=2),1,1/1.5)*(IF('Clean Columns'!$Z$60=2,(0.9*$B$2*$M$1*F102^2)/(1.11*0.75)/12,IF($H$1/G102<0.15,1000000,IF(AND('Clean Columns'!$Z$58,'Clean Columns'!$Z$59<10*F102),0.9*6.25*F102^2*$B$2*0.5,0.9*6.25*F102^2*$B$2)))) -> 115.2 | K102: =IF('Clean Columns'!$Z$67=0,1,1/1.5)*IF('Clean Columns'!$Z$60=2,IF(AND('Clean Columns'!$Z$58,'Clean Columns'!$Z$59<C102),0.5,1)*(6*H102+$B$1+2*$K$1),IF(AND('Clean Columns'!$Z$58,'Clean Columns'!$Z$59<C102),0.5,1)*5*H102+$B$1)*$B$2*E102 -> 119.25 | L102: =IF('Clean Columns'!$Z$67=0,1,1/1.5)*(IF(AND('Clean Columns'!$Z$58,'Clean Columns'!$Z$59<C102/2),(0.75*0.8*E102^2*(1+((IF($B$1/C102<=0.2,3*$B$1/C102,4*$B$1/C102-0.2))*(E102/F102)^1.5))*SQRT($H$2*$B$2*F102/E102))*0.5,0.75*0.8*E102^2*(1+((3*$B$1/C102)*(E102/F102)^1.5))*SQRT($H$2*$B$2*F102/E102))) -> 130.3516925 | M102: =IF('Clean Columns'!$Z$67=0,1,1/1.5)*(IF('Clean Columns'!$Z$57,IF(AND('Clean Columns'!$Z$58,'Clean Columns'!$Z$59<Columns!C102/2),0.9*24*(E102^3)*SQRT($H$2*$B$2)/D102*0.5,0.9*24*(E102^3)*SQRT($H$2*$B$2)/D102),1000000)) -> 124.8472526 | O102: =IF('Clean Columns'!$Z$60=2,Columns!K102,MIN(J102:K102)) -> 115.2 | P102: =MIN(K102:M102) -> 119.25 | Q102: =I102 -> 118.584 | R102: =MIN(O102:Q102) -> 115.2 | S102: =J102 -> 115.2 | T102: 850
A103: W12X53 | B103: =VLOOKUP($A103,_xlnm.DataBase,HLOOKUP(B$3,DB_Headers,2,FALSE),FALSE) -> 15.6 | C103: =VLOOKUP($A103,_xlnm.DataBase,HLOOKUP(C$3,DB_Headers,2,FALSE),FALSE) -> 12.1 | D103: =C103-2*H103 -> 9.74 | E103: 0.345 | F103: 0.575 | G103: 10 | H103: 1.18 | I103: =IF('Clean Columns'!$Z$67=0,1,1/1.5)*(IF($E$1>0.4*T103,0.9*0.6*$B$2*C103*E103*(1.4-$E$1/T103),0.9*0.6*$B$2*C103*E103)) -> 112.7115 | J103: =IF(OR('Clean Columns'!$Z$67=0,'Clean Columns'!$Z$60=2),1,1/1.5)*(IF('Clean Columns'!$Z$60=2,(0.9*$B$2*$M$1*F103^2)/(1.11*0.75)/12,IF($H$1/G103<0.15,1000000,IF(AND('Clean Columns'!$Z$58,'Clean Columns'!$Z$59<10*F103),0.9*6.25*F103^2*$B$2*0.5,0.9*6.25*F103^2*$B$2)))) -> 92.98828125 | K103: =IF('Clean Columns'!$Z$67=0,1,1/1.5)*IF('Clean Columns'!$Z$60=2,IF(AND('Clean Columns'!$Z$58,'Clean Columns'!$Z$59<C103),0.5,1)*(6*H103+$B$1+2*$K$1),IF(AND('Clean Columns'!$Z$58,'Clean Columns'!$Z$59<C103),0.5,1)*5*H103+$B$1)*$B$2*E103 -> 109.10625 | L103: =IF('Clean Columns'!$Z$67=0,1,1/1.5)*(IF(AND('Clean Columns'!$Z$58,'Clean Columns'!$Z$59<C103/2),(0.75*0.8*E103^2*(1+((IF($B$1/C103<=0.2,3*$B$1/C103,4*$B$1/C103-0.2))*(E103/F103)^1.5))*SQRT($H$2*$B$2*F103/E103))*0.5,0.75*0.8*E103^2*(1+((3*$B$1/C103)*(E103/F103)^1.5))*SQRT($H$2*$B$2*F103/E103))) -> 116.4560062 | M103: =IF('Clean Columns'!$Z$67=0,1,1/1.5)*(IF('Clean Columns'!$Z$57,IF(AND('Clean Columns'!$Z$58,'Clean Columns'!$Z$59<Columns!C103/2),0.9*24*(E103^3)*SQRT($H$2*$B$2)/D103*0.5,0.9*24*(E103^3)*SQRT($H$2*$B$2)/D103),1000000)) -> 109.6569294 | O103: =IF('Clean Columns'!$Z$60=2,Columns!K103,MIN(J103:K103)) -> 92.98828125 | P103: =MIN(K103:M103) -> 109.10625 | Q103: =I103 -> 112.7115 | R103: =MIN(O103:Q103) -> 92.98828125 | S103: =J103 -> 92.98828125 | T103: 780
A105: W12X50 | B105: =VLOOKUP($A105,_xlnm.DataBase,HLOOKUP(B$3,DB_Headers,2,FALSE),FALSE) -> 14.6 | C105: 12.2 | D105: =C105-2*H105 -> 9.92 | E105: =VLOOKUP($A105,_xlnm.DataBase,HLOOKUP(E$3,DB_Headers,2,FALSE),FALSE) -> 0.37 | F105: 0.64 | G105: 8.08 | H105: 1.14 | I105: =IF('Clean Columns'!$Z$67=0,1,1/1.5)*(IF($E$1>0.4*T105,0.9*0.6*$B$2*C105*E105*(1.4-$E$1/T105),0.9*0.6*$B$2*C105*E105)) -> 121.878 | J105: =IF(OR('Clean Columns'!$Z$67=0,'Clean Columns'!$Z$60=2),1,1/1.5)*(IF('Clean Columns'!$Z$60=2,(0.9*$B$2*$M$1*F105^2)/(1.11*0.75)/12,IF($H$1/G105<0.15,1000000,IF(AND('Clean Columns'!$Z$58,'Clean Columns'!$Z$59<10*F105),0.9*6.25*F105^2*$B$2*0.5,0.9*6.25*F105^2*$B$2)))) -> 115.2 | K105: =IF('Clean Columns'!$Z$67=0,1,1/1.5)*IF('Clean Columns'!$Z$60=2,IF(AND('Clean Columns'!$Z$58,'Clean Columns'!$Z$59<C105),0.5,1)*(6*H105+$B$1+2*$K$1),IF(AND('Clean Columns'!$Z$58,'Clean Columns'!$Z$59<C105),0.5,1)*5*H105+$B$1)*$B$2*E105 -> 113.3125 | L105: =IF('Clean Columns'!$Z$67=0,1,1/1.5)*(IF(AND('Clean Columns'!$Z$58,'Clean Columns'!$Z$59<C105/2),(0.75*0.8*E105^2*(1+((IF($B$1/C105<=0.2,3*$B$1/C105,4*$B$1/C105-0.2))*(E105/F105)^1.5))*SQRT($H$2*$B$2*F105/E105))*0.5,0.75*0.8*E105^2*(1+((3*$B$1/C105)*(E105/F105)^1.5))*SQRT($H$2*$B$2*F105/E105))) -> 136.0611837 | M105: =IF('Clean Columns'!$Z$67=0,1,1/1.5)*(IF('Clean Columns'!$Z$57,IF(AND('Clean Columns'!$Z$58,'Clean Columns'!$Z$59<Columns!C105/2),0.9*24*(E105^3)*SQRT($H$2*$B$2)/D105*0.5,0.9*24*(E105^3)*SQRT($H$2*$B$2)/D105),1000000)) -> 132.8101454 | O105: =IF('Clean Columns'!$Z$60=2,Columns!K105,MIN(J105:K105)) -> 113.3125 | P105: =MIN(K105:M105) -> 113.3125 | Q105: =I105 -> 121.878 | R105: =MIN(O105:Q105) -> 113.3125 | S105: =J105 -> 115.2 | T105: 730
A106: W12X45 | B106: 13.1 | C106: 12.1 | D106: =C106-2*H106 -> 9.94 | E106: 0.335 | F106: 0.575 | G106: 8.05 | H106: 1.08 | I106: =IF('Clean Columns'!$Z$67=0,1,1/1.5)*(IF($E$1>0.4*T106,0.9*0.6*$B$2*C106*E106*(1.4-$E$1/T106),0.9*0.6*$B$2*C106*E106)) -> 109.4445 | J106: =IF(OR('Clean Columns'!$Z$67=0,'Clean Columns'!$Z$60=2),1,1/1.5)*(IF('Clean Columns'!$Z$60=2,(0.9*$B$2*$M$1*F106^2)/(1.11*0.75)/12,IF($H$1/G106<0.15,1000000,IF(AND('Clean Columns'!$Z$58,'Clean Columns'!$Z$59<10*F106),0.9*6.25*F106^2*$B$2*0.5,0.9*6.25*F106^2*$B$2)))) -> 92.98828125 | K106: =IF('Clean Columns'!$Z$67=0,1,1/1.5)*IF('Clean Columns'!$Z$60=2,IF(AND('Clean Columns'!$Z$58,'Clean Columns'!$Z$59<C106),0.5,1)*(6*H106+$B$1+2*$K$1),IF(AND('Clean Columns'!$Z$58,'Clean Columns'!$Z$59<C106),0.5,1)*5*H106+$B$1)*$B$2*E106 -> 97.56875 | L106: =IF('Clean Columns'!$Z$67=0,1,1/1.5)*(IF(AND('Clean Columns'!$Z$58,'Clean Columns'!$Z$59<C106/2),(0.75*0.8*E106^2*(1+((IF($B$1/C106<=0.2,3*$B$1/C106,4*$B$1/C106-0.2))*(E106/F106)^1.5))*SQRT($H$2*$B$2*F106/E106))*0.5,0.75*0.8*E106^2*(1+((3*$B$1/C106)*(E106/F106)^1.5))*SQRT($H$2*$B$2*F106/E106))) -> 111.2050352 | M106: =IF('Clean Columns'!$Z$67=0,1,1/1.5)*(IF('Clean Columns'!$Z$57,IF(AND('Clean Columns'!$Z$58,'Clean Columns'!$Z$59<Columns!C106/2),0.9*24*(E106^3)*SQRT($H$2*$B$2)/D106*0.5,0.9*24*(E106^3)*SQRT($H$2*$B$2)/D106),1000000)) -> 98.3752364 | O106: =IF('Clean Columns'!$Z$60=2,Columns!K106,MIN(J106:K106)) -> 92.98828125 | P106: =MIN(K106:M106) -> 97.56875 | Q106: =I106 -> 109.4445 | R106: =MIN(O106:Q106) -> 92.98828125 | S106: =J106 -> 92.98828125 | T106: 655
A107: W12X40 | B107: 11.7 | C107: 11.9 | D107: =C107-2*H107 -> 9.86 | E107: 0.295 | F107: 0.515 | G107: 8.01 | H107: 1.02 | I107: =IF('Clean Columns'!$Z$67=0,1,1/1.5)*(IF($E$1>0.4*T107,0.9*0.6*$B$2*C107*E107*(1.4-$E$1/T107),0.9*0.6*$B$2*C107*E107)) -> 94.7835 | J107: =IF(OR('Clean Columns'!$Z$67=0,'Clean Columns'!$Z$60=2),1,1/1.5)*(IF('Clean Columns'!$Z$60=2,(0.9*$B$2*$M$1*F107^2)/(1.11*0.75)/12,IF($H$1/G107<0.15,1000000,IF(AND('Clean Columns'!$Z$58,'Clean Columns'!$Z$59<10*F107),0.9*6.25*F107^2*$B$2*0.5,0.9*6.25*F107^2*$B$2)))) -> 74.59453125 | K107: =IF('Clean Columns'!$Z$67=0,1,1/1.5)*IF('Clean Columns'!$Z$60=2,IF(AND('Clean Columns'!$Z$58,'Clean Columns'!$Z$59<C107),0.5,1)*(6*H107+$B$1+2*$K$1),IF(AND('Clean Columns'!$Z$58,'Clean Columns'!$Z$59<C107),0.5,1)*5*H107+$B$1)*$B$2*E107 -> 81.49375 | L107: =IF('Clean Columns'!$Z$67=0,1,1/1.5)*(IF(AND('Clean Columns'!$Z$58,'Clean Columns'!$Z$59<C107/2),(0.75*0.8*E107^2*(1+((IF($B$1/C107<=0.2,3*$B$1/C107,4*$B$1/C107-0.2))*(E107/F107)^1.5))*SQRT($H$2*$B$2*F107/E107))*0.5,0.75*0.8*E107^2*(1+((3*$B$1/C107)*(E107/F107)^1.5))*SQRT($H$2*$B$2*F107/E107))) -> 86.93413923 | M107: =IF('Clean Columns'!$Z$67=0,1,1/1.5)*(IF('Clean Columns'!$Z$57,IF(AND('Clean Columns'!$Z$58,'Clean Columns'!$Z$59<Columns!C107/2),0.9*24*(E107^3)*SQRT($H$2*$B$2)/D107*0.5,0.9*24*(E107^3)*SQRT($H$2*$B$2)/D107),1000000)) -> 67.72154932 | O107: =IF('Clean Columns'!$Z$60=2,Columns!K107,MIN(J107:K107)) -> 74.59453125 | P107: =MIN(K107:M107) -> 67.72154932 | Q107: =I107 -> 94.7835 | R107: =MIN(O107:Q107) -> 67.72154932 | S107: =J107 -> 74.59453125 | T107: 585
A110: W10X112 | B110: =VLOOKUP($A110,_xlnm.DataBase,HLOOKUP(B$3,DB_Headers,2,FALSE),FALSE) -> 32.9 | C110: 11.4 | D110: =C110-2*H110 -> 7.9 | E110: =VLOOKUP($A110,_xlnm.DataBase,HLOOKUP(E$3,DB_Headers,2,FALSE),FALSE) -> 0.755 | F110: 1.25 | G110: 10.4 | H110: 1.75 | I110: =IF('Clean Columns'!$Z$67=0,1,1/1.5)*(IF($E$1>0.4*T110,0.9*0.6*$B$2*C110*E110*(1.4-$E$1/T110),0.9*0.6*$B$2*C110*E110)) -> 232.389 | J110: =IF(OR('Clean Columns'!$Z$67=0,'Clean Columns'!$Z$60=2),1,1/1.5)*(IF('Clean Columns'!$Z$60=2,(0.9*$B$2*$M$1*F110^2)/(1.11*0.75)/12,IF($H$1/G110<0.15,1000000,IF(AND('Clean Columns'!$Z$58,'Clean Columns'!$Z$59<10*F110),0.9*6.25*F110^2*$B$2*0.5,0.9*6.25*F110^2*$B$2)))) -> 439.453125 | K110: =IF('Clean Columns'!$Z$67=0,1,1/1.5)*IF('Clean Columns'!$Z$60=2,IF(AND('Clean Columns'!$Z$58,'Clean Columns'!$Z$59<C110),0.5,1)*(6*H110+$B$1+2*$K$1),IF(AND('Clean Columns'!$Z$58,'Clean Columns'!$Z$59<C110),0.5,1)*5*H110+$B$1)*$B$2*E110 -> 346.35625 | L110: =IF('Clean Columns'!$Z$67=0,1,1/1.5)*(IF(AND('Clean Columns'!$Z$58,'Clean Columns'!$Z$59<C110/2),(0.75*0.8*E110^2*(1+((IF($B$1/C110<=0.2,3*$B$1/C110,4*$B$1/C110-0.2))*(E110/F110)^1.5))*SQRT($H$2*$B$2*F110/E110))*0.5,0.75*0.8*E110^2*(1+((3*$B$1/C110)*(E110/F110)^1.5))*SQRT($H$2*$B$2*F110/E110))) -> 557.7413733 | M110: =IF('Clean Columns'!$Z$67=0,1,1/1.5)*(IF('Clean Columns'!$Z$57,IF(AND('Clean Columns'!$Z$58,'Clean Columns'!$Z$59<Columns!C110/2),0.9*24*(E110^3)*SQRT($H$2*$B$2)/D110*0.5,0.9*24*(E110^3)*SQRT($H$2*$B$2)/D110),1000000)) -> 1416.940181 | O110: =IF('Clean Columns'!$Z$60=2,Columns!K110,MIN(J110:K110)) -> 346.35625 | P110: =MIN(K110:M110) -> 346.35625 | Q110: =I110 -> 232.389 | R110: =MIN(O110:Q110) -> 232.389 | S110: =J110 -> 439.453125 | T110: 1645
A111: W10X100 | B111: 29.3 | C111: 11.1 | D111: 7.86 | E111: 0.68 | F111: 1.12 | G111: 10.3 | H111: 1.62 | I111: =IF('Clean Columns'!$Z$67=0,1,1/1.5)*(IF($E$1>0.4*T111,0.9*0.6*$B$2*C111*E111*(1.4-$E$1/T111),0.9*0.6*$B$2*C111*E111)) -> 203.796 | J111: =IF(OR('Clean Columns'!$Z$67=0,'Clean Columns'!$Z$60=2),1,1/1.5)*(IF('Clean Columns'!$Z$60=2,(0.9*$B$2*$M$1*F111^2)/(1.11*0.75)/12,IF($H$1/G111<0.15,1000000,IF(AND('Clean Columns'!$Z$58,'Clean Columns'!$Z$59<10*F111),0.9*6.25*F111^2*$B$2*0.5,0.9*6.25*F111^2*$B$2)))) -> 352.8 | K111: =IF('Clean Columns'!$Z$67=0,1,1/1.5)*IF('Clean Columns'!$Z$60=2,IF(AND('Clean Columns'!$Z$58,'Clean Columns'!$Z$59<C111),0.5,1)*(6*H111+$B$1+2*$K$1),IF(AND('Clean Columns'!$Z$58,'Clean Columns'!$Z$59<C111),0.5,1)*5*H111+$B$1)*$B$2*E111 -> 289.85 | L111: =IF('Clean Columns'!$Z$67=0,1,1/1.5)*(IF(AND('Clean Columns'!$Z$58,'Clean Columns'!$Z$59<C111/2),(0.75*0.8*E111^2*(1+((IF($B$1/C111<=0.2,3*$B$1/C111,4*$B$1/C111-0.2))*(E111/F111)^1.5))*SQRT($H$2*$B$2*F111/E111))*0.5,0.75*0.8*E111^2*(1+((3*$B$1/C111)*(E111/F111)^1.5))*SQRT($H$2*$B$2*F111/E111))) -> 452.0521265 | M111: =IF('Clean Columns'!$Z$67=0,1,1/1.5)*(IF('Clean Columns'!$Z$57,IF(AND('Clean Columns'!$Z$58,'Clean Columns'!$Z$59<Columns!C111/2),0.9*24*(E111^3)*SQRT($H$2*$B$2)/D111*0.5,0.9*24*(E111^3)*SQRT($H$2*$B$2)/D111),1000000)) -> 1040.499664 | O111: =IF('Clean Columns'!$Z$60=2,Columns!K111,MIN(J111:K111)) -> 289.85 | P111: 289.85 | Q111: 203.796 | R111: 203.796 | S111: 352.8 | T111: 1465
A112: W10X88 | B112: 26 | C112: 10.8 | D112: 7.82 | E112: 0.605 | F112: 0.99 | G112: 10.3 | H112: 1.49 | I112: =IF('Clean Columns'!$Z$67=0,1,1/1.5)*(IF($E$1>0.4*T112,0.9*0.6*$B$2*C112*E112*(1.4-$E$1/T112),0.9*0.6*$B$2*C112*E112)) -> 176.418 | J112: =IF(OR('Clean Columns'!$Z$67=0,'Clean Columns'!$Z$60=2),1,1/1.5)*(IF('Clean Columns'!$Z$60=2,(0.9*$B$2*$M$1*F112^2)/(1.11*0.75)/12,IF($H$1/G112<0.15,1000000,IF(AND('Clean Columns'!$Z$58,'Clean Columns'!$Z$59<10*F112),0.9*6.25*F112^2*$B$2*0.5,0.9*6.25*F112^2*$B$2)))) -> 275.653125 | K112: =IF('Clean Columns'!$Z$67=0,1,1/1.5)*IF('Clean Columns'!$Z$60=2,IF(AND('Clean Columns'!$Z$58,'Clean Columns'!$Z$59<C112),0.5,1)*(6*H112+$B$1+2*$K$1),IF(AND('Clean Columns'!$Z$58,'Clean Columns'!$Z$59<C112),0.5,1)*5*H112+$B$1)*$B$2*E112 -> 238.21875 | L112: =IF('Clean Columns'!$Z$67=0,1,1/1.5)*(IF(AND('Clean Columns'!$Z$58,'Clean Columns'!$Z$59<C112/2),(0.75*0.8*E112^2*(1+((IF($B$1/C112<=0.2,3*$B$1/C112,4*$B$1/C112-0.2))*(E112/F112)^1.5))*SQRT($H$2*$B$2*F112/E112))*0.5,0.75*0.8*E112^2*(1+((3*$B$1/C112)*(E112/F112)^1.5))*SQRT($H$2*$B$2*F112/E112))) -> 357.3663373 | M112: =IF('Clean Columns'!$Z$67=0,1,1/1.5)*(IF('Clean Columns'!$Z$57,IF(AND('Clean Columns'!$Z$58,'Clean Columns'!$Z$59<Columns!C112/2),0.9*24*(E112^3)*SQRT($H$2*$B$2)/D112*0.5,0.9*24*(E112^3)*SQRT($H$2*$B$2)/D112),1000000)) -> 736.5413325 | O112: =IF('Clean Columns'!$Z$60=2,Columns!K112,MIN(J112:K112)) -> 238.21875 | P112: 238.21875 | Q112: 176.418 | R112: 176.418 | S112: 275.653125 | T112: 1300
A113: W10X77 | B113: 22.7 | C113: 10.6 | D113: 7.86 | E113: 0.53 | F113: 0.87 | G113: 10.2 | H113: 1.37 | I113: =IF('Clean Columns'!$Z$67=0,1,1/1.5)*(IF($E$1>0.4*T113,0.9*0.6*$B$2*C113*E113*(1.4-$E$1/T113),0.9*0.6*$B$2*C113*E113)) -> 151.686 | J113: =IF(OR('Clean Columns'!$Z$67=0,'Clean Columns'!$Z$60=2),1,1/1.5)*(IF('Clean Columns'!$Z$60=2,(0.9*$B$2*$M$1*F113^2)/(1.11*0.75)/12,IF($H$1/G113<0.15,1000000,IF(AND('Clean Columns'!$Z$58,'Clean Columns'!$Z$59<10*F113),0.9*6.25*F113^2*$B$2*0.5,0.9*6.25*F113^2*$B$2)))) -> 212.878125 | K113: =IF('Clean Columns'!$Z$67=0,1,1/1.5)*IF('Clean Columns'!$Z$60=2,IF(AND('Clean Columns'!$Z$58,'Clean Columns'!$Z$59<C113),0.5,1)*(6*H113+$B$1+2*$K$1),IF(AND('Clean Columns'!$Z$58,'Clean Columns'!$Z$59<C113),0.5,1)*5*H113+$B$1)*$B$2*E113 -> 192.7875 | L113: =IF('Clean Columns'!$Z$67=0,1,1/1.5)*(IF(AND('Clean Columns'!$Z$58,'Clean Columns'!$Z$59<C113/2),(0.75*0.8*E113^2*(1+((IF($B$1/C113<=0.2,3*$B$1/C113,4*$B$1/C113-0.2))*(E113/F113)^1.5))*SQRT($H$2*$B$2*F113/E113))*0.5,0.75*0.8*E113^2*(1+((3*$B$1/C113)*(E113/F113)^1.5))*SQRT($H$2*$B$2*F113/E113))) -> 274.89242 | M113: =IF('Clean Columns'!$Z$67=0,1,1/1.5)*(IF('Clean Columns'!$Z$57,IF(AND('Clean Columns'!$Z$58,'Clean Columns'!$Z$59<Columns!C113/2),0.9*24*(E113^3)*SQRT($H$2*$B$2)/D113*0.5,0.9*24*(E113^3)*SQRT($H$2*$B$2)/D113),1000000)) -> 492.6549095 | O113: =IF('Clean Columns'!$Z$60=2,Columns!K113,MIN(J113:K113)) -> 192.7875 | P113: 192.7875 | Q113: 151.686 | R113: 151.686 | S113: 212.878125 | T113: 1135
A114: W10X68 | B114: 19.9 | C114: 10.4 | D114: 7.86 | E114: 0.47 | F114: 0.77 | G114: 10.1 | H114: 1.27 | I114: =IF('Clean Columns'!$Z$67=0,1,1/1.5)*(IF($E$1>0.4*T114,0.9*0.6*$B$2*C114*E114*(1.4-$E$1/T114),0.9*0.6*$B$2*C114*E114)) -> 131.976 | J114: =IF(OR('Clean Columns'!$Z$67=0,'Clean Columns'!$Z$60=2),1,1/1.5)*(IF('Clean Columns'!$Z$60=2,(0.9*$B$2*$M$1*F114^2)/(1.11*0.75)/12,IF($H$1/G114<0.15,1000000,IF(AND('Clean Columns'!$Z$58,'Clean Columns'!$Z$59<10*F114),0.9*6.25*F114^2*$B$2*0.5,0.9*6.25*F114^2*$B$2)))) -> 166.753125 | K114: =IF('Clean Columns'!$Z$67=0,1,1/1.5)*IF('Clean Columns'!$Z$60=2,IF(AND('Clean Columns'!$Z$58,'Clean Columns'!$Z$59<C114),0.5,1)*(6*H114+$B$1+2*$K$1),IF(AND('Clean Columns'!$Z$58,'Clean Columns'!$Z$59<C114),0.5,1)*5*H114+$B$1)*$B$2*E114 -> 159.2125 | L114: =IF('Clean Columns'!$Z$67=0,1,1/1.5)*(IF(AND('Clean Columns'!$Z$58,'Clean Columns'!$Z$59<C114/2),(0.75*0.8*E114^2*(1+((IF($B$1/C114<=0.2,3*$B$1/C114,4*$B$1/C114-0.2))*(E114/F114)^1.5))*SQRT($H$2*$B$2*F114/E114))*0.5,0.75*0.8*E114^2*(1+((3*$B$1/C114)*(E114/F114)^1.5))*SQRT($H$2*$B$2*F114/E114))) -> 216.2237715 | M114: =IF('Clean Columns'!$Z$67=0,1,1/1.5)*(IF('Clean Columns'!$Z$57,IF(AND('Clean Columns'!$Z$58,'Clean Columns'!$Z$59<Columns!C114/2),0.9*24*(E114^3)*SQRT($H$2*$B$2)/D114*0.5,0.9*24*(E114^3)*SQRT($H$2*$B$2)/D114),1000000)) -> 343.5648936 | O114: =IF('Clean Columns'!$Z$60=2,Columns!K114,MIN(J114:K114)) -> 159.2125 | P114: 159.2125 | Q114: 131.976 | R114: 131.976 | S114: 166.753125 | T114: 995
A115: W10X60 | B115: 17.7 | C115: 10.2 | D115: 7.84 | E115: 0.42 | F115: 0.68 | G115: 10.1 | H115: 1.18 | I115: =IF('Clean Columns'!$Z$67=0,1,1/1.5)*(IF($E$1>0.4*T115,0.9*0.6*$B$2*C115*E115*(1.4-$E$1/T115),0.9*0.6*$B$2*C115*E115)) -> 115.668 | J115: =IF(OR('Clean Columns'!$Z$67=0,'Clean Columns'!$Z$60=2),1,1/1.5)*(IF('Clean Columns'!$Z$60=2,(0.9*$B$2*$M$1*F115^2)/(1.11*0.75)/12,IF($H$1/G115<0.15,1000000,IF(AND('Clean Columns'!$Z$58,'Clean Columns'!$Z$59<10*F115),0.9*6.25*F115^2*$B$2*0.5,0.9*6.25*F115^2*$B$2)))) -> 130.05 | K115: =IF('Clean Columns'!$Z$67=0,1,1/1.5)*IF('Clean Columns'!$Z$60=2,IF(AND('Clean Columns'!$Z$58,'Clean Columns'!$Z$59<C115),0.5,1)*(6*H115+$B$1+2*$K$1),IF(AND('Clean Columns'!$Z$58,'Clean Columns'!$Z$59<C115),0.5,1)*5*H115+$B$1)*$B$2*E115 -> 132.825 | L115: =IF('Clean Columns'!$Z$67=0,1,1/1.5)*(IF(AND('Clean Columns'!$Z$58,'Clean Columns'!$Z$59<C115/2),(0.75*0.8*E115^2*(1+((IF($B$1/C115<=0.2,3*$B$1/C115,4*$B$1/C115-0.2))*(E115/F115)^1.5))*SQRT($H$2*$B$2*F115/E115))*0.5,0.75*0.8*E115^2*(1+((3*$B$1/C115)*(E115/F115)^1.5))*SQRT($H$2*$B$2*F115/E115))) -> 172.0071871 | M115: =IF('Clean Columns'!$Z$67=0,1,1/1.5)*(IF('Clean Columns'!$Z$57,IF(AND('Clean Columns'!$Z$58,'Clean Columns'!$Z$59<Columns!C115/2),0.9*24*(E115^3)*SQRT($H$2*$B$2)/D115*0.5,0.9*24*(E115^3)*SQRT($H$2*$B$2)/D115),1000000)) -> 245.7930285 | O115: =IF('Clean Columns'!$Z$60=2,Columns!K115,MIN(J115:K115)) -> 130.05 | P115: 132.825 | Q115: 115.668 | R115: 115.668 | S115: 130.05 | T115: 885
A116: W10X54 | B116: 15.8 | C116: 10.1 | D116: 7.86 | E116: 0.37 | F116: 0.615 | G116: 10 | H116: 1.12 | I116: =IF('Clean Columns'!$Z$67=0,1,1/1.5)*(IF($E$1>0.4*T116,0.9*0.6*$B$2*C116*E116*(1.4-$E$1/T116),0.9*0.6*$B$2*C116*E116)) -> 100.899 | J116: =IF(OR('Clean Columns'!$Z$67=0,'Clean Columns'!$Z$60=2),1,1/1.5)*(IF('Clean Columns'!$Z$60=2,(0.9*$B$2*$M$1*F116^2)/(1.11*0.75)/12,IF($H$1/G116<0.15,1000000,IF(AND('Clean Columns'!$Z$58,'Clean Columns'!$Z$59<10*F116),0.9*6.25*F116^2*$B$2*0.5,0.9*6.25*F116^2*$B$2)))) -> 106.3757813 | K116: =IF('Clean Columns'!$Z$67=0,1,1/1.5)*IF('Clean Columns'!$Z$60=2,IF(AND('Clean Columns'!$Z$58,'Clean Columns'!$Z$59<C116),0.5,1)*(6*H116+$B$1+2*$K$1),IF(AND('Clean Columns'!$Z$58,'Clean Columns'!$Z$59<C116),0.5,1)*5*H116+$B$1)*$B$2*E116 -> 111.4625 | L116: =IF('Clean Columns'!$Z$67=0,1,1/1.5)*(IF(AND('Clean Columns'!$Z$58,'Clean Columns'!$Z$59<C116/2),(0.75*0.8*E116^2*(1+((IF($B$1/C116<=0.2,3*$B$1/C116,4*$B$1/C116-0.2))*(E116/F116)^1.5))*SQRT($H$2*$B$2*F116/E116))*0.5,0.75*0.8*E116^2*(1+((3*$B$1/C116)*(E116/F116)^1.5))*SQRT($H$2*$B$2*F116/E116))) -> 135.0311207 | M116: =IF('Clean Columns'!$Z$67=0,1,1/1.5)*(IF('Clean Columns'!$Z$57,IF(AND('Clean Columns'!$Z$58,'Clean Columns'!$Z$59<Columns!C116/2),0.9*24*(E116^3)*SQRT($H$2*$B$2)/D116*0.5,0.9*24*(E116^3)*SQRT($H$2*$B$2)/D116),1000000)) -> 167.6178935 | O116: =IF('Clean Columns'!$Z$60=2,Columns!K116,MIN(J116:K116)) -> 106.3757813 | P116: 111.4625 | Q116: 100.899 | R116: 100.899 | S116: 106.3757813 | T116: 790
A117: W10X49 | B117: 14.4 | C117: 10 | D117: 7.88 | E117: 0.34 | F117: 0.56 | G117: 10 | H117: 1.06 | I117: =IF('Clean Columns'!$Z$67=0,1,1/1.5)*(IF($E$1>0.4*T117,0.9*0.6*$B$2*C117*E117*(1.4-$E$1/T117),0.9*0.6*$B$2*C117*E117)) -> 91.8 | J117: =IF(OR('Clean Columns'!$Z$67=0,'Clean Columns'!$Z$60=2),1,1/1.5)*(IF('Clean Columns'!$Z$60=2,(0.9*$B$2*$M$1*F117^2)/(1.11*0.75)/12,IF($H$1/G117<0.15,1000000,IF(AND('Clean Columns'!$Z$58,'Clean Columns'!$Z$59<10*F117),0.9*6.25*F117^2*$B$2*0.5,0.9*6.25*F117^2*$B$2)))) -> 88.2 | K117: =IF('Clean Columns'!$Z$67=0,1,1/1.5)*IF('Clean Columns'!$Z$60=2,IF(AND('Clean Columns'!$Z$58,'Clean Columns'!$Z$59<C117),0.5,1)*(6*H117+$B$1+2*$K$1),IF(AND('Clean Columns'!$Z$58,'Clean Columns'!$Z$59<C117),0.5,1)*5*H117+$B$1)*$B$2*E117 -> 97.325 | L117: =IF('Clean Columns'!$Z$67=0,1,1/1.5)*(IF(AND('Clean Columns'!$Z$58,'Clean Columns'!$Z$59<C117/2),(0.75*0.8*E117^2*(1+((IF($B$1/C117<=0.2,3*$B$1/C117,4*$B$1/C117-0.2))*(E117/F117)^1.5))*SQRT($H$2*$B$2*F117/E117))*0.5,0.75*0.8*E117^2*(1+((3*$B$1/C117)*(E117/F117)^1.5))*SQRT($H$2*$B$2*F117/E117))) -> 113.6537451 | M117: =IF('Clean Columns'!$Z$67=0,1,1/1.5)*(IF('Clean Columns'!$Z$57,IF(AND('Clean Columns'!$Z$58,'Clean Columns'!$Z$59<Columns!C117/2),0.9*24*(E117^3)*SQRT($H$2*$B$2)/D117*0.5,0.9*24*(E117^3)*SQRT($H$2*$B$2)/D117),1000000)) -> 129.7323503 | O117: =IF('Clean Columns'!$Z$60=2,Columns!K117,MIN(J117:K117)) -> 88.2 | P117: 97.325 | Q117: 91.8 | R117: 88.2 | S117: 88.2 | T117: 720
A119: W10X45 | B119: =VLOOKUP($A119,_xlnm.DataBase,HLOOKUP(B$3,DB_Headers,2,FALSE),FALSE) -> 13.3 | C119: 10.1 | D119: =C119-2*H119 -> 7.86 | E119: =VLOOKUP($A119,_xlnm.DataBase,HLOOKUP(E$3,DB_Headers,2,FALSE),FALSE) -> 0.35 | F119: 0.62 | G119: 8.02 | H119: 1.12 | I119: =IF('Clean Columns'!$Z$67=0,1,1/1.5)*(IF($E$1>0.4*T119,0.9*0.6*$B$2*C119*E119*(1.4-$E$1/T119),0.9*0.6*$B$2*C119*E119)) -> 95.445 | J119: =IF(OR('Clean Columns'!$Z$67=0,'Clean Columns'!$Z$60=2),1,1/1.5)*(IF('Clean Columns'!$Z$60=2,(0.9*$B$2*$M$1*F119^2)/(1.11*0.75)/12,IF($H$1/G119<0.15,1000000,IF(AND('Clean Columns'!$Z$58,'Clean Columns'!$Z$59<10*F119),0.9*6.25*F119^2*$B$2*0.5,0.9*6.25*F119^2*$B$2)))) -> 108.1125 | K119: =IF('Clean Columns'!$Z$67=0,1,1/1.5)*IF('Clean Columns'!$Z$60=2,IF(AND('Clean Columns'!$Z$58,'Clean Columns'!$Z$59<C119),0.5,1)*(6*H119+$B$1+2*$K$1),IF(AND('Clean Columns'!$Z$58,'Clean Columns'!$Z$59<C119),0.5,1)*5*H119+$B$1)*$B$2*E119 -> 105.4375 | L119: =IF('Clean Columns'!$Z$67=0,1,1/1.5)*(IF(AND('Clean Columns'!$Z$58,'Clean Columns'!$Z$59<C119/2),(0.75*0.8*E119^2*(1+((IF($B$1/C119<=0.2,3*$B$1/C119,4*$B$1/C119-0.2))*(E119/F119)^1.5))*SQRT($H$2*$B$2*F119/E119))*0.5,0.75*0.8*E119^2*(1+((3*$B$1/C119)*(E119/F119)^1.5))*SQRT($H$2*$B$2*F119/E119))) -> 124.1039091 | M119: =IF('Clean Columns'!$Z$67=0,1,1/1.5)*(IF('Clean Columns'!$Z$57,IF(AND('Clean Columns'!$Z$58,'Clean Columns'!$Z$59<Columns!C119/2),0.9*24*(E119^3)*SQRT($H$2*$B$2)/D119*0.5,0.9*24*(E119^3)*SQRT($H$2*$B$2)/D119),1000000)) -> 141.8793987 | O119: =IF('Clean Columns'!$Z$60=2,Columns!K119,MIN(J119:K119)) -> 105.4375 | P119: =MIN(K119:M119) -> 105.4375 | Q119: =I119 -> 95.445 | R119: =MIN(O119:Q119) -> 95.445 | S119: =J119 -> 108.1125 | T119: 665
A120: W10X39 | B120: 11.5 | C120: 9.92 | D120: =C120-2*H120 -> 7.86 | E120: 0.315 | F120: 0.53 | G120: 7.99 | H120: 1.03 | I120: =IF('Clean Columns'!$Z$67=0,1,1/1.5)*(IF($E$1>0.4*T120,0.9*0.6*$B$2*C120*E120*(1.4-$E$1/T120),0.9*0.6*$B$2*C120*E120)) -> 84.3696 | J120: =IF(OR('Clean Columns'!$Z$67=0,'Clean Columns'!$Z$60=2),1,1/1.5)*(IF('Clean Columns'!$Z$60=2,(0.9*$B$2*$M$1*F120^2)/(1.11*0.75)/12,IF($H$1/G120<0.15,1000000,IF(AND('Clean Columns'!$Z$58,'Clean Columns'!$Z$59<10*F120),0.9*6.25*F120^2*$B$2*0.5,0.9*6.25*F120^2*$B$2)))) -> 79.003125 | K120: =IF('Clean Columns'!$Z$67=0,1,1/1.5)*IF('Clean Columns'!$Z$60=2,IF(AND('Clean Columns'!$Z$58,'Clean Columns'!$Z$59<C120),0.5,1)*(6*H120+$B$1+2*$K$1),IF(AND('Clean Columns'!$Z$58,'Clean Columns'!$Z$59<C120),0.5,1)*5*H120+$B$1)*$B$2*E120 -> 87.80625 | L120: =IF('Clean Columns'!$Z$67=0,1,1/1.5)*(IF(AND('Clean Columns'!$Z$58,'Clean Columns'!$Z$59<C120/2),(0.75*0.8*E120^2*(1+((IF($B$1/C120<=0.2,3*$B$1/C120,4*$B$1/C120-0.2))*(E120/F120)^1.5))*SQRT($H$2*$B$2*F120/E120))*0.5,0.75*0.8*E120^2*(1+((3*$B$1/C120)*(E120/F120)^1.5))*SQRT($H$2*$B$2*F120/E120))) -> 98.46692226 | M120: =IF('Clean Columns'!$Z$67=0,1,1/1.5)*(IF('Clean Columns'!$Z$57,IF(AND('Clean Columns'!$Z$58,'Clean Columns'!$Z$59<Columns!C120/2),0.9*24*(E120^3)*SQRT($H$2*$B$2)/D120*0.5,0.9*24*(E120^3)*SQRT($H$2*$B$2)/D120),1000000)) -> 103.4300817 | O120: =IF('Clean Columns'!$Z$60=2,Columns!K120,MIN(J120:K120)) -> 79.003125 | P120: =MIN(K120:M120) -> 87.80625 | Q120: =I120 -> 84.3696 | R120: =MIN(O120:Q120) -> 79.003125 | S120: =J120 -> 79.003125 | T120: 575
A121: W10X33 | B121: 9.71 | C121: 9.73 | D121: =C121-2*H121 -> 7.86 | E121: 0.29 | F121: 0.435 | G121: 7.96 | H121: 0.935 | I121: =IF('Clean Columns'!$Z$67=0,1,1/1.5)*(IF($E$1>0.4*T121,0.9*0.6*$B$2*C121*E121*(1.4-$E$1/T121),0.9*0.6*$B$2*C121*E121)) -> 76.1859 | J121: =IF(OR('Clean Columns'!$Z$67=0,'Clean Columns'!$Z$60=2),1,1/1.5)*(IF('Clean Columns'!$Z$60=2,(0.9*$B$2*$M$1*F121^2)/(1.11*0.75)/12,IF($H$1/G121<0.15,1000000,IF(AND('Clean Columns'!$Z$58,'Clean Columns'!$Z$59<10*F121),0.9*6.25*F121^2*$B$2*0.5,0.9*6.25*F121^2*$B$2)))) -> 53.21953125 | K121: =IF('Clean Columns'!$Z$67=0,1,1/1.5)*IF('Clean Columns'!$Z$60=2,IF(AND('Clean Columns'!$Z$58,'Clean Columns'!$Z$59<C121),0.5,1)*(6*H121+$B$1+2*$K$1),IF(AND('Clean Columns'!$Z$58,'Clean Columns'!$Z$59<C121),0.5,1)*5*H121+$B$1)*$B$2*E121 -> 73.95 | L121: =IF('Clean Columns'!$Z$67=0,1,1/1.5)*(IF(AND('Clean Columns'!$Z$58,'Clean Columns'!$Z$59<C121/2),(0.75*0.8*E121^2*(1+((IF($B$1/C121<=0.2,3*$B$1/C121,4*$B$1/C121-0.2))*(E121/F121)^1.5))*SQRT($H$2*$B$2*F121/E121))*0.5,0.75*0.8*E121^2*(1+((3*$B$1/C121)*(E121/F121)^1.5))*SQRT($H$2*$B$2*F121/E121))) -> 79.725887 | M121: =IF('Clean Columns'!$Z$67=0,1,1/1.5)*(IF('Clean Columns'!$Z$57,IF(AND('Clean Columns'!$Z$58,'Clean Columns'!$Z$59<Columns!C121/2),0.9*24*(E121^3)*SQRT($H$2*$B$2)/D121*0.5,0.9*24*(E121^3)*SQRT($H$2*$B$2)/D121),1000000)) -> 80.70662753 | O121: =IF('Clean Columns'!$Z$60=2,Columns!K121,MIN(J121:K121)) -> 53.21953125 | P121: =MIN(K121:M121) -> 73.95 | Q121: =I121 -> 76.1859 | R121: =MIN(O121:Q121) -> 53.21953125 | S121: =J121 -> 53.21953125 | T121: 485.5
A123: W8X67 | B123: =VLOOKUP($A123,_xlnm.DataBase,HLOOKUP(B$3,DB_Headers,2,FALSE),FALSE) -> 19.7 | C123: 9 | D123: =C123-2*H123 -> 6.34 | E123: =VLOOKUP($A123,_xlnm.DataBase,HLOOKUP(E$3,DB_Headers,2,FALSE),FALSE) -> 0.57 | F123: 0.935 | G123: 8.28 | H123: 1.33 | I123: =IF('Clean Columns'!$Z$67=0,1,1/1.5)*(IF($E$1>0.4*T123,0.9*0.6*$B$2*C123*E123*(1.4-$E$1/T123),0.9*0.6*$B$2*C123*E123)) -> 138.51 | J123: =IF(OR('Clean Columns'!$Z$67=0,'Clean Columns'!$Z$60=2),1,1/1.5)*(IF('Clean Columns'!$Z$60=2,(0.9*$B$2*$M$1*F123^2)/(1.11*0.75)/12,IF($H$1/G123<0.15,1000000,IF(AND('Clean Columns'!$Z$58,'Clean Columns'!$Z$59<10*F123),0.9*6.25*F123^2*$B$2*0.5,0.9*6.25*F123^2*$B$2)))) -> 245.8757813 | K123: =IF('Clean Columns'!$Z$67=0,1,1/1.5)*IF('Clean Columns'!$Z$60=2,IF(AND('Clean Columns'!$Z$58,'Clean Columns'!$Z$59<C123),0.5,1)*(6*H123+$B$1+2*$K$1),IF(AND('Clean Columns'!$Z$58,'Clean Columns'!$Z$59<C123),0.5,1)*5*H123+$B$1)*$B$2*E123 -> 201.6375 | L123: =IF('Clean Columns'!$Z$67=0,1,1/1.5)*(IF(AND('Clean Columns'!$Z$58,'Clean Columns'!$Z$59<C123/2),(0.75*0.8*E123^2*(1+((IF($B$1/C123<=0.2,3*$B$1/C123,4*$B$1/C123-0.2))*(E123/F123)^1.5))*SQRT($H$2*$B$2*F123/E123))*0.5,0.75*0.8*E123^2*(1+((3*$B$1/C123)*(E123/F123)^1.5))*SQRT($H$2*$B$2*F123/E123))) -> 320.9174537 | M123: =IF('Clean Columns'!$Z$67=0,1,1/1.5)*(IF('Clean Columns'!$Z$57,IF(AND('Clean Columns'!$Z$58,'Clean Columns'!$Z$59<Columns!C123/2),0.9*24*(E123^3)*SQRT($H$2*$B$2)/D123*0.5,0.9*24*(E123^3)*SQRT($H$2*$B$2)/D123),1000000)) -> 759.7541157 | O123: =IF('Clean Columns'!$Z$60=2,Columns!K123,MIN(J123:K123)) -> 201.6375 | P123: =MIN(K123:M123) -> 201.6375 | Q123: =I123 -> 138.51 | R123: =MIN(O123:Q123) -> 138.51 | S123: =J123 -> 245.8757813 | T123: =B123*$B$2 -> 985
A124: W8X58 | B124: 17.1 | C124: 8.75 | D124: 6.35 | E124: 0.51 | F124: 0.81 | G124: 8.22 | H124: 1.2 | I124: =IF('Clean Columns'!$Z$67=0,1,1/1.5)*(IF($E$1>0.4*T124,0.9*0.6*$B$2*C124*E124*(1.4-$E$1/T124),0.9*0.6*$B$2*C124*E124)) -> 120.4875 | J124: =IF(OR('Clean Columns'!$Z$67=0,'Clean Columns'!$Z$60=2),1,1/1.5)*(IF('Clean Columns'!$Z$60=2,(0.9*$B$2*$M$1*F124^2)/(1.11*0.75)/12,IF($H$1/G124<0.15,1000000,IF(AND('Clean Columns'!$Z$58,'Clean Columns'!$Z$59<10*F124),0.9*6.25*F124^2*$B$2*0.5,0.9*6.25*F124^2*$B$2)))) -> 184.528125 | K124: =IF('Clean Columns'!$Z$67=0,1,1/1.5)*IF('Clean Columns'!$Z$60=2,IF(AND('Clean Columns'!$Z$58,'Clean Columns'!$Z$59<C124),0.5,1)*(6*H124+$B$1+2*$K$1),IF(AND('Clean Columns'!$Z$58,'Clean Columns'!$Z$59<C124),0.5,1)*5*H124+$B$1)*$B$2*E124 -> 163.8375 | L124: =IF('Clean Columns'!$Z$67=0,1,1/1.5)*(IF(AND('Clean Columns'!$Z$58,'Clean Columns'!$Z$59<C124/2),(0.75*0.8*E124^2*(1+((IF($B$1/C124<=0.2,3*$B$1/C124,4*$B$1/C124-0.2))*(E124/F124)^1.5))*SQRT($H$2*$B$2*F124/E124))*0.5,0.75*0.8*E124^2*(1+((3*$B$1/C124)*(E124/F124)^1.5))*SQRT($H$2*$B$2*F124/E124))) -> 254.0690053 | M124: =IF('Clean Columns'!$Z$67=0,1,1/1.5)*(IF('Clean Columns'!$Z$57,IF(AND('Clean Columns'!$Z$58,'Clean Columns'!$Z$59<Columns!C124/2),0.9*24*(E124^3)*SQRT($H$2*$B$2)/D124*0.5,0.9*24*(E124^3)*SQRT($H$2*$B$2)/D124),1000000)) -> 543.3435992 | O124: =IF('Clean Columns'!$Z$60=2,Columns!K124,MIN(J124:K124)) -> 163.8375 | P124: 163.8375 | Q124: 120.4875 | R124: 120.4875 | S124: 184.528125 | T124: 855
A125: W8X48 | B125: 14.1 | C125: 8.5 | D125: 6.34 | E125: 0.4 | F125: 0.685 | G125: 8.11 | H125: 1.08 | I125: =IF('Clean Columns'!$Z$67=0,1,1/1.5)*(IF($E$1>0.4*T125,0.9*0.6*$B$2*C125*E125*(1.4-$E$1/T125),0.9*0.6*$B$2*C125*E125)) -> 91.8 | J125: =IF(OR('Clean Columns'!$Z$67=0,'Clean Columns'!$Z$60=2),1,1/1.5)*(IF('Clean Columns'!$Z$60=2,(0.9*$B$2*$M$1*F125^2)/(1.11*0.75)/12,IF($H$1/G125<0.15,1000000,IF(AND('Clean Columns'!$Z$58,'Clean Columns'!$Z$59<10*F125),0.9*6.25*F125^2*$B$2*0.5,0.9*6.25*F125^2*$B$2)))) -> 131.9695313 | K125: =IF('Clean Columns'!$Z$67=0,1,1/1.5)*IF('Clean Columns'!$Z$60=2,IF(AND('Clean Columns'!$Z$58,'Clean Columns'!$Z$59<C125),0.5,1)*(6*H125+$B$1+2*$K$1),IF(AND('Clean Columns'!$Z$58,'Clean Columns'!$Z$59<C125),0.5,1)*5*H125+$B$1)*$B$2*E125 -> 116.5 | L125: =IF('Clean Columns'!$Z$67=0,1,1/1.5)*(IF(AND('Clean Columns'!$Z$58,'Clean Columns'!$Z$59<C125/2),(0.75*0.8*E125^2*(1+((IF($B$1/C125<=0.2,3*$B$1/C125,4*$B$1/C125-0.2))*(E125/F125)^1.5))*SQRT($H$2*$B$2*F125/E125))*0.5,0.75*0.8*E125^2*(1+((3*$B$1/C125)*(E125/F125)^1.5))*SQRT($H$2*$B$2*F125/E125))) -> 161.4016581 | M125: =IF('Clean Columns'!$Z$67=0,1,1/1.5)*(IF('Clean Columns'!$Z$57,IF(AND('Clean Columns'!$Z$58,'Clean Columns'!$Z$59<Columns!C125/2),0.9*24*(E125^3)*SQRT($H$2*$B$2)/D125*0.5,0.9*24*(E125^3)*SQRT($H$2*$B$2)/D125),1000000)) -> 262.5599424 | O125: =IF('Clean Columns'!$Z$60=2,Columns!K125,MIN(J125:K125)) -> 116.5 | P125: 116.5 | Q125: 91.8 | R125: 91.8 | S125: 131.9695313 | T125: 705
A126: W8X40 | B126: 11.7 | C126: 8.25 | D126: 6.342 | E126: 0.36 | F126: 0.56 | G126: 8.07 | H126: 0.954 | I126: =IF('Clean Columns'!$Z$67=0,1,1/1.5)*(IF($E$1>0.4*T126,0.9*0.6*$B$2*C126*E126*(1.4-$E$1/T126),0.9*0.6*$B$2*C126*E126)) -> 80.19 | J126: =IF(OR('Clean Columns'!$Z$67=0,'Clean Columns'!$Z$60=2),1,1/1.5)*(IF('Clean Columns'!$Z$60=2,(0.9*$B$2*$M$1*F126^2)/(1.11*0.75)/12,IF($H$1/G126<0.15,1000000,IF(AND('Clean Columns'!$Z$58,'Clean Columns'!$Z$59<10*F126),0.9*6.25*F126^2*$B$2*0.5,0.9*6.25*F126^2*$B$2)))) -> 88.2 | K126: =IF('Clean Columns'!$Z$67=0,1,1/1.5)*IF('Clean Columns'!$Z$60=2,IF(AND('Clean Columns'!$Z$58,'Clean Columns'!$Z$59<C126),0.5,1)*(6*H126+$B$1+2*$K$1),IF(AND('Clean Columns'!$Z$58,'Clean Columns'!$Z$59<C126),0.5,1)*5*H126+$B$1)*$B$2*E126 -> 93.51 | L126: =IF('Clean Columns'!$Z$67=0,1,1/1.5)*(IF(AND('Clean Columns'!$Z$58,'Clean Columns'!$Z$59<C126/2),(0.75*0.8*E126^2*(1+((IF($B$1/C126<=0.2,3*$B$1/C126,4*$B$1/C126-0.2))*(E126/F126)^1.5))*SQRT($H$2*$B$2*F126/E126))*0.5,0.75*0.8*E126^2*(1+((3*$B$1/C126)*(E126/F126)^1.5))*SQRT($H$2*$B$2*F126/E126))) -> 126.0866529 | M126: =IF('Clean Columns'!$Z$67=0,1,1/1.5)*(IF('Clean Columns'!$Z$57,IF(AND('Clean Columns'!$Z$58,'Clean Columns'!$Z$59<Columns!C126/2),0.9*24*(E126^3)*SQRT($H$2*$B$2)/D126*0.5,0.9*24*(E126^3)*SQRT($H$2*$B$2)/D126),1000000)) -> 191.3458365 | O126: =IF('Clean Columns'!$Z$60=2,Columns!K126,MIN(J126:K126)) -> 88.2 | P126: 93.51 | Q126: 80.19 | R126: 80.19 | S126: 88.2 | T126: 585
A127: W8X35 | B127: 10.3 | C127: 8.12 | D127: 6.342 | E127: 0.31 | F127: 0.495 | G127: 8.02 | H127: 0.889 | I127: =IF('Clean Columns'!$Z$67=0,1,1/1.5)*(IF($E$1>0.4*T127,0.9*0.6*$B$2*C127*E127*(1.4-$E$1/T127),0.9*0.6*$B$2*C127*E127)) -> 67.9644 | J127: =IF(OR('Clean Columns'!$Z$67=0,'Clean Columns'!$Z$60=2),1,1/1.5)*(IF('Clean Columns'!$Z$60=2,(0.9*$B$2*$M$1*F127^2)/(1.11*0.75)/12,IF($H$1/G127<0.15,1000000,IF(AND('Clean Columns'!$Z$58,'Clean Columns'!$Z$59<10*F127),0.9*6.25*F127^2*$B$2*0.5,0.9*6.25*F127^2*$B$2)))) -> 68.91328125 | K127: =IF('Clean Columns'!$Z$67=0,1,1/1.5)*IF('Clean Columns'!$Z$60=2,IF(AND('Clean Columns'!$Z$58,'Clean Columns'!$Z$59<C127),0.5,1)*(6*H127+$B$1+2*$K$1),IF(AND('Clean Columns'!$Z$58,'Clean Columns'!$Z$59<C127),0.5,1)*5*H127+$B$1)*$B$2*E127 -> 75.485 | L127: =IF('Clean Columns'!$Z$67=0,1,1/1.5)*(IF(AND('Clean Columns'!$Z$58,'Clean Columns'!$Z$59<C127/2),(0.75*0.8*E127^2*(1+((IF($B$1/C127<=0.2,3*$B$1/C127,4*$B$1/C127-0.2))*(E127/F127)^1.5))*SQRT($H$2*$B$2*F127/E127))*0.5,0.75*0.8*E127^2*(1+((3*$B$1/C127)*(E127/F127)^1.5))*SQRT($H$2*$B$2*F127/E127))) -> 94.5641366 | M127: =IF('Clean Columns'!$Z$67=0,1,1/1.5)*(IF('Clean Columns'!$Z$57,IF(AND('Clean Columns'!$Z$58,'Clean Columns'!$Z$59<Columns!C127/2),0.9*24*(E127^3)*SQRT($H$2*$B$2)/D127*0.5,0.9*24*(E127^3)*SQRT($H$2*$B$2)/D127),1000000)) -> 122.1790084 | O127: =IF('Clean Columns'!$Z$60=2,Columns!K127,MIN(J127:K127)) -> 68.91328125 | P127: 75.485 | Q127: 67.9644 | R127: 67.9644 | S127: 68.91328125 | T127: 515
A128: W8X31 | B128: 9.13 | C128: 8 | D128: 6.342 | E128: 0.285 | F128: 0.435 | G128: 8 | H128: 0.829 | I128: =IF('Clean Columns'!$Z$67=0,1,1/1.5)*(IF($E$1>0.4*T128,0.9*0.6*$B$2*C128*E128*(1.4-$E$1/T128),0.9*0.6*$B$2*C128*E128)) -> 61.56 | J128: =IF(OR('Clean Columns'!$Z$67=0,'Clean Columns'!$Z$60=2),1,1/1.5)*(IF('Clean Columns'!$Z$60=2,(0.9*$B$2*$M$1*F128^2)/(1.11*0.75)/12,IF($H$1/G128<0.15,1000000,IF(AND('Clean Columns'!$Z$58,'Clean Columns'!$Z$59<10*F128),0.9*6.25*F128^2*$B$2*0.5,0.9*6.25*F128^2*$B$2)))) -> 53.21953125 | K128: =IF('Clean Columns'!$Z$67=0,1,1/1.5)*IF('Clean Columns'!$Z$60=2,IF(AND('Clean Columns'!$Z$58,'Clean Columns'!$Z$59<C128),0.5,1)*(6*H128+$B$1+2*$K$1),IF(AND('Clean Columns'!$Z$58,'Clean Columns'!$Z$59<C128),0.5,1)*5*H128+$B$1)*$B$2*E128 -> 65.1225 | L128: =IF('Clean Columns'!$Z$67=0,1,1/1.5)*(IF(AND('Clean Columns'!$Z$58,'Clean Columns'!$Z$59<C128/2),(0.75*0.8*E128^2*(1+((IF($B$1/C128<=0.2,3*$B$1/C128,4*$B$1/C128-0.2))*(E128/F128)^1.5))*SQRT($H$2*$B$2*F128/E128))*0.5,0.75*0.8*E128^2*(1+((3*$B$1/C128)*(E128/F128)^1.5))*SQRT($H$2*$B$2*F128/E128))) -> 78.62927598 | M128: =IF('Clean Columns'!$Z$67=0,1,1/1.5)*(IF('Clean Columns'!$Z$57,IF(AND('Clean Columns'!$Z$58,'Clean Columns'!$Z$59<Columns!C128/2),0.9*24*(E128^3)*SQRT($H$2*$B$2)/D128*0.5,0.9*24*(E128^3)*SQRT($H$2*$B$2)/D128),1000000)) -> 94.93931515 | O128: =IF('Clean Columns'!$Z$60=2,Columns!K128,MIN(J128:K128)) -> 53.21953125 | P128: 65.1225 | Q128: 61.56 | R128: 53.21953125 | S128: 53.21953125 | T128: 456.5

Sheet Lists
A1: 1 | B1: 2 | C1: 3 | D1: 4 | E1: 5 | F1: 6 | G1: 7 | H1: 8 | I1: 9 | J1: 10 | K1: 11 | L1: 12 | M1: 13 | N1: 14 | O1: 15 | P1: 16 | Q1: 17 | R1: 18 | S1: 19 | T1: 20
B3: 2010 LRFD | D3: Directly Welded Flange
B4: 2010 ASD | D4: Flange Plate
D5: Extended End Plate
B7: W18
B8: W16
B9: W14
B10: W12
B11: W10
B12: W8

Sheet Database v14.0
A1: Type | B1: EDI_Std_Nomenclature | C1: AISC_Manual_Label | D1: T_F | E1: W | F1: A | G1: d | H1: ddet | I1: Ht | J1: OD | K1: bf | L1: bfdet | M1: b | N1: ID | O1: tw | P1: twdet | Q1: twdet/2 | R1: tf | S1: tfdet | T1: t | U1: tnom | V1: tdes | W1: kdes | X1: kdet | Y1: k1 | Z1: x | AA1: y | AB1: eo | AC1: xp | AD1: yp | AE1: bf/2tf | AF1: b/t | AG1: h/tw | AH1: Ht/t | AI1: D/t | AJ1: Ix | AK1: Zx | AL1: Sx | AM1: rx | AN1: Iy | AO1: Zy | AP1: Sy | AQ1: ry | AR1: Iz | AS1: rz | AT1: Sz | AU1: J | AV1: Cw | AW1: C | AX1: Wno | AY1: Sw1 | AZ1: Sw2 | BA1: Sw3 | BB1: Qf | BC1: Qw | BD1: ro | BE1: H | BF1: tan(α) | BG1: Qs | BH1: Iw | BI1: SwA | BJ1: SwB | BK1: SwC | BL1: SzA | BM1: SzB | BN1: SzC | BO1: rts | BP1: ho | BQ1: PA | BR1: PB
C2: 1 | D2: =C2+1 -> 2 | E2: =D2+1 -> 3 | F2: =E2+1 -> 4 | G2: =F2+1 -> 5 | H2: =G2+1 -> 6 | I2: =H2+1 -> 7 | J2: 8 | K2: 9 | L2: 10 | M2: 11 | N2: 12 | O2: 13 | P2: 14 | Q2: 15 | R2: 16 | S2: 17 | T2: 18 | U2: 19 | V2: 20 | W2: 21 | X2: 22 | Y2: 23 | Z2: 24 | AA2: 25 | AB2: 26 | AC2: 27 | AD2: 28 | AE2: 29 | AF2: 30 | AG2: 31 | AH2: 32 | AI2: 33 | AJ2: 34 | AK2: 35 | AL2: 36 | AM2: 37 | AN2: 38 | AO2: 39 | AP2: 40 | AQ2: 41 | AR2: 42 | AS2: 43 | AT2: 44 | AU2: 45 | AV2: 46 | AW2: 47 | AX2: 48 | AY2: 49 | AZ2: 50 | BA2: 51 | BB2: 52 | BC2: 53 | BD2: 54 | BE2: 55 | BF2: 56 | BG2: 57 | BH2: 58 | BI2: 59 | BJ2: 60 | BK2: 61 | BL2: 62 | BM2: 63 | BN2: 64 | BO2: 65 | BP2: 66 | BQ2: 67 | BR2: 68
A3: W | B3: W44X335 | C3: W44X335 | D3: F | E3: 335 | F3: 98.5 | G3: 44 | H3: 44 | I3: – | J3: – | K3: 15.9 | L3: 16 | M3: – | N3: – | O3: 1.03 | P3: 1 | Q3: 0.5 | R3: 1.77 | S3: 1.75 | T3: – | U3: – | V3: – | W3: 2.56 | X3: 2.625 | Y3: 1.3125 | Z3: – | AA3: – | AB3: – | AC3: – | AD3: – | AE3: 4.5 | AF3: – | AG3: 38 | AH3: – | AI3: – | AJ3: 31100 | AK3: 1620 | AL3: 1410 | AM3: 17.8 | AN3: 1200 | AO3: 236 | AP3: 150 | AQ3: 3.49 | AR3: – | AS3: – | AT3: – | AU3: 74.7 | AV3: 535000 | AW3: – | AX3: 168 | AY3: 1180 | AZ3: – | BA3: – | BB3: 278 | BC3: 805 | BD3: – | BE3: – | BF3: – | BG3: – | BH3: – | BI3: – | BJ3: – | BK3: – | BL3: – | BM3: – | BN3: – | BO3: 4.24 | BP3: 42.2 | BQ3: 132 | BR3: 148
A4: W | B4: W44X290 | C4: W44X290 | D4: F | E4: 290 | F4: 85.4 | G4: 43.6 | H4: 43.625 | I4: – | J4: – | K4: 15.8 | L4: 15.875 | M4: – | N4: – | O4: 0.865 | P4: 0.875 | Q4: 0.4375 | R4: 1.58 | S4: 1.5625 | T4: – | U4: – | V4: – | W4: 2.36 | X4: 2.4375 | Y4: 1.25 | Z4: – | AA4: – | AB4: – | AC4: – | AD4: – | AE4: 5.02 | AF4: – | AG4: 45 | AH4: – | AI4: – | AJ4: 27000 | AK4: 1410 | AL4: 1240 | AM4: 17.8 | AN4: 1040 | AO4: 205 | AP4: 132 | AQ4: 3.49 | AR4: – | AS4: – | AT4: – | AU4: 50.9 | AV4: 461000 | AW4: – | AX4: 166 | AY4: 1040 | AZ4: – | BA4: – | BB4: 248 | BC4: 701 | BD4: – | BE4: – | BF4: – | BG4: – | BH4: – | BI4: – | BJ4: – | BK4: – | BL4: – | BM4: – | BN4: – | BO4: 4.2 | BP4: 42 | BQ4: 131 | BR4: 147
A5: W | B5: W44X262 | C5: W44X262 | D5: F | E5: 262 | F5: 77.2 | G5: 43.3 | H5: 43.25 | I5: – | J5: – | K5: 15.8 | L5: 15.75 | M5: – | N5: – | O5: 0.785 | P5: 0.8125 | Q5: 0.4375 | R5: 1.42 | S5: 1.4375 | T5: – | U5: – | V5: – | W5: 2.2 | X5: 2.25 | Y5: 1.1875 | Z5: – | AA5: – | AB5: – | AC5: – | AD5: – | AE5: 5.57 | AF5: – | AG5: 49.6 | AH5: – | AI5: – | AJ5: 24100 | AK5: 1270 | AL5: 1110 | AM5: 17.7 | AN5: 923 | AO5: 182 | AP5: 117 | AQ5: 3.47 | AR5: – | AS5: – | AT5: – | AU5: 37.3 | AV5: 405000 | AW5: – | AX5: 165 | AY5: 928 | AZ5: – | BA5: – | BB5: 223 | BC5: 630 | BD5: – | BE5: – | BF5: – | BG5: – | BH5: – | BI5: – | BJ5: – | BK5: – | BL5: – | BM5: – | BN5: – | BO5: 4.17 | BP5: 41.9 | BQ5: 131 | BR5: 147
A6: W | B6: W44X230 | C6: W44X230 | D6: F | E6: 230 | F6: 67.8 | G6: 42.9 | H6: 42.875 | I6: – | J6: – | K6: 15.8 | L6: 15.75 | M6: – | N6: – | O6: 0.71 | P6: 0.6875 | Q6: 0.375 | R6: 1.22 | S6: 1.25 | T6: – | U6: – | V6: – | W6: 2.01 | X6: 2.0625 | Y6: 1.1875 | Z6: – | AA6: – | AB6: – | AC6: – | AD6: – | AE6: 6.45 | AF6: – | AG6: 54.8 | AH6: – | AI6: – | AJ6: 20800 | AK6: 1100 | AL6: 971 | AM6: 17.5 | AN6: 796 | AO6: 157 | AP6: 101 | AQ6: 3.43 | AR6: – | AS6: – | AT6: – | AU6: 24.9 | AV6: 346000 | AW6: – | AX6: 165 | AY6: 793 | AZ6: – | BA6: – | BB6: 192 | BC6: 547 | BD6: – | BE6: – | BF6: – | BG6: – | BH6: – | BI6: – | BJ6: – | BK6: – | BL6: – | BM6: – | BN6: – | BO6: 4.13 | BP6: 41.7 | BQ6: 130 | BR6: 146
A7: W | B7: W40X593 | C7: W40X593 | D7: T | E7: 593 | F7: 174 | G7: 43 | H7: 43 | I7: – | J7: – | K7: 16.7 | L7: 16.75 | M7: – | N7: – | O7: 1.79 | P7: 1.8125 | Q7: 0.9375 | R7: 3.23 | S7: 3.25 | T7: – | U7: – | V7: – | W7: 4.41 | X7: 4.5 | Y7: 2.125 | Z7: – | AA7: – | AB7: – | AC7: – | AD7: – | AE7: 2.58 | AF7: – | AG7: 19.1 | AH7: – | AI7: – | AJ7: 50400 | AK7: 2760 | AL7: 2340 | AM7: 17 | AN7: 2520 | AO7: 481 | AP7: 302 | AQ7: 3.8 | AR7: – | AS7: – | AT7: – | AU7: 445 | AV7: 997000 | AW7: – | AX7: 166 | AY7: 2240 | AZ7: – | BA7: – | BB7: 479 | BC7: 1370 | BD7: – | BE7: – | BF7: – | BG7: – | BH7: – | BI7: – | BJ7: – | BK7: – | BL7: – | BM7: – | BN7: – | BO7: 4.63 | BP7: 39.8 | BQ7: 130 | BR7: 147
A8: W | B8: W40X503 | C8: W40X503 | D8: T | E8: 503 | F8: 148 | G8: 42.1 | H8: 42 | I8: – | J8: – | K8: 16.4 | L8: 16.375 | M8: – | N8: – | O8: 1.54 | P8: 1.5625 | Q8: 0.8125 | R8: 2.76 | S8: 2.75 | T8: – | U8: – | V8: – | W8: 3.94 | X8: 4 | Y8: 2 | Z8: – | AA8: – | AB8: – | AC8: – | AD8: – | AE8: 2.98 | AF8: – | AG8: 22.3 | AH8: – | AI8: – | AJ8: 41600 | AK8: 2320 | AL8: 1980 | AM8: 16.8 | AN8: 2040 | AO8: 394 | AP8: 249 | AQ8: 3.72 | AR8: – | AS8: – | AT8: – | AU8: 277 | AV8: 789000 | AW8: – | AX8: 161 | AY8: 1830 | AZ8: – | BA8: – | BB8: 403 | BC8: 1150 | BD8: – | BE8: – | BF8: – | BG8: – | BH8: – | BI8: – | BJ8: – | BK8: – | BL8: – | BM8: – | BN8: – | BO8: 4.5 | BP8: 39.3 | BQ8: 129 | BR8: 145
A9: W | B9: W40X431 | C9: W40X431 | D9: T | E9: 431 | F9: 127 | G9: 41.3 | H9: 41.25 | I9: – | J9: – | K9: 16.2 | L9: 16.25 | M9: – | N9: – | O9: 1.34 | P9: 1.3125 | Q9: 0.6875 | R9: 2.36 | S9: 2.375 | T9: – | U9: – | V9: – | W9: 3.54 | X9: 3.625 | Y9: 1.875 | Z9: – | AA9: – | AB9: – | AC9: – | AD9: – | AE9: 3.44 | AF9: – | AG9: 25.5 | AH9: – | AI9: – | AJ9: 34800 | AK9: 1960 | AL9: 1690 | AM9: 16.6 | AN9: 1690 | AO9: 328 | AP9: 208 | AQ9: 3.65 | AR9: – | AS9: – | AT9: – | AU9: 177 | AV9: 638000 | AW9: – | AX9: 158 | AY9: 1510 | AZ9: – | BA9: – | BB9: 341 | BC9: 969 | BD9: – | BE9: – | BF9: – | BG9: – | BH9: – | BI9: – | BJ9: – | BK9: – | BL9: – | BM9: – | BN9: – | BO9: 4.41 | BP9: 38.9 | BQ9: 127 | BR9: 143
A10: W | B10: W40X397 | C10: W40X397 | D10: T | E10: 397 | F10: 117 | G10: 41 | H10: 41 | I10: – | J10: – | K10: 16.1 | L10: 16.125 | M10: – | N10: – | O10: 1.22 | P10: 1.25 | Q10: 0.625 | R10: 2.2 | S10: 2.1875 | T10: – | U10: – | V10: – | W10: 3.38 | X10: 3.5 | Y10: 1.8125 | Z10: – | AA10: – | AB10: – | AC10: – | AD10: – | AE10: 3.66 | AF10: – | AG10: 28 | AH10: – | AI10: – | AJ10: 32000 | AK10: 1800 | AL10: 1560 | AM10: 16.6 | AN10: 1540 | AO10: 300 | AP10: 191 | AQ10: 3.64 | AR10: – | AS10: – | AT10: – | AU10: 142 | AV10: 579000 | AW10: – | AX10: 156 | AY10: 1380 | AZ10: – | BA10: – | BB10: 318 | BC10: 891 | BD10: – | BE10: – | BF10: – | BG10: – | BH10: – | BI10: – | BJ10: – | BK10: – | BL10: – | BM10: – | BN10: – | BO10: 4.38 | BP10: 38.8 | BQ10: 126 | BR10: 142
A11: W | B11: W40X372 | C11: W40X372 | D11: T | E11: 372 | F11: 110 | G11: 40.6 | H11: 40.625 | I11: – | J11: – | K11: 16.1 | L11: 16.125 | M11: – | N11: – | O11: 1.16 | P11: 1.1875 | Q11: 0.625 | R11: 2.05 | S11: 2.0625 | T11: – | U11: – | V11: – | W11: 3.23 | X11: 3.3125 | Y11: 1.8125 | Z11: – | AA11: – | AB11: – | AC11: – | AD11: – | AE11: 3.93 | AF11: – | AG11: 29.5 | AH11: – | AI11: – | AJ11: 29600 | AK11: 1680 | AL11: 1460 | AM11: 16.5 | AN11: 1420 | AO11: 277 | AP11: 177 | AQ11: 3.6 | AR11: – | AS11: – | AT11: – | AU11: 116 | AV11: 528000 | AW11: – | AX11: 155 | AY11: 1280 | AZ11: – | BA11: – | BB11: 295 | BC11: 829 | BD11: – | BE11: – | BF11: – | BG11: – | BH11: – | BI11: – | BJ11: – | BK11: – | BL11: – | BM11: – | BN11: – | BO11: 4.33 | BP11: 38.6 | BQ11: 125 | BR11: 141
A12: W | B12: W40X362 | C12: W40X362 | D12: T | E12: 362 | F12: 106 | G12: 40.6 | H12: 40.5 | I12: – | J12: – | K12: 16 | L12: 16 | M12: – | N12: – | O12: 1.12 | P12: 1.125 | Q12: 0.5625 | R12: 2.01 | S12: 2 | T12: – | U12: – | V12: – | W12: 3.19 | X12: 3.25 | Y12: 1.75 | Z12: – | AA12: – | AB12: – | AC12: – | AD12: – | AE12: 3.99 | AF12: – | AG12: 30.5 | AH12: – | AI12: – | AJ12: 28900 | AK12: 1640 | AL12: 1420 | AM12: 16.5 | AN12: 1380 | AO12: 270 | AP12: 173 | AQ12: 3.6 | AR12: – | AS12: – | AT12: – | AU12: 109 | AV12: 513000 | AW12: – | AX12: 154 | AY12: 1240 | AZ12: – | BA12: – | BB12: 289 | BC12: 808 | BD12: – | BE12: – | BF12: – | BG12: – | BH12: – | BI12: – | BJ12: – | BK12: – | BL12: – | BM12: – | BN12: – | BO12: 4.33 | BP12: 38.6 | BQ12: 125 | BR12: 141
A13: W | B13: W40X324 | C13: W40X324 | D13: F | E13: 324 | F13: 95.3 | G13: 40.2 | H13: 40.125 | I13: – | J13: – | K13: 15.9 | L13: 15.875 | M13: – | N13: – | O13: 1 | P13: 1 | Q13: 0.5 | R13: 1.81 | S13: 1.8125 | T13: – | U13: – | V13: – | W13: 2.99 | X13: 3.0625 | Y13: 1.6875 | Z13: – | AA13: – | AB13: – | AC13: – | AD13: – | AE13: 4.4 | AF13: – | AG13: 34.2 | AH13: – | AI13: – | AJ13: 25600 | AK13: 1460 | AL13: 1280 | AM13: 16.4 | AN13: 1220 | AO13: 239 | AP13: 153 | AQ13: 3.58 | AR13: – | AS13: – | AT13: – | AU13: 79.4 | AV13: 448000 | AW13: – | AX13: 153 | AY13: 1100 | AZ13: – | BA13: – | BB13: 259 | BC13: 720 | BD13: – | BE13: – | BF13: – | BG13: – | BH13: – | BI13: – | BJ13: – | BK13: – | BL13: – | BM13: – | BN13: – | BO13: 4.27 | BP13: 38.4 | BQ13: 124 | BR13: 140
A14: W | B14: W40X297 | C14: W40X297 | D14: F | E14: 297 | F14: 87.3 | G14: 39.8 | H14: 39.875 | I14: – | J14: – | K14: 15.8 | L14: 15.875 | M14: – | N14: – | O14: 0.93 | P14: 0.9375 | Q14: 0.5 | R14: 1.65 | S14: 1.625 | T14: – | U14: – | V14: – | W14: 2.83 | X14: 2.9375 | Y14: 1.6875 | Z14: – | AA14: – | AB14: – | AC14: – | AD14: – | AE14: 4.8 | AF14: – | AG14: 36.8 | AH14: – | AI14: – | AJ14: 23200 | AK14: 1330 | AL14: 1170 | AM14: 16.3 | AN14: 1090 | AO14: 215 | AP14: 138 | AQ14: 3.54 | AR14: – | AS14: – | AT14: – | AU14: 61.2 | AV14: 399000 | AW14: – | AX14: 151 | AY14: 982 | AZ14: – | BA14: – | BB14: 234 | BC14: 652 | BD14: – | BE14: – | BF14: – | BG14: – | BH14: – | BI14: – | BJ14: – | BK14: – | BL14: – | BM14: – | BN14: – | BO14: 4.22 | BP14: 38.2 | BQ14: 123 | BR14: 139
A15: W | B15: W40X277 | C15: W40X277 | D15: F | E15: 277 | F15: 81.5 | G15: 39.7 | H15: 39.75 | I15: – | J15: – | K15: 15.8 | L15: 15.875 | M15: – | N15: – | O15: 0.83 | P15: 0.8125 | Q15: 0.4375 | R15: 1.58 | S15: 1.5625 | T15: – | U15: – | V15: – | W15: 2.76 | X15: 2.875 | Y15: 1.625 | Z15: – | AA15: – | AB15: – | AC15: – | AD15: – | AE15: 5.03 | AF15: – | AG15: 41.2 | AH15: – | AI15: – | AJ15: 21900 | AK15: 1250 | AL15: 1100 | AM15: 16.4 | AN15: 1040 | AO15: 204 | AP15: 132 | AQ15: 3.58 | AR15: – | AS15: – | AT15: – | AU15: 51.5 | AV15: 379000 | AW15: – | AX15: 151 | AY15: 940 | AZ15: – | BA15: – | BB15: 225 | BC15: 614 | BD15: – | BE15: – | BF15: – | BG15: – | BH15: – | BI15: – | BJ15: – | BK15: – | BL15: – | BM15: – | BN15: – | BO15: 4.25 | BP15: 38.1 | BQ15: 123 | BR15: 139
A16: W | B16: W40X249 | C16: W40X249 | D16: F | E16: 249 | F16: 73.5 | G16: 39.4 | H16: 39.375 | I16: – | J16: – | K16: 15.8 | L16: 15.75 | M16: – | N16: – | O16: 0.75 | P16: 0.75 | Q16: 0.375 | R16: 1.42 | S16: 1.4375 | T16: – | U16: – | V16: – | W16: 2.6 | X16: 2.6875 | Y16: 1.5625 | Z16: – | AA16: – | AB16: – | AC16: – | AD16: – | AE16: 5.55 | AF16: – | AG16: 45.6 | AH16: – | AI16: – | AJ16: 19600 | AK16: 1120 | AL16: 993 | AM16: 16.3 | AN16: 926 | AO16: 182 | AP16: 118 | AQ16: 3.55 | AR16: – | AS16: – | AT16: – | AU16: 38.1 | AV16: 334000 | AW16: – | AX16: 150 | AY16: 841 | AZ16: – | BA16: – | BB16: 203 | BC16: 551 | BD16: – | BE16: – | BF16: – | BG16: – | BH16: – | BI16: – | BJ16: – | BK16: – | BL16: – | BM16: – | BN16: – | BO16: 4.21 | BP16: 38 | BQ16: 122 | BR16: 138
A17: W | B17: W40X215 | C17: W40X215 | D17: F | E17: 215 | F17: 63.5 | G17: 39 | H17: 39 | I17: – | J17: – | K17: 15.8 | L17: 15.75 | M17: – | N17: – | O17: 0.65 | P17: 0.625 | Q17: 0.3125 | R17: 1.22 | S17: 1.25 | T17: – | U17: – | V17: – | W17: 2.4 | X17: 2.5 | Y17: 1.5625 | Z17: – | AA17: – | AB17: – | AC17: – | AD17: – | AE17: 6.45 | AF17: – | AG17: 52.6 | AH17: – | AI17: – | AJ17: 16700 | AK17: 964 | AL17: 859 | AM17: 16.2 | AN17: 803 | AO17: 156 | AP17: 101 | AQ17: 3.54 | AR17: – | AS17: – | AT17: – | AU17: 24.8 | AV17: 284000 | AW17: – | AX17: 149 | AY17: 719 | AZ17: – | BA17: – | BB17: 175 | BC17: 473 | BD17: – | BE17: – | BF17: – | BG17: – | BH17: – | BI17: – | BJ17: – | BK17: – | BL17: – | BM17: – | BN17: – | BO17: 4.19 | BP17: 37.8 | BQ17: 122 | BR17: 138
A18: W | B18: W40X199 | C18: W40X199 | D18: F | E18: 199 | F18: 58.8 | G18: 38.7 | H18: 38.625 | I18: – | J18: – | K18: 15.8 | L18: 15.75 | M18: – | N18: – | O18: 0.65 | P18: 0.625 | Q18: 0.3125 | R18: 1.07 | S18: 1.0625 | T18: – | U18: – | V18: – | W18: 2.25 | X18: 2.3125 | Y18: 1.5625 | Z18: – | AA18: – | AB18: – | AC18: – | AD18: – | AE18: 7.39 | AF18: – | AG18: 52.6 | AH18: – | AI18: – | AJ18: 14900 | AK18: 869 | AL18: 770 | AM18: 16 | AN18: 695 | AO18: 137 | AP18: 88.2 | AQ18: 3.45 | AR18: – | AS18: – | AT18: – | AU18: 18.3 | AV18: 246000 | AW18: – | AX18: 149 | AY18: 628 | AZ18: – | BA18: – | BB18: 153 | BC18: 427 | BD18: – | BE18: – | BF18: – | BG18: – | BH18: – | BI18: – | BJ18: – | BK18: – | BL18: – | BM18: – | BN18: – | BO18: 4.12 | BP18: 37.6 | BQ18: 121 | BR18: 137
A19: W | B19: W40X392 | C19: W40X392 | D19: T | E19: 392 | F19: 116 | G19: 41.6 | H19: 41.625 | I19: – | J19: – | K19: 12.4 | L19: 12.375 | M19: – | N19: – | O19: 1.42 | P19: 1.4375 | Q19: 0.75 | R19: 2.52 | S19: 2.5 | T19: – | U19: – | V19: – | W19: 3.7 | X19: 3.8125 | Y19: 1.9375 | Z19: – | AA19: – | AB19: – | AC19: – | AD19: – | AE19: 2.45 | AF19: – | AG19: 24.1 | AH19: – | AI19: – | AJ19: 29900 | AK19: 1710 | AL19: 1440 | AM19: 16.1 | AN19: 803 | AO19: 212 | AP19: 130 | AQ19: 2.64 | AR19: – | AS19: – | AT19: – | AU19: 172 | AV19: 306000 | AW19: – | AX19: 121 | AY19: 946 | AZ19: – | BA19: – | BB19: 270 | BC19: 848 | BD19: – | BE19: – | BF19: – | BG19: – | BH19: – | BI19: – | BJ19: – | BK19: – | BL19: – | BM19: – | BN19: – | BO19: 3.3 | BP19: 39.1 | BQ19: 116 | BR19: 128
A20: W | B20: W40X331 | C20: W40X331 | D20: T | E20: 331 | F20: 97.7 | G20: 40.8 | H20: 40.75 | I20: – | J20: – | K20: 12.2 | L20: 12.125 | M20: – | N20: – | O20: 1.22 | P20: 1.25 | Q20: 0.625 | R20: 2.13 | S20: 2.125 | T20: – | U20: – | V20: – | W20: 3.31 | X20: 3.375 | Y20: 1.8125 | Z20: – | AA20: – | AB20: – | AC20: – | AD20: – | AE20: 2.86 | AF20: – | AG20: 28 | AH20: – | AI20: – | AJ20: 24700 | AK20: 1430 | AL20: 1210 | AM20: 15.9 | AN20: 644 | AO20: 172 | AP20: 106 | AQ20: 2.57 | AR20: – | AS20: – | AT20: – | AU20: 105 | AV20: 241000 | AW20: – | AX20: 118 | AY20: 766 | AZ20: – | BA20: – | BB20: 226 | BC20: 706 | BD20: – | BE20: – | BF20: – | BG20: – | BH20: – | BI20: – | BJ20: – | BK20: – | BL20: – | BM20: – | BN20: – | BO20: 3.21 | BP20: 38.7 | BQ20: 114 | BR20: 126
A21: W | B21: W40X327 | C21: W40X327 | D21: T | E21: 327 | F21: 95.9 | G21: 40.8 | H21: 40.75 | I21: – | J21: – | K21: 12.1 | L21: 12.125 | M21: – | N21: – | O21: 1.18 | P21: 1.1875 | Q21: 0.625 | R21: 2.13 | S21: 2.125 | T21: – | U21: – | V21: – | W21: 3.31 | X21: 3.375 | Y21: 1.8125 | Z21: – | AA21: – | AB21: – | AC21: – | AD21: – | AE21: 2.85 | AF21: – | AG21: 29 | AH21: – | AI21: – | AJ21: 24500 | AK21: 1410 | AL21: 1200 | AM21: 16 | AN21: 640 | AO21: 170 | AP21: 105 | AQ21: 2.58 | AR21: – | AS21: – | AT21: – | AU21: 103 | AV21: 239000 | AW21: – | AX21: 117 | AY21: 754 | AZ21: – | BA21: – | BB21: 225 | BC21: 695 | BD21: – | BE21: – | BF21: – | BG21: – | BH21: – | BI21: – | BJ21: – | BK21: – | BL21: – | BM21: – | BN21: – | BO21: 3.21 | BP21: 38.7 | BQ21: 114 | BR21: 126
A22: W | B22: W40X294 | C22: W40X294 | D22: F | E22: 294 | F22: 86.2 | G22: 40.4 | H22: 40.375 | I22: – | J22: – | K22: 12 | L22: 12 | M22: – | N22: – | O22: 1.06 | P22: 1.0625 | Q22: 0.5625 | R22: 1.93 | S22: 1.9375 | T22: – | U22: – | V22: – | W22: 3.11 | X22: 3.1875 | Y22: 1.75 | Z22: – | AA22: – | AB22: – | AC22: – | AD22: – | AE22: 3.11 | AF22: – | AG22: 32.2 | AH22: – | AI22: – | AJ22: 21900 | AK22: 1270 | AL22: 1080 | AM22: 15.9 | AN22: 562 | AO22: 150 | AP22: 93.5 | AQ22: 2.55 | AR22: – | AS22: – | AT22: – | AU22: 76.6 | AV22: 208000 | AW22: – | AX22: 115 | AY22: 668 | AZ22: – | BA22: – | BB22: 203 | BC22: 622 | BD22: – | BE22: – | BF22: – | BG22: – | BH22: – | BI22: – | BJ22: – | BK22: – | BL22: – | BM22: – | BN22: – | BO22: 3.16 | BP22: 38.5 | BQ22: 113 | BR22: 125
A23: W | B23: W40X278 | C23: W40X278 | D23: F | E23: 278 | F23: 82.3 | G23: 40.2 | H23: 40.125 | I23: – | J23: – | K23: 12 | L23: 12 | M23: – | N23: – | O23: 1.03 | P23: 1 | Q23: 0.5 | R23: 1.81 | S23: 1.8125 | T23: – | U23: – | V23: – | W23: 2.99 | X23: 3.0625 | Y23: 1.75 | Z23: – | AA23: – | AB23: – | AC23: – | AD23: – | AE23: 3.31 | AF23: – | AG23: 33.3 | AH23: – | AI23: – | AJ23: 20500 | AK23: 1190 | AL23: 1020 | AM23: 15.8 | AN23: 521 | AO23: 140 | AP23: 87.1 | AQ23: 2.52 | AR23: – | AS23: – | AT23: – | AU23: 65 | AV23: 192000 | AW23: – | AX23: 115 | AY23: 622 | AZ23: – | BA23: – | BB23: 190 | BC23: 587 | BD23: – | BE23: – | BF23: – | BG23: – | BH23: – | BI23: – | BJ23: – | BK23: – | BL23: – | BM23: – | BN23: – | BO23: 3.13 | BP23: 38.4 | BQ23: 112 | BR23: 124
A24: W | B24: W40X264 | C24: W40X264 | D24: F | E24: 264 | F24: 77.4 | G24: 40 | H24: 40 | I24: – | J24: – | K24: 11.9 | L24: 11.875 | M24: – | N24: – | O24: 0.96 | P24: 0.9375 | Q24: 0.5 | R24: 1.73 | S24: 1.75 | T24: – | U24: – | V24: – | W24: 2.91 | X24: 3 | Y24: 1.6875 | Z24: – | AA24: – | AB24: – | AC24: – | AD24: – | AE24: 3.45 | AF24: – | AG24: 35.6 | AH24: – | AI24: – | AJ24: 19400 | AK24: 1130 | AL24: 971 | AM24: 15.8 | AN24: 493 | AO24: 132 | AP24: 82.6 | AQ24: 2.52 | AR24: – | AS24: – | AT24: – | AU24: 56.1 | AV24: 181000 | AW24: – | AX24: 114 | AY24: 589 | AZ24: – | BA24: – | BB24: 182 | BC24: 555 | BD24: – | BE24: – | BF24: – | BG24: – | BH24: – | BI24: – | BJ24: – | BK24: – | BL24: – | BM24: – | BN24: – | BO24: 3.12 | BP24: 38.3 | BQ24: 112 | BR24: 124
A25: W | B25: W40X235 | C25: W40X235 | D25: F | E25: 235 | F25: 69.1 | G25: 39.7 | H25: 39.75 | I25: – | J25: – | K25: 11.9 | L25: 11.875 | M25: – | N25: – | O25: 0.83 | P25: 0.8125 | Q25: 0.4375 | R25: 1.58 | S25: 1.5625 | T25: – | U25: – | V25: – | W25: 2.76 | X25: 2.875 | Y25: 1.625 | Z25: – | AA25: – | AB25: – | AC25: – | AD25: – | AE25: 3.77 | AF25: – | AG25: 41.2 | AH25: – | AI25: – | AJ25: 17400 | AK25: 1010 | AL25: 875 | AM25: 15.9 | AN25: 444 | AO25: 118 | AP25: 74.6 | AQ25: 2.54 | AR25: – | AS25: – | AT25: – | AU25: 41.3 | AV25: 161000 | AW25: – | AX25: 113 | AY25: 530 | AZ25: – | BA25: – | BB25: 166 | BC25: 495 | BD25: – | BE25: – | BF25: – | BG25: – | BH25: – | BI25: – | BJ25: – | BK25: – | BL25: – | BM25: – | BN25: – | BO25: 3.11 | BP25: 38.1 | BQ25: 111 | BR25: 123
A26: W | B26: W40X211 | C26: W40X211 | D26: F | E26: 211 | F26: 62.1 | G26: 39.4 | H26: 39.375 | I26: – | J26: – | K26: 11.8 | L26: 11.75 | M26: – | N26: – | O26: 0.75 | P26: 0.75 | Q26: 0.375 | R26: 1.42 | S26: 1.4375 | T26: – | U26: – | V26: – | W26: 2.6 | X26: 2.6875 | Y26: 1.5625 | Z26: – | AA26: – | AB26: – | AC26: – | AD26: – | AE26: 4.17 | AF26: – | AG26: 45.6 | AH26: – | AI26: – | AJ26: 15500 | AK26: 906 | AL26: 786 | AM26: 15.8 | AN26: 390 | AO26: 105 | AP26: 66.1 | AQ26: 2.51 | AR26: – | AS26: – | AT26: – | AU26: 30.4 | AV26: 141000 | AW26: – | AX26: 112 | AY26: 468 | AZ26: – | BA26: – | BB26: 148 | BC26: 442 | BD26: – | BE26: – | BF26: – | BG26: – | BH26: – | BI26: – | BJ26: – | BK26: – | BL26: – | BM26: – | BN26: – | BO26: 3.07 | BP26: 38 | BQ26: 110 | BR26: 122
A27: W | B27: W40X183 | C27: W40X183 | D27: F | E27: 183 | F27: 53.3 | G27: 39 | H27: 39 | I27: – | J27: – | K27: 11.8 | L27: 11.75 | M27: – | N27: – | O27: 0.65 | P27: 0.625 | Q27: 0.3125 | R27: 1.2 | S27: 1.1875 | T27: – | U27: – | V27: – | W27: 2.38 | X27: 2.5 | Y27: 1.5625 | Z27: – | AA27: – | AB27: – | AC27: – | AD27: – | AE27: 4.92 | AF27: – | AG27: 52.6 | AH27: – | AI27: – | AJ27: 13200 | AK27: 774 | AL27: 675 | AM27: 15.7 | AN27: 331 | AO27: 88.3 | AP27: 56 | AQ27: 2.49 | AR27: – | AS27: – | AT27: – | AU27: 19.3 | AV27: 118000 | AW27: – | AX27: 112 | AY27: 395 | AZ27: – | BA27: – | BB27: 126 | BC27: 376 | BD27: – | BE27: – | BF27: – | BG27: – | BH27: – | BI27: – | BJ27: – | BK27: – | BL27: – | BM27: – | BN27: – | BO27: 3.04 | BP27: 37.8 | BQ27: 110 | BR27: 122
